Workbook

Sheet Title
G7: Municipal Solid Waste Tariff Model (v1.5)
G8: 2012-05-09
G10: A predictive model for the setting of municipal solid waste tariffs, based on the projection of income and expenditures (operating and capital account)
G11: associated with the provision of solid waste services in South African local and metropolitan municipalities
G13: developed by
B19: Department of Environmental Affairs | J19: PDG
B20: Private Bag X 447 | J20: PO Box 46830
B21: Pretoria | J21: Glosderry
B22: 0001 | J22: 7702
B24: Contact Person: | D24: Ms Unathi Mbeki | J24: Contact Person: | L24: Nick Graham
B25: Telephone: | D25: (012) 395 1845 | J25: Telephone: | L25: (021) 671 1402
B26: E-mail: | D26: UNMbeki@environment.gov.za | J26: E-mail: | L26: nick@pdg.co.za
A31: Disclaimer:
A32: The Municipal Services Financial Model is provided as a public resource to assist with planning of infrastructure services. The model is intended for strategic
A33: use only, typically for IDPs, and not as a detailed budget preparation or project assessment tool. Model results are dependent on many inputs, including
A34: default costs, which may be inaccurate. The developers and funders of this model cannot take responsibility for decisions taken on the basis of
A35: model results.
A36: Note also that this version of the model has NOT been tested nationally. It contains some features that have been added based on work undertaken
A37: by PDG for individual clients. User notes have not been fully updated. Users who are not expert in the use of the MSFM should take care applying this model version.

Sheet HOME
B2: DEA SOLID WASTE TARIFF MODEL - HOME PAGE
B4: Model information
B6: Municipality
B7: Model Run
B8: Year 0 | D8: ="representing the "&(C8-1)&"/"&C8&" financial year" -> representing the -1/ financial year
B11: Overall tariff objective
B15: =IF(C13="Full cost recovery with surplus","How much surplus?",IF(C13="Willing to accept a deficit","How much deficit?","")) ->  | D15: =IF(OR(C13="Full cost recovery with surplus",C13="Willing to accept a deficit")," of operating expenditure","") -> 
B18: Guide to model formatting
D20: Base data - cells must be filled in by the user
D21: Drop-down list - user must select appropriate option
D22: Calculated cells
D23: Cells where data need not be entered
D24: Default or calculated values

Sheet CONSUMERS
B2: CONSUMERS | D2: =Model_run -> 0
B4: Key demographics
D5: default | E5: updated value
B6: Population | D6: =VLOOKUP(HOME!C6,'e-muncipal data'!B3:D236,3,FALSE) -> 
B7: Number of households | D7: =VLOOKUP(HOME!C6,'e-muncipal data'!B3:D236,2,FALSE) -> 
B8: Average household size (persons/hh) | D8: =D6/D7 ->  | E8: =IFERROR(E6/E7,"") -> 
B9: Consumer units (CUs) | C9: Total | D9: =IF(E7="",SUM(D10:D11),SUM(E10:E11)) -> 
C10: Low income | D10: =D$7*SUM(D15:D16)/defaults!B5 ->  | E10: =IF(E$9="",E$7*IF(SUM(E15:E16)=0,SUM(D15:D16),SUM(E15:E16))/defaults!B5,E$9*SUM(E15:E16)) -> 
C11: High income | D11: =D$7*SUM(D17:D18)/defaults!B6 ->  | E11: =IF(E$9="",E$7*IF(SUM(E17:E18)=1,SUM(D17:D18),SUM(E17:E18))/defaults!B6,E$9*SUM(E17:E18)) -> 
B13: Household income profile
B14: R/hh/month From | C14: To | D14: default | E14: updated value
B15: 0 | C15: 1599 | D15: =VLOOKUP(HOME!C6,'e-muncipal data'!B3:T236,16,FALSE) -> 
B16: 1600 | C16: 3199 | D16: =VLOOKUP(HOME!$C$6,'e-muncipal data'!$B$3:$T$236,17,FALSE) -> 
B17: 3200 | C17: 6399 | D17: =VLOOKUP(HOME!$C$6,'e-muncipal data'!$B$3:$T$236,18,FALSE) -> 
B18: 6400 | C18: more | D18: =1-SUM(D15:D17) ->  | E18: =1-SUM(E15:E17) -> 1
B19: Household income cut-off for subsidisation (indigents) | E19: ="= "&TEXT('e-inc'!D116,"#,##0")&" CUs" -> = ,0 CUs
B20: Property rates exemption threshold ('R) | D20: =defaults!B84 -> 15000
B21: Residential property rates charge (cents in the Rand) | D21: 0.8
B23: Non-residential Information
C24: Default no. of non-res consumers | D24: Total no. of non-res consumers | E24: No. served by municipality
B25: Round Collected Waste (RCW) (Institutions & Commercial Customers) | C25: =IF(SUM(E10:E11)=0,(SUM(D10:D11)*defaults!B18)/(1-defaults!B18),(SUM(E10:E11)*defaults!B18)/(1-defaults!B18)) -> 
B26: Demand Collected Waste (DCW) (Generally Industry) | C26: =IF(SUM(E10:E11)=0,SUM(D10:D11)*defaults!B19,SUM(E10:E11)*defaults!B19) -> 

Sheet SERVICE LEVELS
A1: z`
B2: SERVICE LEVELS | D2: =Model_run -> 0
B4: Residential collection service levels
B5: Service Level | C5: Service Provider | D5: No of Cus | E5: High income
B6: No service | D6: =SUM(CONSUMERS!E10:E11)-SUM('SERVICE LEVELS'!D7:D13) -> 
D14: =SUM(D6:D13) -> 
B15: Residential collection of recyclables
B16: Service Level | C16: Service Provider | D16: No of Cus
B21: Non-residential service levels
B22: Round collected Waste (RCW)
B23: Service Level | C23: Frequency | D23: No of Service Points
D24: =CONSUMERS!E25-SUM('SERVICE LEVELS'!D25:D27) -> 0
B29: Demand collected waste (DCW) | D29: tons/annum
C30: default | D30: updated value
B31: Non-res waste as % of residential waste | C31: =VLOOKUP(VLOOKUP(HOME!C6,'e-municipal codes'!$D$2:$E$236,2,FALSE),defaults!$B$43:$C$47,2) ->  | E31: ="= "&ROUND('e-waste'!$C$151,0)&" tons pa" -> 
B33: Public cleansing service levels
C34: Service Provider
B35: Street Cleaning | E35: tons/annum
B36: Area Cleaning (including illegal dumping) | E36: tons/annum
C37: Total | D37: =SUM(D35:D36) -> 0 | E37: tons/annum
B38: Percentage of public cleaning waste generated by residential and non-residential consumers:
C39: default | D39: updated value
B40: Residential | C40: 0.5
B41: Non-Residential | C41: 0.5 | D41: =IF(D40="","",1-D40) -> 

Sheet WASTE FACILITIES
B2: WASTE FACILITIES | C2: =Model_run -> 0
B3: Vehicles
B4: Ownership of vehicles
B5: Current replacement cost (CRC) of existing vehicles (R'000)
C6: default | D6: updated value
B7: Average useful life of all exisiting vehicles (years) | C7: =defaults!B60 -> 10
B8: Average age of existing vehicles (years) | C8: =defaults!B61 -> 5
B10: Transfer stations
B11: Are transfer stations used?
B12: Municipally collected waste delivered to transfer station | D12: tons/annum
B13: Other Waste delivered directly to transfer stations | D13: tons/annum
B14: Total waste through transfer stations | C14: =C12+C13 -> 0 | D14: tons/annum
B15: % of other waste which is not chargeable | C15: =defaults!B65 -> 0.1
B17: Recycling
B18: Are reclamation/recycling facitlies used?
B19: Municipal-collected waste diverted to reclamation facility | D19: tons/annum
B20: Other recycled waste dropped off directly | D20: tons/annum
C21: =C19+C20 -> 0 | D21: tons/annum
C22: default | D22: updated value
B23: % non-recyclable material returned to waste stream | C23: =defaults!B66 -> 0.11
B24: Municipal responsibility for reclamation facilities | D24: Private = | E24: =1-C24 -> 1
B25: Does the municipality sell reclaimed/recycled material?
B26: Average sale price of reclaimed/recycled material (R/ton)
B28: Landfill
B29: Landfill waste destination | F29: =IF('e-waste'!A407=3,"Once own landfill is full, the model assumes that all waste goes to the other landfill","") -> 
B30: % of waste collected going to own landfill
B31: Other waste delivered directly to municipal landfill | D31: tons/annum
B32: Total remaining municipal airspace available (beginning of yr0) | D32: m3
C33: Calculated | D33: Actual
B34: Total mass of waste disposed of at own landfill | C34: ='e-waste'!C350 ->  | E34: tons/annum
B35: Total mass of waste disposed of at other landfill | C35: ='e-waste'!C351 ->  | E35: tons/annum
B36: Total waste to andfill | C36: =SUM(C34:C35) ->  | D36: =IF(waste_destination="Own landfill",D34,IF(waste_destination="Own landfill now, Other/Regional later",D34,IF(waste_destination="Other/Regional Landfill",D35,SUM(D34:D35)))) -> 0 | E36: tons/annum
C37: ="differential of "&ROUND((C36-D36)/C36*100,0)& "%" -> 
B38: % of waste accepted at landfill which is not chargeable? | C38: =defaults!B67 -> 0.05 | D38: 0.08
B39: Volume density of waste disposed | C39: 0.8 | E39: tons/m3
B41: Waste-to-energy (WTE)
B42: Do you have waste-to-energy facilities?
B43: Municipal-collected waste supplied to WTE plant | D43: tons/annum
B44: Current power generation capacity | D44: MW/annum
C45: default | D45: updated value
B46: % non-combustible material as residue to landfill | C46: =defaults!B68 -> 0.03
B47: Municipal responsibility for WTE plants | D47: Private = | E47: =1-C47 -> 1
B49: Landfill gas to energy (LGTE)
B50: Do you have landfill gas to energy?
B51: Current landfill volume flared for landfill gas | D51: m3
B52: Current power generation capacity | D52: MW/annum
B53: Municipal responsibility for LGTE | D53: Private = | E53: =1-C53 -> 1

Sheet FINANCE
B2: FINANCE | C2: =Model_run -> 0
B4: Financial assumptions
B5: Historic Debt
B6: Debt outstanding in base year (R'000)
C7: default | D7: updated value
B8: Cost of Capital - Historic Debt | C8: ='e-loans'!D11 -> 0.12
B9: Average repayment period remaining (years) | C9: =defaults!B77 -> 5
B11: New debt | C11: default | D11: updated value
B12: Cost of Capital - New Debt | C12: =defaults!B78 -> 0.1
B13: Average repayment period (years) | C13: =defaults!B79 -> 10
C14: default | D14: updated value
B15: Inflation projection | C15: =defaults!B80 -> 0.06
B18: Capital funding (R'000)
B19: Source of capital funding | C19: =Base_year -> 0 | D19: =C19+1 -> 1 | E19: =D19+1 -> 2
B20: MIG/USDG for solid waste (R'000)
B21: Other capital grants for solid waste (R'000)
B22: Own capital reserves (R'000)
B24: Operating subsidies (R'000)
B25: Source of operating subsidies | C25: =Base_year -> 0 | D25: =C25+1 -> 1 | E25: =D25+1 -> 2
B26: Equitable share allocation for solid waste (R'000)
B27: Other operating grants for solid waste (R'000)
B28: Total operating subsidies (R'000) | C28: =SUM(C26:C27) -> 0 | D28: =SUM(D26:D27) -> 0 | E28: 0
B29: ES Income available per indigent CU (R/CU/month) | C29: ='e-rev'!C83 -> 

Sheet TARIFFS
B2: TARIFFS | C2: =Model_run -> 0
B4: Service funding strategy
D5: % covered by rates
B6: Residential Collection
B7: =IF('SERVICE LEVELS'!B7="","",'SERVICE LEVELS'!B7) -> 
B8: =IF('SERVICE LEVELS'!B8="","",'SERVICE LEVELS'!B8) -> 
B9: =IF('SERVICE LEVELS'!B9="","",'SERVICE LEVELS'!B9) -> 
B10: =IF('SERVICE LEVELS'!B10="","",'SERVICE LEVELS'!B10) -> 
B11: =IF('SERVICE LEVELS'!B11="","",'SERVICE LEVELS'!B11) -> 
B12: =IF('SERVICE LEVELS'!B12="","",'SERVICE LEVELS'!B12) -> 
B13: =IF('SERVICE LEVELS'!B13="","",'SERVICE LEVELS'!B13) -> 
B14: Non-Residential Collection
B15: Public Cleansing
B16: Transfer & Disposal
B17: Other waste activities
B19: Residential tariffs
B20: Choose if tariffs are based on service levels, or anther user defined category:
B22: Service level tariffs | C22: Charge/hh/ month (yr 0)
B23: =IF('SERVICE LEVELS'!B6="","",'SERVICE LEVELS'!B6) -> No service | C23: 0
B24: =IF('SERVICE LEVELS'!B7="","",'SERVICE LEVELS'!B7) -> 
B25: =IF('SERVICE LEVELS'!B8="","",'SERVICE LEVELS'!B8) -> 
B26: =IF('SERVICE LEVELS'!B9="","",'SERVICE LEVELS'!B9) -> 
B27: =IF('SERVICE LEVELS'!B10="","",'SERVICE LEVELS'!B10) -> 
B28: =IF('SERVICE LEVELS'!B11="","",'SERVICE LEVELS'!B11) -> 
B29: =IF('SERVICE LEVELS'!B12="","",'SERVICE LEVELS'!B12) -> 
B30: =IF('SERVICE LEVELS'!B13="","",'SERVICE LEVELS'!B13) -> 
B32: User-defined residential tariffs
B33: Category name & description | C33: Monthly Tariff | D33: Consumer Units | E33: Billed Income (R'000/annum)
B34: No service | C34: 0 | D34: =IF(CONSUMERS!E9=0,CONSUMERS!D9,CONSUMERS!E9)-SUM(TARIFFS!D35:D41) ->  | E34: =C34*D34*12/1000 -> 
E35: =C35*D35*12/1000 -> 0
E36: =C36*D36*12/1000 -> 0
E37: 0
E38: 0
E39: 0
E40: 0
E41: 0
D42: =SUM(D34:D41) ->  | E42: =SUM(E34:E41) -> 
B43: Non-residential Tariffs
C44: Basic charge (annual) | D44: R/m3
B45: Non-Residential Round Collected Waste (RCW)
B46: Non-Residential Demand Collected Waste (DCW)
B47: If a Basic Charge is used, to whom does it apply:
B51: Disposal
B52: Charged to private companies and individuals depositing directly at landfill or transfer stations
B54: Average disposal tariff | D54: per ton

Sheet OPERATING
B2: OPERATING ACCOUNT | C2: =Model_run -> 0
B4: ="Current expenditure ("&(Base_year-1)&"/"&Base_year&")" -> Current expenditure (-1/)
C5: R'000 | D5: R'000
C6: Calculated | D6: Actual
B7: Total operating expenditure | C7: ='e-opex'!D24 -> 
B8: of which:
B9: Non-operational expenditure (education, marketing, etc)
B10: Provision for bad debt | C10: =IF(D10="",defaults!B90*D7,D10) -> 0
B11: Depreciation | C11: ='e-capex'!L59 -> 
B12: Interest | C12: ='e-loans'!C25 -> 0
B13: Contributions to capital reserves
B16: ="Current income ("&(Base_year-1)&"/"&Base_year&")" -> Current income (-1/)
D17: R'000 | F17: `
B18: User charges | C18: Calculated | D18: Actual
B19: - Residential | C19: ='e-rev'!C29 -> 
B20: - Non-Residential | C20: ='e-rev'!C54 -> 
B21: Disposal charges | C21: ='e-rev'!C11 -> 
B22: Total user charges | C22: =SUM(C19:C21) -> 
B23: Rates income
B24: - Residential | C24: =IF(D24="",'e-cost recovery'!E16,D24) -> 0
B25: - Non-Residential | C25: =IF(D25="",'e-cost recovery'!E18,D25) -> 
B26: Total transfer from rates account | C26: =SUM(C24:C25) ->  | D26: =OPERATING!D24+OPERATING!D25 -> 0
B28: Operating subsidies | C28: =' FINANCE'!C28 -> 0 | D28: =' FINANCE'!C28 -> 0
B29: Other income | C29: ='e-rev'!C13 -> 0
B30: TOTAL INCOME | C30: ='e-rev'!C15 ->  | D30: =C22+IF(D26=0,C26,D26)+D28+IF(D29="",C29,D29) -> 
B31: SURPLUS / DEFICIT | C31: =C30-C7 ->  | D31: =D30-D7 -> 
C32: =C22+C26+SUM(C28:C29)-C30 -> 

Sheet targets
B2: TARGETS | C2: =Model_run -> 0
B4: Waste generation reduction targets
B5: Household waste generation rates as % of base year | C5: =Base_year -> 0 | D5: =Base_year+5 -> 5 | E5: =Base_year+10 -> 10
B6: =IF('SERVICE LEVELS'!B6="","",'SERVICE LEVELS'!B6) -> No service | C6: 1
B7: =IF('SERVICE LEVELS'!B7="","",'SERVICE LEVELS'!B7) ->  | C7: 1
B8: =IF('SERVICE LEVELS'!B8="","",'SERVICE LEVELS'!B8) ->  | C8: 1
B9: =IF('SERVICE LEVELS'!B9="","",'SERVICE LEVELS'!B9) ->  | C9: 1
B10: =IF('SERVICE LEVELS'!B10="","",'SERVICE LEVELS'!B10) ->  | C10: 1
B11: =IF('SERVICE LEVELS'!B11="","",'SERVICE LEVELS'!B11) ->  | C11: 1
B12: =IF('SERVICE LEVELS'!B12="","",'SERVICE LEVELS'!B12) ->  | C12: 1
B13: =IF('SERVICE LEVELS'!B13="","",'SERVICE LEVELS'!B13) ->  | C13: 1
B14: Non-residential waste generation rates as % of base year | C14: 1
B16: Residential service targets
B17: % households provided with service levels | C17: =Base_year -> 0 | D17: =Base_year+5 -> 5 | E17: =Base_year+10 -> 10
B18: =IF('SERVICE LEVELS'!B6="","",'SERVICE LEVELS'!B6) -> No service | C18: ='e-waste'!C15/'e-waste'!$C$23 ->  | D18: =1-SUM(D19:D25) -> 1 | E18: =1-SUM(E19:E25) -> 1
B19: =IF('SERVICE LEVELS'!B7="","",'SERVICE LEVELS'!B7) ->  | C19: ='e-waste'!C16/'e-waste'!$C$23 -> 
B20: =IF('SERVICE LEVELS'!B8="","",'SERVICE LEVELS'!B8) ->  | C20: ='e-waste'!C17/'e-waste'!$C$23 -> 
B21: =IF('SERVICE LEVELS'!B9="","",'SERVICE LEVELS'!B9) ->  | C21: ='e-waste'!C18/'e-waste'!$C$23 -> 
B22: =IF('SERVICE LEVELS'!B10="","",'SERVICE LEVELS'!B10) ->  | C22: ='e-waste'!C19/'e-waste'!$C$23 -> 
B23: =IF('SERVICE LEVELS'!B11="","",'SERVICE LEVELS'!B11) ->  | C23: ='e-waste'!C20/'e-waste'!$C$23 -> 
B24: =IF('SERVICE LEVELS'!B12="","",'SERVICE LEVELS'!B12) ->  | C24: ='e-waste'!C21/'e-waste'!$C$23 -> 
B25: =IF('SERVICE LEVELS'!B13="","",'SERVICE LEVELS'!B13) ->  | C25: ='e-waste'!C22/'e-waste'!$C$23 -> 
B26: Must Equal 100% | C26: =SUM(C18:C25) ->  | D26: =SUM(D18:D25) -> 1 | E26: =SUM(E18:E25) -> 1
B28: Residential recycling collection targets
B29: % households provided with service levels | C29: =Base_year -> 0 | D29: =Base_year+5 -> 5 | E29: =Base_year+10 -> 10
B30: =IF('SERVICE LEVELS'!B17="","",'SERVICE LEVELS'!B17) ->  | C30: ='SERVICE LEVELS'!D17/IF(SUM(CONSUMERS!E$10:E$11)="",SUM(CONSUMERS!D$10:D$11),SUM(CONSUMERS!E$10:E$11)) -> 
B31: =IF('SERVICE LEVELS'!B18="","",'SERVICE LEVELS'!B18) ->  | C31: =IF('SERVICE LEVELS'!B18="",0,'SERVICE LEVELS'!D18/IF(SUM(CONSUMERS!E$10:E$11)="",SUM(CONSUMERS!D$10:D$11),SUM(CONSUMERS!E$10:E$11))) -> 0
B32: =IF('SERVICE LEVELS'!B19="","",'SERVICE LEVELS'!B19) ->  | C32: =IF('SERVICE LEVELS'!B19="",0,'SERVICE LEVELS'!D19/IF(SUM(CONSUMERS!E$10:E$11)="",SUM(CONSUMERS!D$10:D$11),SUM(CONSUMERS!E$10:E$11))) -> 0
B34: Non-residential Targets
B35: Year | C35: =Base_year -> 0 | D35: =Base_year+5 -> 5 | E35: =Base_year+10 -> 10
B36: Overall RCW non-res market share % | C36: =CONSUMERS!E25/CONSUMERS!D25 -> 
B37: Split of services provided to non-res customers
B38: =IF('SERVICE LEVELS'!B24="","",'SERVICE LEVELS'!B24) ->  | C38: =IFERROR('SERVICE LEVELS'!D24/CONSUMERS!$E$25,0) -> 0
B39: =IF('SERVICE LEVELS'!B25="","",'SERVICE LEVELS'!B25) ->  | C39: =IFERROR('SERVICE LEVELS'!D25/CONSUMERS!$E$25,0) -> 0
B40: =IF('SERVICE LEVELS'!B26="","",'SERVICE LEVELS'!B26) ->  | C40: =IFERROR('SERVICE LEVELS'!D26/CONSUMERS!$E$25,0) -> 0
B41: =IF('SERVICE LEVELS'!B27="","",'SERVICE LEVELS'!B27) ->  | C41: =IFERROR('SERVICE LEVELS'!D27/CONSUMERS!$E$25,0) -> 0
C42: =SUM(C38:C41) -> 0 | D42: =SUM(D38:D41) -> 0 | E42: =SUM(E38:E41) -> 0
B43: DCW-Industrial Market share | C43: =IFERROR(CONSUMERS!E26/CONSUMERS!D26,0) -> 0
B45: Public Cleansing Targets
C46: =Base_year -> 0 | D46: =Base_year+5 -> 5 | E46: =Base_year+10 -> 10
B47: Street cleaning as % of other waste collected | C47: =IF('SERVICE LEVELS'!C35="none",0,'SERVICE LEVELS'!$D35/SUM('e-waste'!$C$97,'e-waste'!$C$151)) -> 
B48: Area cleaning as % of other waste collected | C48: =IF('SERVICE LEVELS'!C36="none",0,'SERVICE LEVELS'!$D36/SUM('e-waste'!$C$97,'e-waste'!$C$151)) -> 
B50: Transfer Station Targets
C51: =Base_year -> 0 | D51: =Base_year+5 -> 5 | E51: =Base_year+10 -> 10
B52: % of muni collected waste delivered to transfer station | C52: =IF('WASTE FACILITIES'!C11="no",0,'WASTE FACILITIES'!C12/'e-waste'!$C$184) -> 
B53: % of transfer station waste dropped of by consumers | C53: =IF('WASTE FACILITIES'!C11="no",0,'WASTE FACILITIES'!C13/SUM('WASTE FACILITIES'!C12:C13)) -> 
B55: RecyclingTargets
B56: Targets for recycling: | C56: =Base_year -> 0 | D56: =Base_year+5 -> 5 | E56: =Base_year+10 -> 10
B57: % municipal-collected waste reclaimed for recycling | C57: =IF('WASTE FACILITIES'!C18="no",0,'WASTE FACILITIES'!C19/'e-waste'!C184) -> 
B58: Increase in direct drop-off of recyclables | C58: 0
B59: Municipal responsibility for recycling | C59: =IF('WASTE FACILITIES'!C18="no",0,'WASTE FACILITIES'!C24) -> 0
B61: Landfill Targets
C62: =Base_year -> 0 | D62: =Base_year+5 -> 5 | E62: =Base_year+10 -> 10
B63: % of muni collected waste going to own landfill | C63: =IF(waste_destination="Own landfill",100%,IF(waste_destination="Private/Regional Landfill",0%,'WASTE FACILITIES'!C30)) -> 0
B65: Waste to Energy (WTE) Targets
C66: =Base_year -> 0 | D66: =Base_year+5 -> 5 | E66: =Base_year+10 -> 10
B67: % municipal-collected waste diverted to WTE facility | C67: ='WASTE FACILITIES'!C43/'e-waste'!C184 -> 
B68: Municipal responsibility for WTE facility | C68: ='WASTE FACILITIES'!C47 -> 0
B70: Landfill Gas to Energy (LGTE) Targets
C71: =Base_year -> 0 | D71: =Base_year+5 -> 5 | E71: =Base_year+10 -> 10
B72: Landfill volume utilised for landfill gas to energy (m3) | C72: ='WASTE FACILITIES'!C51 -> 0
B74: User defined tariff categories
B75: Distribution of categories in future
C76: =Base_year -> 0 | D76: =Base_year+5 -> 5 | E76: =Base_year+10 -> 10
B77: =IF(TARIFFS!B34="","",TARIFFS!B34) -> No service | C77: =IF(TARIFFS!$D$42=0,0,TARIFFS!D34/TARIFFS!$D$42) -> 
B78: =IF(TARIFFS!B35="","",TARIFFS!B35) ->  | C78: =IF(TARIFFS!$D$42=0,0,TARIFFS!D35/TARIFFS!$D$42) -> 
B79: =IF(TARIFFS!B36="","",TARIFFS!B36) ->  | C79: =IF(TARIFFS!$D$42=0,0,TARIFFS!D36/TARIFFS!$D$42) -> 
B80: =IF(TARIFFS!B37="","",TARIFFS!B37) ->  | C80: =IF(TARIFFS!$D$42=0,0,TARIFFS!D37/TARIFFS!$D$42) -> 
B81: =IF(TARIFFS!B38="","",TARIFFS!B38) ->  | C81: =IF(TARIFFS!$D$42=0,0,TARIFFS!D38/TARIFFS!$D$42) -> 
B82: =IF(TARIFFS!B39="","",TARIFFS!B39) ->  | C82: =IF(TARIFFS!$D$42=0,0,TARIFFS!D39/TARIFFS!$D$42) -> 
B83: =IF(TARIFFS!B40="","",TARIFFS!B40) ->  | C83: =IF(TARIFFS!$D$42=0,0,TARIFFS!D40/TARIFFS!$D$42) -> 
B84: =IF(TARIFFS!B41="","",TARIFFS!B41) ->  | C84: =IF(TARIFFS!$D$42=0,0,TARIFFS!D41/TARIFFS!$D$42) -> 
C85: =SUM(C77:C84) ->  | D85: =SUM(D77:D84) -> 0 | E85: =SUM(E77:E84) -> 0
B87: Changes to capital funding
C88: 3-year MTEF | D88: =Base_year+5 -> 5 | E88: =Base_year+10 -> 10
B89: % Capex funding through grants | C89: =SUM(' FINANCE'!C20:E21)/SUM('e-capex'!D20:F20) -> 
B90: % Capex funding through own reserves | C90: =SUM(' FINANCE'!C22:E22)/SUM('e-capex'!D20:F20) -> 
B92: Operating cost increases
C93: =Base_year -> 0 | D93: =Base_year+5 -> 5 | E93: =Base_year+10 -> 10
B94: Real cost increase for storage and collection costs | C94: 0
B95: Real cost increase for transfer station operating costs | C95: 0
B96: Real cost increase for disposal operating costs | C96: 0
B97: Provision for bad debt as % of opex | C97: =IF(OPERATING!D10="",OPERATING!C10,OPERATING!D10)/IF(OPERATING!D7="",OPERATING!C7,OPERATING!D7) -> 
B99: Operating revenue projections
C100: =Base_year -> 0 | D100: =Base_year+5 -> 5 | E100: =Base_year+10 -> 10
B101: Real operating subsidy increases (from current) | C101: 0
B102: Residential rates increases | C102: 0
B103: Non-residential rates increases | C103: 0

Sheet unit costs
B1: UNIT COSTS | D1: =Model_run -> 0
B3: Residential
C4: R/CU/month
C5: Municipality | E5: Full Contract | G5: Labour only contract
B6: Service Level | C6: default | D6: updated value | E6: default | F6: updated value | G6: default | H6: updated value | K6: Modelled | L6: Target | M6: Difference
B7: ='SERVICE LEVELS'!B7 -> 0 | C7: =IF(B7=0,0,VLOOKUP(B7,defaults!$A$25:$E$35,3,FALSE)) -> 0 | D7: =C7*$J$7 -> 0 | E7: =IF(B7=0,0,VLOOKUP(B7,defaults!$A$25:$E$35,4,FALSE)) -> 0 | F7: =E7*$J$7 -> 0 | G7: =IF(B7=0,0,VLOOKUP(B7,defaults!$A$25:$E$35,4,FALSE)) -> 0 | H7: =G7*$J$7 -> 0 | J7: 1 | K7: =OPERATING!C7 ->  | L7: =OPERATING!D7 -> 0 | M7: =L7-K7 -> 
B8: ='SERVICE LEVELS'!B8 -> 0 | C8: =IF(B8=0,0,VLOOKUP(B8,defaults!$A$25:$E$35,3,FALSE)) -> 0 | D8: =C8*$J$7 -> 0 | E8: =IF(B8=0,0,VLOOKUP(B8,defaults!$A$25:$E$35,4,FALSE)) -> 0 | F8: 0 | G8: =IF(B8=0,0,VLOOKUP(B8,defaults!$A$25:$E$35,4,FALSE)) -> 0 | H8: =G8*$J$7 -> 0
B9: ='SERVICE LEVELS'!B9 -> 0 | C9: =IF(B9=0,0,VLOOKUP(B9,defaults!$A$25:$E$35,3,FALSE)) -> 0 | D9: 0 | E9: =IF(B9=0,0,VLOOKUP(B9,defaults!$A$25:$E$35,4,FALSE)) -> 0 | F9: 0 | G9: =IF(B9=0,0,VLOOKUP(B9,defaults!$A$25:$E$35,4,FALSE)) -> 0 | H9: =G9*$J$7 -> 0
B10: ='SERVICE LEVELS'!B10 -> 0 | C10: =IF(B10=0,0,VLOOKUP(B10,defaults!$A$25:$E$35,3,FALSE)) -> 0 | D10: 0 | E10: =IF(B10=0,0,VLOOKUP(B10,defaults!$A$25:$E$35,4,FALSE)) -> 0 | F10: 0 | G10: =IF(B10=0,0,VLOOKUP(B10,defaults!$A$25:$E$35,4,FALSE)) -> 0 | H10: =G10*$J$7 -> 0
B11: ='SERVICE LEVELS'!B11 -> 0 | C11: =IF(B11=0,0,VLOOKUP(B11,defaults!$A$25:$E$35,3,FALSE)) -> 0 | D11: 0 | E11: =IF(B11=0,0,VLOOKUP(B11,defaults!$A$25:$E$35,4,FALSE)) -> 0 | F11: 0 | G11: =IF(B11=0,0,VLOOKUP(B11,defaults!$A$25:$E$35,4,FALSE)) -> 0 | H11: =G11*$J$7 -> 0
B12: ='SERVICE LEVELS'!B12 -> 0 | C12: =IF(B12=0,0,VLOOKUP(B12,defaults!$A$25:$E$35,3,FALSE)) -> 0 | D12: 0 | E12: =IF(B12=0,0,VLOOKUP(B12,defaults!$A$25:$E$35,4,FALSE)) -> 0 | F12: 0 | G12: =IF(B12=0,0,VLOOKUP(B12,defaults!$A$25:$E$35,4,FALSE)) -> 0 | H12: =G12*$J$7 -> 0
B13: ='SERVICE LEVELS'!B13 -> 0 | C13: =IF(B13=0,0,VLOOKUP(B13,defaults!$A$25:$E$35,3,FALSE)) -> 0 | D13: 0 | E13: =IF(B13=0,0,VLOOKUP(B13,defaults!$A$25:$E$35,4,FALSE)) -> 0 | F13: 0 | G13: =IF(B13=0,0,VLOOKUP(B13,defaults!$A$25:$E$35,4,FALSE)) -> 0 | H13: =G13*$J$7 -> 0
B15: Residential collection of recyclables
C16: R/CU/Month
C17: Municipality | E17: Full Contract | G17: Labour only contract
B18: ='SERVICE LEVELS'!B16 -> Service Level | C18: default | D18: updated value | E18: default | F18: updated value | G18: default | H18: updated value
B19: =IF('SERVICE LEVELS'!B17="","",'SERVICE LEVELS'!B17) ->  | C19: =defaults!B38 -> 42 | D19: =C19*$J$7 -> 42 | E19: =defaults!B38 -> 42 | F19: =E19*$J$7 -> 42 | G19: =defaults!B38 -> 42 | H19: =G19*$J$7 -> 42
B20: =IF('SERVICE LEVELS'!B18="","",'SERVICE LEVELS'!B18) ->  | C20: =defaults!B39 -> 42 | D20: =C20*$J$7 -> 42 | E20: =defaults!B39 -> 42 | F20: 42 | G20: =defaults!B39 -> 42 | H20: =G20*$J$7 -> 42
B21: =IF('SERVICE LEVELS'!B19="","",'SERVICE LEVELS'!B19) ->  | C21: =defaults!B40 -> 42 | D21: 42 | E21: =defaults!B40 -> 42 | F21: 42 | G21: =defaults!B40 -> 42 | H21: =G21*$J$7 -> 42
B23: Non-Residential
B24: ='SERVICE LEVELS'!B22 -> Round collected Waste (RCW) | C24: R/CU/Month
B25: ='SERVICE LEVELS'!B23 -> Service Level | C25: default | D25: updated value
B26: =IF('SERVICE LEVELS'!B24="","",'SERVICE LEVELS'!B24) ->  | C26: ='e-waste'!B134*4*defaults!$B$49 -> 0 | D26: =C26*$J$7 -> 0
B27: =IF('SERVICE LEVELS'!B25="","",'SERVICE LEVELS'!B25) ->  | C27: ='e-waste'!B135*4*defaults!$B$49 -> 0 | D27: =C27*$J$7 -> 0
B28: =IF('SERVICE LEVELS'!B26="","",'SERVICE LEVELS'!B26) ->  | C28: ='e-waste'!B136*4*defaults!$B$49 -> 0 | D28: =C28*$J$7 -> 0
B29: =IF('SERVICE LEVELS'!B27="","",'SERVICE LEVELS'!B27) ->  | C29: ='e-waste'!B137*4*defaults!$B$49 -> 0 | D29: =C29*$J$7 -> 0
C30: R/m3
C31: default | D31: updated value
B32: ='SERVICE LEVELS'!B29 -> Demand collected waste (DCW) | C32: =defaults!B51 -> 100 | D32: =C32*$J$7 -> 100
B34: Public cleansing
C35: R/ton
C36: Municipality | E36: Full Contract | G36: Labour only contract
C37: default | D37: updated value | E37: default | F37: updated value | G37: default | H37: updated value
B38: ='SERVICE LEVELS'!B35:C35 -> Street Cleaning | C38: 60 | D38: =C38*$J$7 -> 60 | E38: 50 | F38: =E38*$J$7 -> 50 | G38: 55 | H38: =G38*$J$7 -> 55
B39: ='SERVICE LEVELS'!B36:C36 -> Area Cleaning (including illegal dumping) | C39: 44 | D39: =C39*$J$7 -> 44 | E39: 40 | F39: =E39*$J$7 -> 40 | G39: 40 | H39: =G39*$J$7 -> 40
B41: Waste disposal operating costs
C42: default | D42: updated value
B43: Transfer station | C43: =defaults!B95 -> 22.5 | D43: =C43*$J$7 -> 22.5 | E43: R/ton
B44: Recycling facitlity | C44: =defaults!B96 -> 40 | D44: =C44*$J$7 -> 40 | E44: R/ton
B45: Municipal landfill | C45: =defaults!B97 -> 56.2 | D45: =C45*$J$7 -> 56.2 | E45: R/ton
B46: Disposal fees at other landfill | C46: =defaults!B98 -> 200 | D46: 200 | E46: R/ton
B47: Landfill gas to energy | C47: =defaults!B99 -> 0.25 | D47: 0.25 | E47: R/kWh
B48: Waste to energy facility | C48: =defaults!B100 -> 100 | D48: 100 | E48: R/ton
B51: Waste disposal capital costs
C52: default | D52: updated value
B53: Transfer station | C53: =defaults!B103 -> 1000 | E53: R/ton/annum capacity
B54: Recycling facility | C54: =defaults!B104 -> 2500 | E54: R/ton/annum capacity
B55: Historical capital cost of landfill space | C55: =defaults!B105 -> 25 | E55: R/m3
B56: Future capital cost of landfill space | C56: =defaults!B106 -> 25 | E56: R/m3
B57: Landfill closure & rehabilitation fund | C57: 0.2 | E57: R/m3
B58: Landfill gas to energy facility | C58: =defaults!B108 -> 2.24 | E58: R/kWh/capacity
B59: Waste to energy facility | C59: =defaults!B109 -> 3400 | E59: R/ton/annum capacity
B61: Other revenue
B62: Unit costs for other revenue | C62: default | D62: updated value
B63: Sale price of electricity generated | C63: =defaults!B112 -> 35 | D63: =C63*$J$7 -> 35 | E63: c/kWh
B64: Value of CERs (carbon credits) | C64: =defaults!B113 -> 100 | D64: =C64*$J$7 -> 100 | E64: R/ton

Sheet waste gen
B1: Waste Generation | J1: =Model_run -> 0
B3: Economic growth assumptions
B4: Used to project waste generation | C4: default | D4: updated value
B5: Economic Growth : Year 0 | C5: 0.02
B6: Economic Growth : Year 5 | C6: 0.045
B7: Economic Growth : Year 10 | C7: 0.06
B9: Population growth assumptions
B10: Used to project service expansion | C10: default | D10: updated value
B11: Low income | C11: =VLOOKUP('e-inc'!$D$6,defaults!$B$7:$C$11,2,FALSE) -> 
B12: High income | C12: =VLOOKUP('e-inc'!$D$6,defaults!$B$12:$C$16,2,FALSE) -> 
I13: Modelled | J13: Actual
B14: Municipal collection | F14: Waste generation adjustment factor | H14: 1 | I14: ='WASTE FACILITIES'!C36 ->  | J14: ='WASTE FACILITIES'!D36 -> 0 | K14: =J14-I14 -> 
B15: Average household waste generation rates: | C15: kg/CU/week
C16: default | D16: updated value
B17: =defaults!A25 -> No service | C17: =defaults!B25 -> 20 | D17: =C17*$H$14 -> 20
B18: =defaults!A26 -> Communal collection 1 | C18: =defaults!B26 -> 16.7 | D18: =C18*$H$14 -> 16.7
B19: =defaults!A27 -> Communal collection 2 | C19: =defaults!B27 -> 16.7 | D19: 16.7
B20: =defaults!A28 -> Food-for-waste | C20: =defaults!B28 -> 22 | D20: 22
B21: =defaults!A29 -> Community contractors 1 | C21: =defaults!B29 -> 20 | D21: 20
B22: =defaults!A30 -> Community contractors 2 | C22: =defaults!B30 -> 20 | D22: 20
B23: =defaults!A31 -> Principal contractors 1 | C23: =defaults!B31 -> 20 | D23: 20
B24: =defaults!A32 -> Principal contractors 2 | C24: =defaults!B32 -> 20 | D24: 20
B25: =defaults!A33 -> Kerbside collection 1 | C25: =defaults!B33 -> 36 | D25: 36
B26: =defaults!A34 -> Kerbside collection 2 | C26: =defaults!B34 -> 36 | D26: 36
B27: =defaults!A35 -> Kerbside collection 3 | C27: =defaults!B35 -> 36 | D27: 36
B29: Municipal collection of recyclables | C29: kg/CU/week
C30: default | D30: updated value
B31: ='SERVICE LEVELS'!B17 -> 0 | C31: 10 | D31: =C31*$H$14 -> 10
B32: ='SERVICE LEVELS'!B18 -> 0 | C32: 10 | D32: =C32*$H$14 -> 10
B33: ='SERVICE LEVELS'!B19 -> 0 | C33: 10 | D33: 10
B35: Non-residential RCW generation | C35: Ave kg/m3
C36: default | D36: updated value
B37: ='SERVICE LEVELS'!B24 -> 0 | C37: 150 | D37: =C37*$H$14 -> 150
B38: ='SERVICE LEVELS'!B25 -> 0 | C38: 150 | D38: =C38*$H$14 -> 150
B39: ='SERVICE LEVELS'!B26 -> 0 | C39: 150 | D39: 150
B40: ='SERVICE LEVELS'!B27 -> 0 | C40: 150 | D40: 150
B42: Non-residential DCW density | C42: Ave kg/m3
C43: default | D43: updated value
B44: ='SERVICE LEVELS'!B29 -> Demand collected waste (DCW) | C44: 150

Sheet Tariff projection
B2: Tariff projections | M2: =Model_run -> 0
B4: Target: Balanced Budget
B5: Yr | D5: =Base_year -> 0 | E5: =D5+1 -> 1 | F5: =E5+1 -> 2 | G5: 3 | H5: 4 | I5: 5 | J5: 6 | K5: 7 | L5: 8 | M5: =L5+1 -> 9 | N5: 10 | O5: Average
B6: Net Income (R'000) | D6: ='e-rev'!C17 ->  | E6: ='e-rev'!D17 ->  | F6: ='e-rev'!E17 ->  | G6: ='e-rev'!F17 ->  | H6: ='e-rev'!G17 ->  | I6: ='e-rev'!H17 ->  | J6: ='e-rev'!I17 ->  | K6: ='e-rev'!J17 ->  | L6: ='e-rev'!K17 ->  | M6: ='e-rev'!L17 ->  | N6: ='e-rev'!M17 ->  | O6: =AVERAGE(D6:N6) -> 
B8: Set % tariff increases (real) | E8: 0 | F8: 0 | G8: 0 | H8: 0 | I8: 0 | J8: 0 | K8: 0 | L8: 0 | M8: 0 | N8: 0 | O8: =AVERAGE(E8:N8) -> 0
B9: % tariff increases (nominal) | E9: =E8+IF(' FINANCE'!$D$15="",' FINANCE'!$C$15,' FINANCE'!$D$15) -> 0.06 | F9: =F8+IF(' FINANCE'!$D$15="",' FINANCE'!$C$15,' FINANCE'!$D$15) -> 0.06 | G9: =G8+IF(' FINANCE'!$D$15="",' FINANCE'!$C$15,' FINANCE'!$D$15) -> 0.06 | H9: =H8+IF(' FINANCE'!$D$15="",' FINANCE'!$C$15,' FINANCE'!$D$15) -> 0.06 | I9: =I8+IF(' FINANCE'!$D$15="",' FINANCE'!$C$15,' FINANCE'!$D$15) -> 0.06 | J9: =J8+IF(' FINANCE'!$D$15="",' FINANCE'!$C$15,' FINANCE'!$D$15) -> 0.06 | K9: =K8+IF(' FINANCE'!$D$15="",' FINANCE'!$C$15,' FINANCE'!$D$15) -> 0.06 | L9: =L8+IF(' FINANCE'!$D$15="",' FINANCE'!$C$15,' FINANCE'!$D$15) -> 0.06 | M9: =M8+IF(' FINANCE'!$D$15="",' FINANCE'!$C$15,' FINANCE'!$D$15) -> 0.06 | N9: =N8+IF(' FINANCE'!$D$15="",' FINANCE'!$C$15,' FINANCE'!$D$15) -> 0.06
B11: Residential Tariffs over time (R/CU/month) - real
B13: =IF(TARIFFS!$B$21="Service level tariff",TARIFFS!B23,IF(TARIFFS!B34="","",TARIFFS!B34)) -> No service | D13: =IF(B13="",0,IF(TARIFFS!$B$21="service level tariff",TARIFFS!C23, TARIFFS!C34)) -> 0 | E13: =D13+D13*E$8 -> 0 | F13: =E13+E13*F$8 -> 0 | G13: 0 | H13: 0 | I13: 0 | J13: 0 | K13: 0 | L13: 0 | M13: 0 | N13: 0
B14: =IF(TARIFFS!$B$21="Service level tariff",TARIFFS!B24,IF(TARIFFS!B35="","",TARIFFS!B35)) ->  | D14: =IF(B14="",0,IF(TARIFFS!$B$21="service level tariff",TARIFFS!C24, TARIFFS!C35)) -> 0 | E14: =D14+D14*E$8 -> 0 | F14: =E14+E14*F$8 -> 0 | G14: 0 | H14: 0 | I14: 0 | J14: 0 | K14: 0 | L14: 0 | M14: 0 | N14: 0
B15: =IF(TARIFFS!$B$21="Service level tariff",TARIFFS!B25,IF(TARIFFS!B36="","",TARIFFS!B36)) ->  | D15: =IF(B15="",0,IF(TARIFFS!$B$21="service level tariff",TARIFFS!C25, TARIFFS!C36)) -> 0 | E15: =D15+D15*E$8 -> 0 | F15: 0 | G15: 0 | H15: 0 | I15: 0 | J15: 0 | K15: 0 | L15: 0 | M15: 0 | N15: 0
B16: =IF(TARIFFS!$B$21="Service level tariff",TARIFFS!B26,IF(TARIFFS!B37="","",TARIFFS!B37)) ->  | D16: =IF(B16="",0,IF(TARIFFS!$B$21="service level tariff",TARIFFS!C26, TARIFFS!C37)) -> 0 | E16: 0 | F16: 0 | G16: 0 | H16: 0 | I16: 0 | J16: 0 | K16: 0 | L16: 0 | M16: 0 | N16: 0
B17: =IF(TARIFFS!$B$21="Service level tariff",TARIFFS!B27,IF(TARIFFS!B38="","",TARIFFS!B38)) ->  | D17: =IF(B17="",0,IF(TARIFFS!$B$21="service level tariff",TARIFFS!C27, TARIFFS!C38)) -> 0 | E17: 0 | F17: 0 | G17: 0 | H17: 0 | I17: 0 | J17: 0 | K17: 0 | L17: 0 | M17: 0 | N17: 0
B18: =IF(TARIFFS!$B$21="Service level tariff",TARIFFS!B28,IF(TARIFFS!B39="","",TARIFFS!B39)) ->  | D18: =IF(B18="",0,IF(TARIFFS!$B$21="service level tariff",TARIFFS!C28, TARIFFS!C39)) -> 0 | E18: 0 | F18: 0 | G18: 0 | H18: 0 | I18: 0 | J18: 0 | K18: 0 | L18: 0 | M18: 0 | N18: 0
B19: =IF(TARIFFS!$B$21="Service level tariff",TARIFFS!B29,IF(TARIFFS!B40="","",TARIFFS!B40)) ->  | D19: =IF(B19="",0,IF(TARIFFS!$B$21="service level tariff",TARIFFS!C29, TARIFFS!C40)) -> 0 | E19: 0 | F19: 0 | G19: 0 | H19: 0 | I19: 0 | J19: 0 | K19: 0 | L19: 0 | M19: 0 | N19: 0
B20: =IF(TARIFFS!$B$21="Service level tariff",TARIFFS!B30,IF(TARIFFS!B41="","",TARIFFS!B41)) ->  | D20: =IF(B20="",0,IF(TARIFFS!$B$21="service level tariff",TARIFFS!C30, TARIFFS!C41)) -> 0 | E20: 0 | F20: 0 | G20: 0 | H20: 0 | I20: 0 | J20: 0 | K20: 0 | L20: 0 | M20: 0 | N20: 0
B22: Non-Residential Tariffs over time (R/m3) - real
B24: =TARIFFS!B45 -> Non-Residential Round Collected Waste (RCW) | D24: =TARIFFS!D45 -> 0 | E24: =D24+D24*E8 -> 0 | F24: =E24+E24*F8 -> 0 | G24: =F24+F24*G8 -> 0 | H24: =G24+G24*H8 -> 0 | I24: =H24+H24*I8 -> 0 | J24: =I24+I24*J8 -> 0 | K24: =J24+J24*K8 -> 0 | L24: =K24+K24*L8 -> 0 | M24: =L24+L24*M8 -> 0 | N24: =M24+M24*N8 -> 0
B25: =TARIFFS!B46 -> Non-Residential Demand Collected Waste (DCW) | D25: =TARIFFS!D46 -> 0 | E25: =D25+D25*E8 -> 0 | F25: =E25+E25*F8 -> 0 | G25: =F25+F25*G8 -> 0 | H25: =G25+G25*H8 -> 0 | I25: =H25+H25*I8 -> 0 | J25: =I25+I25*J8 -> 0 | K25: =J25+J25*K8 -> 0 | L25: =K25+K25*L8 -> 0 | M25: =L25+L25*M8 -> 0 | N25: =M25+M25*N8 -> 0
B27: Non-Residential Basic Charge (R/CU/year) - real
B29: =TARIFFS!B45 -> Non-Residential Round Collected Waste (RCW) | D29: =TARIFFS!C45 -> 0 | E29: =D29+D29*E8 -> 0 | F29: =E29+E29*F8 -> 0 | G29: =F29+F29*G8 -> 0 | H29: =G29+G29*H8 -> 0 | I29: =H29+H29*I8 -> 0 | J29: =I29+I29*J8 -> 0 | K29: =J29+J29*K8 -> 0 | L29: =K29+K29*L8 -> 0 | M29: =L29+L29*M8 -> 0 | N29: =M29+M29*N8 -> 0
B30: =TARIFFS!B46 -> Non-Residential Demand Collected Waste (DCW) | D30: =TARIFFS!C46 -> 0 | E30: =D30+E8*D30 -> 0 | F30: =E30+F8*E30 -> 0 | G30: =F30+G8*F30 -> 0 | H30: =G30+H8*G30 -> 0 | I30: =H30+I8*H30 -> 0 | J30: =I30+J8*I30 -> 0 | K30: =J30+K8*J30 -> 0 | L30: =K30+L8*K30 -> 0 | M30: =L30+M8*L30 -> 0 | N30: =M30+N8*M30 -> 0
B32: Disposal Tariffs R/ton (including Closure fund) - real
D34: =TARIFFS!C54 -> 0 | E34: =D34*(1+E8) -> 0 | F34: =E34*(1+F8) -> 0 | G34: 0 | H34: 0 | I34: 0 | J34: 0 | K34: 0 | L34: 0 | M34: 0 | N34: 0
B36: Residential Tariffs over time (R/CU/month) - nominal
B38: =IF(TARIFFS!$B$21="Service level tariff",TARIFFS!B23,IF(TARIFFS!B34="","",TARIFFS!B34)) -> No service | D38: =IF(B38="",0,IF(TARIFFS!$B$21="service level tariff",TARIFFS!C23, TARIFFS!C34)) -> 0 | E38: =D38+D38*$E$9 -> 0 | F38: =E38+E38*$E$9 -> 0 | G38: =F38+F38*$E$9 -> 0 | H38: 0 | I38: 0 | J38: 0 | K38: 0 | L38: 0 | M38: 0 | N38: 0
B39: =IF(TARIFFS!$B$21="Service level tariff",TARIFFS!B24,IF(TARIFFS!B35="","",TARIFFS!B35)) ->  | D39: =IF(B39="",0,IF(TARIFFS!$B$21="service level tariff",TARIFFS!C24, TARIFFS!C35)) -> 0 | E39: =D39+D39*E$9 -> 0 | F39: =E39+E39*F$9 -> 0 | G39: 0 | H39: 0 | I39: 0 | J39: 0 | K39: 0 | L39: 0 | M39: 0 | N39: 0
B40: =IF(TARIFFS!$B$21="Service level tariff",TARIFFS!B25,IF(TARIFFS!B36="","",TARIFFS!B36)) ->  | D40: =IF(B40="",0,IF(TARIFFS!$B$21="service level tariff",TARIFFS!C25, TARIFFS!C36)) -> 0 | E40: 0 | F40: =E40+E40*F$9 -> 0 | G40: 0 | H40: 0 | I40: 0 | J40: 0 | K40: 0 | L40: 0 | M40: 0 | N40: 0
B41: =IF(TARIFFS!$B$21="Service level tariff",TARIFFS!B26,IF(TARIFFS!B37="","",TARIFFS!B37)) ->  | D41: =IF(B41="",0,IF(TARIFFS!$B$21="service level tariff",TARIFFS!C26, TARIFFS!C37)) -> 0 | E41: 0 | F41: =E41+E41*F$9 -> 0 | G41: 0 | H41: 0 | I41: 0 | J41: 0 | K41: 0 | L41: 0 | M41: 0 | N41: 0
B42: =IF(TARIFFS!$B$21="Service level tariff",TARIFFS!B27,IF(TARIFFS!B38="","",TARIFFS!B38)) ->  | D42: =IF(B42="",0,IF(TARIFFS!$B$21="service level tariff",TARIFFS!C27, TARIFFS!C38)) -> 0 | E42: 0 | F42: =E42+E42*F$9 -> 0 | G42: 0 | H42: 0 | I42: 0 | J42: 0 | K42: 0 | L42: 0 | M42: 0 | N42: 0
B43: =IF(TARIFFS!$B$21="Service level tariff",TARIFFS!B28,IF(TARIFFS!B39="","",TARIFFS!B39)) ->  | D43: =IF(B43="",0,IF(TARIFFS!$B$21="service level tariff",TARIFFS!C28, TARIFFS!C39)) -> 0 | E43: 0 | F43: =E43+E43*F$9 -> 0 | G43: 0 | H43: 0 | I43: 0 | J43: 0 | K43: 0 | L43: 0 | M43: 0 | N43: 0
B44: =IF(TARIFFS!$B$21="Service level tariff",TARIFFS!B29,IF(TARIFFS!B40="","",TARIFFS!B40)) ->  | D44: =IF(B44="",0,IF(TARIFFS!$B$21="service level tariff",TARIFFS!C29, TARIFFS!C40)) -> 0 | E44: 0 | F44: =E44+E44*F$9 -> 0 | G44: 0 | H44: 0 | I44: 0 | J44: 0 | K44: 0 | L44: 0 | M44: 0 | N44: 0
B45: =IF(TARIFFS!$B$21="Service level tariff",TARIFFS!B30,IF(TARIFFS!B41="","",TARIFFS!B41)) ->  | D45: =IF(B45="",0,IF(TARIFFS!$B$21="service level tariff",TARIFFS!C30, TARIFFS!C41)) -> 0 | E45: 0 | F45: =E45+E45*F$9 -> 0 | G45: 0 | H45: 0 | I45: 0 | J45: 0 | K45: 0 | L45: 0 | M45: 0 | N45: 0
B47: Non-Residential Tariffs over time (R/m3) - nominal
B49: =B24 -> Non-Residential Round Collected Waste (RCW) | D49: =TARIFFS!D45 -> 0 | E49: =D49+D49*E9 -> 0 | F49: 0 | G49: 0 | H49: 0 | I49: 0 | J49: 0 | K49: 0 | L49: 0 | M49: 0 | N49: 0
B50: =B25 -> Non-Residential Demand Collected Waste (DCW) | D50: =TARIFFS!D46 -> 0 | E50: =D50+D50*E9 -> 0 | F50: 0 | G50: 0 | H50: 0 | I50: 0 | J50: 0 | K50: 0 | L50: 0 | M50: 0 | N50: 0
B52: Non-Residential Basic Charge (R/CU/year) - nominal
B54: =B29 -> Non-Residential Round Collected Waste (RCW) | D54: =TARIFFS!C45 -> 0 | E54: =D54+D54*E9 -> 0 | F54: 0 | G54: 0 | H54: 0 | I54: 0 | J54: 0 | K54: 0 | L54: 0 | M54: 0 | N54: 0
B55: =B30 -> Non-Residential Demand Collected Waste (DCW) | D55: =TARIFFS!C73 -> 0 | E55: =D55+E33*D55 -> 0 | F55: =E55+F33*E55 -> 0 | G55: =F55+G33*F55 -> 0 | H55: =G55+H33*G55 -> 0 | I55: =H55+I33*H55 -> 0 | J55: =I55+J33*I55 -> 0 | K55: =J55+K33*J55 -> 0 | L55: =K55+L33*K55 -> 0 | M55: =L55+M33*L55 -> 0 | N55: =M55+N33*M55 -> 0
B57: Disposal Tariffs R/ton (including Closure fund) - nominal
D59: =TARIFFS!C79 -> 0 | E59: =D59*(1+E9) -> 0 | F59: 0 | G59: 0 | H59: 0 | I59: 0 | J59: 0 | K59: 0 | L59: 0 | M59: 0 | N59: 0
B72: Target income (R'000) | D72: =IF(HOME!$C$13="Full cost recovery",0,IF(HOME!$C$13="Full cost recovery with surplus",(1+HOME!$C$15)*Financials!D25,(1-HOME!$C$15)*Financials!D25)) ->  | E72: =IF(HOME!$C$13="Full cost recovery",0,IF(HOME!$C$13="Full cost recovery with surplus",(HOME!$C$15)*'e-opex'!E24,(-HOME!$C$15)*'e-opex'!E24)) ->  | F72: =IF(HOME!$C$13="Full cost recovery",0,IF(HOME!$C$13="Full cost recovery with surplus",(HOME!$C$15)*'e-opex'!F24,(-HOME!$C$15)*'e-opex'!F24)) ->  | G72: =IF(HOME!$C$13="Full cost recovery",0,IF(HOME!$C$13="Full cost recovery with surplus",(HOME!$C$15)*'e-opex'!G24,(-HOME!$C$15)*'e-opex'!G24)) ->  | H72: =IF(HOME!$C$13="Full cost recovery",0,IF(HOME!$C$13="Full cost recovery with surplus",(HOME!$C$15)*'e-opex'!H24,(-HOME!$C$15)*'e-opex'!H24)) ->  | I72: =IF(HOME!$C$13="Full cost recovery",0,IF(HOME!$C$13="Full cost recovery with surplus",(HOME!$C$15)*'e-opex'!I24,(-HOME!$C$15)*'e-opex'!I24)) ->  | J72: =IF(HOME!$C$13="Full cost recovery",0,IF(HOME!$C$13="Full cost recovery with surplus",(HOME!$C$15)*'e-opex'!J24,(-HOME!$C$15)*'e-opex'!J24)) ->  | K72: =IF(HOME!$C$13="Full cost recovery",0,IF(HOME!$C$13="Full cost recovery with surplus",(HOME!$C$15)*'e-opex'!K24,(-HOME!$C$15)*'e-opex'!K24)) ->  | L72: =IF(HOME!$C$13="Full cost recovery",0,IF(HOME!$C$13="Full cost recovery with surplus",(HOME!$C$15)*'e-opex'!L24,(-HOME!$C$15)*'e-opex'!L24)) ->  | M72: =IF(HOME!$C$13="Full cost recovery",0,IF(HOME!$C$13="Full cost recovery with surplus",(HOME!$C$15)*'e-opex'!M24,(-HOME!$C$15)*'e-opex'!M24)) ->  | N72: =IF(HOME!$C$13="Full cost recovery",0,IF(HOME!$C$13="Full cost recovery with surplus",(HOME!$C$15)*'e-opex'!N24,(-HOME!$C$15)*'e-opex'!N24)) -> 
B73: Difference | E73: =E6-E72 -> 

Sheet OUTPUTS
G1: Other Outputs

Sheet Waste balance
B2: Waste Balance | L2: =Model_run -> 0

Sheet Financial performance
B2: Financial Performance | L2: =Model_run -> 0
C70: Income sources
D71: =Base_year+1 -> 1 | E71: 1 | F71: 1 | G71: 1 | H71: 1 | I71: 1 | J71: 1 | K71: 1 | L71: 1 | M71: 1
C72: Residential | D72: ='e-rev'!D7+'e-rev'!D9 ->  | E72: ='e-rev'!E7+'e-rev'!E9 ->  | F72: ='e-rev'!F7+'e-rev'!F9 ->  | G72: ='e-rev'!G7+'e-rev'!G9 ->  | H72: ='e-rev'!H7+'e-rev'!H9 ->  | I72: ='e-rev'!I7+'e-rev'!I9 ->  | J72: ='e-rev'!J7+'e-rev'!J9 ->  | K72: ='e-rev'!K7+'e-rev'!K9 ->  | L72: ='e-rev'!L7+'e-rev'!L9 ->  | M72: ='e-rev'!M7+'e-rev'!M9 -> 
C73: Non-residential | D73: ='e-rev'!D8+'e-rev'!D10+'e-rev'!D11 ->  | E73: ='e-rev'!E8+'e-rev'!E10+'e-rev'!E11 ->  | F73: ='e-rev'!F8+'e-rev'!F10+'e-rev'!F11 ->  | G73: ='e-rev'!G8+'e-rev'!G10+'e-rev'!G11 ->  | H73: ='e-rev'!H8+'e-rev'!H10+'e-rev'!H11 ->  | I73: ='e-rev'!I8+'e-rev'!I10+'e-rev'!I11 ->  | J73: ='e-rev'!J8+'e-rev'!J10+'e-rev'!J11 ->  | K73: ='e-rev'!K8+'e-rev'!K10+'e-rev'!K11 ->  | L73: ='e-rev'!L8+'e-rev'!L10+'e-rev'!L11 ->  | M73: ='e-rev'!M8+'e-rev'!M10+'e-rev'!M11 -> 
C74: TOTAL | D74: =D72+D73 ->  | E74: =E72+E73 -> 
C75: % Source
D76: =D71 -> 1 | E76: =E71 -> 1 | F76: 1 | G76: 1 | H76: 1 | I76: 1 | J76: 1 | K76: 1 | L76: 1 | M76: 1
C77: Residential | D77: =D72/D74 ->  | E77: =E72/E74 -> 
C78: Non-residential | D78: =D73/D74 ->  | E78: =E73/E74 -> 
C80: Rates & Tariff Split
D81: =D71 -> 1 | E81: =E71 -> 1 | F81: 1 | G81: 1 | H81: 1 | I81: 1 | J81: 1 | K81: 1 | L81: 1 | M81: 1
C82: Rates | D82: ='e-rev'!D9+'e-rev'!D10 ->  | E82: ='e-rev'!E9+'e-rev'!E10 ->  | F82: ='e-rev'!F9+'e-rev'!F10 ->  | G82: ='e-rev'!G9+'e-rev'!G10 ->  | H82: ='e-rev'!H9+'e-rev'!H10 ->  | I82: ='e-rev'!I9+'e-rev'!I10 ->  | J82: ='e-rev'!J9+'e-rev'!J10 ->  | K82: ='e-rev'!K9+'e-rev'!K10 ->  | L82: ='e-rev'!L9+'e-rev'!L10 ->  | M82: ='e-rev'!M9+'e-rev'!M10 -> 
C83: Tariff | D83: ='e-rev'!D7+'e-rev'!D8+'e-rev'!D11 ->  | E83: ='e-rev'!E7+'e-rev'!E8+'e-rev'!E11 ->  | F83: ='e-rev'!F7+'e-rev'!F8+'e-rev'!F11 ->  | G83: ='e-rev'!G7+'e-rev'!G8+'e-rev'!G11 ->  | H83: ='e-rev'!H7+'e-rev'!H8+'e-rev'!H11 ->  | I83: ='e-rev'!I7+'e-rev'!I8+'e-rev'!I11 ->  | J83: ='e-rev'!J7+'e-rev'!J8+'e-rev'!J11 ->  | K83: ='e-rev'!K7+'e-rev'!K8+'e-rev'!K11 ->  | L83: ='e-rev'!L7+'e-rev'!L8+'e-rev'!L11 ->  | M83: ='e-rev'!M7+'e-rev'!M8+'e-rev'!M11 -> 
C84: Other (Subsidies) | D84: ='e-rev'!D12 -> 0 | E84: ='e-rev'!E12 -> 0 | F84: ='e-rev'!F12 -> 0 | G84: ='e-rev'!G12 -> 0 | H84: ='e-rev'!H12 -> 0 | I84: ='e-rev'!I12 -> 0 | J84: ='e-rev'!J12 -> 0 | K84: ='e-rev'!K12 -> 0 | L84: ='e-rev'!L12 -> 0 | M84: ='e-rev'!M12 -> 0
C85: TOTAL | D85: =SUM(D82:D84) ->  | E85: =SUM(E82:E84) -> 
C86: % Split
D87: =D71 -> 1 | E87: =E71 -> 1 | F87: 1 | G87: 1 | H87: 1 | I87: 1 | J87: 1 | K87: 1 | L87: 1 | M87: 1
C88: Rates | D88: =D82/D85 ->  | E88: =E82/E85 -> 
C89: Tariff | D89: =D83/D85 ->  | E89: =E83/E85 -> 
C90: Other (Subsidies) | D90: =D84/D85 ->  | E90: =E84/E85 -> 
C92: Debt Ratio
D93: =D87 -> 1 | E93: =E87 -> 1 | F93: 1 | G93: 1 | H93: 1 | I93: 1 | J93: 1 | K93: 1 | L93: 1 | M93: 1
C94: I&R | D94: =-'e-loans'!C19+'e-loans'!C25 -> 0 | E94: =-'e-loans'!D19+'e-loans'!D25 ->  | F94: =-'e-loans'!E19+'e-loans'!E25 ->  | G94: =-'e-loans'!F19+'e-loans'!F25 ->  | H94: =-'e-loans'!G19+'e-loans'!G25 ->  | I94: =-'e-loans'!H19+'e-loans'!H25 ->  | J94: =-'e-loans'!I19+'e-loans'!I25 ->  | K94: =-'e-loans'!J19+'e-loans'!J25 ->  | L94: =-'e-loans'!K19+'e-loans'!K25 ->  | M94: =-'e-loans'!L19+'e-loans'!L25 -> 
C95: Rec'd Income | D95: ='e-rev'!D15 ->  | E95: ='e-rev'!E15 ->  | F95: ='e-rev'!F15 ->  | G95: ='e-rev'!G15 ->  | H95: ='e-rev'!H15 ->  | I95: ='e-rev'!I15 ->  | J95: ='e-rev'!J15 ->  | K95: ='e-rev'!K15 ->  | L95: ='e-rev'!L15 ->  | M95: ='e-rev'!M15 -> 
C96: Debt Ratio | D96: =D94/D95 ->  | E96: =E94/E95 -> 
C97: Maximum | D97: 0.25 | E97: =D97 -> 0.25 | F97: =E97 -> 0.25 | G97: 0.25 | H97: 0.25 | I97: 0.25 | J97: 0.25 | K97: 0.25 | L97: 0.25 | M97: 0.25
C99: Expenditure Breakdown
D100: =D93 -> 1 | E100: =D100+1 -> 2 | F100: =E100+1 -> 3 | G100: 4 | H100: 5 | I100: 6 | J100: 7 | K100: 8 | L100: 9 | M100: 10
C101: ='e-opex'!A9 -> Residential storage and collection | D101: ='e-opex'!E9 -> 0 | E101: ='e-opex'!F9 -> 0 | F101: ='e-opex'!G9 -> 0 | G101: ='e-opex'!H9 -> 0 | H101: ='e-opex'!I9 -> 0 | I101: ='e-opex'!J9 -> 0 | J101: ='e-opex'!K9 -> 0 | K101: ='e-opex'!L9 -> 0 | L101: ='e-opex'!M9 -> 0 | M101: ='e-opex'!N9 -> 0
C102: ='e-opex'!A10 -> Non-residential storage and collection | D102: ='e-opex'!E10 ->  | E102: ='e-opex'!F10 ->  | F102: ='e-opex'!G10 ->  | G102: ='e-opex'!H10 ->  | H102: ='e-opex'!I10 ->  | I102: ='e-opex'!J10 ->  | J102: ='e-opex'!K10 ->  | K102: ='e-opex'!L10 ->  | L102: ='e-opex'!M10 ->  | M102: ='e-opex'!N10 -> 
C103: ='e-opex'!A11 -> Household collection of recycleables | D103: ='e-opex'!E11 ->  | E103: ='e-opex'!F11 ->  | F103: ='e-opex'!G11 ->  | G103: ='e-opex'!H11 ->  | H103: ='e-opex'!I11 ->  | I103: ='e-opex'!J11 ->  | J103: ='e-opex'!K11 ->  | K103: ='e-opex'!L11 ->  | L103: ='e-opex'!M11 ->  | M103: ='e-opex'!N11 -> 
C104: ='e-opex'!A12 -> Public cleansing | D104: ='e-opex'!E12 ->  | E104: ='e-opex'!F12 ->  | F104: ='e-opex'!G12 ->  | G104: ='e-opex'!H12 ->  | H104: ='e-opex'!I12 ->  | I104: ='e-opex'!J12 ->  | J104: ='e-opex'!K12 ->  | K104: ='e-opex'!L12 ->  | L104: ='e-opex'!M12 ->  | M104: ='e-opex'!N12 -> 
C105: ='e-opex'!A13 -> Transfer stations | D105: ='e-opex'!E13 ->  | E105: ='e-opex'!F13 ->  | F105: ='e-opex'!G13 ->  | G105: ='e-opex'!H13 ->  | H105: ='e-opex'!I13 ->  | I105: ='e-opex'!J13 ->  | J105: ='e-opex'!K13 ->  | K105: ='e-opex'!L13 ->  | L105: ='e-opex'!M13 ->  | M105: ='e-opex'!N13 -> 
C106: ='e-opex'!A14 -> Recycling | D106: ='e-opex'!E14 ->  | E106: ='e-opex'!F14 ->  | F106: ='e-opex'!G14 ->  | G106: ='e-opex'!H14 ->  | H106: ='e-opex'!I14 ->  | I106: ='e-opex'!J14 ->  | J106: ='e-opex'!K14 ->  | K106: ='e-opex'!L14 ->  | L106: ='e-opex'!M14 ->  | M106: ='e-opex'!N14 -> 
C107: ='e-opex'!A15 -> Landfill | D107: ='e-opex'!E15 ->  | E107: ='e-opex'!F15 ->  | F107: ='e-opex'!G15 ->  | G107: ='e-opex'!H15 ->  | H107: ='e-opex'!I15 ->  | I107: ='e-opex'!J15 ->  | J107: ='e-opex'!K15 ->  | K107: ='e-opex'!L15 ->  | L107: ='e-opex'!M15 ->  | M107: ='e-opex'!N15 -> 
C108: ='e-opex'!A16 -> Waste-to-energy | D108: ='e-opex'!E16 ->  | E108: ='e-opex'!F16 ->  | F108: ='e-opex'!G16 ->  | G108: ='e-opex'!H16 ->  | H108: ='e-opex'!I16 ->  | I108: ='e-opex'!J16 ->  | J108: ='e-opex'!K16 ->  | K108: ='e-opex'!L16 ->  | L108: ='e-opex'!M16 ->  | M108: ='e-opex'!N16 -> 
C109: ='e-opex'!A17 -> Landfill gas | D109: ='e-opex'!E17 -> 0 | E109: ='e-opex'!F17 -> 0 | F109: ='e-opex'!G17 -> 0 | G109: ='e-opex'!H17 -> 0 | H109: ='e-opex'!I17 -> 0 | I109: ='e-opex'!J17 -> 0 | J109: ='e-opex'!K17 -> 0 | K109: ='e-opex'!L17 -> 0 | L109: ='e-opex'!M17 -> 0 | M109: ='e-opex'!N17 -> 0
C110: ='e-opex'!A18 -> Other expenditure | D110: ='e-opex'!E18 ->  | E110: ='e-opex'!F18 ->  | F110: ='e-opex'!G18 ->  | G110: ='e-opex'!H18 ->  | H110: ='e-opex'!I18 ->  | I110: ='e-opex'!J18 ->  | J110: ='e-opex'!K18 ->  | K110: ='e-opex'!L18 ->  | L110: ='e-opex'!M18 ->  | M110: ='e-opex'!N18 -> 
C111: ='e-opex'!A19 -> Provision for bad debt | D111: ='e-opex'!E19 ->  | E111: ='e-opex'!F19 ->  | F111: ='e-opex'!G19 ->  | G111: ='e-opex'!H19 ->  | H111: ='e-opex'!I19 ->  | I111: ='e-opex'!J19 ->  | J111: ='e-opex'!K19 ->  | K111: ='e-opex'!L19 ->  | L111: ='e-opex'!M19 ->  | M111: ='e-opex'!N19 -> 
C112: ='e-opex'!A20 -> Depreciation | D112: ='e-opex'!E20 ->  | E112: ='e-opex'!F20 ->  | F112: ='e-opex'!G20 ->  | G112: ='e-opex'!H20 ->  | H112: ='e-opex'!I20 ->  | I112: ='e-opex'!J20 ->  | J112: ='e-opex'!K20 ->  | K112: ='e-opex'!L20 ->  | L112: ='e-opex'!M20 ->  | M112: ='e-opex'!N20 -> 
C113: ='e-opex'!A21 -> Interest | D113: ='e-opex'!E21 -> 0 | E113: ='e-opex'!F21 ->  | F113: ='e-opex'!G21 ->  | G113: ='e-opex'!H21 ->  | H113: ='e-opex'!I21 ->  | I113: ='e-opex'!J21 ->  | J113: ='e-opex'!K21 ->  | K113: ='e-opex'!L21 ->  | L113: ='e-opex'!M21 ->  | M113: ='e-opex'!N21 -> 
C114: ='e-opex'!A22 -> Contribution to capital reserves | D114: ='e-opex'!E22 -> 0 | E114: ='e-opex'!F22 -> 0 | F114: ='e-opex'!G22 -> 0 | G114: ='e-opex'!H22 -> 0 | H114: ='e-opex'!I22 -> 0 | I114: ='e-opex'!J22 -> 0 | J114: ='e-opex'!K22 -> 0 | K114: ='e-opex'!L22 -> 0 | L114: ='e-opex'!M22 -> 0 | M114: ='e-opex'!N22 -> 0
D115: =SUM(D101:D114) ->  | E115: =SUM(E101:E114) -> 
C116: =C101 -> Residential storage and collection | D116: =D101/D$115 ->  | E116: =E101/E$115 -> 
C117: =C102 -> Non-residential storage and collection | D117: =D102/D$115 -> 
C118: Household collection of recycleables
C119: Public cleansing
C120: Transfer stations
C121: Recycling
C122: Landfill
C123: Waste-to-energy
C124: Landfill gas
C125: Other expenditure
C126: Provision for bad debt
C127: Depreciation
C128: Interest
C129: Contribution to capital reserves
D130: =SUM(D116:D129) ->  | E130: =SUM(E116:E129) -> 
C132: Capex
D133: =D100 -> 1 | E133: =E100 -> 2 | F133: 3 | G133: 4 | H133: 5 | I133: 6 | J133: 7 | K133: 8 | L133: 9 | M133: 10
C134: ='e-capex'!B20 -> Total capital expenditure | D134: ='e-capex'!E20 ->  | E134: ='e-capex'!F20 ->  | F134: ='e-capex'!G20 ->  | G134: ='e-capex'!H20 ->  | H134: ='e-capex'!I20 ->  | I134: ='e-capex'!J20 ->  | J134: ='e-capex'!K20 ->  | K134: ='e-capex'!L20 ->  | L134: ='e-capex'!M20 ->  | M134: ='e-capex'!N20 -> 
C135: Reserves and grants | D135: ='e-capex'!E28+'e-capex'!E29 -> 0 | E135: ='e-capex'!F28+'e-capex'!F29 -> 0 | F135: ='e-capex'!G28+'e-capex'!G29 ->  | G135: ='e-capex'!H28+'e-capex'!H29 ->  | H135: ='e-capex'!I28+'e-capex'!I29 ->  | I135: ='e-capex'!J28+'e-capex'!J29 ->  | J135: ='e-capex'!K28+'e-capex'!K29 ->  | K135: ='e-capex'!L28+'e-capex'!L29 ->  | L135: ='e-capex'!M28+'e-capex'!M29 ->  | M135: ='e-capex'!N28+'e-capex'!N29 -> 
C136: ='e-capex'!B30 -> Loan requirement | D136: ='e-capex'!E30 ->  | E136: ='e-capex'!F30 ->  | F136: ='e-capex'!G30 ->  | G136: ='e-capex'!H30 ->  | H136: ='e-capex'!I30 ->  | I136: ='e-capex'!J30 ->  | J136: ='e-capex'!K30 ->  | K136: ='e-capex'!L30 ->  | L136: ='e-capex'!M30 ->  | M136: ='e-capex'!N30 -> 

Sheet household affordability
B2: Summary: Household Impact | L2: =Model_run -> 0
B103: Possible Household Bills for Solid Waste

Sheet Financials
B2: Financial statements (R'000) | N2: =Model_run -> 0 | T2: cash-in/cash-out/net cash flow. In long-term cashflow should = balancesheet??
B4: Income statement | E4: =Base_year+1 -> 1 | F4: =E4+1 -> 2 | G4: =F4+1 -> 3 | H4: 4 | I4: 5 | J4: 6 | K4: 7 | L4: 8 | M4: 9 | N4: 10
B5: Inflation index | D5: =1 -> 1 | E5: =D5*(1+IF(' FINANCE'!$C$15="",' FINANCE'!$D$15,' FINANCE'!$C$15)) -> 1.06 | F5: =E5*(1+IF(' FINANCE'!$C$15="",' FINANCE'!$D$15,' FINANCE'!$C$15)) -> 1.1236 | G5: =F5*(1+IF(' FINANCE'!$C$15="",' FINANCE'!$D$15,' FINANCE'!$C$15)) -> 1.191016 | H5: =G5*(1+IF(' FINANCE'!$C$15="",' FINANCE'!$D$15,' FINANCE'!$C$15)) -> 1.26247696 | I5: =H5*(1+IF(' FINANCE'!$C$15="",' FINANCE'!$D$15,' FINANCE'!$C$15)) -> 1.338225578 | J5: =I5*(1+IF(' FINANCE'!$C$15="",' FINANCE'!$D$15,' FINANCE'!$C$15)) -> 1.418519112 | K5: =J5*(1+IF(' FINANCE'!$C$15="",' FINANCE'!$D$15,' FINANCE'!$C$15)) -> 1.503630259 | L5: =K5*(1+IF(' FINANCE'!$C$15="",' FINANCE'!$D$15,' FINANCE'!$C$15)) -> 1.593848075 | M5: =L5*(1+IF(' FINANCE'!$C$15="",' FINANCE'!$D$15,' FINANCE'!$C$15)) -> 1.689478959 | N5: =M5*(1+IF(' FINANCE'!$C$15="",' FINANCE'!$D$15,' FINANCE'!$C$15)) -> 1.790847697
B6: Income (billed) | D6: =Base_year -> 0 | E6: =Base_year+1 -> 1 | F6: =E6+1 -> 2 | G6: =F6+1 -> 3 | H6: 4 | I6: 5 | J6: 6 | K6: 7 | L6: 8 | M6: 9 | N6: 10
B7: Residential Income | D7: ='e-rev'!C7 ->  | E7: ='e-rev'!D7 ->  | F7: ='e-rev'!E7 ->  | G7: ='e-rev'!F7 ->  | H7: ='e-rev'!G7 ->  | I7: ='e-rev'!H7 ->  | J7: ='e-rev'!I7 ->  | K7: ='e-rev'!J7 ->  | L7: ='e-rev'!K7 ->  | M7: ='e-rev'!L7 ->  | N7: ='e-rev'!M7 -> 
B8: Non-residential Income | D8: ='e-rev'!C8 ->  | E8: ='e-rev'!D8 ->  | F8: ='e-rev'!E8 ->  | G8: ='e-rev'!F8 ->  | H8: ='e-rev'!G8 ->  | I8: ='e-rev'!H8 ->  | J8: ='e-rev'!I8 ->  | K8: ='e-rev'!J8 ->  | L8: ='e-rev'!K8 ->  | M8: ='e-rev'!L8 ->  | N8: ='e-rev'!M8 -> 
B9: Income from Rates | D9: ='e-rev'!C9+'e-rev'!C10 ->  | E9: ='e-rev'!D9+'e-rev'!D10 ->  | F9: ='e-rev'!E9+'e-rev'!E10 ->  | G9: ='e-rev'!F9+'e-rev'!F10 ->  | H9: ='e-rev'!G9+'e-rev'!G10 ->  | I9: ='e-rev'!H9+'e-rev'!H10 ->  | J9: ='e-rev'!I9+'e-rev'!I10 ->  | K9: ='e-rev'!J9+'e-rev'!J10 ->  | L9: ='e-rev'!K9+'e-rev'!K10 ->  | M9: ='e-rev'!L9+'e-rev'!L10 ->  | N9: ='e-rev'!M9+'e-rev'!M10 -> 
B10: Disposal Charges | D10: ='e-rev'!C11 ->  | E10: ='e-rev'!D11 ->  | F10: ='e-rev'!E11 ->  | G10: ='e-rev'!F11 ->  | H10: ='e-rev'!G11 ->  | I10: ='e-rev'!H11 ->  | J10: ='e-rev'!I11 ->  | K10: ='e-rev'!J11 ->  | L10: ='e-rev'!K11 ->  | M10: ='e-rev'!L11 ->  | N10: ='e-rev'!M11 -> 
B11: ES Subsidies | D11: ='e-rev'!C12 -> 0 | E11: ='e-rev'!D12 -> 0 | F11: ='e-rev'!E12 -> 0 | G11: ='e-rev'!F12 -> 0 | H11: ='e-rev'!G12 -> 0 | I11: ='e-rev'!H12 -> 0 | J11: ='e-rev'!I12 -> 0 | K11: ='e-rev'!J12 -> 0 | L11: ='e-rev'!K12 -> 0 | M11: ='e-rev'!L12 -> 0 | N11: ='e-rev'!M12 -> 0
B12: ='e-rev'!A13 -> Other income | D12: ='e-rev'!C13 -> 0 | E12: ='e-rev'!D13 -> 0 | F12: ='e-rev'!E13 -> 0 | G12: ='e-rev'!F13 -> 0 | H12: ='e-rev'!G13 -> 0 | I12: ='e-rev'!H13 -> 0 | J12: ='e-rev'!I13 -> 0 | K12: ='e-rev'!J13 -> 0 | L12: ='e-rev'!K13 -> 0 | M12: ='e-rev'!L13 -> 0 | N12: ='e-rev'!M13 -> 0
B16: Total operating income | D16: =SUM(D7:D12) ->  | E16: =SUM(E7:E12) ->  | F16: =SUM(F7:F12) -> 
B19: Expenses | D19: =Base_year -> 0 | E19: =Base_year+1 -> 1 | F19: =E19+1 -> 2 | G19: =F19+1 -> 3 | H19: 4 | I19: 5 | J19: 6 | K19: 7 | L19: 8 | M19: 9 | N19: 10
B20: Operating costs | D20: ='e-opex'!D24-'e-opex'!D19-'e-opex'!D20-'e-opex'!D21-'e-opex'!D22 ->  | E20: ='e-opex'!E24-'e-opex'!E19-'e-opex'!E20-'e-opex'!E21-'e-opex'!E22 ->  | F20: ='e-opex'!F24-'e-opex'!F19-'e-opex'!F20-'e-opex'!F21-'e-opex'!F22 ->  | G20: ='e-opex'!G24-'e-opex'!G19-'e-opex'!G20-'e-opex'!G21-'e-opex'!G22 ->  | H20: ='e-opex'!H24-'e-opex'!H19-'e-opex'!H20-'e-opex'!H21-'e-opex'!H22 ->  | I20: ='e-opex'!I24-'e-opex'!I19-'e-opex'!I20-'e-opex'!I21-'e-opex'!I22 ->  | J20: ='e-opex'!J24-'e-opex'!J19-'e-opex'!J20-'e-opex'!J21-'e-opex'!J22 ->  | K20: ='e-opex'!K24-'e-opex'!K19-'e-opex'!K20-'e-opex'!K21-'e-opex'!K22 ->  | L20: ='e-opex'!L24-'e-opex'!L19-'e-opex'!L20-'e-opex'!L21-'e-opex'!L22 ->  | M20: ='e-opex'!M24-'e-opex'!M19-'e-opex'!M20-'e-opex'!M21-'e-opex'!M22 ->  | N20: ='e-opex'!N24-'e-opex'!N19-'e-opex'!N20-'e-opex'!N21-'e-opex'!N22 -> 
B21: Provision for bad debt | D21: ='e-opex'!D19 -> 0 | E21: ='e-opex'!E19 ->  | F21: ='e-opex'!F19 ->  | G21: ='e-opex'!G19 ->  | H21: ='e-opex'!H19 ->  | I21: ='e-opex'!I19 ->  | J21: ='e-opex'!J19 ->  | K21: ='e-opex'!K19 ->  | L21: ='e-opex'!L19 ->  | M21: ='e-opex'!M19 ->  | N21: ='e-opex'!N19 -> 
B22: Contributions to Reserves | D22: ='e-opex'!D22 -> 0 | E22: ='e-opex'!E22 -> 0 | F22: ='e-opex'!F22 -> 0 | G22: ='e-opex'!G22 -> 0 | H22: ='e-opex'!H22 -> 0 | I22: ='e-opex'!I22 -> 0 | J22: ='e-opex'!J22 -> 0 | K22: ='e-opex'!K22 -> 0 | L22: ='e-opex'!L22 -> 0 | M22: ='e-opex'!M22 -> 0 | N22: ='e-opex'!N22 -> 0
B23: Depreciation | D23: ='e-opex'!D20 ->  | E23: ='e-opex'!E20 ->  | F23: ='e-opex'!F20 ->  | G23: ='e-opex'!G20 ->  | H23: ='e-opex'!H20 ->  | I23: ='e-opex'!I20 ->  | J23: ='e-opex'!J20 ->  | K23: ='e-opex'!K20 ->  | L23: ='e-opex'!L20 ->  | M23: ='e-opex'!M20 ->  | N23: ='e-opex'!N20 -> 
B25: Total operating expenses | D25: =SUM(D20:D23) ->  | E25: =SUM(E20:E23) ->  | F25: =SUM(F20:F23) ->  | G25: =SUM(G20:G23) -> 
B27: Net Operating Income / (Loss) | D27: =D16-D25 ->  | E27: =E16-E25 ->  | F27: =F16-F25 -> 
B28: Interest Paid | D28: ='e-loans'!B25 -> 0 | E28: ='e-loans'!C25 -> 0 | F28: ='e-loans'!D25 ->  | G28: ='e-loans'!E25 ->  | H28: ='e-loans'!F25 ->  | I28: ='e-loans'!G25 ->  | J28: ='e-loans'!H25 ->  | K28: ='e-loans'!I25 ->  | L28: ='e-loans'!J25 ->  | M28: ='e-loans'!K25 ->  | N28: ='e-loans'!L25 -> 
B29: Net Income / (Loss) | D29: =D27-D28 ->  | E29: =E27-E28 -> 
B30: Retained Earnings | D30: =D29 -> 
B32: Cash flow | E32: =Base_year+1 -> 1 | F32: =E32+1 -> 2 | G32: =F32+1 -> 3 | H32: 4 | I32: 5 | J32: 6 | K32: 7 | L32: 8 | M32: 9 | N32: 10
B33: Net income | E33: =E29 ->  | F33: =F29 -> 
B34: Add back interest | E34: =E28 -> 0
B35: Add back provisions for bad debt | E35: =E21 -> 
B36: Add back depreciation | E36: =E23 -> 
B37: Cash from operations | E37: =SUM(E33:E36) ->  | F37: =SUM(F33:F36) -> 
B39: Adjust for changes in working capital
B40: less increase in debtors | D40: -ve | E40: ='e-loans'!C21-'e-loans'!B21 ->  | F40: ='e-loans'!D21-'e-loans'!C21 ->  | G40: ='e-loans'!E21-'e-loans'!D21 ->  | H40: ='e-loans'!F21-'e-loans'!E21 ->  | I40: ='e-loans'!G21-'e-loans'!F21 ->  | J40: ='e-loans'!H21-'e-loans'!G21 ->  | K40: ='e-loans'!I21-'e-loans'!H21 ->  | L40: ='e-loans'!J21-'e-loans'!I21 ->  | M40: ='e-loans'!K21-'e-loans'!J21 ->  | N40: ='e-loans'!L21-'e-loans'!K21 -> 
B41: less provision for bad debt | D41: -ve | E41: =-E35 ->  | F41: =-F35 -> 
B42: add increase in creditors | D42: +ve | E42: =-(-E20*1/12-(-D20*1/12)) ->  | F42: =-(-F20*1/12-(-E20*1/12)) -> 
B43: Cash from operations after WC adjustments | E43: =SUM(E37:E42) ->  | F43: =SUM(F37:F42) -> 
B45: Less interest paid | E45: =-E34 -> 0
B47: Net cash from operating activities | E47: =E43+E45 ->  | F47: =F43+F45 -> 
B49: Cash flow from investing
B50: Less investments in storage & vehicles | E50: ='e-capex'!E19 ->  | F50: ='e-capex'!F19 ->  | G50: ='e-capex'!G19 ->  | H50: ='e-capex'!H19 ->  | I50: ='e-capex'!I19 ->  | J50: ='e-capex'!J19 ->  | K50: ='e-capex'!K19 ->  | L50: ='e-capex'!L19 ->  | M50: ='e-capex'!M19 ->  | N50: ='e-capex'!N19 -> 
B51: Less investments in fixed assets
B52: Cash flow from vehicle sales
B54: Cash flow from financing
B55: add Grants (MIG etc) | E55: ='e-capex'!E28 -> 0 | F55: ='e-capex'!F28 -> 0 | G55: ='e-capex'!G28 ->  | H55: ='e-capex'!H28 ->  | I55: ='e-capex'!I28 ->  | J55: ='e-capex'!J28 ->  | K55: ='e-capex'!K28 ->  | L55: ='e-capex'!L28 ->  | M55: ='e-capex'!M28 ->  | N55: ='e-capex'!N28 -> 
B56: add Long Term Debt raised | E56: ='e-loans'!C17 ->  | F56: ='e-loans'!D17 ->  | G56: ='e-loans'!E17 ->  | H56: ='e-loans'!F17 ->  | I56: ='e-loans'!G17 ->  | J56: ='e-loans'!H17 ->  | K56: ='e-loans'!I17 ->  | L56: ='e-loans'!J17 ->  | M56: ='e-loans'!K17 ->  | N56: ='e-loans'!L17 -> 
B57: less Debt repaid | E57: ='e-loans'!C19 -> 0 | F57: ='e-loans'!D19 ->  | G57: ='e-loans'!E19 ->  | H57: ='e-loans'!F19 ->  | I57: ='e-loans'!G19 ->  | J57: ='e-loans'!H19 ->  | K57: ='e-loans'!I19 ->  | L57: ='e-loans'!J19 ->  | M57: ='e-loans'!K19 ->  | N57: ='e-loans'!L19 -> 
B58: net cash from financing | E58: =SUM(E55:E57) ->  | F58: =SUM(F55:F57) -> 
B60: Net cash generated | E60: =E47+E51+E50+E52+E58 ->  | F60: =F47+F51+F50+F52+F58 -> 

Sheet ENGINES

Sheet e-inc
B1: GROWTH AND INCOME DISTRIBUTION | F1: All monetary values in REAL terms
A2: Key: | B2: from user input sheets
D4: =Base_year -> 0
A5: GROWTH RATES
B6: Municipal category | D6: =VLOOKUP(HOME!C6,'e-municipal codes'!$D$2:$E$236,2,FALSE) -> 
B7: Urban | C7: High income | D7: =IF('waste gen'!D11="",'waste gen'!C11,'waste gen'!D11) -> 
C8: Low income | D8: =IF('waste gen'!D12="",'waste gen'!C12,'waste gen'!D12) -> 
A9: Average growth rate | D9: =(D7*SUM(D25:D26)+D8*SUM(D27:D28))/D29 -> 
D11: =Base_year -> 0 | E11: =D11+1 -> 1 | F11: =E11+1 -> 2 | G11: 3 | H11: 4 | I11: 5 | J11: 6 | K11: 7 | L11: 8 | M11: 9 | N11: 10
A12: Economic growth rate | D12: =IF('waste gen'!D5="",'waste gen'!C5,'waste gen'!D5) -> 0.02 | E12: =($I$12-$D$12)/5+D12 -> 0.025 | F12: =($I$12-$D$12)/5+E12 -> 0.03 | G12: 0.035 | H12: 0.04 | I12: =IF('waste gen'!D6="",'waste gen'!C6,'waste gen'!D6) -> 0.045 | J12: =($N$12-$I$12)/5+I12 -> 0.048 | K12: =($N$12-$I$12)/5+J12 -> 0.051 | L12: 0.054 | M12: 0.057 | N12: =IF('waste gen'!D7="",'waste gen'!C7,'waste gen'!D7) -> 0.06
B13: multiplier | D13: 1 | E13: =D13*(1+D12) -> 1.02 | F13: =E13*(1+E12) -> 1.0455 | G13: 1.076865 | H13: 1.114555275 | I13: 1.159137486 | J13: 1.211298673 | K13: 1.269441009 | L13: 1.334182501 | M13: 1.406228356 | N13: 1.486383372
A15: INCOME DISTRIBUTION | D15: =D4 -> 0
A16: Income categories
D17: Distribution in base year
A18: Category | B18: Cut-off | C18: Average income | D18: Urban-Formal
A19: indigent | B19: =CONSUMERS!C15 -> 1599 | C19: =B19/2 -> 799.5 | D19: =IF(CONSUMERS!E15="",CONSUMERS!D15,CONSUMERS!E15) -> 
A20: low inc 1 | B20: =CONSUMERS!C16 -> 3199 | C20: =(B20-B19)/2+B19 -> 2399 | D20: =IF(CONSUMERS!E16="",CONSUMERS!D16,CONSUMERS!E16) -> 
A21: high inc 1 | B21: =CONSUMERS!C17 -> 6399 | C21: =(B21-B20)/2+B20 -> 4799 | D21: =IF(CONSUMERS!E17="",CONSUMERS!D17,CONSUMERS!E17) -> 
A22: high inc 2 | B22: =CONSUMERS!C18 -> more | C22: 50000 | D22: =IF(CONSUMERS!E18=1,CONSUMERS!D18,CONSUMERS!E18) -> 
A23: Number of hhs if no change in hh income
D24: =Base_year -> 0 | E24: =D24+1 -> 1 | F24: =E24+1 -> 2 | G24: 3 | H24: 4 | I24: 5 | J24: 6 | K24: 7 | L24: 8 | M24: 9 | N24: 10
C25: =B19 -> 1599 | D25: =D19*$D$29 ->  | E25: =D25*(1+$D$8) ->  | F25: =E25*(1+$D$8) -> 
C26: =B20 -> 3199 | D26: =D20*$D$29 ->  | E26: =D26*(1+$D$8) -> 
C27: =B21 -> 6399 | D27: =D21*$D$29 ->  | E27: =D27*(1+$D$7) ->  | F27: =E27*(1+$D$7) -> 
C28: =B22 -> more | D28: =D22*$D$29 ->  | E28: =D28*(1+$D$7) ->  | F28: =E28*(1+$D$7) -> 
D29: =IF(CONSUMERS!E7="",CONSUMERS!D7,CONSUMERS!E7) ->  | E29: =SUM(E25:E28) -> 
A31: New low income households just through household growth (i.e. not due to moves in income groups)
E32: =SUM(E25:E26)-SUM(D25:D26) ->  | F32: =SUM(F25:F26)-SUM(E25:E26) -> 
A33: New high income households just through household growth (i.e. not due to moves in income groups)
E34: =SUM(E27:E28)-SUM(D27:D28) ->  | F34: =SUM(F27:F28)-SUM(E27:E28) -> 
C35: check=0 | E35: =(E32+E34)-(E29-D29) ->  | F35: =(F32+F34)-(F29-E29) -> 
A37: Total income required in category in order to ensure that hh incomes remain constant (R'000)
B38: =B25 -> 0 | C38: =C25 -> 1599 | D38: =D25*$C$19/1000 ->  | E38: =E25*$C$19/1000 ->  | F38: =F25*$C$19/1000 ->  | G38: =G25*$C$19/1000 ->  | H38: =H25*$C$19/1000 -> 
C39: =C26 -> 3199 | D39: =D26*$C$20/1000 ->  | E39: =E26*$C$20/1000 ->  | F39: =F26*$C$20/1000 ->  | G39: =G26*$C$20/1000 ->  | H39: =H26*$C$20/1000 -> 
C40: =C27 -> 6399 | D40: =D27*$C$21/1000 ->  | E40: =E27*$C$21/1000 ->  | F40: =F27*$C$21/1000 ->  | G40: =G27*$C$21/1000 ->  | H40: =H27*$C$21/1000 -> 
C41: =C28 -> more | D41: =D28*$C$22/1000 ->  | E41: =E28*$C$22/1000 ->  | F41: =F28*$C$22/1000 ->  | G41: =G28*$C$22/1000 ->  | H41: =H28*$C$22/1000 -> 
C42: Total | D42: =SUM(D38:D41) ->  | E42: =SUM(E38:E41) -> 
A44: Actual income available due to economic growth
C45: =C38 -> 1599 | D45: =D38 ->  | E45: =D45*(1+E$12) ->  | F45: =E45*(1+F$12) -> 
C46: =C39 -> 3199 | D46: =D39 ->  | E46: =D46*(1+E$12) -> 
C47: 6399
C48: more
C49: Total | D49: =SUM(D45:D48) ->  | E49: =SUM(E45:E48) ->  | F49: =SUM(F45:F48) -> 
A52: Surplus income available due to economic growth
C53: =C45 -> 1599 | D53: =D45-D38 ->  | E53: =E45-E38 -> 
C54: =C46 -> 3199 | D54: =D46-D39 ->  | E54: =E46-E39 -> 
C55: 6399 | D55: =D47-D40 ->  | E55: =E47-E40 -> 
C56: more | D56: =D48-D41 ->  | E56: =E48-E41 -> 
C57: Total | D57: =SUM(D53:D56) ->  | E57: =SUM(E53:E56) -> 
A60: Average income after surplus is distributed between categories
C61: =C53 -> 1599 | D61: =D45/D25*1000 ->  | E61: =E45/E25*1000 -> 
C62: =C54 -> 3199 | D62: =D46/D26*1000 -> 
C63: 6399
C64: more
A67: Number of hhs moving up into a higher income category
C68: =C61 -> 1599 | E68: =IF(E25=0,0,IF(E61>$C$19,IF(E25*(E61-$C$19)/($C$20-$C$19)<E25,E25*(E61-$C$19)/($C$20-$C$19),E25),0)) -> 
C69: =C62 -> 3199 | E69: =IF(E26=0,0,IF(E62>$C$20,IF(E26*(E62-$C$20)/($C$21-$C$20)<E26,E26*(E62-$C$20)/($C$21-$C$20),E26),0)) -> 
C70: =C63 -> 6399 | E70: =IF(E27=0,0,IF(E63>$C$21,IF(E27*(E63-$C$21)/($C$22-$C$21)<E27,E27*(E63-$C$21)/($C$22-$C$21),E27),0)) -> 
C71: =C64 -> more
A74: Number of hhs moving down to a lower income category
B75: =B68 -> 0 | C75: =C68 -> 1599
C76: =C69 -> 3199 | E76: =IF(E26=0,0,IF(E62<$C$20,IF(E26*($C$20-E62)/($C$20-$C$19)<E26,E26*($C$20-E62)/($C$20-$C$19),E26),0)) -> 
C77: =C70 -> 6399 | E77: =IF(E27=0,0,IF(E63<$C$21,IF(E27*($C$21-E63)/($C$21-$C$20)<E27,E27*($C$21-E63)/($C$21-$C$20),E27),0)) -> 
C78: =C71 -> more | E78: =IF(E28=0,0,IF(E64<$C$22,IF(E28*($C$22-E64)/($C$22-$C$21)<E28,E28*($C$22-E64)/($C$22-$C$21),E28),0)) -> 
A80: Net impact on category
B81: =B75 -> 0 | C81: =C75 -> 1599 | E81: =-E68+E76 ->  | F81: =-F68+F76 -> 
C82: =C76 -> 3199 | E82: =-E69+E68-E76+E77 ->  | F82: =-F69+F68-F76+F77 -> 
C83: =C77 -> 6399 | E83: =-E70+E69-E77+E78 ->  | F83: =-F70+F69-F77+F78 -> 
C84: =C78 -> more | E84: =-E78+E70 ->  | F84: =-F78+F70 -> 
A86: Number of hhs in each category after hhs move category
B87: =B81 -> 0 | C87: =C81 -> 1599 | D87: =D25+D81 ->  | E87: =E25+E81 -> 
C88: =C82 -> 3199 | D88: =D26+D82 -> 
C89: =C83 -> 6399 | D89: =D27+D83 -> 
C90: =C84 -> more | D90: =D28+D84 -> 
C91: Total | D91: =SUM(D87:D90) ->  | E91: =SUM(E87:E90) -> 
C92: check=0 | D92: =D91-D29 ->  | E92: =E91-E29 -> 
A94: Income distribution after impact of economic growth is taken into account
D95: =D4 -> 0 | E95: =D95+1 -> 1 | F95: =E95+1 -> 2 | G95: 3 | H95: 4 | I95: 5 | J95: 6 | K95: 7 | L95: 8 | M95: 9 | N95: 10
C96: =C87 -> 1599 | D96: =D19 ->  | E96: =E87/E$91 ->  | F96: =F87/F$91 -> 
C97: =C88 -> 3199 | D97: =D20 ->  | E97: =E88/E$91 ->  | G97: =G88/G$91 -> 
C98: 6399 | D98: =D21 -> 
C99: more | D99: =D22 -> 
A101: HHs per CU | C101: low income | D101: =IF(CONSUMERS!$E$9="",defaults!B5,CONSUMERS!$E$7/CONSUMERS!$E$9) -> 1.1
C102: high income | D102: =IF(CONSUMERS!$E$9="",defaults!B6,CONSUMERS!$E$7/CONSUMERS!$E$9) -> 1.05
A104: No of CUs after impact of economic growth is taken into account
C106: =C96 -> 1599 | D106: =D87/$D$101 ->  | E106: =E87/$D$101 -> 
C107: =C97 -> 3199 | D107: =D88/$D$101 ->  | E107: =E88/$D$101 -> 
C108: 6399 | D108: =D89/$D$102 ->  | E108: =E89/$D$102 -> 
C109: more | D109: =D90/$D$102 ->  | E109: =E90/$D$102 -> 
C110: Total | D110: =SUM(D106:D109) ->  | E110: =SUM(E106:E109) -> 
A112: CUs | D112: =D95 -> 0 | E112: =E95 -> 1 | F112: 2 | G112: 3 | H112: 4 | I112: 5 | J112: 6 | K112: 7 | L112: 8 | M112: 9 | N112: 10
A113: Low income | D113: =SUM(D106:D107) ->  | E113: =SUM(E106:E107) -> 
A114: High income | D114: =SUM(D108:D109) ->  | E114: =SUM(E108:E109) -> 
A115: Total | D115: =SUM(D113:D114) ->  | E115: =SUM(E113:E114) -> 
A116: of which, indigents | D116: =IF(CONSUMERS!$D$19=0,0,IF(CONSUMERS!$D$19=$C$106,D106,IF(CONSUMERS!$D$19=$C$107,SUM(D106:D107),IF(CONSUMERS!$D$19=$C$108,SUM(D106:D108))))) -> 0 | E116: =IF(CONSUMERS!$D$19=0,0,IF(CONSUMERS!$D$19=$C$106,E106,IF(CONSUMERS!$D$19=$C$107,SUM(E106:E107),IF(CONSUMERS!$D$19=$C$108,SUM(E106:E108))))) -> 0 | F116: =IF(CONSUMERS!$D$19=0,0,IF(CONSUMERS!$D$19=$C$106,F106,IF(CONSUMERS!$D$19=$C$107,SUM(F106:F107),IF(CONSUMERS!$D$19=$C$108,SUM(F106:F108))))) -> 0 | G116: =IF(CONSUMERS!$D$19=0,0,IF(CONSUMERS!$D$19=$C$106,G106,IF(CONSUMERS!$D$19=$C$107,SUM(G106:G107),IF(CONSUMERS!$D$19=$C$108,SUM(G106:G108))))) -> 0 | H116: =IF(CONSUMERS!$D$19=0,0,IF(CONSUMERS!$D$19=$C$106,H106,IF(CONSUMERS!$D$19=$C$107,SUM(H106:H107),IF(CONSUMERS!$D$19=$C$108,SUM(H106:H108))))) -> 0 | I116: =IF(CONSUMERS!$D$19=0,0,IF(CONSUMERS!$D$19=$C$106,I106,IF(CONSUMERS!$D$19=$C$107,SUM(I106:I107),IF(CONSUMERS!$D$19=$C$108,SUM(I106:I108))))) -> 0 | J116: =IF(CONSUMERS!$D$19=0,0,IF(CONSUMERS!$D$19=$C$106,J106,IF(CONSUMERS!$D$19=$C$107,SUM(J106:J107),IF(CONSUMERS!$D$19=$C$108,SUM(J106:J108))))) -> 0 | K116: =IF(CONSUMERS!$D$19=0,0,IF(CONSUMERS!$D$19=$C$106,K106,IF(CONSUMERS!$D$19=$C$107,SUM(K106:K107),IF(CONSUMERS!$D$19=$C$108,SUM(K106:K108))))) -> 0 | L116: =IF(CONSUMERS!$D$19=0,0,IF(CONSUMERS!$D$19=$C$106,L106,IF(CONSUMERS!$D$19=$C$107,SUM(L106:L107),IF(CONSUMERS!$D$19=$C$108,SUM(L106:L108))))) -> 0 | M116: =IF(CONSUMERS!$D$19=0,0,IF(CONSUMERS!$D$19=$C$106,M106,IF(CONSUMERS!$D$19=$C$107,SUM(M106:M107),IF(CONSUMERS!$D$19=$C$108,SUM(M106:M108))))) -> 0 | N116: =IF(CONSUMERS!$D$19=0,0,IF(CONSUMERS!$D$19=$C$106,N106,IF(CONSUMERS!$D$19=$C$107,SUM(N106:N107),IF(CONSUMERS!$D$19=$C$108,SUM(N106:N108))))) -> 0
B117: Total CU growth | E117: =(SUM(E113:E114)-SUM(D113:D114))/SUM(D113:D114) ->  | F117: =(SUM(F113:F114)-SUM(E113:E114))/SUM(E113:E114) ->  | O117: =AVERAGE(E117:N117) -> 
A118: change in low | E118: =(E113-D113)/D113 ->  | F118: =(F113-E113)/E113 -> 
A119: change in high | E119: =(E114-D114)/D114 ->  | F119: =(F114-E114)/E114 -> 
A121: % of Cus
C122: Low income | D122: =SUM(D96:D97) ->  | E122: =SUM(E96:E97) -> 
C123: High income | D123: =SUM(D98:D99) ->  | E123: =SUM(E98:E99) -> 
A125: New Cus
B126: TOTAL | C126: High Income | E126: =E114-D114 ->  | F126: =F114-E114 -> 
C127: Low income | E127: =E113-D113 ->  | F127: =F113-E113 -> 
C128: All | E128: =E126+E127 ->  | F128: =F126+F127 -> 
A132: Non-residential consumers
A133: Total number of non-res consumers | D133: =CONSUMERS!D25 -> 0 | E133: =D133*(1+E12) -> 0 | F133: 0 | G133: 0 | H133: 0 | I133: 0 | J133: 0 | K133: 0 | L133: 0 | M133: 0 | N133: 0

Sheet e-service levels
B1: SERVICE LEVEL ALLOCATION | F1: All monetary values in REAL terms
A2: Key: | B2: from user input sheets
A4: CUs in each income group | D4: =Base_year -> 0 | E4: =D4+1 -> 1 | F4: =E4+1 -> 2 | G4: 3 | H4: 4 | I4: 5 | J4: 6 | K4: 7 | L4: 8 | M4: 9 | N4: 10
B5: ='e-inc'!B87 -> 0 | C5: ='e-inc'!C87 -> 1599 | D5: ='e-inc'!D106 ->  | E5: ='e-inc'!E106 ->  | F5: ='e-inc'!F106 ->  | G5: ='e-inc'!G106 ->  | H5: ='e-inc'!H106 ->  | I5: ='e-inc'!I106 ->  | J5: ='e-inc'!J106 ->  | K5: ='e-inc'!K106 ->  | L5: ='e-inc'!L106 ->  | M5: ='e-inc'!M106 ->  | N5: ='e-inc'!N106 -> 
C6: ='e-inc'!C88 -> 3199 | D6: ='e-inc'!D107 ->  | E6: ='e-inc'!E107 ->  | F6: ='e-inc'!F107 ->  | G6: ='e-inc'!G107 ->  | H6: ='e-inc'!H107 ->  | I6: ='e-inc'!I107 ->  | J6: ='e-inc'!J107 ->  | K6: ='e-inc'!K107 ->  | L6: ='e-inc'!L107 ->  | M6: ='e-inc'!M107 ->  | N6: ='e-inc'!N107 -> 
C7: ='e-inc'!C89 -> 6399 | D7: ='e-inc'!D108 ->  | E7: ='e-inc'!E108 ->  | F7: ='e-inc'!F108 ->  | G7: ='e-inc'!G108 ->  | H7: ='e-inc'!H108 ->  | I7: ='e-inc'!I108 ->  | J7: ='e-inc'!J108 ->  | K7: ='e-inc'!K108 ->  | L7: ='e-inc'!L108 ->  | M7: ='e-inc'!M108 ->  | N7: ='e-inc'!N108 -> 
C8: ='e-inc'!C90 -> more | D8: ='e-inc'!D109 ->  | E8: ='e-inc'!E109 ->  | F8: ='e-inc'!F109 ->  | G8: ='e-inc'!G109 ->  | H8: ='e-inc'!H109 ->  | I8: ='e-inc'!I109 ->  | J8: ='e-inc'!J109 ->  | K8: ='e-inc'!K109 ->  | L8: ='e-inc'!L109 ->  | M8: ='e-inc'!M109 ->  | N8: ='e-inc'!N109 -> 
C9: ='e-inc'!C91 -> Total | D9: =SUM(D5:D8) ->  | E9: =SUM(E5:E8) -> 
A11: ALLOCATE INCOME GROUPS TO SERVICE LEVELS
A12: Service levels
B13: ='Tariff projection'!B13 -> No service | D13: =IF(service_level_tariff="Service level tariff",'e-waste'!C15,'e-waste'!C58) ->  | E13: =IF(service_level_tariff="Service level tariff",'e-waste'!D15,'e-waste'!D58) ->  | F13: =IF(service_level_tariff="Service level tariff",'e-waste'!E15,'e-waste'!E58) ->  | G13: =IF(service_level_tariff="Service level tariff",'e-waste'!F15,'e-waste'!F58) ->  | H13: =IF(service_level_tariff="Service level tariff",'e-waste'!G15,'e-waste'!G58) ->  | I13: =IF(service_level_tariff="Service level tariff",'e-waste'!H15,'e-waste'!H58) ->  | J13: =IF(service_level_tariff="Service level tariff",'e-waste'!I15,'e-waste'!I58) ->  | K13: =IF(service_level_tariff="Service level tariff",'e-waste'!J15,'e-waste'!J58) ->  | L13: =IF(service_level_tariff="Service level tariff",'e-waste'!K15,'e-waste'!K58) ->  | M13: =IF(service_level_tariff="Service level tariff",'e-waste'!L15,'e-waste'!L58) ->  | N13: =IF(service_level_tariff="Service level tariff",'e-waste'!M15,'e-waste'!M58) -> 
B14: ='Tariff projection'!B14 ->  | D14: =IF(service_level_tariff="Service level tariff",'e-waste'!C16,'e-waste'!C59) ->  | E14: =IF(service_level_tariff="Service level tariff",'e-waste'!D16,'e-waste'!D59) ->  | F14: =IF(service_level_tariff="Service level tariff",'e-waste'!E16,'e-waste'!E59) ->  | G14: =IF(service_level_tariff="Service level tariff",'e-waste'!F16,'e-waste'!F59) ->  | H14: =IF(service_level_tariff="Service level tariff",'e-waste'!G16,'e-waste'!G59) ->  | I14: =IF(service_level_tariff="Service level tariff",'e-waste'!H16,'e-waste'!H59) ->  | J14: =IF(service_level_tariff="Service level tariff",'e-waste'!I16,'e-waste'!I59) ->  | K14: =IF(service_level_tariff="Service level tariff",'e-waste'!J16,'e-waste'!J59) ->  | L14: =IF(service_level_tariff="Service level tariff",'e-waste'!K16,'e-waste'!K59) ->  | M14: =IF(service_level_tariff="Service level tariff",'e-waste'!L16,'e-waste'!L59) ->  | N14: =IF(service_level_tariff="Service level tariff",'e-waste'!M16,'e-waste'!M59) -> 
B15: ='Tariff projection'!B15 ->  | D15: =IF(service_level_tariff="Service level tariff",'e-waste'!C17,'e-waste'!C60) ->  | E15: =IF(service_level_tariff="Service level tariff",'e-waste'!D17,'e-waste'!D60) ->  | F15: =IF(service_level_tariff="Service level tariff",'e-waste'!E17,'e-waste'!E60) ->  | G15: =IF(service_level_tariff="Service level tariff",'e-waste'!F17,'e-waste'!F60) ->  | H15: =IF(service_level_tariff="Service level tariff",'e-waste'!G17,'e-waste'!G60) ->  | I15: =IF(service_level_tariff="Service level tariff",'e-waste'!H17,'e-waste'!H60) ->  | J15: =IF(service_level_tariff="Service level tariff",'e-waste'!I17,'e-waste'!I60) ->  | K15: =IF(service_level_tariff="Service level tariff",'e-waste'!J17,'e-waste'!J60) ->  | L15: =IF(service_level_tariff="Service level tariff",'e-waste'!K17,'e-waste'!K60) ->  | M15: =IF(service_level_tariff="Service level tariff",'e-waste'!L17,'e-waste'!L60) ->  | N15: =IF(service_level_tariff="Service level tariff",'e-waste'!M17,'e-waste'!M60) -> 
B16: ='Tariff projection'!B16 ->  | D16: =IF(service_level_tariff="Service level tariff",'e-waste'!C18,'e-waste'!C61) ->  | E16: =IF(service_level_tariff="Service level tariff",'e-waste'!D18,'e-waste'!D61) ->  | F16: =IF(service_level_tariff="Service level tariff",'e-waste'!E18,'e-waste'!E61) ->  | G16: =IF(service_level_tariff="Service level tariff",'e-waste'!F18,'e-waste'!F61) ->  | H16: =IF(service_level_tariff="Service level tariff",'e-waste'!G18,'e-waste'!G61) ->  | I16: =IF(service_level_tariff="Service level tariff",'e-waste'!H18,'e-waste'!H61) ->  | J16: =IF(service_level_tariff="Service level tariff",'e-waste'!I18,'e-waste'!I61) ->  | K16: =IF(service_level_tariff="Service level tariff",'e-waste'!J18,'e-waste'!J61) ->  | L16: =IF(service_level_tariff="Service level tariff",'e-waste'!K18,'e-waste'!K61) ->  | M16: =IF(service_level_tariff="Service level tariff",'e-waste'!L18,'e-waste'!L61) ->  | N16: =IF(service_level_tariff="Service level tariff",'e-waste'!M18,'e-waste'!M61) -> 
B17: ='Tariff projection'!B17 ->  | D17: =IF(service_level_tariff="Service level tariff",'e-waste'!C19,'e-waste'!C62) ->  | E17: =IF(service_level_tariff="Service level tariff",'e-waste'!D19,'e-waste'!D62) ->  | F17: =IF(service_level_tariff="Service level tariff",'e-waste'!E19,'e-waste'!E62) ->  | G17: =IF(service_level_tariff="Service level tariff",'e-waste'!F19,'e-waste'!F62) ->  | H17: =IF(service_level_tariff="Service level tariff",'e-waste'!G19,'e-waste'!G62) ->  | I17: =IF(service_level_tariff="Service level tariff",'e-waste'!H19,'e-waste'!H62) ->  | J17: =IF(service_level_tariff="Service level tariff",'e-waste'!I19,'e-waste'!I62) ->  | K17: =IF(service_level_tariff="Service level tariff",'e-waste'!J19,'e-waste'!J62) ->  | L17: =IF(service_level_tariff="Service level tariff",'e-waste'!K19,'e-waste'!K62) ->  | M17: =IF(service_level_tariff="Service level tariff",'e-waste'!L19,'e-waste'!L62) ->  | N17: =IF(service_level_tariff="Service level tariff",'e-waste'!M19,'e-waste'!M62) -> 
B18: ='Tariff projection'!B18 ->  | D18: =IF(service_level_tariff="Service level tariff",'e-waste'!C20,'e-waste'!C63) ->  | E18: =IF(service_level_tariff="Service level tariff",'e-waste'!D20,'e-waste'!D63) ->  | F18: =IF(service_level_tariff="Service level tariff",'e-waste'!E20,'e-waste'!E63) ->  | G18: =IF(service_level_tariff="Service level tariff",'e-waste'!F20,'e-waste'!F63) ->  | H18: =IF(service_level_tariff="Service level tariff",'e-waste'!G20,'e-waste'!G63) ->  | I18: =IF(service_level_tariff="Service level tariff",'e-waste'!H20,'e-waste'!H63) ->  | J18: =IF(service_level_tariff="Service level tariff",'e-waste'!I20,'e-waste'!I63) ->  | K18: =IF(service_level_tariff="Service level tariff",'e-waste'!J20,'e-waste'!J63) ->  | L18: =IF(service_level_tariff="Service level tariff",'e-waste'!K20,'e-waste'!K63) ->  | M18: =IF(service_level_tariff="Service level tariff",'e-waste'!L20,'e-waste'!L63) ->  | N18: =IF(service_level_tariff="Service level tariff",'e-waste'!M20,'e-waste'!M63) -> 
B19: ='Tariff projection'!B19 ->  | D19: =IF(service_level_tariff="Service level tariff",'e-waste'!C21,'e-waste'!C64) ->  | E19: =IF(service_level_tariff="Service level tariff",'e-waste'!D21,'e-waste'!D64) ->  | F19: =IF(service_level_tariff="Service level tariff",'e-waste'!E21,'e-waste'!E64) ->  | G19: =IF(service_level_tariff="Service level tariff",'e-waste'!F21,'e-waste'!F64) ->  | H19: =IF(service_level_tariff="Service level tariff",'e-waste'!G21,'e-waste'!G64) ->  | I19: =IF(service_level_tariff="Service level tariff",'e-waste'!H21,'e-waste'!H64) ->  | J19: =IF(service_level_tariff="Service level tariff",'e-waste'!I21,'e-waste'!I64) ->  | K19: =IF(service_level_tariff="Service level tariff",'e-waste'!J21,'e-waste'!J64) ->  | L19: =IF(service_level_tariff="Service level tariff",'e-waste'!K21,'e-waste'!K64) ->  | M19: =IF(service_level_tariff="Service level tariff",'e-waste'!L21,'e-waste'!L64) ->  | N19: =IF(service_level_tariff="Service level tariff",'e-waste'!M21,'e-waste'!M64) -> 
B20: ='Tariff projection'!B20 ->  | D20: =IF(service_level_tariff="Service level tariff",'e-waste'!C22,'e-waste'!C65) ->  | E20: =IF(service_level_tariff="Service level tariff",'e-waste'!D22,'e-waste'!D65) ->  | F20: =IF(service_level_tariff="Service level tariff",'e-waste'!E22,'e-waste'!E65) ->  | G20: =IF(service_level_tariff="Service level tariff",'e-waste'!F22,'e-waste'!F65) ->  | H20: =IF(service_level_tariff="Service level tariff",'e-waste'!G22,'e-waste'!G65) ->  | I20: =IF(service_level_tariff="Service level tariff",'e-waste'!H22,'e-waste'!H65) ->  | J20: =IF(service_level_tariff="Service level tariff",'e-waste'!I22,'e-waste'!I65) ->  | K20: =IF(service_level_tariff="Service level tariff",'e-waste'!J22,'e-waste'!J65) ->  | L20: =IF(service_level_tariff="Service level tariff",'e-waste'!K22,'e-waste'!K65) ->  | M20: =IF(service_level_tariff="Service level tariff",'e-waste'!L22,'e-waste'!L65) ->  | N20: =IF(service_level_tariff="Service level tariff",'e-waste'!M22,'e-waste'!M65) -> 
B21: ='e-waste'!A23 -> Total | D21: =SUM(D13:D20) ->  | E21: =SUM(E13:E20) -> 
A23: Divide income groups into service levels
B24: =B13 -> No service | C24: =C5 -> 1599 | D24: =IF((D13-D27)>D5,D5,D13-D27) ->  | E24: =IF((E13-E27)>E5,E5,E13-E27) ->  | N24: =IF((N13-N27)>N5,N5,N13-N27) -> 
C25: =C6 -> 3199 | D25: =IF(D13>(D24+D27),IF((D13-(D24+D27))>D6,D6,D13-(D24+D27)),0) ->  | E25: =IF(E13>(E24+E27),IF((E13-(E24+E27))>E6,E6,E13-(E24+E27)),0) ->  | N25: =IF(N13>(N24+N27),IF((N13-(N24+N27))>N6,N6,N13-(N24+N27)),0) -> 
C26: 6399 | D26: =IF(D13>(D24+D25+D27),IF((D13-(D24+D25+D27))>D7,D7,D13-(D24+D25+D27)),0) ->  | E26: =IF(E13>(E24+E25+E27),IF((E13-(E24+E25+E27))>E7,E7,E13-(E24+E25+E27)),0) ->  | N26: =IF(N13>(N24+N25+N27),IF((N13-(N24+N25+N27))>N7,N7,N13-(N24+N25+N27)),0) -> 
C27: more | D27: ='SERVICE LEVELS'!$E$6 -> 0 | E27: =IF($D$13=0,0,$D$27/$D$13*E13) ->  | F27: =IF($D$13=0,0,$D$27/$D$13*F13) -> 
C28: Total | D28: =SUM(D24:D27) ->  | E28: =SUM(E24:E27) ->  | N28: =SUM(N24:N27) -> 
C29: check=0 | D29: =D28-D13 ->  | E29: =E28-E13 ->  | N29: =N28-N13 -> 
B30: =B14 ->  | C30: =C5 -> 1599 | D30: =IF((D$5-D$24)>D14,D14,D$5-D$24) ->  | E30: =IF((E$5-E$24)>E14,E14,E$5-E$24) ->  | N30: =IF((N$5-N$24)>N14,N14,N$5-N$24) -> 
C31: =C6 -> 3199 | D31: =IF(D14-D30>0,IF((D14-D30)>(D6-D25),D6-D25,D14-D30),0) ->  | E31: =IF(E14-E30>0,IF((E14-E30)>(E6-E25),E6-E25,E14-E30),0) ->  | N31: =IF(N14-N30>0,IF((N14-N30)>(N6-N25),N6-N25,N14-N30),0) -> 
C32: 6399 | D32: =IF(D14-(D31+D30)>0,IF((D14-(D31+D30))>(D7-D26),D7-D26,D14-(D31+D30)),0) ->  | E32: =IF(E14-(E31+E30)>0,IF((E14-(E31+E30))>(E7-E26),E7-E26,E14-(E31+E30)),0) ->  | N32: =IF(N14-(N31+N30)>0,IF((N14-(N31+N30))>(N7-N26),N7-N26,N14-(N31+N30)),0) -> 
C33: more | D33: =D14-SUM(D30:D32) ->  | E33: =E14-SUM(E30:E32) ->  | N33: =N14-SUM(N30:N32) -> 
C34: Total | D34: =SUM(D30:D33) ->  | E34: =SUM(E30:E33) ->  | N34: =SUM(N30:N33) -> 
C35: check=0 | D35: =D34-D14 ->  | E35: =E34-E14 ->  | N35: =N34-N14 -> 
B36: =B15 ->  | C36: =C5 -> 1599 | D36: =IF((D5-(D24+D30))>D$15,D$15,D5-(D24+D30)) ->  | E36: =IF((E5-(E24+E30))>E$15,E$15,E5-(E24+E30)) ->  | N36: =IF((N5-(N24+N30))>N$15,N$15,N5-(N24+N30)) -> 
C37: =C6 -> 3199 | D37: =IF(D$15-D$36>0,IF((D$15-D$36)>(D6-(D25+D31)),D6-(D25+D31),D$15-D$36),0) ->  | E37: =IF(E$15-E$36>0,IF((E$15-E$36)>(E6-(E25+E31)),E6-(E25+E31),E$15-E$36),0) ->  | N37: =IF(N$15-N$36>0,IF((N$15-N$36)>(N6-(N25+N31)),N6-(N25+N31),N$15-N$36),0) -> 
C38: 6399 | D38: =IF(D$15-(D$36+D37)>0,IF((D$15-(D$36+D37))>(D7-(D26+D32)),D7-(D26+D32),D$15-(D$36+D37)),0) ->  | E38: =IF(E$15-(E$36+E37)>0,IF((E$15-(E$36+E37))>(E7-(E26+E32)),E7-(E26+E32),E$15-(E$36+E37)),0) ->  | N38: =IF(N$15-(N$36+N37)>0,IF((N$15-(N$36+N37))>(N7-(N26+N32)),N7-(N26+N32),N$15-(N$36+N37)),0) -> 
C39: more | D39: =D15-SUM(D36:D38) ->  | E39: =E15-SUM(E36:E38) ->  | N39: =N15-SUM(N36:N38) -> 
C40: Total | D40: =SUM(D36:D39) ->  | E40: =SUM(E36:E39) ->  | N40: =SUM(N36:N39) -> 
C41: check=0 | D41: =D15-D40 ->  | E41: =E15-E40 ->  | N41: =N15-N40 -> 
B42: =B16 ->  | C42: =C5 -> 1599 | D42: =IF((D5-(D24+D30+D36))>D$16,D$16,D5-(D24+D30+D36)) ->  | E42: =IF((E5-(E24+E30+E36))>E$16,E$16,E5-(E24+E30+E36)) ->  | N42: =IF((N5-(N24+N30+N36))>N$16,N$16,N5-(N24+N30+N36)) -> 
C43: =C6 -> 3199 | D43: =IF(D$16-D$42>0,IF((D$16-D$42)>(D6-(D25+D31+D37)),D6-(D25+D31+D37),D$16-D$42),0) ->  | E43: =IF(E$16-E$42>0,IF((E$16-E$42)>(E6-(E25+E31+E37)),E6-(E25+E31+E37),E$16-E$42),0) ->  | N43: =IF(N$16-N$42>0,IF((N$16-N$42)>(N6-(N25+N31+N37)),N6-(N25+N31+N37),N$16-N$42),0) -> 
C44: =C7 -> 6399 | D44: =IF(D$16-(D$42+D43)>0,IF((D$16-(D$42+D43))>(D7-(D26+D32+D38)),D7-(D26+D32+D38),D$16-(D$42+D43)),0) ->  | E44: =IF(E$16-(E$42+E43)>0,IF((E$16-(E$42+E43))>(E7-(E26+E32+E38)),E7-(E26+E32+E38),E$16-(E$42+E43)),0) ->  | N44: =IF(N$16-(N$42+N43)>0,IF((N$16-(N$42+N43))>(N7-(N26+N32+N38)),N7-(N26+N32+N38),N$16-(N$42+N43)),0) -> 
C45: =C8 -> more | D45: =D16-SUM(D42:D44) ->  | E45: =E16-SUM(E42:E44) ->  | N45: =N16-SUM(N42:N44) -> 
C46: =C9 -> Total | D46: =SUM(D42:D45) ->  | E46: =SUM(E42:E45) ->  | N46: =SUM(N42:N45) -> 
C47: check=0 | D47: =D16-D46 ->  | E47: =E16-E46 ->  | N47: =N16-N46 -> 
B48: =B17 ->  | C48: =C5 -> 1599 | D48: =IF((D5-(D24+D30+D36+D42))>D$17,D$17,D5-(D24+D30+D36+D42)) ->  | E48: =IF((E5-(E24+E30+E36+E42))>E$17,E$17,E5-(E24+E30+E36+E42)) ->  | N48: =IF((N5-(N24+N30+N36+N42))>N$17,N$17,N5-(N24+N30+N36+N42)) -> 
C49: =C6 -> 3199 | D49: =IF(D$17-D$48>0,IF((D$17-D$48)>(D6-(D25+D31+D37+D43)),D6-(D25+D31+D37+D43),D$17-D$48),0) ->  | E49: =IF(E$17-E$48>0,IF((E$17-E$48)>(E6-(E25+E31+E37+E43)),E6-(E25+E31+E37+E43),E$17-E$48),0) ->  | N49: =IF(N$17-N$48>0,IF((N$17-N$48)>(N6-(N25+N31+N37+N43)),N6-(N25+N31+N37+N43),N$17-N$48),0) -> 
C50: 6399 | D50: =IF(D$17-(D$48+D49)>0,IF((D$17-(D$48+D49))>(D7-(D26+D32+D38+D44)),D7-(D26+D32+D38+D44),D$17-(D$48+D49)),0) ->  | E50: =IF(E$17-(E$48+E49)>0,IF((E$17-(E$48+E49))>(E7-(E26+E32+E38+E44)),E7-(E26+E32+E38+E44),E$17-(E$48+E49)),0) ->  | N50: =IF(N$17-(N$48+N49)>0,IF((N$17-(N$48+N49))>(N7-(N26+N32+N38+N44)),N7-(N26+N32+N38+N44),N$17-(N$48+N49)),0) -> 
C51: more | D51: =D17-SUM(D48:D50) ->  | E51: =E17-SUM(E48:E50) ->  | N51: =N17-SUM(N48:N50) -> 
C52: Total | D52: =SUM(D48:D51) ->  | E52: =SUM(E48:E51) ->  | N52: =SUM(N48:N51) -> 
C53: check=0 | D53: =D17-D52 ->  | E53: =E17-E52 ->  | N53: =N17-N52 -> 
B54: =B18 ->  | C54: =C5 -> 1599 | D54: =IF((D5-(D24+D30+D36+D42+D48))>D$18,D$18,D5-(D24+D30+D36+D42+D48)) ->  | E54: =IF((E5-(E24+E30+E36+E42+E48))>E$18,E$18,E5-(E24+E30+E36+E42+E48)) ->  | N54: =IF((N5-(N24+N30+N36+N42+N48))>N$18,N$18,N5-(N24+N30+N36+N42+N48)) -> 
C55: =C6 -> 3199 | D55: =IF(D$18-D$54>0,IF((D$18-D$54)>(D6-(D25+D31+D37+D43+D49)),D6-(D25+D31+D37+D43+D49),D$18-D$54),0) ->  | E55: =IF(E$18-E$54>0,IF((E$18-E$54)>(E6-(E25+E31+E37+E43+E49)),E6-(E25+E31+E37+E43+E49),E$18-E$54),0) ->  | N55: =IF(N$18-N$54>0,IF((N$18-N$54)>(N6-(N25+N31+N37+N43+N49)),N6-(N25+N31+N37+N43+N49),N$18-N$54),0) -> 
C56: 6399 | D56: =IF(D$18-(D$54+D55)>0,IF((D$18-(D$54+D55))>(D7-(D26+D32+D38+D44+D50)),D7-(D26+D32+D38+D44+D50),D$18-(D$54+D55)),0) ->  | E56: =IF(E$18-(E$54+E55)>0,IF((E$18-(E$54+E55))>(E7-(E26+E32+E38+E44+E50)),E7-(E26+E32+E38+E44+E50),E$18-(E$54+E55)),0) ->  | N56: =IF(N$18-(N$54+N55)>0,IF((N$18-(N$54+N55))>(N7-(N26+N32+N38+N44+N50)),N7-(N26+N32+N38+N44+N50),N$18-(N$54+N55)),0) -> 
C57: more | D57: =D18-SUM(D54:D56) ->  | E57: =E18-SUM(E54:E56) ->  | N57: =N18-SUM(N54:N56) -> 
C58: Total | D58: =SUM(D54:D57) ->  | E58: =SUM(E54:E57) ->  | N58: =SUM(N54:N57) -> 
C59: check=0 | D59: =D18-D58 ->  | E59: =E18-E58 ->  | N59: =N18-N58 -> 
B60: =B19 ->  | C60: =C5 -> 1599 | D60: =IF((D5-(D24+D30+D36+D42+D48+D54))>D$19,D$19,D5-(D24+D30+D36+D42+D48+D54)) ->  | E60: =IF((E5-(E24+E30+E36+E42+E48+E54))>E$19,E$19,E5-(E24+E30+E36+E42+E48+E54)) ->  | N60: =IF((N5-(N24+N30+N36+N42+N48+N54))>N$19,N$19,N5-(N24+N30+N36+N42+N48+N54)) -> 
C61: =C6 -> 3199 | D61: =IF(D$19-D$60>0,IF((D$19-D$60)>(D6-(D25+D31+D37+D43+D49+D55)),D6-(D25+D31+D37+D43+D49+D55),D$19-D$60),0) ->  | E61: =IF(E$19-E$60>0,IF((E$19-E$60)>(E6-(E25+E31+E37+E43+E49+E55)),E6-(E25+E31+E37+E43+E49+E55),E$19-E$60),0) ->  | N61: =IF(N$19-N$60>0,IF((N$19-N$60)>(N6-(N25+N31+N37+N43+N49+N55)),N6-(N25+N31+N37+N43+N49+N55),N$19-N$60),0) -> 
C62: 6399 | D62: =IF(D$19-(D$60+D61)>0,IF((D$19-(D$60+D61))>(D7-(D26+D32+D38+D44+D50+D56)),D7-(D26+D32+D38+D44+D50+D56),D$19-(D$60+D61)),0) ->  | E62: =IF(E$19-(E$60+E61)>0,IF((E$19-(E$60+E61))>(E7-(E26+E32+E38+E44+E50+E56)),E7-(E26+E32+E38+E44+E50+E56),E$19-(E$60+E61)),0) ->  | N62: =IF(N$19-(N$60+N61)>0,IF((N$19-(N$60+N61))>(N7-(N26+N32+N38+N44+N50+N56)),N7-(N26+N32+N38+N44+N50+N56),N$19-(N$60+N61)),0) -> 
C63: more | D63: =D19-SUM(D60:D62) ->  | E63: =E19-SUM(E60:E62) ->  | N63: =N19-SUM(N60:N62) -> 
C64: Total | D64: =SUM(D60:D63) ->  | E64: =SUM(E60:E63) ->  | N64: =SUM(N60:N63) -> 
C65: check=0 | D65: =D19-D64 ->  | E65: =E19-E64 ->  | N65: =N19-N64 -> 
B66: =B20 ->  | C66: =C5 -> 1599 | D66: =IF((D5-(D24+D30+D36+D42+D48+D54+D60))>D$20,D$20,D5-(D24+D30+D36+D42+D48+D54+D60)) ->  | E66: =IF((E5-(E24+E30+E36+E42+E48+E54+E60))>E$20,E$20,E5-(E24+E30+E36+E42+E48+E54+E60)) ->  | N66: =IF((N5-(N24+N30+N36+N42+N48+N54+N60))>N$20,N$20,N5-(N24+N30+N36+N42+N48+N54+N60)) -> 
C67: =C6 -> 3199 | D67: =IF(D$20-D$66>0,IF((D$20-D$66)>(D6-(D25+D31+D37+D43+D49+D55+D61)),D6-(D25+D31+D37+D43+D49+D55+D61),D$20-D$66),0) ->  | E67: =IF(E$20-E$66>0,IF((E$20-E$66)>(E6-(E25+E31+E37+E43+E49+E55+E61)),E6-(E25+E31+E37+E43+E49+E55+E61),E$20-E$66),0) ->  | N67: =IF(N$20-N$66>0,IF((N$20-N$66)>(N6-(N25+N31+N37+N43+N49+N55+N61)),N6-(N25+N31+N37+N43+N49+N55+N61),N$20-N$66),0) -> 
C68: 6399 | D68: =IF(D$20-(D$66+D67)>0,IF((D$20-(D$66+D67))>(D7-(D26+D32+D38+D44+D50+D56+D62)),D7-(D26+D32+D38+D44+D50+D56+D62),D$20-(D$66+D67)),0) ->  | E68: =IF(E$20-(E$66+E67)>0,IF((E$20-(E$66+E67))>(E7-(E26+E32+E38+E44+E50+E56+E62)),E7-(E26+E32+E38+E44+E50+E56+E62),E$20-(E$66+E67)),0) ->  | N68: =IF(N$20-(N$66+N67)>0,IF((N$20-(N$66+N67))>(N7-(N26+N32+N38+N44+N50+N56+N62)),N7-(N26+N32+N38+N44+N50+N56+N62),N$20-(N$66+N67)),0) -> 
C69: more | D69: =D20-SUM(D66:D68) ->  | E69: =E20-SUM(E66:E68) ->  | N69: =N20-SUM(N66:N68) -> 
C70: Total | D70: =SUM(D66:D69) ->  | E70: =SUM(E66:E69) ->  | N70: =SUM(N66:N69) -> 
C71: check=0 | D71: =D20-D70 ->  | E71: =E20-E70 ->  | N71: =N20-N70 -> 
A73: Low income Cus
A74: =B13 -> No service | D74: =SUM('e-service levels'!D24:D25) ->  | E74: =SUM('e-service levels'!E24:E25) ->  | F74: =SUM('e-service levels'!F24:F25) ->  | G74: =SUM('e-service levels'!G24:G25) ->  | H74: =SUM('e-service levels'!H24:H25) ->  | I74: =SUM('e-service levels'!I24:I25) ->  | J74: =SUM('e-service levels'!J24:J25) ->  | K74: =SUM('e-service levels'!K24:K25) ->  | L74: =SUM('e-service levels'!L24:L25) ->  | M74: =SUM('e-service levels'!M24:M25) ->  | N74: =SUM('e-service levels'!N24:N25) -> 
A75: =B14 ->  | D75: =SUM('e-service levels'!D30:D31) ->  | E75: =SUM('e-service levels'!E30:E31) ->  | F75: =SUM('e-service levels'!F30:F31) ->  | G75: =SUM('e-service levels'!G30:G31) ->  | H75: =SUM('e-service levels'!H30:H31) ->  | I75: =SUM('e-service levels'!I30:I31) ->  | J75: =SUM('e-service levels'!J30:J31) ->  | K75: =SUM('e-service levels'!K30:K31) ->  | L75: =SUM('e-service levels'!L30:L31) ->  | M75: =SUM('e-service levels'!M30:M31) ->  | N75: =SUM('e-service levels'!N30:N31) -> 
D76: =SUM('e-service levels'!D36:D37) ->  | E76: =SUM('e-service levels'!E36:E37) ->  | F76: =SUM('e-service levels'!F36:F37) ->  | G76: =SUM('e-service levels'!G36:G37) ->  | H76: =SUM('e-service levels'!H36:H37) ->  | I76: =SUM('e-service levels'!I36:I37) ->  | J76: =SUM('e-service levels'!J36:J37) ->  | K76: =SUM('e-service levels'!K36:K37) ->  | L76: =SUM('e-service levels'!L36:L37) ->  | M76: =SUM('e-service levels'!M36:M37) ->  | N76: =SUM('e-service levels'!N36:N37) -> 
D77: =SUM('e-service levels'!D42:D43) ->  | E77: =SUM('e-service levels'!E42:E43) ->  | F77: =SUM('e-service levels'!F42:F43) ->  | G77: =SUM('e-service levels'!G42:G43) ->  | H77: =SUM('e-service levels'!H42:H43) ->  | I77: =SUM('e-service levels'!I42:I43) ->  | J77: =SUM('e-service levels'!J42:J43) ->  | K77: =SUM('e-service levels'!K42:K43) ->  | L77: =SUM('e-service levels'!L42:L43) ->  | M77: =SUM('e-service levels'!M42:M43) ->  | N77: =SUM('e-service levels'!N42:N43) -> 
D78: =SUM('e-service levels'!D48:D49) ->  | E78: =SUM('e-service levels'!E48:E49) ->  | F78: =SUM('e-service levels'!F48:F49) ->  | G78: =SUM('e-service levels'!G48:G49) ->  | H78: =SUM('e-service levels'!H48:H49) ->  | I78: =SUM('e-service levels'!I48:I49) ->  | J78: =SUM('e-service levels'!J48:J49) ->  | K78: =SUM('e-service levels'!K48:K49) ->  | L78: =SUM('e-service levels'!L48:L49) ->  | M78: =SUM('e-service levels'!M48:M49) ->  | N78: =SUM('e-service levels'!N48:N49) -> 
D79: =SUM('e-service levels'!D54:D55) ->  | E79: =SUM('e-service levels'!E54:E55) ->  | F79: =SUM('e-service levels'!F54:F55) ->  | G79: =SUM('e-service levels'!G54:G55) ->  | H79: =SUM('e-service levels'!H54:H55) ->  | I79: =SUM('e-service levels'!I54:I55) ->  | J79: =SUM('e-service levels'!J54:J55) ->  | K79: =SUM('e-service levels'!K54:K55) ->  | L79: =SUM('e-service levels'!L54:L55) ->  | M79: =SUM('e-service levels'!M54:M55) ->  | N79: =SUM('e-service levels'!N54:N55) -> 
D80: =SUM('e-service levels'!D60:D61) ->  | E80: =SUM('e-service levels'!E60:E61) ->  | F80: =SUM('e-service levels'!F60:F61) ->  | G80: =SUM('e-service levels'!G60:G61) ->  | H80: =SUM('e-service levels'!H60:H61) ->  | I80: =SUM('e-service levels'!I60:I61) ->  | J80: =SUM('e-service levels'!J60:J61) ->  | K80: =SUM('e-service levels'!K60:K61) ->  | L80: =SUM('e-service levels'!L60:L61) ->  | M80: =SUM('e-service levels'!M60:M61) ->  | N80: =SUM('e-service levels'!N60:N61) -> 
D81: =SUM('e-service levels'!D66:D67) ->  | E81: =SUM('e-service levels'!E66:E67) ->  | F81: =SUM('e-service levels'!F66:F67) ->  | G81: =SUM('e-service levels'!G66:G67) ->  | H81: =SUM('e-service levels'!H66:H67) ->  | I81: =SUM('e-service levels'!I66:I67) ->  | J81: =SUM('e-service levels'!J66:J67) ->  | K81: =SUM('e-service levels'!K66:K67) ->  | L81: =SUM('e-service levels'!L66:L67) ->  | M81: =SUM('e-service levels'!M66:M67) ->  | N81: =SUM('e-service levels'!N66:N67) -> 
A82: Total | D82: =SUM(D74:D81) ->  | E82: =SUM(E74:E81) -> 
A84: High Income CUs
A85: =A74 -> No service | D85: =SUM(D26:D27) ->  | E85: =SUM(E26:E27) -> 
A86: =A75 ->  | D86: =SUM(D32:D33) ->  | E86: =SUM(E32:E33) -> 
D87: =SUM(D38:D39) ->  | E87: =SUM(E38:E39) -> 
D88: =SUM(D44:D45) ->  | E88: =SUM(E44:E45) -> 
D89: =SUM(D50:D51) ->  | E89: =SUM(E50:E51) -> 
D90: =SUM(D56:D57) ->  | E90: =SUM(E56:E57) -> 
D91: =SUM(D62:D63) ->  | E91: =SUM(E62:E63) -> 
D92: =SUM(D68:D69) ->  | E92: =SUM(E68:E69) -> 
A93: Total | D93: =SUM(D85:D92) ->  | E93: =SUM(E85:E92) -> 
C94: check=0 | D94: =SUM(D82,D93)-D9 ->  | E94: =SUM(E82,E93)-E9 -> 
A96: Indigent CUs
A97: =A85 -> No service | D97: =IF(CONSUMERS!$D$19=0,0,IF(CONSUMERS!$D$19=$C$5,SUM(D$24:D24),IF(CONSUMERS!$D$19=$C$6,SUM(D$24:D25),SUM(D$24:D26)))) -> 0 | E97: =IF(CONSUMERS!$D$19=0,0,IF(CONSUMERS!$D$19=$C$5,SUM(E$24:E24),IF(CONSUMERS!$D$19=$C$6,SUM(E$24:E25),SUM(E$24:E26)))) -> 0 | F97: =IF(CONSUMERS!$D$19=0,0,IF(CONSUMERS!$D$19=$C$5,SUM(F$24:F24),IF(CONSUMERS!$D$19=$C$6,SUM(F$24:F25),SUM(F$24:F26)))) -> 0 | G97: =IF(CONSUMERS!$D$19=0,0,IF(CONSUMERS!$D$19=$C$5,SUM(G$24:G24),IF(CONSUMERS!$D$19=$C$6,SUM(G$24:G25),SUM(G$24:G26)))) -> 0 | H97: =IF(CONSUMERS!$D$19=0,0,IF(CONSUMERS!$D$19=$C$5,SUM(H$24:H24),IF(CONSUMERS!$D$19=$C$6,SUM(H$24:H25),SUM(H$24:H26)))) -> 0 | I97: =IF(CONSUMERS!$D$19=0,0,IF(CONSUMERS!$D$19=$C$5,SUM(I$24:I24),IF(CONSUMERS!$D$19=$C$6,SUM(I$24:I25),SUM(I$24:I26)))) -> 0 | J97: =IF(CONSUMERS!$D$19=0,0,IF(CONSUMERS!$D$19=$C$5,SUM(J$24:J24),IF(CONSUMERS!$D$19=$C$6,SUM(J$24:J25),SUM(J$24:J26)))) -> 0 | K97: =IF(CONSUMERS!$D$19=0,0,IF(CONSUMERS!$D$19=$C$5,SUM(K$24:K24),IF(CONSUMERS!$D$19=$C$6,SUM(K$24:K25),SUM(K$24:K26)))) -> 0 | L97: =IF(CONSUMERS!$D$19=0,0,IF(CONSUMERS!$D$19=$C$5,SUM(L$24:L24),IF(CONSUMERS!$D$19=$C$6,SUM(L$24:L25),SUM(L$24:L26)))) -> 0 | M97: =IF(CONSUMERS!$D$19=0,0,IF(CONSUMERS!$D$19=$C$5,SUM(M$24:M24),IF(CONSUMERS!$D$19=$C$6,SUM(M$24:M25),SUM(M$24:M26)))) -> 0 | N97: =IF(CONSUMERS!$D$19=0,0,IF(CONSUMERS!$D$19=$C$5,SUM(N$24:N24),IF(CONSUMERS!$D$19=$C$6,SUM(N$24:N25),SUM(N$24:N26)))) -> 0
A98: =A86 ->  | D98: =IF(CONSUMERS!$D$19=0,0,IF(CONSUMERS!$D$19=$C$5,SUM(D$30:D30),IF(CONSUMERS!$D$19=$C$6,SUM(D$30:D31),SUM(D$30:D32)))) -> 0 | E98: =IF(CONSUMERS!$D$19=0,0,IF(CONSUMERS!$D$19=$C$5,SUM(E$30:E30),IF(CONSUMERS!$D$19=$C$6,SUM(E$30:E31),SUM(E$30:E32)))) -> 0 | F98: =IF(CONSUMERS!$D$19=0,0,IF(CONSUMERS!$D$19=$C$5,SUM(F$30:F30),IF(CONSUMERS!$D$19=$C$6,SUM(F$30:F31),SUM(F$30:F32)))) -> 0 | G98: =IF(CONSUMERS!$D$19=0,0,IF(CONSUMERS!$D$19=$C$5,SUM(G$30:G30),IF(CONSUMERS!$D$19=$C$6,SUM(G$30:G31),SUM(G$30:G32)))) -> 0 | H98: =IF(CONSUMERS!$D$19=0,0,IF(CONSUMERS!$D$19=$C$5,SUM(H$30:H30),IF(CONSUMERS!$D$19=$C$6,SUM(H$30:H31),SUM(H$30:H32)))) -> 0 | I98: =IF(CONSUMERS!$D$19=0,0,IF(CONSUMERS!$D$19=$C$5,SUM(I$30:I30),IF(CONSUMERS!$D$19=$C$6,SUM(I$30:I31),SUM(I$30:I32)))) -> 0 | J98: =IF(CONSUMERS!$D$19=0,0,IF(CONSUMERS!$D$19=$C$5,SUM(J$30:J30),IF(CONSUMERS!$D$19=$C$6,SUM(J$30:J31),SUM(J$30:J32)))) -> 0 | K98: =IF(CONSUMERS!$D$19=0,0,IF(CONSUMERS!$D$19=$C$5,SUM(K$30:K30),IF(CONSUMERS!$D$19=$C$6,SUM(K$30:K31),SUM(K$30:K32)))) -> 0 | L98: =IF(CONSUMERS!$D$19=0,0,IF(CONSUMERS!$D$19=$C$5,SUM(L$30:L30),IF(CONSUMERS!$D$19=$C$6,SUM(L$30:L31),SUM(L$30:L32)))) -> 0 | M98: =IF(CONSUMERS!$D$19=0,0,IF(CONSUMERS!$D$19=$C$5,SUM(M$30:M30),IF(CONSUMERS!$D$19=$C$6,SUM(M$30:M31),SUM(M$30:M32)))) -> 0 | N98: =IF(CONSUMERS!$D$19=0,0,IF(CONSUMERS!$D$19=$C$5,SUM(N$30:N30),IF(CONSUMERS!$D$19=$C$6,SUM(N$30:N31),SUM(N$30:N32)))) -> 0
D99: =IF(CONSUMERS!$D$19=0,0,IF(CONSUMERS!$D$19=$C$5,SUM(D$36:D36),IF(CONSUMERS!$D$19=$C$6,SUM(D$36:D37),SUM(D$36:D38)))) -> 0 | E99: =IF(CONSUMERS!$D$19=0,0,IF(CONSUMERS!$D$19=$C$5,SUM(E$36:E36),IF(CONSUMERS!$D$19=$C$6,SUM(E$36:E37),SUM(E$36:E38)))) -> 0 | F99: =IF(CONSUMERS!$D$19=0,0,IF(CONSUMERS!$D$19=$C$5,SUM(F$36:F36),IF(CONSUMERS!$D$19=$C$6,SUM(F$36:F37),SUM(F$36:F38)))) -> 0 | G99: =IF(CONSUMERS!$D$19=0,0,IF(CONSUMERS!$D$19=$C$5,SUM(G$36:G36),IF(CONSUMERS!$D$19=$C$6,SUM(G$36:G37),SUM(G$36:G38)))) -> 0 | H99: =IF(CONSUMERS!$D$19=0,0,IF(CONSUMERS!$D$19=$C$5,SUM(H$36:H36),IF(CONSUMERS!$D$19=$C$6,SUM(H$36:H37),SUM(H$36:H38)))) -> 0 | I99: =IF(CONSUMERS!$D$19=0,0,IF(CONSUMERS!$D$19=$C$5,SUM(I$36:I36),IF(CONSUMERS!$D$19=$C$6,SUM(I$36:I37),SUM(I$36:I38)))) -> 0 | J99: =IF(CONSUMERS!$D$19=0,0,IF(CONSUMERS!$D$19=$C$5,SUM(J$36:J36),IF(CONSUMERS!$D$19=$C$6,SUM(J$36:J37),SUM(J$36:J38)))) -> 0 | K99: =IF(CONSUMERS!$D$19=0,0,IF(CONSUMERS!$D$19=$C$5,SUM(K$36:K36),IF(CONSUMERS!$D$19=$C$6,SUM(K$36:K37),SUM(K$36:K38)))) -> 0 | L99: =IF(CONSUMERS!$D$19=0,0,IF(CONSUMERS!$D$19=$C$5,SUM(L$36:L36),IF(CONSUMERS!$D$19=$C$6,SUM(L$36:L37),SUM(L$36:L38)))) -> 0 | M99: =IF(CONSUMERS!$D$19=0,0,IF(CONSUMERS!$D$19=$C$5,SUM(M$36:M36),IF(CONSUMERS!$D$19=$C$6,SUM(M$36:M37),SUM(M$36:M38)))) -> 0 | N99: =IF(CONSUMERS!$D$19=0,0,IF(CONSUMERS!$D$19=$C$5,SUM(N$36:N36),IF(CONSUMERS!$D$19=$C$6,SUM(N$36:N37),SUM(N$36:N38)))) -> 0
D100: =IF(CONSUMERS!$D$19=0,0,IF(CONSUMERS!$D$19=$C$5,SUM(D$42:D42),IF(CONSUMERS!$D$19=$C$6,SUM(D$42:D43),SUM(D$42:D44)))) -> 0 | E100: =IF(CONSUMERS!$D$19=0,0,IF(CONSUMERS!$D$19=$C$5,SUM(E$42:E42),IF(CONSUMERS!$D$19=$C$6,SUM(E$42:E43),SUM(E$42:E44)))) -> 0 | F100: =IF(CONSUMERS!$D$19=0,0,IF(CONSUMERS!$D$19=$C$5,SUM(F$42:F42),IF(CONSUMERS!$D$19=$C$6,SUM(F$42:F43),SUM(F$42:F44)))) -> 0 | G100: =IF(CONSUMERS!$D$19=0,0,IF(CONSUMERS!$D$19=$C$5,SUM(G$42:G42),IF(CONSUMERS!$D$19=$C$6,SUM(G$42:G43),SUM(G$42:G44)))) -> 0 | H100: =IF(CONSUMERS!$D$19=0,0,IF(CONSUMERS!$D$19=$C$5,SUM(H$42:H42),IF(CONSUMERS!$D$19=$C$6,SUM(H$42:H43),SUM(H$42:H44)))) -> 0 | I100: =IF(CONSUMERS!$D$19=0,0,IF(CONSUMERS!$D$19=$C$5,SUM(I$42:I42),IF(CONSUMERS!$D$19=$C$6,SUM(I$42:I43),SUM(I$42:I44)))) -> 0 | J100: =IF(CONSUMERS!$D$19=0,0,IF(CONSUMERS!$D$19=$C$5,SUM(J$42:J42),IF(CONSUMERS!$D$19=$C$6,SUM(J$42:J43),SUM(J$42:J44)))) -> 0 | K100: =IF(CONSUMERS!$D$19=0,0,IF(CONSUMERS!$D$19=$C$5,SUM(K$42:K42),IF(CONSUMERS!$D$19=$C$6,SUM(K$42:K43),SUM(K$42:K44)))) -> 0 | L100: =IF(CONSUMERS!$D$19=0,0,IF(CONSUMERS!$D$19=$C$5,SUM(L$42:L42),IF(CONSUMERS!$D$19=$C$6,SUM(L$42:L43),SUM(L$42:L44)))) -> 0 | M100: =IF(CONSUMERS!$D$19=0,0,IF(CONSUMERS!$D$19=$C$5,SUM(M$42:M42),IF(CONSUMERS!$D$19=$C$6,SUM(M$42:M43),SUM(M$42:M44)))) -> 0 | N100: =IF(CONSUMERS!$D$19=0,0,IF(CONSUMERS!$D$19=$C$5,SUM(N$42:N42),IF(CONSUMERS!$D$19=$C$6,SUM(N$42:N43),SUM(N$42:N44)))) -> 0
D101: =IF(CONSUMERS!$D$19=0,0,IF(CONSUMERS!$D$19=$C$5,SUM(D48:D$48),IF(CONSUMERS!$D$19=$C$6,SUM(D$48:D49),SUM(D$48:D50)))) -> 0 | E101: =IF(CONSUMERS!$D$19=0,0,IF(CONSUMERS!$D$19=$C$5,SUM(E48:E$48),IF(CONSUMERS!$D$19=$C$6,SUM(E$48:E49),SUM(E$48:E50)))) -> 0 | F101: =IF(CONSUMERS!$D$19=0,0,IF(CONSUMERS!$D$19=$C$5,SUM(F48:F$48),IF(CONSUMERS!$D$19=$C$6,SUM(F$48:F49),SUM(F$48:F50)))) -> 0 | G101: =IF(CONSUMERS!$D$19=0,0,IF(CONSUMERS!$D$19=$C$5,SUM(G48:G$48),IF(CONSUMERS!$D$19=$C$6,SUM(G$48:G49),SUM(G$48:G50)))) -> 0 | H101: =IF(CONSUMERS!$D$19=0,0,IF(CONSUMERS!$D$19=$C$5,SUM(H48:H$48),IF(CONSUMERS!$D$19=$C$6,SUM(H$48:H49),SUM(H$48:H50)))) -> 0 | I101: =IF(CONSUMERS!$D$19=0,0,IF(CONSUMERS!$D$19=$C$5,SUM(I48:I$48),IF(CONSUMERS!$D$19=$C$6,SUM(I$48:I49),SUM(I$48:I50)))) -> 0 | J101: =IF(CONSUMERS!$D$19=0,0,IF(CONSUMERS!$D$19=$C$5,SUM(J48:J$48),IF(CONSUMERS!$D$19=$C$6,SUM(J$48:J49),SUM(J$48:J50)))) -> 0 | K101: =IF(CONSUMERS!$D$19=0,0,IF(CONSUMERS!$D$19=$C$5,SUM(K48:K$48),IF(CONSUMERS!$D$19=$C$6,SUM(K$48:K49),SUM(K$48:K50)))) -> 0 | L101: =IF(CONSUMERS!$D$19=0,0,IF(CONSUMERS!$D$19=$C$5,SUM(L48:L$48),IF(CONSUMERS!$D$19=$C$6,SUM(L$48:L49),SUM(L$48:L50)))) -> 0 | M101: =IF(CONSUMERS!$D$19=0,0,IF(CONSUMERS!$D$19=$C$5,SUM(M48:M$48),IF(CONSUMERS!$D$19=$C$6,SUM(M$48:M49),SUM(M$48:M50)))) -> 0 | N101: =IF(CONSUMERS!$D$19=0,0,IF(CONSUMERS!$D$19=$C$5,SUM(N48:N$48),IF(CONSUMERS!$D$19=$C$6,SUM(N$48:N49),SUM(N$48:N50)))) -> 0
D102: =IF(CONSUMERS!$D$19=0,0,IF(CONSUMERS!$D$19=$C$5,SUM(D$54:D54),IF(CONSUMERS!$D$19=$C$6,SUM(D$54:D55),SUM(D$54:D56)))) -> 0 | E102: =IF(CONSUMERS!$D$19=0,0,IF(CONSUMERS!$D$19=$C$5,SUM(E$54:E54),IF(CONSUMERS!$D$19=$C$6,SUM(E$54:E55),SUM(E$54:E56)))) -> 0 | F102: =IF(CONSUMERS!$D$19=0,0,IF(CONSUMERS!$D$19=$C$5,SUM(F$54:F54),IF(CONSUMERS!$D$19=$C$6,SUM(F$54:F55),SUM(F$54:F56)))) -> 0 | G102: =IF(CONSUMERS!$D$19=0,0,IF(CONSUMERS!$D$19=$C$5,SUM(G$54:G54),IF(CONSUMERS!$D$19=$C$6,SUM(G$54:G55),SUM(G$54:G56)))) -> 0 | H102: =IF(CONSUMERS!$D$19=0,0,IF(CONSUMERS!$D$19=$C$5,SUM(H$54:H54),IF(CONSUMERS!$D$19=$C$6,SUM(H$54:H55),SUM(H$54:H56)))) -> 0 | I102: =IF(CONSUMERS!$D$19=0,0,IF(CONSUMERS!$D$19=$C$5,SUM(I$54:I54),IF(CONSUMERS!$D$19=$C$6,SUM(I$54:I55),SUM(I$54:I56)))) -> 0 | J102: =IF(CONSUMERS!$D$19=0,0,IF(CONSUMERS!$D$19=$C$5,SUM(J$54:J54),IF(CONSUMERS!$D$19=$C$6,SUM(J$54:J55),SUM(J$54:J56)))) -> 0 | K102: =IF(CONSUMERS!$D$19=0,0,IF(CONSUMERS!$D$19=$C$5,SUM(K$54:K54),IF(CONSUMERS!$D$19=$C$6,SUM(K$54:K55),SUM(K$54:K56)))) -> 0 | L102: =IF(CONSUMERS!$D$19=0,0,IF(CONSUMERS!$D$19=$C$5,SUM(L$54:L54),IF(CONSUMERS!$D$19=$C$6,SUM(L$54:L55),SUM(L$54:L56)))) -> 0 | M102: =IF(CONSUMERS!$D$19=0,0,IF(CONSUMERS!$D$19=$C$5,SUM(M$54:M54),IF(CONSUMERS!$D$19=$C$6,SUM(M$54:M55),SUM(M$54:M56)))) -> 0 | N102: =IF(CONSUMERS!$D$19=0,0,IF(CONSUMERS!$D$19=$C$5,SUM(N$54:N54),IF(CONSUMERS!$D$19=$C$6,SUM(N$54:N55),SUM(N$54:N56)))) -> 0
D103: =IF(CONSUMERS!$D$19=0,0,IF(CONSUMERS!$D$19=$C$5,SUM(D$60:D60),IF(CONSUMERS!$D$19=$C$6,SUM(D$60:D61),SUM(D$60:D62)))) -> 0 | E103: =IF(CONSUMERS!$D$19=0,0,IF(CONSUMERS!$D$19=$C$5,SUM(E$60:E60),IF(CONSUMERS!$D$19=$C$6,SUM(E$60:E61),SUM(E$60:E62)))) -> 0 | F103: =IF(CONSUMERS!$D$19=0,0,IF(CONSUMERS!$D$19=$C$5,SUM(F$60:F60),IF(CONSUMERS!$D$19=$C$6,SUM(F$60:F61),SUM(F$60:F62)))) -> 0 | G103: =IF(CONSUMERS!$D$19=0,0,IF(CONSUMERS!$D$19=$C$5,SUM(G$60:G60),IF(CONSUMERS!$D$19=$C$6,SUM(G$60:G61),SUM(G$60:G62)))) -> 0 | H103: =IF(CONSUMERS!$D$19=0,0,IF(CONSUMERS!$D$19=$C$5,SUM(H$60:H60),IF(CONSUMERS!$D$19=$C$6,SUM(H$60:H61),SUM(H$60:H62)))) -> 0 | I103: =IF(CONSUMERS!$D$19=0,0,IF(CONSUMERS!$D$19=$C$5,SUM(I$60:I60),IF(CONSUMERS!$D$19=$C$6,SUM(I$60:I61),SUM(I$60:I62)))) -> 0 | J103: =IF(CONSUMERS!$D$19=0,0,IF(CONSUMERS!$D$19=$C$5,SUM(J$60:J60),IF(CONSUMERS!$D$19=$C$6,SUM(J$60:J61),SUM(J$60:J62)))) -> 0 | K103: =IF(CONSUMERS!$D$19=0,0,IF(CONSUMERS!$D$19=$C$5,SUM(K$60:K60),IF(CONSUMERS!$D$19=$C$6,SUM(K$60:K61),SUM(K$60:K62)))) -> 0 | L103: =IF(CONSUMERS!$D$19=0,0,IF(CONSUMERS!$D$19=$C$5,SUM(L$60:L60),IF(CONSUMERS!$D$19=$C$6,SUM(L$60:L61),SUM(L$60:L62)))) -> 0 | M103: =IF(CONSUMERS!$D$19=0,0,IF(CONSUMERS!$D$19=$C$5,SUM(M$60:M60),IF(CONSUMERS!$D$19=$C$6,SUM(M$60:M61),SUM(M$60:M62)))) -> 0 | N103: =IF(CONSUMERS!$D$19=0,0,IF(CONSUMERS!$D$19=$C$5,SUM(N$60:N60),IF(CONSUMERS!$D$19=$C$6,SUM(N$60:N61),SUM(N$60:N62)))) -> 0
D104: =IF(CONSUMERS!$D$19=0,0,IF(CONSUMERS!$D$19=$C$5,SUM(D$66:D66),IF(CONSUMERS!$D$19=$C$6,SUM(D$66:D67),SUM(D$66:D68)))) -> 0 | E104: =IF(CONSUMERS!$D$19=0,0,IF(CONSUMERS!$D$19=$C$5,SUM(E$66:E66),IF(CONSUMERS!$D$19=$C$6,SUM(E$66:E67),SUM(E$66:E68)))) -> 0 | F104: =IF(CONSUMERS!$D$19=0,0,IF(CONSUMERS!$D$19=$C$5,SUM(F$66:F66),IF(CONSUMERS!$D$19=$C$6,SUM(F$66:F67),SUM(F$66:F68)))) -> 0 | G104: =IF(CONSUMERS!$D$19=0,0,IF(CONSUMERS!$D$19=$C$5,SUM(G$66:G66),IF(CONSUMERS!$D$19=$C$6,SUM(G$66:G67),SUM(G$66:G68)))) -> 0 | H104: =IF(CONSUMERS!$D$19=0,0,IF(CONSUMERS!$D$19=$C$5,SUM(H$66:H66),IF(CONSUMERS!$D$19=$C$6,SUM(H$66:H67),SUM(H$66:H68)))) -> 0 | I104: =IF(CONSUMERS!$D$19=0,0,IF(CONSUMERS!$D$19=$C$5,SUM(I$66:I66),IF(CONSUMERS!$D$19=$C$6,SUM(I$66:I67),SUM(I$66:I68)))) -> 0 | J104: =IF(CONSUMERS!$D$19=0,0,IF(CONSUMERS!$D$19=$C$5,SUM(J$66:J66),IF(CONSUMERS!$D$19=$C$6,SUM(J$66:J67),SUM(J$66:J68)))) -> 0 | K104: =IF(CONSUMERS!$D$19=0,0,IF(CONSUMERS!$D$19=$C$5,SUM(K$66:K66),IF(CONSUMERS!$D$19=$C$6,SUM(K$66:K67),SUM(K$66:K68)))) -> 0 | L104: =IF(CONSUMERS!$D$19=0,0,IF(CONSUMERS!$D$19=$C$5,SUM(L$66:L66),IF(CONSUMERS!$D$19=$C$6,SUM(L$66:L67),SUM(L$66:L68)))) -> 0 | M104: =IF(CONSUMERS!$D$19=0,0,IF(CONSUMERS!$D$19=$C$5,SUM(M$66:M66),IF(CONSUMERS!$D$19=$C$6,SUM(M$66:M67),SUM(M$66:M68)))) -> 0 | N104: =IF(CONSUMERS!$D$19=0,0,IF(CONSUMERS!$D$19=$C$5,SUM(N$66:N66),IF(CONSUMERS!$D$19=$C$6,SUM(N$66:N67),SUM(N$66:N68)))) -> 0
A105: Total | D105: =SUM(D97:D104) -> 0 | E105: =SUM(E97:E104) -> 0 | F105: 0 | G105: 0 | H105: 0 | I105: 0 | J105: 0 | K105: 0 | L105: 0 | M105: 0 | N105: 0
C106: check=0 | D106: =D105-'e-inc'!D116 -> 0 | E106: =E105-'e-inc'!E116 -> 0 | F106: =F105-'e-inc'!F116 -> 0 | G106: =G105-'e-inc'!G116 -> 0 | H106: =H105-'e-inc'!H116 -> 0 | I106: =I105-'e-inc'!I116 -> 0 | J106: =J105-'e-inc'!J116 -> 0 | K106: =K105-'e-inc'!K116 -> 0 | L106: =L105-'e-inc'!L116 -> 0 | M106: =M105-'e-inc'!M116 -> 0 | N106: =N105-'e-inc'!N116 -> 0
A107: Cus
A108: 0-R1600
A109: =A97 -> No service | D109: =D24 ->  | E109: =E24 -> 
A110: =A98 ->  | D110: =D30 ->  | E110: =E30 -> 
D111: =D36 ->  | E111: =E36 -> 
D112: =D42 ->  | E112: =E42 -> 
D113: =D48 ->  | E113: =E48 -> 
D114: =D54 ->  | E114: =E54 -> 
D115: =D60 ->  | E115: =E60 -> 
D116: =D66 ->  | E116: =E66 -> 
A117: Total | D117: =SUM(D109:D116) ->  | E117: =SUM(E109:E116) -> 
A119: R1600-R3200
A120: =A109 -> No service | D120: =D25 ->  | E120: =E25 -> 
A121: =A110 ->  | D121: =D31 ->  | E121: =E31 -> 
D122: =D37 ->  | E122: =E37 -> 
D123: =D43 ->  | E123: =E43 -> 
D124: =D49 ->  | E124: =E49 -> 
D125: =D55 ->  | E125: =E55 -> 
D126: =D61 ->  | E126: =E61 -> 
D127: =D67 ->  | E127: =E67 -> 
A128: Total | D128: =SUM(D120:D127) ->  | E128: =SUM(E120:E127) -> 
A130: R3200-R6400
A131: =A120 -> No service | D131: =D26 ->  | E131: =E26 -> 
A132: =A121 ->  | D132: =D32 ->  | E132: =E32 -> 
D133: =D38 ->  | E133: =E38 -> 
D134: =D44 ->  | E134: =E44 -> 
D135: =D50 ->  | E135: =E50 -> 
D136: =D56 ->  | E136: =E56 -> 
D137: =D62 ->  | E137: =E62 -> 
D138: =D68 ->  | E138: =E68 -> 
A139: =A128 -> Total | D139: =SUM(D131:D138) ->  | E139: =SUM(E131:E138) -> 
A141: >R6400
A142: =A131 -> No service | D142: =D27 -> 0 | E142: =E27 -> 
A143: =A132 ->  | D143: =D33 ->  | E143: =E33 -> 
D144: =D39 ->  | E144: =E39 -> 
D145: =D45 ->  | E145: =E45 -> 
D146: =D51 ->  | E146: =E51 -> 
D147: =D57 ->  | E147: =E57 -> 
D148: =D63 ->  | E148: =E63 -> 
D149: =D69 ->  | E149: =E69 -> 
A150: Total | D150: =SUM(D142:D149) ->  | E150: =SUM(E142:E149) -> 
C151: check=0 | D151: =SUM(D109:D116,D120:D127,D131:D138,D142:D149)-D21 ->  | E151: =SUM(E109:E116,E120:E127,E131:E138,E142:E149)-E21 -> 
A153: ALLOCATE INCOME GROUPS TO TARIFF CATEGORIES
D154: =Base_year -> 0 | E154: =D154+1 -> 1 | F154: =E154+1 -> 2 | G154: 3 | H154: 4 | I154: 5 | J154: 6 | K154: 7 | L154: 8 | M154: 9 | N154: 10
A155: Tariff categories
B156: =TARIFFS!B23 -> No service | D156: ='e-waste'!C15 ->  | E156: ='e-waste'!D15 ->  | F156: ='e-waste'!E15 ->  | G156: ='e-waste'!F15 ->  | H156: ='e-waste'!G15 ->  | I156: ='e-waste'!H15 ->  | J156: ='e-waste'!I15 ->  | K156: ='e-waste'!J15 ->  | L156: ='e-waste'!K15 ->  | M156: ='e-waste'!L15 ->  | N156: ='e-waste'!M15 -> 
B157: =TARIFFS!B24 ->  | D157: ='e-waste'!C16 -> 0 | E157: ='e-waste'!D16 ->  | F157: ='e-waste'!E16 ->  | G157: ='e-waste'!F16 ->  | H157: ='e-waste'!G16 ->  | I157: ='e-waste'!H16 ->  | J157: ='e-waste'!I16 ->  | K157: ='e-waste'!J16 ->  | L157: ='e-waste'!K16 ->  | M157: ='e-waste'!L16 ->  | N157: ='e-waste'!M16 -> 
B158: =TARIFFS!B25 ->  | D158: ='e-waste'!C17 -> 0 | E158: ='e-waste'!D17 ->  | F158: ='e-waste'!E17 ->  | G158: ='e-waste'!F17 ->  | H158: ='e-waste'!G17 ->  | I158: ='e-waste'!H17 ->  | J158: ='e-waste'!I17 ->  | K158: ='e-waste'!J17 ->  | L158: ='e-waste'!K17 ->  | M158: ='e-waste'!L17 ->  | N158: ='e-waste'!M17 -> 
B159: =TARIFFS!B26 ->  | D159: ='e-waste'!C18 -> 0 | E159: ='e-waste'!D18 ->  | F159: ='e-waste'!E18 ->  | G159: ='e-waste'!F18 ->  | H159: ='e-waste'!G18 ->  | I159: ='e-waste'!H18 ->  | J159: ='e-waste'!I18 ->  | K159: ='e-waste'!J18 ->  | L159: ='e-waste'!K18 ->  | M159: ='e-waste'!L18 ->  | N159: ='e-waste'!M18 -> 
B160: =TARIFFS!B27 ->  | D160: ='e-waste'!C19 -> 0 | E160: ='e-waste'!D19 ->  | F160: ='e-waste'!E19 ->  | G160: ='e-waste'!F19 ->  | H160: ='e-waste'!G19 ->  | I160: ='e-waste'!H19 ->  | J160: ='e-waste'!I19 ->  | K160: ='e-waste'!J19 ->  | L160: ='e-waste'!K19 ->  | M160: ='e-waste'!L19 ->  | N160: ='e-waste'!M19 -> 
B161: =TARIFFS!B28 ->  | D161: ='e-waste'!C20 -> 0 | E161: ='e-waste'!D20 ->  | F161: ='e-waste'!E20 ->  | G161: ='e-waste'!F20 ->  | H161: ='e-waste'!G20 ->  | I161: ='e-waste'!H20 ->  | J161: ='e-waste'!I20 ->  | K161: ='e-waste'!J20 ->  | L161: ='e-waste'!K20 ->  | M161: ='e-waste'!L20 ->  | N161: ='e-waste'!M20 -> 
B162: =TARIFFS!B29 ->  | D162: ='e-waste'!C21 -> 0 | E162: ='e-waste'!D21 ->  | F162: ='e-waste'!E21 ->  | G162: ='e-waste'!F21 ->  | H162: ='e-waste'!G21 ->  | I162: ='e-waste'!H21 ->  | J162: ='e-waste'!I21 ->  | K162: ='e-waste'!J21 ->  | L162: ='e-waste'!K21 ->  | M162: ='e-waste'!L21 ->  | N162: ='e-waste'!M21 -> 
B163: =TARIFFS!B30 ->  | D163: ='e-waste'!C22 -> 0 | E163: ='e-waste'!D22 ->  | F163: ='e-waste'!E22 ->  | G163: ='e-waste'!F22 ->  | H163: ='e-waste'!G22 ->  | I163: ='e-waste'!H22 ->  | J163: ='e-waste'!I22 ->  | K163: ='e-waste'!J22 ->  | L163: ='e-waste'!K22 ->  | M163: ='e-waste'!L22 ->  | N163: ='e-waste'!M22 -> 
B164: Total | D164: =SUM(D156:D163) ->  | E164: =SUM(E156:E163) -> 
A166: Divide income groups into service levels
B167: =B156 -> No service | C167: =C5 -> 1599 | D167: =IF((D156-D170)>D5,D5,D156-D170) -> 
C168: =C6 -> 3199 | D168: =IF(D156>(D167+D170),IF((D156-(D167+D170))>D6,D6,D156-(D167+D170)),0) -> 
C169: 6399 | D169: =IF(D156>(D167+D168+D170),IF((D156-(D167+D168+D170))>D7,D7,D156-(D167+D168+D170)),0) -> 
C170: more | D170: ='SERVICE LEVELS'!$E$6 -> 0 | E170: ='SERVICE LEVELS'!$E$6 -> 0 | F170: ='SERVICE LEVELS'!$E$6 -> 0 | G170: ='SERVICE LEVELS'!$E$6 -> 0 | H170: ='SERVICE LEVELS'!$E$6 -> 0 | I170: ='SERVICE LEVELS'!$E$6 -> 0 | J170: ='SERVICE LEVELS'!$E$6 -> 0 | K170: ='SERVICE LEVELS'!$E$6 -> 0 | L170: ='SERVICE LEVELS'!$E$6 -> 0 | M170: ='SERVICE LEVELS'!$E$6 -> 0 | N170: ='SERVICE LEVELS'!$E$6 -> 0
C171: Total | D171: =SUM(D167:D170) ->  | E171: =SUM(E167:E170) ->  | N171: =SUM(N167:N170) -> 
C172: check=0 | D172: =D171-D156 ->  | E172: =E171-E156 ->  | N172: =N171-N156 -> 
B173: =B157 ->  | C173: =C5 -> 1599 | D173: =IF((D$5-D$167)>D157,D157,D$5-D$167) -> 
C174: =C6 -> 3199 | D174: =IF(D157-D173>0,IF((D157-D173)>(D6-D168),D6-D168,D157-D173),0) -> 
C175: 6399 | D175: =IF(D157-(D174+D173)>0,IF((D157-(D174+D173))>(D7-D169),D7-D169,D157-(D174+D173)),0) -> 
C176: more | D176: =D157-SUM(D173:D175) ->  | E176: =E157-SUM(E173:E175) -> 
C177: =C9 -> Total | D177: =SUM(D173:D176) ->  | E177: =SUM(E173:E176) -> 
C178: check=0 | D178: =D177-D157 ->  | E178: =E177-E157 ->  | N178: =N177-N157 -> 
B179: =B158 ->  | C179: =C5 -> 1599 | D179: =IF((D5-(D167+D173))>D$158,D$158,D5-(D167+D173)) -> 
C180: =C6 -> 3199 | D180: =IF(D$158-D$179>0,IF((D$158-D$179)>(D6-(D168+D174)),D6-(D168+D174),D$158-D$179),0) -> 
C181: 6399 | D181: =IF(D$158-(D179+D180)>0,IF((D$158-(D$179+D180))>(D7-(D169+D175)),D7-(D169+D175),D$158-(D$179+D180)),0) -> 
C182: more | D182: =D158-SUM(D179:D181) ->  | E182: =E158-SUM(E179:E181) -> 
C183: Total | D183: =SUM(D179:D182) ->  | E183: =SUM(E179:E182) ->  | N183: =SUM(N179:N182) -> 
C184: check=0 | D184: =D158-D183 ->  | E184: =E158-E183 ->  | N184: =N158-N183 -> 
B185: =B159 ->  | C185: =C5 -> 1599 | D185: =IF((D5-(D167+D173+D179))>D$159,D$159,D5-(D167+D173+D179)) -> 
C186: =C6 -> 3199 | D186: =IF(D$159-D$185>0,IF((D$159-D$185)>(D6-(D168+D174+D180)),D6-(D168+D174+D180),D$159-D$185),0) -> 
C187: 6399 | D187: =IF(D$159-(D$185+D186)>0,IF((D$159-(D$185+D186))>(D7-(D169+D175+D181)),D7-(D169+D175+D181),D$159-(D$185+D186)),0) -> 
C188: more | D188: =D159-SUM(D185:D187) ->  | E188: =E159-SUM(E185:E187) -> 
C189: Total | D189: =SUM(D185:D188) ->  | E189: =SUM(E185:E188) ->  | N189: =SUM(N185:N188) -> 
C190: check=0 | D190: =D159-D189 ->  | E190: =E159-E189 ->  | N190: =N159-N189 -> 
B191: =B160 ->  | C191: =C5 -> 1599 | D191: =IF((D5-(D167+D173+D179+D185))>D$160,D$160,D5-(D167+D173+D179+D185)) -> 
C192: =C6 -> 3199 | D192: =IF(D$160-D$191>0,IF((D$160-D$191)>(D6-(D168+D174+D180+D186)),D6-(D168+D174+D180+D186),D$160-D$191),0) -> 
C193: 6399 | D193: =IF(D$160-(D$191+D192)>0,IF((D$160-(D$191+D192))>(D7-(D169+D175+D181+D187)),D7-(D169+D175+D181+D187),D$160-(D$191+D192)),0) -> 
C194: more | D194: =D160-SUM(D191:D193) ->  | E194: =E160-SUM(E191:E193) -> 
C195: Total | D195: =SUM(D191:D194) ->  | E195: =SUM(E191:E194) ->  | N195: =SUM(N191:N194) -> 
C196: check=0 | D196: =D160-D195 ->  | E196: =E160-E195 ->  | N196: =N160-N195 -> 
B197: =B161 ->  | C197: =C5 -> 1599 | D197: =IF((D5-(D167+D173+D179+D185+D191))>D$161,D$161,D5-(D167+D173+D179+D185+D191)) -> 
C198: =C6 -> 3199 | D198: =IF(D$161-D$197>0,IF((D$161-D$197)>(D6-(D168+D174+D180+D186+D192)),D6-(D168+D174+D180+D186+D192),D$161-D$197),0) -> 
C199: 6399 | D199: =IF(D$161-(D$197+D198)>0,IF((D$161-(D$197+D198))>(D7-(D169+D175+D181+D187+D193)),D7-(D169+D175+D181+D187+D193),D$161-(D$197+D198)),0) -> 
C200: more | D200: =D161-SUM(D197:D199) ->  | E200: =E161-SUM(E197:E199) -> 
C201: Total | D201: =SUM(D197:D200) ->  | E201: =SUM(E197:E200) -> 
C202: check=0 | D202: =D161-D201 ->  | E202: =E161-E201 ->  | N202: =N161-N201 -> 
B203: =B162 ->  | C203: =C5 -> 1599 | D203: =IF((D5-(D167+D173+D179+D185+D191+D197))>D$162,D$162,D5-(D167+D173+D179+D185+D191+D197)) -> 
C204: =C6 -> 3199 | D204: =IF(D$162-D$203>0,IF((D$162-D$203)>(D6-(D168+D174+D180+D186+D192+D198)),D6-(D168+D174+D180+D186+D192+D198),D$162-D$203),0) -> 
C205: 6399 | D205: =IF(D$162-(D$203+D204)>0,IF((D$162-(D$203+D204))>(D7-(D169+D175+D181+D187+D193+D199)),D7-(D169+D175+D181+D187+D193+D199),D$162-(D$203+D204)),0) -> 
C206: more | D206: =D162-SUM(D203:D205) ->  | E206: =E162-SUM(E203:E205) -> 
C207: Total | D207: =SUM(D203:D206) ->  | E207: =SUM(E203:E206) -> 
C208: check=0 | D208: =D162-D207 ->  | E208: =E162-E207 ->  | N208: =N162-N207 -> 
B209: =B163 ->  | C209: =C272 -> 1599 | D209: =IF((D5-(D167+D173+D179+D185+D191+D197+D203))>D$163,D$163,D5-(D167+D173+D179+D185+D191+D197+D203)) -> 
C210: =C273 -> 3199 | D210: =IF(D$163-D$209>0,IF((D$163-D$209)>(D6-(D168+D174+D180+D186+D192+D198+D204)),D6-(D168+D174+D180+D186+D192+D198+D204),D$163-D$209),0) -> 
C211: 6399 | D211: =IF(D$163-(D$209+D210)>0,IF((D$163-(D$209+D210))>(D7-(D169+D175+D181+D187+D193+D199+D205)),D7-(D169+D175+D181+D187+D193+D199+D205),D$163-(D$209+D210)),0) -> 
... 55 more rows

Sheet e-capex
B1: CAPITAL EXPENDITURE | F1: All monetary values in REAL terms
A2: Key: | B2: from user input sheets
D4: =Base_year -> 0 | E4: =Base_year+1 -> 1 | F4: =Base_year+2 -> 2 | G4: =Base_year+3 -> 3 | H4: =Base_year+4 -> 4 | I4: =Base_year+5 -> 5 | J4: =Base_year+6 -> 6 | K4: =Base_year+7 -> 7 | L4: =Base_year+8 -> 8 | M4: =Base_year+9 -> 9 | N4: =Base_year+10 -> 10 | O4: average
B5: Capital Costs
B6: Remaining landfill airspace at beginning of year | C6: m3 | D6: ='WASTE FACILITIES'!C32 -> 0 | E6: =D8+D9 ->  | F6: =E8+E9 ->  | O6: =AVERAGE(D6:N6) -> 
B7: Landfill volume used during the year | C7: m3 | D7: ='e-waste'!C352 ->  | E7: ='e-waste'!D352 ->  | F7: ='e-waste'!E352 ->  | G7: ='e-waste'!F352 ->  | H7: ='e-waste'!G352 ->  | I7: ='e-waste'!H352 ->  | J7: ='e-waste'!I352 ->  | K7: ='e-waste'!J352 ->  | L7: ='e-waste'!K352 ->  | M7: ='e-waste'!L352 ->  | N7: ='e-waste'!M352 -> 
B8: Landfill airspace at end of year | C8: m3 | D8: =D6-D7 ->  | E8: =E6-E7 -> 
B9: Landfill airspace required | C9: m3 | D9: =IF(D8<0,-D8,0) ->  | E9: =IF(E8<0,-E8,0) -> 
B10: Unit cost of landfill airspace | C10: R/m3 | D10: =IF('unit costs'!$D$56="",'unit costs'!$C$56,'unit costs'!$D$56)+IF('unit costs'!$D$57="",'unit costs'!$C$57,'unit costs'!$D$57) -> 25.2 | E10: =IF('unit costs'!$D$56="",'unit costs'!$C$56,'unit costs'!$D$56)+IF('unit costs'!$D$57="",'unit costs'!$C$57,'unit costs'!$D$57) -> 25.2 | F10: =IF('unit costs'!$D$56="",'unit costs'!$C$56,'unit costs'!$D$56)+IF('unit costs'!$D$57="",'unit costs'!$C$57,'unit costs'!$D$57) -> 25.2 | G10: =IF('unit costs'!$D$56="",'unit costs'!$C$56,'unit costs'!$D$56)+IF('unit costs'!$D$57="",'unit costs'!$C$57,'unit costs'!$D$57) -> 25.2 | H10: =IF('unit costs'!$D$56="",'unit costs'!$C$56,'unit costs'!$D$56)+IF('unit costs'!$D$57="",'unit costs'!$C$57,'unit costs'!$D$57) -> 25.2 | I10: =IF('unit costs'!$D$56="",'unit costs'!$C$56,'unit costs'!$D$56)+IF('unit costs'!$D$57="",'unit costs'!$C$57,'unit costs'!$D$57) -> 25.2 | J10: =IF('unit costs'!$D$56="",'unit costs'!$C$56,'unit costs'!$D$56)+IF('unit costs'!$D$57="",'unit costs'!$C$57,'unit costs'!$D$57) -> 25.2 | K10: =IF('unit costs'!$D$56="",'unit costs'!$C$56,'unit costs'!$D$56)+IF('unit costs'!$D$57="",'unit costs'!$C$57,'unit costs'!$D$57) -> 25.2 | L10: =IF('unit costs'!$D$56="",'unit costs'!$C$56,'unit costs'!$D$56)+IF('unit costs'!$D$57="",'unit costs'!$C$57,'unit costs'!$D$57) -> 25.2 | M10: =IF('unit costs'!$D$56="",'unit costs'!$C$56,'unit costs'!$D$56)+IF('unit costs'!$D$57="",'unit costs'!$C$57,'unit costs'!$D$57) -> 25.2 | N10: =IF('unit costs'!$D$56="",'unit costs'!$C$56,'unit costs'!$D$56)+IF('unit costs'!$D$57="",'unit costs'!$C$57,'unit costs'!$D$57) -> 25.2
B11: Capital cost of landfill airspace | C11: R'000/annum | D11: =D9*D10/1000 ->  | E11: =E9*E10/1000 -> 
B13: Vehicles | C13: R'000/annum | E13: =E34-D34 ->  | F13: =F34-E34 -> 
B14: Transfer stations | C14: R'000/annum | E14: =IF('e-waste'!D226<0,0,'e-waste'!D226)*IF('unit costs'!$D$53="",'unit costs'!$C$53,'unit costs'!$D$53)/1000 ->  | F14: =IF('e-waste'!E226<0,0,'e-waste'!E226)*IF('unit costs'!$D$53="",'unit costs'!$C$53,'unit costs'!$D$53)/1000 ->  | G14: =IF('e-waste'!F226<0,0,'e-waste'!F226)*IF('unit costs'!$D$53="",'unit costs'!$C$53,'unit costs'!$D$53)/1000 ->  | H14: =IF('e-waste'!G226<0,0,'e-waste'!G226)*IF('unit costs'!$D$53="",'unit costs'!$C$53,'unit costs'!$D$53)/1000 ->  | I14: =IF('e-waste'!H226<0,0,'e-waste'!H226)*IF('unit costs'!$D$53="",'unit costs'!$C$53,'unit costs'!$D$53)/1000 ->  | J14: =IF('e-waste'!I226<0,0,'e-waste'!I226)*IF('unit costs'!$D$53="",'unit costs'!$C$53,'unit costs'!$D$53)/1000 ->  | K14: =IF('e-waste'!J226<0,0,'e-waste'!J226)*IF('unit costs'!$D$53="",'unit costs'!$C$53,'unit costs'!$D$53)/1000 ->  | L14: =IF('e-waste'!K226<0,0,'e-waste'!K226)*IF('unit costs'!$D$53="",'unit costs'!$C$53,'unit costs'!$D$53)/1000 ->  | M14: =IF('e-waste'!L226<0,0,'e-waste'!L226)*IF('unit costs'!$D$53="",'unit costs'!$C$53,'unit costs'!$D$53)/1000 ->  | N14: =IF('e-waste'!M226<0,0,'e-waste'!M226)*IF('unit costs'!$D$53="",'unit costs'!$C$53,'unit costs'!$D$53)/1000 -> 
B15: Reclamation Facility | C15: R'000/annum | E15: =IF('e-waste'!D311<0,0,'e-waste'!D311)*IF('unit costs'!$D$54="",'unit costs'!$C$54,'unit costs'!$D$54)/1000 ->  | F15: =IF('e-waste'!E311<0,0,'e-waste'!E311)*IF('unit costs'!$D$54="",'unit costs'!$C$54,'unit costs'!$D$54)/1000 ->  | G15: =IF('e-waste'!F311<0,0,'e-waste'!F311)*IF('unit costs'!$D$54="",'unit costs'!$C$54,'unit costs'!$D$54)/1000 ->  | H15: =IF('e-waste'!G311<0,0,'e-waste'!G311)*IF('unit costs'!$D$54="",'unit costs'!$C$54,'unit costs'!$D$54)/1000 ->  | I15: =IF('e-waste'!H311<0,0,'e-waste'!H311)*IF('unit costs'!$D$54="",'unit costs'!$C$54,'unit costs'!$D$54)/1000 ->  | J15: =IF('e-waste'!I311<0,0,'e-waste'!I311)*IF('unit costs'!$D$54="",'unit costs'!$C$54,'unit costs'!$D$54)/1000 ->  | K15: =IF('e-waste'!J311<0,0,'e-waste'!J311)*IF('unit costs'!$D$54="",'unit costs'!$C$54,'unit costs'!$D$54)/1000 ->  | L15: =IF('e-waste'!K311<0,0,'e-waste'!K311)*IF('unit costs'!$D$54="",'unit costs'!$C$54,'unit costs'!$D$54)/1000 ->  | M15: =IF('e-waste'!L311<0,0,'e-waste'!L311)*IF('unit costs'!$D$54="",'unit costs'!$C$54,'unit costs'!$D$54)/1000 ->  | N15: =IF('e-waste'!M311<0,0,'e-waste'!M311)*IF('unit costs'!$D$54="",'unit costs'!$C$54,'unit costs'!$D$54)/1000 -> 
B16: Waste to energy | C16: R'000/annum | E16: =IF('e-waste'!D336<0,0,'e-waste'!D336)*IF('unit costs'!$D$59="",'unit costs'!$C$59,'unit costs'!$D$59)/1000 ->  | F16: =IF('e-waste'!E336<0,0,'e-waste'!E336)*IF('unit costs'!$D$59="",'unit costs'!$C$59,'unit costs'!$D$59)/1000 ->  | G16: =IF('e-waste'!F336<0,0,'e-waste'!F336)*IF('unit costs'!$D$59="",'unit costs'!$C$59,'unit costs'!$D$59)/1000 ->  | H16: =IF('e-waste'!G336<0,0,'e-waste'!G336)*IF('unit costs'!$D$59="",'unit costs'!$C$59,'unit costs'!$D$59)/1000 ->  | I16: =IF('e-waste'!H336<0,0,'e-waste'!H336)*IF('unit costs'!$D$59="",'unit costs'!$C$59,'unit costs'!$D$59)/1000 ->  | J16: =IF('e-waste'!I336<0,0,'e-waste'!I336)*IF('unit costs'!$D$59="",'unit costs'!$C$59,'unit costs'!$D$59)/1000 ->  | K16: =IF('e-waste'!J336<0,0,'e-waste'!J336)*IF('unit costs'!$D$59="",'unit costs'!$C$59,'unit costs'!$D$59)/1000 ->  | L16: =IF('e-waste'!K336<0,0,'e-waste'!K336)*IF('unit costs'!$D$59="",'unit costs'!$C$59,'unit costs'!$D$59)/1000 ->  | M16: =IF('e-waste'!L336<0,0,'e-waste'!L336)*IF('unit costs'!$D$59="",'unit costs'!$C$59,'unit costs'!$D$59)/1000 ->  | N16: =IF('e-waste'!M336<0,0,'e-waste'!M336)*IF('unit costs'!$D$59="",'unit costs'!$C$59,'unit costs'!$D$59)/1000 -> 
B17: Landfills | C17: R'000/annum | D17: =D11 ->  | E17: =E11 -> 
B18: Landfill gas to energy | C18: R'000/annum | E18: =IF('e-waste'!D378<0,0,'e-waste'!D378)*1000000*IF('unit costs'!$D$58="",'unit costs'!$C$58,'unit costs'!$D$58)/1000 -> 0 | F18: =IF('e-waste'!E378<0,0,'e-waste'!E378)*1000000*IF('unit costs'!$D$58="",'unit costs'!$C$58,'unit costs'!$D$58)/1000 -> 0 | G18: =IF('e-waste'!F378<0,0,'e-waste'!F378)*1000000*IF('unit costs'!$D$58="",'unit costs'!$C$58,'unit costs'!$D$58)/1000 -> 0 | H18: =IF('e-waste'!G378<0,0,'e-waste'!G378)*1000000*IF('unit costs'!$D$58="",'unit costs'!$C$58,'unit costs'!$D$58)/1000 -> 0 | I18: =IF('e-waste'!H378<0,0,'e-waste'!H378)*1000000*IF('unit costs'!$D$58="",'unit costs'!$C$58,'unit costs'!$D$58)/1000 -> 0 | J18: =IF('e-waste'!I378<0,0,'e-waste'!I378)*1000000*IF('unit costs'!$D$58="",'unit costs'!$C$58,'unit costs'!$D$58)/1000 -> 0 | K18: =IF('e-waste'!J378<0,0,'e-waste'!J378)*1000000*IF('unit costs'!$D$58="",'unit costs'!$C$58,'unit costs'!$D$58)/1000 -> 0 | L18: =IF('e-waste'!K378<0,0,'e-waste'!K378)*1000000*IF('unit costs'!$D$58="",'unit costs'!$C$58,'unit costs'!$D$58)/1000 -> 0 | M18: =IF('e-waste'!L378<0,0,'e-waste'!L378)*1000000*IF('unit costs'!$D$58="",'unit costs'!$C$58,'unit costs'!$D$58)/1000 -> 0 | N18: =IF('e-waste'!M378<0,0,'e-waste'!M378)*1000000*IF('unit costs'!$D$58="",'unit costs'!$C$58,'unit costs'!$D$58)/1000 -> 0 | O18: 0
B19: Rehabilitation of existing infrastructure | C19: R'000/annum | D19: =$F$50 -> 
B20: Total capital expenditure | C20: R'000/annum | D20: =SUM(D13:D19) ->  | E20: =SUM(E13:E19) ->  | O20: =AVERAGE(D20:N20) -> 
B22: Capital Finance
F23: 3-year MTEF
B24: Capex funding through grants | C24: % | F24: =targets!C89 ->  | G24: =($I24-$F24)/3+F24 ->  | H24: =($I24-$F24)/3+G24 ->  | I24: =IF(targets!D89="",targets!C89,targets!C89) ->  | J24: =($N24-$I24)/5+I24 ->  | K24: =($N24-$I24)/5+J24 ->  | N24: =IF(targets!E89="",targets!C89,targets!E89) -> 
B25: Own capital reserves | C25: % | F25: =targets!C90 ->  | G25: =($I25-$F25)/3+F25 ->  | H25: =($I25-$F25)/3+G25 ->  | I25: =IF(targets!D90="",targets!C90,targets!C90) ->  | J25: =($N25-$I25)/5+I25 ->  | N25: =IF(targets!E90="",targets!C90,targets!E90) -> 
B26: Loan requirement | C26: % | F26: =1-SUM(F24:F25) ->  | G26: =1-SUM(G24:G25) -> 
B28: =B24 -> Capex funding through grants | C28: R'000/annum | D28: =SUM(' FINANCE'!C20:C21) -> 0 | E28: =SUM(' FINANCE'!D20:D21) -> 0 | F28: =SUM(' FINANCE'!E20:E21) -> 0 | G28: =G24*G$20 ->  | H28: =H24*H$20 -> 
B29: =B25 -> Own capital reserves | C29: R'000/annum | D29: =' FINANCE'!C22 -> 0 | E29: =' FINANCE'!D22 -> 0 | F29: =' FINANCE'!E22 -> 0 | G29: =G25*G$20 ->  | H29: =H25*H$20 -> 
B30: =B26 -> Loan requirement | C30: R'000/annum | D30: =D20-SUM(D28:D29) ->  | E30: =E20-SUM(E28:E29) -> 
B32: Assest values (Current Replacement Cost)
B33: R'000 | D33: =Base_year -> 0 | E33: =D33+1 -> 1 | F33: =E33+1 -> 2 | G33: 3 | H33: 4 | I33: 5 | J33: 6 | K33: 7 | L33: 8 | M33: 9 | N33: 10
B34: Vehicles | C34: R'000 | D34: =IF('WASTE FACILITIES'!C4="leased",0,'WASTE FACILITIES'!C5) -> 0 | E34: =D34*(1+IF('e-waste'!D186<0,0,'e-waste'!D186)) ->  | F34: =E34*(1+IF('e-waste'!E186<0,0,'e-waste'!E186)) ->  | G34: =F34*(1+IF('e-waste'!F186<0,0,'e-waste'!F186)) ->  | H34: =G34*(1+IF('e-waste'!G186<0,0,'e-waste'!G186)) ->  | I34: =H34*(1+IF('e-waste'!H186<0,0,'e-waste'!H186)) ->  | J34: =I34*(1+IF('e-waste'!I186<0,0,'e-waste'!I186)) ->  | K34: =J34*(1+IF('e-waste'!J186<0,0,'e-waste'!J186)) ->  | L34: =K34*(1+IF('e-waste'!K186<0,0,'e-waste'!K186)) ->  | M34: =L34*(1+IF('e-waste'!L186<0,0,'e-waste'!L186)) ->  | N34: =M34*(1+IF('e-waste'!M186<0,0,'e-waste'!M186)) -> 
B35: Transfer stations | C35: R'000 | D35: =IF('WASTE FACILITIES'!C11="no",0,'e-waste'!C218*IF('unit costs'!D53="",'unit costs'!C53,'unit costs'!D53)/1000) ->  | E35: =D35+E14 ->  | F35: =E35+F14 -> 
B36: Reclamation facilities | C36: R'000 | D36: ='e-waste'!C274*IF('unit costs'!D54="",'unit costs'!C54,'unit costs'!D54)/1000 ->  | E36: =D36+E15 -> 
B37: Waste-to-energy facilities | C37: R'000 | D37: =IF('WASTE FACILITIES'!C42="no",0,'e-waste'!C326*IF('unit costs'!D59="",'unit costs'!C59,'unit costs'!D59))*1000 -> 
B38: Landfills | C38: R'000 | D38: ='WASTE FACILITIES'!C32*IF('unit costs'!D55="",'unit costs'!C55,'unit costs'!D55)/1000 -> 0
B39: Landfill gas to energy facilities | C39: R'000 | D39: ='e-waste'!C373*1000000*IF('unit costs'!D58="",'unit costs'!C58,'unit costs'!D58)/1000 -> 0 | E39: 0 | F39: 0 | G39: 0 | H39: 0 | I39: 0 | J39: 0 | K39: 0 | L39: 0 | M39: 0 | N39: 0
B40: Total | C40: R'000 | D40: =SUM(D34:D39) ->  | E40: =SUM(E34:E39) ->  | F40: =SUM(F34:F39) -> 
B42: Average annual on-going asset replacement (rehabilitation)
C43: CRC (R'000) | D43: Average EUL | E43: Annual rehab as % of CRC | F43: Annual rehab (R'000)
B44: =B34 -> Vehicles | C44: =D34 -> 0 | D44: =IF('WASTE FACILITIES'!D7="",'WASTE FACILITIES'!C7,'WASTE FACILITIES'!D7) -> 10 | E44: =1/D44 -> 0.1 | F44: =C44*E44 -> 0
B45: =B35 -> Transfer stations | C45: =D35 ->  | D45: 20 | E45: =1/D45 -> 0.05 | F45: =C45*E45 -> 
B46: Reclamation facilities | D46: 30 | E46: 0.03333333333
B47: Waste-to-energy facilities | D47: 30 | E47: 0.03333333333
B48: Landfills | C48: 0 | D48: 3 | E48: 0.3333333333 | F48: 0
B49: Landfill gas to energy facilities | C49: 0 | D49: 20 | E49: 0.05 | F49: 0
B50: =B40 -> Total | C50: =SUM(C44:C49) ->  | F50: =SUM(F44:F49) -> 
B52: Annual depreciation | C52: CRC (R millions) | D52: Depreciable portion | E52: Average EUL | F52: Average RUL as % of EUL | G52: Average RUL | H52: DRC (R'000s) | I52: Annual depr as % of DRC | J52: Theoretical depreciation (R'000) | K52: Adjustment factor | L52: Actual depreciation (R'000) | N52: Adjustment factor | O52: Modelled | P52: Actual | Q52: Difference
B53: =B44 -> Vehicles | C53: =C44 -> 0 | D53: 1 | E53: =D44 -> 10 | G53: =IF(IF('WASTE FACILITIES'!D8="",E53-'WASTE FACILITIES'!C8,E53-'WASTE FACILITIES'!D8)<0,0,IF('WASTE FACILITIES'!D8="",E53-'WASTE FACILITIES'!C8,E53-'WASTE FACILITIES'!D8)) -> 5 | H53: =C53*D53*G53/E53 -> 0 | I53: =1/E53 -> 0.1 | J53: =I53*(C53*D53) -> 0 | K53: =$N$53 -> 1 | L53: =K53*J53 -> 0 | N53: 1 | O53: =L59 ->  | P53: =OPERATING!D11 -> 0 | Q53: =O53-P53 -> 
B54: =B45 -> Transfer stations | D54: 0.8 | E54: =D45 -> 20 | F54: 0.5 | G54: =F54*E54 -> 10 | H54: =C54*D54*G54/E54 ->  | I54: =1/G54 -> 0.1 | J54: =I54*H54 ->  | K54: =$N$53 -> 1 | L54: =K54*J54 -> 
B55: Reclamation facilities | D55: 0.9 | E55: =D46 -> 30 | F55: 0.5 | G55: =F55*E55 -> 15 | H55: =C55*D55*G55/E55 ->  | I55: 0.06666666667 | K55: 1
B56: Waste-to-energy facilities | D56: 0.9 | E56: 30 | F56: 1 | G56: 30 | I56: 0.03333333333 | K56: 1
B57: Landfills | C57: 0 | D57: 1 | E57: 3 | F57: 1 | G57: 3 | H57: 0 | I57: 0.3333333333 | J57: 0 | K57: 1 | L57: 0
B58: Landfill gas to energy facilities | C58: 0 | D58: 1 | E58: 20 | F58: 0.8 | G58: 16 | H58: 0 | I58: 0.0625 | J58: 0 | K58: 1 | L58: 0
B59: =B50 -> Total | H59: =SUM(H53:H58) ->  | L59: =SUM(L53:L58) -> 

Sheet e-waste
B1: WASTE GENERATION AND PATHWAYS | F1: All monetary values in REAL terms
A2: Key: | B2: from user input sheets
A4: RESIDENTIAL SERVICE LEVELS
A5: % CUs with service levels | C5: =Base_year -> 0 | D5: =C5+1 -> 1 | E5: =D5+1 -> 2 | F5: 3 | G5: 4 | H5: 5 | I5: 6 | J5: 7 | K5: 8 | L5: 9 | M5: 10
A6: =targets!B18 -> No service | C6: =targets!$C18 ->  | D6: =1-SUM(D7:D13) ->  | E6: =1-SUM(E7:E13) -> 
A7: =targets!B19 ->  | C7: =targets!$C19 ->  | D7: =($H7-$C7)/5+C7 ->  | H7: =IF(targets!$D19="",targets!$C19,targets!$D19) ->  | I7: =($M7-$H7)/5+H7 ->  | M7: =IF(targets!$E19="",targets!$C19,targets!$E19) -> 
A8: =targets!B20 ->  | C8: =targets!$C20 ->  | D8: =($H8-$C8)/5+C8 ->  | H8: =IF(targets!$D20="",targets!$C20,targets!$D20) ->  | I8: =($M8-$H8)/5+H8 ->  | M8: =IF(targets!$E20="",targets!$C20,targets!$E20) -> 
A9: =targets!B21 ->  | C9: =targets!$C21 ->  | D9: =($H9-$C9)/5+C9 ->  | H9: =IF(targets!$D21="",targets!$C21,targets!$D21) ->  | I9: =($M9-$H9)/5+H9 ->  | M9: =IF(targets!$E21="",targets!$C21,targets!$E21) -> 
A10: =targets!B22 ->  | C10: =targets!$C22 ->  | D10: =($H10-$C10)/5+C10 ->  | H10: =IF(targets!$D22="",targets!$C22,targets!$D22) ->  | I10: =($M10-$H10)/5+H10 ->  | M10: =IF(targets!$E22="",targets!$C22,targets!$E22) -> 
A11: =targets!B23 ->  | C11: =targets!$C23 ->  | D11: =($H11-$C11)/5+C11 ->  | H11: =IF(targets!$D23="",targets!$C23,targets!$D23) ->  | I11: =($M11-$H11)/5+H11 ->  | M11: =IF(targets!$E23="",targets!$C23,targets!$E23) -> 
A12: =targets!B24 ->  | C12: =targets!$C24 ->  | D12: =($H12-$C12)/5+C12 ->  | H12: =IF(targets!$D24="",targets!$C24,targets!$D24) ->  | I12: =($M12-$H12)/5+H12 ->  | M12: =IF(targets!$E24="",targets!$C24,targets!$E24) -> 
A13: =targets!B25 ->  | C13: =targets!$C25 ->  | D13: =($H13-$C13)/5+C13 ->  | H13: =IF(targets!$D25="",targets!$C25,targets!$D25) ->  | I13: =($M13-$H13)/5+H13 ->  | M13: =IF(targets!$E25="",targets!$C25,targets!$E25) -> 
A14: Number of Cus with service levels | R14: 0 | S14: 1 | T14: 5 | U14: 10
A15: =targets!B18 -> No service | C15: =IF(A15="",0,'SERVICE LEVELS'!D6) ->  | D15: =D6*D$23 ->  | R15: ='e-waste'!C15 ->  | S15: ='e-waste'!D15 ->  | T15: ='e-waste'!H15 ->  | U15: ='e-waste'!M15 -> 
A16: =targets!B19 ->  | C16: =IF(A16="",0,'SERVICE LEVELS'!D7) -> 0 | D16: =D7*D$23 ->  | R16: ='e-waste'!C16 -> 0 | S16: ='e-waste'!D16 ->  | T16: ='e-waste'!H16 ->  | U16: ='e-waste'!M16 -> 
A17: =targets!B20 ->  | C17: =IF(A17="",0,'SERVICE LEVELS'!D8) -> 0 | D17: =D8*D$23 ->  | R17: ='e-waste'!C17 -> 0 | S17: ='e-waste'!D17 ->  | T17: ='e-waste'!H17 ->  | U17: ='e-waste'!M17 -> 
A18: =targets!B21 ->  | C18: =IF(A18="",0,'SERVICE LEVELS'!D9) -> 0 | D18: =D9*D$23 ->  | R18: ='e-waste'!C18 -> 0 | S18: ='e-waste'!D18 ->  | T18: ='e-waste'!H18 ->  | U18: ='e-waste'!M18 -> 
A19: =targets!B22 ->  | C19: =IF(A19="",0,'SERVICE LEVELS'!D10) -> 0 | D19: =D10*D$23 ->  | R19: ='e-waste'!C19 -> 0 | S19: ='e-waste'!D19 ->  | T19: ='e-waste'!H19 ->  | U19: ='e-waste'!M19 -> 
A20: =targets!B23 ->  | C20: =IF(A20="",0,'SERVICE LEVELS'!D11) -> 0 | D20: =D11*D$23 ->  | R20: ='e-waste'!C20 -> 0 | S20: ='e-waste'!D20 ->  | T20: ='e-waste'!H20 ->  | U20: ='e-waste'!M20 -> 
A21: =targets!B24 ->  | C21: =IF(A21="",0,'SERVICE LEVELS'!D12) -> 0 | D21: =D12*D$23 ->  | R21: ='e-waste'!C21 -> 0 | S21: ='e-waste'!D21 ->  | T21: ='e-waste'!H21 ->  | U21: ='e-waste'!M21 -> 
A22: =targets!B25 ->  | C22: =IF(A22="",0,'SERVICE LEVELS'!D13) -> 0 | D22: =D13*D$23 ->  | R22: ='e-waste'!C22 -> 0 | S22: ='e-waste'!D22 ->  | T22: ='e-waste'!H22 ->  | U22: ='e-waste'!M22 -> 
A23: Total | C23: =SUM(C15:C22) ->  | D23: ='e-inc'!E110 ->  | E23: ='e-inc'!F110 ->  | F23: ='e-inc'!G110 ->  | G23: ='e-inc'!H110 ->  | H23: ='e-inc'!I110 ->  | I23: ='e-inc'!J110 ->  | J23: ='e-inc'!K110 ->  | K23: ='e-inc'!L110 ->  | L23: ='e-inc'!M110 ->  | M23: ='e-inc'!N110 -> 
A24: Check=0 | C24: =SUM(C15:C22)-C23 -> 
A26: Change in no. of Cus with each service level
A27: =A15 -> No service | D27: =D15-C15 ->  | E27: =E15-D15 -> 
D28: =D16-C16 -> 
D34: =D21-C21 -> 
A35: Total | D35: =SUM(D27:D34) -> 
A36: New CUs with each service level
A37: =A27 -> No service | D37: =MAX(0,D27) -> 
D38: =MAX(0,D28) -> 
D39: =MAX(0,D29) -> 
D40: =MAX(0,D30) -> 
D41: =MAX(0,D31) -> 
D42: =MAX(0,D32) -> 
A43: =A34 ->  | D43: =MAX(0,D34) -> 
D44: =SUM(D37:D43) -> 
A46: User defined tariff categories
A47: Percentage split over time
A48: =TARIFFS!B34 -> No service | C48: =targets!C77 ->  | D48: =1-SUM(D49:D55) ->  | E48: =1-SUM(E49:E55) ->  | H48: =IF(targets!D77="",targets!C77,targets!D77) ->  | I48: =1-SUM(I49:I55) ->  | J48: =1-SUM(J49:J55) ->  | M48: =IF(targets!E77="",targets!C77,targets!E77) -> 
A49: =TARIFFS!B35 -> 0 | C49: =targets!C78 ->  | D49: =($H49-$C49)/5+C49 ->  | E49: =($H49-$C49)/5+D49 ->  | F49: =($H49-$C49)/5+E49 ->  | G49: =($H49-$C49)/5+F49 ->  | H49: =IF(targets!D78="",targets!C78,targets!D78) ->  | I49: =($M49-$H49)/5+H49 ->  | J49: =($M49-$H49)/5+I49 ->  | K49: =($M49-$H49)/5+J49 ->  | L49: =($M49-$H49)/5+K49 ->  | M49: =IF(targets!E78="",targets!C78,targets!E78) -> 
A50: =TARIFFS!B36 -> 0 | C50: =targets!C79 ->  | D50: =($H50-$C50)/5+C50 ->  | E50: =($H50-$C50)/5+D50 ->  | F50: =($H50-$C50)/5+E50 ->  | G50: =($H50-$C50)/5+F50 ->  | H50: =IF(targets!D79="",targets!C79,targets!D79) ->  | I50: =($M50-$H50)/5+H50 ->  | J50: =($M50-$H50)/5+I50 ->  | K50: =($M50-$H50)/5+J50 ->  | L50: =($M50-$H50)/5+K50 ->  | M50: =IF(targets!E79="",targets!C79,targets!E79) -> 
A51: =TARIFFS!B37 -> 0 | C51: =targets!C80 ->  | H51: =IF(targets!D80="",targets!C80,targets!D80) ->  | M51: =IF(targets!E80="",targets!C80,targets!E80) -> 
A52: =TARIFFS!B38 -> 0 | C52: =targets!C81 ->  | H52: =IF(targets!D81="",targets!C81,targets!D81) ->  | M52: =IF(targets!E81="",targets!C81,targets!E81) -> 
A53: =TARIFFS!B39 -> 0 | C53: =targets!C82 ->  | H53: =IF(targets!D82="",targets!C82,targets!D82) ->  | M53: =IF(targets!E82="",targets!C82,targets!E82) -> 
A54: =TARIFFS!B40 -> 0 | C54: =targets!C83 ->  | H54: =IF(targets!D83="",targets!C83,targets!D83) ->  | M54: =IF(targets!E83="",targets!C83,targets!E83) -> 
A55: =TARIFFS!B41 -> 0 | C55: =targets!C84 ->  | H55: =IF(targets!D84="",targets!C84,targets!D84) ->  | M55: =IF(targets!E84="",targets!C84,targets!E84) -> 
C56: =SUM(C48:C55) ->  | D56: =SUM(D48:D55) -> 
A57: Number of Cus
A58: =A48 -> No service | C58: =C48*C$23 ->  | D58: =D48*D$23 -> 
A59: =A49 -> 0 | C59: =C49*C$23 -> 
A60: 0
A61: 0
A62: 0
A63: 0
A64: 0
A65: 0
B66: check=0 | C66: =SUM(C58:C65)-C23 ->  | D66: =SUM(D58:D65)-D23 -> 
A67: RESIDENTIAL COLLECTION
C68: =Base_year -> 0 | D68: =C68+1 -> 1 | E68: 2 | F68: 3 | G68: 4 | H68: 5 | I68: 6 | J68: 7 | K68: 8 | L68: 9 | M68: 10
A69: Residential waste generation reduction factors
A70: ='SERVICE LEVELS'!B6 -> No service | C70: =targets!C6 -> 1 | D70: =($H70-$C70)/5+C70 -> 1 | E70: 1 | F70: 1 | G70: 1 | H70: =IF(targets!D6="",targets!C6,targets!D6) -> 1 | I70: =($M70-$H70)/5+H70 -> 1 | J70: 1 | K70: 1 | L70: 1 | M70: =IF(targets!E6="",targets!C6,targets!E6) -> 1
A71: ='SERVICE LEVELS'!B7 -> 0 | C71: =targets!C7 -> 1 | D71: 1 | E71: 1 | F71: 1 | G71: 1 | H71: =IF(targets!D7="",targets!C7,targets!D7) -> 1 | I71: 1 | J71: 1 | K71: 1 | L71: 1 | M71: =IF(targets!E7="",targets!C7,targets!E7) -> 1
A72: ='SERVICE LEVELS'!B8 -> 0 | C72: =targets!C8 -> 1 | D72: 1 | E72: 1 | F72: 1 | G72: 1 | H72: =IF(targets!D8="",targets!C8,targets!D8) -> 1 | I72: 1 | J72: 1 | K72: 1 | L72: 1 | M72: =IF(targets!E8="",targets!C8,targets!E8) -> 1
A73: ='SERVICE LEVELS'!B9 -> 0 | C73: =targets!C9 -> 1 | D73: 1 | E73: 1 | F73: 1 | G73: 1 | H73: =IF(targets!D9="",targets!C9,targets!D9) -> 1 | I73: 1 | J73: 1 | K73: 1 | L73: 1 | M73: =IF(targets!E9="",targets!C9,targets!E9) -> 1
A74: ='SERVICE LEVELS'!B10 -> 0 | C74: =targets!C10 -> 1 | D74: 1 | E74: 1 | F74: 1 | G74: 1 | H74: =IF(targets!D10="",targets!C10,targets!D10) -> 1 | I74: 1 | J74: 1 | K74: 1 | L74: 1 | M74: =IF(targets!E10="",targets!C10,targets!E10) -> 1
A75: ='SERVICE LEVELS'!B11 -> 0 | C75: =targets!C11 -> 1 | D75: 1 | E75: 1 | F75: 1 | G75: 1 | H75: =IF(targets!D11="",targets!C11,targets!D11) -> 1 | I75: 1 | J75: 1 | K75: 1 | L75: 1 | M75: =IF(targets!E11="",targets!C11,targets!E11) -> 1
A76: ='SERVICE LEVELS'!B12 -> 0 | C76: =targets!C12 -> 1 | D76: 1 | E76: 1 | F76: 1 | G76: 1 | H76: =IF(targets!D12="",targets!C12,targets!D12) -> 1 | I76: 1 | J76: 1 | K76: 1 | L76: 1 | M76: =IF(targets!E12="",targets!C12,targets!E12) -> 1
A77: ='SERVICE LEVELS'!B13 -> 0 | C77: =targets!C13 -> 1 | D77: 1 | E77: 1 | F77: 1 | G77: 1 | H77: =IF(targets!D13="",targets!C13,targets!D13) -> 1 | I77: 1 | J77: 1 | K77: 1 | L77: 1 | M77: =IF(targets!E13="",targets!C13,targets!E13) -> 1
A78: Residential waste generation rate (kg/cu/week)
A79: ='SERVICE LEVELS'!B6 -> No service | C79: =IF(A79=0,0,IF(VLOOKUP(A79,'waste gen'!$B$17:$D$27,3,FALSE)="",VLOOKUP(A79,'waste gen'!$B$17:$D$27,2,FALSE),VLOOKUP(A79,'waste gen'!$B$17:$D$27,3,FALSE))) -> 20 | D79: =$C79*D70 -> 20 | E79: 20 | F79: 20 | G79: 20 | H79: 20 | I79: 20 | J79: 20 | K79: 20 | L79: 20 | M79: 20
A80: ='SERVICE LEVELS'!B7 -> 0 | C80: =IF(A80=0,0,IF(VLOOKUP(A80,'waste gen'!$B$17:$D$27,3,FALSE)="",VLOOKUP(A80,'waste gen'!$B$17:$D$27,2,FALSE),VLOOKUP(A80,'waste gen'!$B$17:$D$27,3,FALSE))) -> 0 | D80: =$C80*D71 -> 0 | E80: 0 | F80: 0 | G80: 0 | H80: 0 | I80: 0 | J80: 0 | K80: 0 | L80: 0 | M80: 0
A81: ='SERVICE LEVELS'!B8 -> 0 | C81: =IF(A81=0,0,IF(VLOOKUP(A81,'waste gen'!$B$17:$D$27,3,FALSE)="",VLOOKUP(A81,'waste gen'!$B$17:$D$27,2,FALSE),VLOOKUP(A81,'waste gen'!$B$17:$D$27,3,FALSE))) -> 0 | D81: =$C81*D72 -> 0 | E81: 0 | F81: 0 | G81: 0 | H81: 0 | I81: 0 | J81: 0 | K81: 0 | L81: 0 | M81: 0
A82: ='SERVICE LEVELS'!B9 -> 0 | C82: =IF(A82=0,0,IF(VLOOKUP(A82,'waste gen'!$B$17:$D$27,3,FALSE)="",VLOOKUP(A82,'waste gen'!$B$17:$D$27,2,FALSE),VLOOKUP(A82,'waste gen'!$B$17:$D$27,3,FALSE))) -> 0 | D82: =$C82*D73 -> 0 | E82: 0 | F82: 0 | G82: 0 | H82: 0 | I82: 0 | J82: 0 | K82: 0 | L82: 0 | M82: 0
A83: ='SERVICE LEVELS'!B10 -> 0 | C83: =IF(A83=0,0,IF(VLOOKUP(A83,'waste gen'!$B$17:$D$27,3,FALSE)="",VLOOKUP(A83,'waste gen'!$B$17:$D$27,2,FALSE),VLOOKUP(A83,'waste gen'!$B$17:$D$27,3,FALSE))) -> 0 | D83: =$C83*D74 -> 0 | E83: 0 | F83: 0 | G83: 0 | H83: 0 | I83: 0 | J83: 0 | K83: 0 | L83: 0 | M83: 0
A84: ='SERVICE LEVELS'!B11 -> 0 | C84: =IF(A84=0,0,IF(VLOOKUP(A84,'waste gen'!$B$17:$D$27,3,FALSE)="",VLOOKUP(A84,'waste gen'!$B$17:$D$27,2,FALSE),VLOOKUP(A84,'waste gen'!$B$17:$D$27,3,FALSE))) -> 0 | D84: =$C84*D75 -> 0 | E84: 0 | F84: 0 | G84: 0 | H84: 0 | I84: 0 | J84: 0 | K84: 0 | L84: 0 | M84: 0
A85: ='SERVICE LEVELS'!B12 -> 0 | C85: =IF(A85=0,0,IF(VLOOKUP(A85,'waste gen'!$B$17:$D$27,3,FALSE)="",VLOOKUP(A85,'waste gen'!$B$17:$D$27,2,FALSE),VLOOKUP(A85,'waste gen'!$B$17:$D$27,3,FALSE))) -> 0 | D85: =$C85*D76 -> 0 | E85: 0 | F85: 0 | G85: 0 | H85: 0 | I85: 0 | J85: 0 | K85: 0 | L85: 0 | M85: 0
A86: ='SERVICE LEVELS'!B13 -> 0 | C86: =IF(A86=0,0,IF(VLOOKUP(A86,'waste gen'!$B$17:$D$27,3,FALSE)="",VLOOKUP(A86,'waste gen'!$B$17:$D$27,2,FALSE),VLOOKUP(A86,'waste gen'!$B$17:$D$27,3,FALSE))) -> 0 | D86: =$C86*D77 -> 0 | E86: 0 | F86: 0 | G86: 0 | H86: 0 | I86: 0 | J86: 0 | K86: 0 | L86: 0 | M86: 0
A87: Residential waste generation (tons pa)
A88: =A79 -> No service | B88: (tons pa) | C88: =C79*C15/1000*52 -> 
A89: 0 | B89: =B88 -> (tons pa) | C89: =C80*C16/1000*52 -> 0
A90: 0 | B90: (tons pa) | C90: =C81*C17/1000*52 -> 0
A91: 0 | B91: (tons pa) | C91: =C82*C18/1000*52 -> 0
A92: 0 | B92: (tons pa) | C92: =C83*C19/1000*52 -> 0
A93: 0 | B93: (tons pa) | C93: =C84*C20/1000*52 -> 0
A94: 0 | B94: (tons pa) | C94: =C85*C21/1000*52 -> 0
A95: 0 | B95: (tons pa) | C95: =C86*C22/1000*52 -> 0
A96: Total res generated | C96: =SUM(C88:C95) ->  | D96: =SUM(D88:D95) -> 
A97: Total res collected | B97: =B95 -> (tons pa) | C97: =SUM(C89:C95) -> 0 | D97: =SUM(D89:D95) -> 
C98: =C97/C96 ->  | D98: =D97/D96 -> 
A99: High income vs low income waste generation
A100: Generated
A101: Low income | B101: (tons pa) | C101: =SUMPRODUCT(C79:C86,'e-service levels'!D74:D81)/1000*52 ->  | D101: =SUMPRODUCT(D79:D86,'e-service levels'!E74:E81)/1000*52 ->  | E101: =SUMPRODUCT(E79:E86,'e-service levels'!F74:F81)/1000*52 ->  | F101: =SUMPRODUCT(F79:F86,'e-service levels'!G74:G81)/1000*52 ->  | G101: =SUMPRODUCT(G79:G86,'e-service levels'!H74:H81)/1000*52 ->  | H101: =SUMPRODUCT(H79:H86,'e-service levels'!I74:I81)/1000*52 ->  | I101: =SUMPRODUCT(I79:I86,'e-service levels'!J74:J81)/1000*52 ->  | J101: =SUMPRODUCT(J79:J86,'e-service levels'!K74:K81)/1000*52 ->  | K101: =SUMPRODUCT(K79:K86,'e-service levels'!L74:L81)/1000*52 ->  | L101: =SUMPRODUCT(L79:L86,'e-service levels'!M74:M81)/1000*52 ->  | M101: =SUMPRODUCT(M79:M86,'e-service levels'!N74:N81)/1000*52 -> 
A102: High income | B102: (tons pa) | C102: =SUMPRODUCT('e-service levels'!D85:D92,'e-waste'!C79:C86)/1000*52 ->  | D102: =SUMPRODUCT('e-service levels'!E85:E92,'e-waste'!D79:D86)/1000*52 ->  | E102: =SUMPRODUCT('e-service levels'!F85:F92,'e-waste'!E79:E86)/1000*52 ->  | F102: =SUMPRODUCT('e-service levels'!G85:G92,'e-waste'!F79:F86)/1000*52 ->  | G102: =SUMPRODUCT('e-service levels'!H85:H92,'e-waste'!G79:G86)/1000*52 ->  | H102: =SUMPRODUCT('e-service levels'!I85:I92,'e-waste'!H79:H86)/1000*52 ->  | I102: =SUMPRODUCT('e-service levels'!J85:J92,'e-waste'!I79:I86)/1000*52 ->  | J102: =SUMPRODUCT('e-service levels'!K85:K92,'e-waste'!J79:J86)/1000*52 ->  | K102: =SUMPRODUCT('e-service levels'!L85:L92,'e-waste'!K79:K86)/1000*52 ->  | L102: =SUMPRODUCT('e-service levels'!M85:M92,'e-waste'!L79:L86)/1000*52 ->  | M102: =SUMPRODUCT('e-service levels'!N85:N92,'e-waste'!M79:M86)/1000*52 -> 
A103: check=0 | C103: =SUM(C101:C102)-C96 ->  | D103: =SUM(D101:D102)-D96 -> 
A104: Indigent | B104: (tons pa) | C104: =SUMPRODUCT(C79:C86,'e-service levels'!D97:D104)/1000*52 -> 0 | D104: =SUMPRODUCT(D79:D86,'e-service levels'!E97:E104)/1000*52 -> 0 | E104: =SUMPRODUCT(E79:E86,'e-service levels'!F97:F104)/1000*52 -> 0 | F104: =SUMPRODUCT(F79:F86,'e-service levels'!G97:G104)/1000*52 -> 0 | G104: =SUMPRODUCT(G79:G86,'e-service levels'!H97:H104)/1000*52 -> 0 | H104: =SUMPRODUCT(H79:H86,'e-service levels'!I97:I104)/1000*52 -> 0 | I104: =SUMPRODUCT(I79:I86,'e-service levels'!J97:J104)/1000*52 -> 0 | J104: =SUMPRODUCT(J79:J86,'e-service levels'!K97:K104)/1000*52 -> 0 | K104: =SUMPRODUCT(K79:K86,'e-service levels'!L97:L104)/1000*52 -> 0 | L104: =SUMPRODUCT(L79:L86,'e-service levels'!M97:M104)/1000*52 -> 0 | M104: =SUMPRODUCT(M79:M86,'e-service levels'!N97:N104)/1000*52 -> 0
A105: Collected
A106: Low income | B106: (tons pa) | C106: =SUMPRODUCT(C80:C86,'e-service levels'!D75:D81)/1000*52 ->  | D106: =SUMPRODUCT(D80:D86,'e-service levels'!E75:E81)/1000*52 ->  | E106: =SUMPRODUCT(E80:E86,'e-service levels'!F75:F81)/1000*52 ->  | F106: =SUMPRODUCT(F80:F86,'e-service levels'!G75:G81)/1000*52 ->  | G106: =SUMPRODUCT(G80:G86,'e-service levels'!H75:H81)/1000*52 ->  | H106: =SUMPRODUCT(H80:H86,'e-service levels'!I75:I81)/1000*52 ->  | I106: =SUMPRODUCT(I80:I86,'e-service levels'!J75:J81)/1000*52 ->  | J106: =SUMPRODUCT(J80:J86,'e-service levels'!K75:K81)/1000*52 ->  | K106: =SUMPRODUCT(K80:K86,'e-service levels'!L75:L81)/1000*52 ->  | L106: =SUMPRODUCT(L80:L86,'e-service levels'!M75:M81)/1000*52 ->  | M106: =SUMPRODUCT(M80:M86,'e-service levels'!N75:N81)/1000*52 -> 
A107: High income | B107: (tons pa) | C107: =SUMPRODUCT('e-service levels'!D86:D92,'e-waste'!C80:C86)/1000*52 ->  | D107: =SUMPRODUCT('e-service levels'!E86:E92,'e-waste'!D80:D86)/1000*52 ->  | E107: =SUMPRODUCT('e-service levels'!F86:F92,'e-waste'!E80:E86)/1000*52 ->  | F107: =SUMPRODUCT('e-service levels'!G86:G92,'e-waste'!F80:F86)/1000*52 ->  | G107: =SUMPRODUCT('e-service levels'!H86:H92,'e-waste'!G80:G86)/1000*52 ->  | H107: =SUMPRODUCT('e-service levels'!I86:I92,'e-waste'!H80:H86)/1000*52 ->  | I107: =SUMPRODUCT('e-service levels'!J86:J92,'e-waste'!I80:I86)/1000*52 ->  | J107: =SUMPRODUCT('e-service levels'!K86:K92,'e-waste'!J80:J86)/1000*52 ->  | K107: =SUMPRODUCT('e-service levels'!L86:L92,'e-waste'!K80:K86)/1000*52 ->  | L107: =SUMPRODUCT('e-service levels'!M86:M92,'e-waste'!L80:L86)/1000*52 ->  | M107: =SUMPRODUCT('e-service levels'!N86:N92,'e-waste'!M80:M86)/1000*52 -> 
A108: check=0 | C108: =SUM(C106:C107)-C97 ->  | D108: =SUM(D106:D107)-D97 -> 
A109: Indigent | B109: (tons pa) | C109: =SUMPRODUCT(C80:C86,'e-service levels'!D98:D104)/1000*52 -> 0 | D109: =SUMPRODUCT(D80:D86,'e-service levels'!E98:E104)/1000*52 -> 0 | E109: =SUMPRODUCT(E80:E86,'e-service levels'!F98:F104)/1000*52 -> 0 | F109: =SUMPRODUCT(F80:F86,'e-service levels'!G98:G104)/1000*52 -> 0 | G109: =SUMPRODUCT(G80:G86,'e-service levels'!H98:H104)/1000*52 -> 0 | H109: =SUMPRODUCT(H80:H86,'e-service levels'!I98:I104)/1000*52 -> 0 | I109: =SUMPRODUCT(I80:I86,'e-service levels'!J98:J104)/1000*52 -> 0 | J109: =SUMPRODUCT(J80:J86,'e-service levels'!K98:K104)/1000*52 -> 0 | K109: =SUMPRODUCT(K80:K86,'e-service levels'!L98:L104)/1000*52 -> 0 | L109: =SUMPRODUCT(L80:L86,'e-service levels'!M98:M104)/1000*52 -> 0 | M109: =SUMPRODUCT(M80:M86,'e-service levels'!N98:N104)/1000*52 -> 0
A111: NON-RESIDENTIAL COLLECTION
C112: =Base_year -> 0 | D112: =C112+1 -> 1 | E112: 2 | F112: 3 | G112: 4 | H112: 5 | I112: 6 | J112: 7 | K112: 8 | L112: 9 | M112: 10
A113: Rate of growth of non-residential consumers | C113: =IF('waste gen'!D5="",'waste gen'!C5,'waste gen'!D5) -> 0.02 | D113: =($H113-$C113)/5+C113 -> 0.025 | E113: =($H113-$C113)/5+D113 -> 0.03 | F113: =($H113-$C113)/5+E113 -> 0.035 | G113: =($H113-$C113)/5+F113 -> 0.04 | H113: =IF('waste gen'!D6="",'waste gen'!C6,'waste gen'!D6) -> 0.045 | I113: =($M113-$H113)/5+H113 -> 0.048 | J113: =($M113-$H113)/5+I113 -> 0.051 | K113: =($M113-$H113)/5+J113 -> 0.054 | L113: =($M113-$H113)/5+K113 -> 0.057 | M113: =IF('waste gen'!D7="",'waste gen'!C7,'waste gen'!D7) -> 0.06
A114: Total non-residential consumers | C114: =CONSUMERS!D25 -> 0 | D114: =C114*(1+D113) -> 0 | E114: 0 | F114: 0 | G114: 0 | H114: 0 | I114: 0 | J114: 0 | K114: 0 | L114: 0 | M114: 0
A115: Municipal market share | C115: =targets!C36 ->  | D115: =($H115-$C115)/5+C115 ->  | H115: =IF(targets!D36="",targets!C36,targets!D36) ->  | I115: =($M115-$H115)/5+H115 ->  | M115: =IF(targets!E36="",targets!C36,targets!E36) -> 
A116: =targets!B38 ->  | C116: =targets!C38 -> 0 | D116: 0 | E116: 0 | F116: 0 | G116: 0 | H116: =IF(targets!D38="",targets!C38,targets!D38) -> 0 | I116: 0 | J116: 0 | K116: 0 | L116: 0 | M116: =IF(targets!E38="",targets!C38,targets!E38) -> 0
A117: =targets!B39 ->  | C117: =targets!C39 -> 0 | D117: 0 | E117: 0 | F117: 0 | G117: 0 | H117: =IF(targets!D39="",targets!C39,targets!D39) -> 0 | I117: 0 | J117: 0 | K117: 0 | L117: 0 | M117: =IF(targets!E39="",targets!C39,targets!E39) -> 0
A118: =targets!B40 ->  | C118: =targets!C40 -> 0 | D118: 0 | E118: 0 | F118: 0 | G118: 0 | H118: =IF(targets!D40="",targets!C40,targets!D40) -> 0 | I118: 0 | J118: 0 | K118: 0 | L118: 0 | M118: =IF(targets!E40="",targets!C40,targets!E40) -> 0
A119: =targets!B41 ->  | C119: =targets!C41 -> 0 | D119: 0 | E119: 0 | F119: 0 | G119: 0 | H119: =IF(targets!D41="",targets!C41,targets!D41) -> 0 | I119: 0 | J119: 0 | K119: 0 | L119: 0 | M119: =IF(targets!E41="",targets!C41,targets!E41) -> 0
A121: RCW consumers served by municipality | C121: =C115*C114 ->  | R121: 0 | S121: 1 | T121: 2 | U121: 3 | V121: 4 | W121: 5 | X121: 6 | Y121: 7 | Z121: 8 | AA121: 9 | AB121: 10
A122: ='SERVICE LEVELS'!B24 -> 0 | C122: =C116*C$121 -> 
A123: ='SERVICE LEVELS'!B25 -> 0 | C123: =C117*C$121 -> 
A124: ='SERVICE LEVELS'!B26 -> 0 | C124: =C118*C$121 -> 
A125: ='SERVICE LEVELS'!B27 -> 0 | C125: =C119*C$121 -> 
A126: Total DCW consumers | C126: =CONSUMERS!D26 -> 0 | D126: =C126*(1+D113) -> 0 | E126: 0 | F126: 0 | G126: 0 | H126: 0 | I126: 0 | J126: 0 | K126: 0 | L126: 0 | M126: 0
A127: Municipal DCW market share | C127: =targets!C43 -> 0 | D127: =($H127-$C127)/5+C127 -> 0 | E127: =($H127-$C127)/5+D127 -> 0 | F127: =($H127-$C127)/5+E127 -> 0 | G127: =($H127-$C127)/5+F127 -> 0 | H127: =IF(targets!D43="",targets!C43,targets!D43) -> 0 | I127: =($M127-$H127)/5+H127 -> 0 | J127: =($M127-$H127)/5+I127 -> 0 | K127: =($M127-$H127)/5+J127 -> 0 | L127: =($M127-$H127)/5+K127 -> 0 | M127: =IF(targets!E43="",targets!C43,targets!E43) -> 0
A128: Municipal DCW consumers | C128: =C127*C126 -> 0 | D128: =D127*D126 -> 0 | E128: 0 | F128: 0 | G128: 0 | H128: 0 | I128: 0 | J128: 0 | K128: 0 | L128: 0 | M128: 0
A130: Reduction in non-residential waste due to minimisation at source
A131: Non-residential waste generation reduction factor | C131: =targets!C14 -> 1 | D131: =($H131-$C131)/5+C131 -> 1 | E131: =($H131-$C131)/5+D131 -> 1 | F131: =($H131-$C131)/5+E131 -> 1 | G131: =($H131-$C131)/5+F131 -> 1 | H131: =IF(targets!D14="",C131,targets!D14) -> 1 | I131: =($M131-$H131)/5+H131 -> 1 | J131: =($M131-$H131)/5+I131 -> 1 | K131: =($M131-$H131)/5+J131 -> 1 | L131: =($M131-$H131)/5+K131 -> 1 | M131: =IF(targets!E14="",C131,targets!E14) -> 1
A133: Service points per week | B133: Coll/week
A134: ='waste gen'!B37 -> 0 | B134: =IFERROR(VLOOKUP(VLOOKUP(A134,'SERVICE LEVELS'!$B$24:$C$27,2,FALSE),'e-service freq'!$B$18:$E$23,4,FALSE),0) -> 0 | C134: =$B134*C122 -> 
A135: ='waste gen'!B38 -> 0 | B135: =IFERROR(VLOOKUP(VLOOKUP(A135,'SERVICE LEVELS'!$B$24:$C$27,2,FALSE),'e-service freq'!$B$18:$E$23,4,FALSE),0) -> 0 | C135: =$B135*C123 -> 
A136: ='waste gen'!B39 -> 0 | B136: =IFERROR(VLOOKUP(VLOOKUP(A136,'SERVICE LEVELS'!$B$24:$C$27,2,FALSE),'e-service freq'!$B$18:$E$23,4,FALSE),0) -> 0 | C136: =$B136*C124 -> 
A137: ='waste gen'!B40 -> 0 | B137: =IFERROR(VLOOKUP(VLOOKUP(A137,'SERVICE LEVELS'!$B$24:$C$27,2,FALSE),'e-service freq'!$B$18:$E$23,4,FALSE),0) -> 0 | C137: =$B137*C125 -> 
A139: Non-residential waste generation rate
A140: ='waste gen'!B37 -> 0 | B140: (kg/cu/week) | C140: =('e-waste'!$C$151-'e-waste'!$C$150)*1000/52/SUM('e-waste'!$C$134:$C$137) ->  | D140: =D$131*$C140 -> 
A141: ='waste gen'!B38 -> 0 | B141: (kg/cu/week) | C141: =('e-waste'!$C$151-'e-waste'!$C$150)*1000/52/SUM('e-waste'!$C$134:$C$137) -> 
A142: ='waste gen'!B39 -> 0 | B142: (kg/cu/week) | C142: =('e-waste'!$C$151-'e-waste'!$C$150)*1000/52/SUM('e-waste'!$C$134:$C$137) -> 
A143: ='waste gen'!B40 -> 0 | B143: (kg/cu/week) | C143: =('e-waste'!$C$151-'e-waste'!$C$150)*1000/52/SUM('e-waste'!$C$134:$C$137) -> 
A145: Non-residential waste generation (tons pa)
A146: ='SERVICE LEVELS'!B24 -> 0 | B146: (tons pa) | C146: =C140*C134*52/1000 ->  | D146: =D140*D134*52/1000 -> 
A147: ='SERVICE LEVELS'!B25 -> 0 | B147: (tons pa) | C147: =C141*C135*52/1000 -> 
A148: ='SERVICE LEVELS'!B26 -> 0 | B148: (tons pa)
A149: ='SERVICE LEVELS'!B27 -> 0 | B149: (tons pa)
A150: DCW | B150: (tons pa) | C150: ='SERVICE LEVELS'!C29 -> 0 | D150: =IFERROR($C150*D128/$C128*D131,0) -> 0 | E150: 0 | F150: 0 | G150: 0 | H150: 0 | I150: 0 | J150: 0 | K150: 0 | L150: 0 | M150: 0
A151: Total non-res waste collected | B151: (tons pa) | C151: =IF('SERVICE LEVELS'!$D$31="",'SERVICE LEVELS'!$C$31,'SERVICE LEVELS'!$D$31)*'e-waste'!C97 ->  | D151: =SUM(D146:D150) -> 
A152: PUBLIC CLEANSING
C153: =Base_year -> 0 | D153: =C153+1 -> 1 | E153: 2 | F153: 3 | G153: 4 | H153: 5 | I153: 6 | J153: 7 | K153: 8 | L153: 9 | M153: 10
A154: Increase in street cleaning waste | B154: (tons pa) | C154: =targets!C47 ->  | D154: =($H154-$C154)/5+C154 ->  | H154: =IF(targets!D52="",targets!C47,targets!D47) ->  | I154: =($M154-$H154)/5+H154 ->  | M154: =IF(targets!E47="",targets!C47,targets!E47) -> 
A155: Increase in areas cleaning waste | B155: (tons pa) | C155: =targets!C48 ->  | H155: =IF(targets!D53="",targets!C48,targets!D48) ->  | M155: =IF(targets!E48="",targets!C48,targets!E48) -> 
A156: ='SERVICE LEVELS'!B35 -> Street Cleaning | B156: (tons pa) | C156: =IF('SERVICE LEVELS'!C35="none",0,C154*SUM(C$97,C$151)) ->  | D156: =D154*SUM(D$97,D$151) -> 
A157: ='SERVICE LEVELS'!B36 -> Area Cleaning (including illegal dumping) | B157: (tons pa) | C157: =IF('SERVICE LEVELS'!$C$36="none",0,C155*SUM(C$97,C$151)) ->  | D157: =D155*SUM(D$97,D$151) -> 
A158: Total public cleansing waste collected | B158: (tons pa) | C158: =SUM(C156:C157) ->  | D158: =SUM(D156:D157) -> 
A160: Public cleansing by income group
A161: Street Cleaning
A162: Low inc res | C162: =C$156*C179/SUM(C$181:C$182) ->  | D162: =D$156*D179/SUM(D$181:D$182) ->  | E162: =E$156*E179/SUM(E$181:E$182) -> 
A163: Hi in res | C163: =C156*C180/SUM($C$181:$C$182) ->  | D163: =D156*D180/SUM($C$181:$C$182) -> 
A164: Non res | C164: =C156*C182/SUM($C$181:$C$182) ->  | D164: =D156*D182/SUM($C$181:$C$182) -> 
A166: Public cleansing by income group
A167: Area Cleaning (including illegal dumping)
A168: Low inc res | C168: =C$157*C179/SUM(C$181:C$182) -> 
A169: Hi in res | C169: =C$157*C180/SUM(C$181:C$182) -> 
A170: Non res | C170: =C$157*C182/SUM(C$181:C$182) -> 
A172: Public cleansing by income group
A173: =A306 -> Low inc res | B173: tons pa pa | C173: =C$158*C179/SUM(C$181:C$182) ->  | D173: =D$158*D179/SUM(D$181:D$182) -> 
A174: =A307 -> Hi in res | B174: tons pa pa | C174: =C$158*C180/SUM(C$181:C$182) -> 
A175: =A308 -> Non res | B175: tons pa pa | C175: =C$158*C182/SUM(C$181:C$182) -> 
B176: check=0 | C176: =SUM(C173:C175)-C158 -> 
A177: MUNICIPAL COLLECTION SUMMARY
C178: =Base_year -> 0 | D178: =C178+1 -> 1 | E178: 2 | F178: 3 | G178: 4 | H178: 5 | I178: 6 | J178: 7 | K178: 8 | L178: 9 | M178: 10
A179: Low income res | B179: (tons pa) | C179: =C106 ->  | D179: =D106 ->  | E179: =E106 -> 
A180: High income res | B180: (tons pa) | C180: =C107 ->  | D180: =D107 -> 
A181: Total res | B181: (tons pa) | C181: =SUM(C179:C180) ->  | D181: =SUM(D179:D180) -> 
A182: Non-res | B182: (tons pa) | C182: =C151 ->  | D182: =D151 -> 
A183: Public cleansing | B183: (tons pa) | C183: =C158 ->  | D183: =D158 -> 
A184: Total | B184: (tons pa) | C184: =SUM(C181:C183) ->  | D184: =SUM(D181:D183) -> 
A185: Change in mass of municipal collected waste | D185: =D184/C184-1 ->  | E185: =E184/D184-1 -> 
A186: Cumulative change | D186: =D184/$C$184-1 ->  | E186: =E184/$C$184-1 -> 
A187: MUNICIPAL COLLECTION OF RECYCLABLES
A188: Split of service levels | C188: =Base_year -> 0 | D188: =C188+1 -> 1 | E188: 2 | F188: 3 | G188: 4 | H188: 5 | I188: 6 | J188: 7 | K188: 8 | L188: 9 | M188: 10
A189: ='SERVICE LEVELS'!B17 -> 0 | C189: =targets!C30 ->  | D189: =($H189-$C189)/5+C189 ->  | G189: =($H189-$C189)/5+F189 ->  | H189: =IF(targets!D30="",targets!C30,targets!D30) ->  | I189: =($M189-$H189)/5+H189 ->  | M189: =IF(targets!E30="",targets!C30,targets!E30) -> 
A190: ='SERVICE LEVELS'!B18 -> 0 | C190: =targets!C31 -> 0 | D190: 0 | E190: 0 | F190: 0 | G190: 0 | H190: =IF(targets!D31="",targets!C31,targets!D31) -> 0 | I190: 0 | J190: 0 | K190: 0 | L190: 0 | M190: =IF(targets!E31="",targets!C31,targets!E31) -> 0
A191: ='SERVICE LEVELS'!B19 -> 0 | C191: =targets!C32 -> 0 | D191: 0 | E191: 0 | F191: 0 | G191: 0 | H191: =IF(targets!D32="",targets!C32,targets!D32) -> 0 | I191: 0 | J191: 0 | K191: 0 | L191: 0 | M191: =IF(targets!E32="",targets!C32,targets!E32) -> 0
A192: CUs served with municipal collection of recyclables
A193: =A189 -> 0 | C193: =C189*C$23 -> 
A194: =A190 -> 0 | C194: =C190*C$23 -> 
A195: =A191 -> 0 | C195: =C191*$C23 -> 
A196: Waste collected
A197: =A193 -> 0 | B197: (tons pa) | C197: =C193*IF('waste gen'!$D31="",'waste gen'!$C31,'waste gen'!$D31)/1000*52 ->  | D197: =D193*IF('waste gen'!$D31="",'waste gen'!$C31,'waste gen'!$D31)/1000*52 ->  | E197: =E193*IF('waste gen'!$D31="",'waste gen'!$C31,'waste gen'!$D31)/1000*52 ->  | F197: =F193*IF('waste gen'!$D31="",'waste gen'!$C31,'waste gen'!$D31)/1000*52 ->  | G197: =G193*IF('waste gen'!$D31="",'waste gen'!$C31,'waste gen'!$D31)/1000*52 ->  | H197: =H193*IF('waste gen'!$D31="",'waste gen'!$C31,'waste gen'!$D31)/1000*52 ->  | I197: =I193*IF('waste gen'!$D31="",'waste gen'!$C31,'waste gen'!$D31)/1000*52 ->  | J197: =J193*IF('waste gen'!$D31="",'waste gen'!$C31,'waste gen'!$D31)/1000*52 ->  | K197: =K193*IF('waste gen'!$D31="",'waste gen'!$C31,'waste gen'!$D31)/1000*52 ->  | L197: =L193*IF('waste gen'!$D31="",'waste gen'!$C31,'waste gen'!$D31)/1000*52 ->  | M197: =M193*IF('waste gen'!$D31="",'waste gen'!$C31,'waste gen'!$D31)/1000*52 -> 
A198: =A194 -> 0 | B198: (tons pa) | C198: =C194*IF('waste gen'!$D32="",'waste gen'!$C32,'waste gen'!$D32)/1000*52 ->  | D198: =D194*IF('waste gen'!$D32="",'waste gen'!$C32,'waste gen'!$D32)/1000*52 ->  | E198: =E194*IF('waste gen'!$D32="",'waste gen'!$C32,'waste gen'!$D32)/1000*52 ->  | F198: =F194*IF('waste gen'!$D32="",'waste gen'!$C32,'waste gen'!$D32)/1000*52 ->  | G198: =G194*IF('waste gen'!$D32="",'waste gen'!$C32,'waste gen'!$D32)/1000*52 ->  | H198: =H194*IF('waste gen'!$D32="",'waste gen'!$C32,'waste gen'!$D32)/1000*52 ->  | I198: =I194*IF('waste gen'!$D32="",'waste gen'!$C32,'waste gen'!$D32)/1000*52 ->  | J198: =J194*IF('waste gen'!$D32="",'waste gen'!$C32,'waste gen'!$D32)/1000*52 ->  | K198: =K194*IF('waste gen'!$D32="",'waste gen'!$C32,'waste gen'!$D32)/1000*52 ->  | L198: =L194*IF('waste gen'!$D32="",'waste gen'!$C32,'waste gen'!$D32)/1000*52 ->  | M198: =M194*IF('waste gen'!$D32="",'waste gen'!$C32,'waste gen'!$D32)/1000*52 -> 
A199: =A195 -> 0 | B199: (tons pa) | C199: =C195*IF('waste gen'!$D33="",'waste gen'!$C33,'waste gen'!$D33)/1000*52 ->  | D199: =D195*IF('waste gen'!$D33="",'waste gen'!$C33,'waste gen'!$D33)/1000*52 ->  | E199: =E195*IF('waste gen'!$D33="",'waste gen'!$C33,'waste gen'!$D33)/1000*52 ->  | F199: =F195*IF('waste gen'!$D33="",'waste gen'!$C33,'waste gen'!$D33)/1000*52 ->  | G199: =G195*IF('waste gen'!$D33="",'waste gen'!$C33,'waste gen'!$D33)/1000*52 ->  | H199: =H195*IF('waste gen'!$D33="",'waste gen'!$C33,'waste gen'!$D33)/1000*52 ->  | I199: =I195*IF('waste gen'!$D33="",'waste gen'!$C33,'waste gen'!$D33)/1000*52 ->  | J199: =J195*IF('waste gen'!$D33="",'waste gen'!$C33,'waste gen'!$D33)/1000*52 ->  | K199: =K195*IF('waste gen'!$D33="",'waste gen'!$C33,'waste gen'!$D33)/1000*52 ->  | L199: =L195*IF('waste gen'!$D33="",'waste gen'!$C33,'waste gen'!$D33)/1000*52 ->  | M199: =M195*IF('waste gen'!$D33="",'waste gen'!$C33,'waste gen'!$D33)/1000*52 -> 
A200: Total mass of municipal collection of recyclables | B200: (tons pa) | C200: =SUM(C197:C199) -> 
A202: Residential Recycling per income group
A203: =A189 -> 0
A204: high income | B204: (tons pa) | C204: =IF(C193>'e-inc'!D114,C197*'e-inc'!D122,'e-waste'!C197) ->  | D204: =IF(D193>'e-inc'!E114,D197*'e-inc'!E122,'e-waste'!D197) ->  | E204: =IF(E193>'e-inc'!F114,E197*'e-inc'!F122,'e-waste'!E197) ->  | F204: =IF(F193>'e-inc'!G114,F197*'e-inc'!G122,'e-waste'!F197) ->  | G204: =IF(G193>'e-inc'!H114,G197*'e-inc'!H122,'e-waste'!G197) ->  | H204: =IF(H193>'e-inc'!I114,H197*'e-inc'!I122,'e-waste'!H197) ->  | I204: =IF(I193>'e-inc'!J114,I197*'e-inc'!J122,'e-waste'!I197) ->  | J204: =IF(J193>'e-inc'!K114,J197*'e-inc'!K122,'e-waste'!J197) ->  | K204: =IF(K193>'e-inc'!L114,K197*'e-inc'!L122,'e-waste'!K197) ->  | L204: =IF(L193>'e-inc'!M114,L197*'e-inc'!M122,'e-waste'!L197) ->  | M204: =IF(M193>'e-inc'!N114,M197*'e-inc'!N122,'e-waste'!M197) -> 
A205: low income | B205: (tons pa) | C205: =IF(C193>'e-inc'!D114,C197*'e-inc'!D123,0) ->  | D205: =IF(D193>'e-inc'!E114,D197*'e-inc'!E123,0) ->  | E205: =IF(E193>'e-inc'!F114,E197*'e-inc'!F123,0) ->  | F205: =IF(F193>'e-inc'!G114,F197*'e-inc'!G123,0) ->  | G205: =IF(G193>'e-inc'!H114,G197*'e-inc'!H123,0) ->  | H205: =IF(H193>'e-inc'!I114,H197*'e-inc'!I123,0) ->  | I205: =IF(I193>'e-inc'!J114,I197*'e-inc'!J123,0) ->  | J205: =IF(J193>'e-inc'!K114,J197*'e-inc'!K123,0) ->  | K205: =IF(K193>'e-inc'!L114,K197*'e-inc'!L123,0) ->  | L205: =IF(L193>'e-inc'!M114,L197*'e-inc'!M123,0) ->  | M205: =IF(M193>'e-inc'!N114,M197*'e-inc'!N123,0) -> 
A206: =A190 -> 0
A207: high income | B207: (tons pa) | C207: =IF(C193>'e-inc'!D114,C198*'e-inc'!D122,C198) ->  | D207: =IF(D193>'e-inc'!E114,D198*'e-inc'!E122,D198) ->  | E207: =IF(E193>'e-inc'!F114,E198*'e-inc'!F122,E198) ->  | F207: =IF(F193>'e-inc'!G114,F198*'e-inc'!G122,F198) ->  | G207: =IF(G193>'e-inc'!H114,G198*'e-inc'!H122,G198) ->  | H207: =IF(H193>'e-inc'!I114,H198*'e-inc'!I122,H198) ->  | I207: =IF(I193>'e-inc'!J114,I198*'e-inc'!J122,I198) ->  | J207: =IF(J193>'e-inc'!K114,J198*'e-inc'!K122,J198) ->  | K207: =IF(K193>'e-inc'!L114,K198*'e-inc'!L122,K198) ->  | L207: =IF(L193>'e-inc'!M114,L198*'e-inc'!M122,L198) ->  | M207: =IF(M193>'e-inc'!N114,M198*'e-inc'!N122,M198) -> 
A208: low income | B208: (tons pa) | C208: =IF(C193>'e-inc'!D114,'e-inc'!D123*'e-waste'!C198,0) ->  | D208: =IF(D193>'e-inc'!E114,'e-inc'!E123*'e-waste'!D198,0) ->  | E208: =IF(E193>'e-inc'!F114,'e-inc'!F123*'e-waste'!E198,0) ->  | F208: =IF(F193>'e-inc'!G114,'e-inc'!G123*'e-waste'!F198,0) ->  | G208: =IF(G193>'e-inc'!H114,'e-inc'!H123*'e-waste'!G198,0) ->  | H208: =IF(H193>'e-inc'!I114,'e-inc'!I123*'e-waste'!H198,0) ->  | I208: =IF(I193>'e-inc'!J114,'e-inc'!J123*'e-waste'!I198,0) ->  | J208: =IF(J193>'e-inc'!K114,'e-inc'!K123*'e-waste'!J198,0) ->  | K208: =IF(K193>'e-inc'!L114,'e-inc'!L123*'e-waste'!K198,0) ->  | L208: =IF(L193>'e-inc'!M114,'e-inc'!M123*'e-waste'!L198,0) ->  | M208: =IF(M193>'e-inc'!N114,'e-inc'!N123*'e-waste'!M198,0) -> 
A209: =A191 -> 0
A210: high income | B210: (tons pa) | C210: =IF(C193>'e-inc'!D114,'e-inc'!D122*'e-waste'!C199,'e-waste'!C199) ->  | D210: =IF(D193>'e-inc'!E114,'e-inc'!E122*'e-waste'!D199,'e-waste'!D199) ->  | E210: =IF(E193>'e-inc'!F114,'e-inc'!F122*'e-waste'!E199,'e-waste'!E199) ->  | F210: =IF(F193>'e-inc'!G114,'e-inc'!G122*'e-waste'!F199,'e-waste'!F199) ->  | G210: =IF(G193>'e-inc'!H114,'e-inc'!H122*'e-waste'!G199,'e-waste'!G199) ->  | H210: =IF(H193>'e-inc'!I114,'e-inc'!I122*'e-waste'!H199,'e-waste'!H199) ->  | I210: =IF(I193>'e-inc'!J114,'e-inc'!J122*'e-waste'!I199,'e-waste'!I199) ->  | J210: =IF(J193>'e-inc'!K114,'e-inc'!K122*'e-waste'!J199,'e-waste'!J199) ->  | K210: =IF(K193>'e-inc'!L114,'e-inc'!L122*'e-waste'!K199,'e-waste'!K199) ->  | L210: =IF(L193>'e-inc'!M114,'e-inc'!M122*'e-waste'!L199,'e-waste'!L199) ->  | M210: =IF(M193>'e-inc'!N114,'e-inc'!N122*'e-waste'!M199,'e-waste'!M199) -> 
A211: low income | B211: (tons pa) | C211: =IF(C193>'e-inc'!D114,'e-inc'!D123*'e-waste'!C199,0) ->  | D211: =IF(D193>'e-inc'!E114,'e-inc'!E123*'e-waste'!D199,0) ->  | E211: =IF(E193>'e-inc'!F114,'e-inc'!F123*'e-waste'!E199,0) ->  | F211: =IF(F193>'e-inc'!G114,'e-inc'!G123*'e-waste'!F199,0) ->  | G211: =IF(G193>'e-inc'!H114,'e-inc'!H123*'e-waste'!G199,0) ->  | H211: =IF(H193>'e-inc'!I114,'e-inc'!I123*'e-waste'!H199,0) ->  | I211: =IF(I193>'e-inc'!J114,'e-inc'!J123*'e-waste'!I199,0) ->  | J211: =IF(J193>'e-inc'!K114,'e-inc'!K123*'e-waste'!J199,0) ->  | K211: =IF(K193>'e-inc'!L114,'e-inc'!L123*'e-waste'!K199,0) ->  | L211: =IF(L193>'e-inc'!M114,'e-inc'!M123*'e-waste'!L199,0) ->  | M211: =IF(M193>'e-inc'!N114,'e-inc'!N123*'e-waste'!M199,0) -> 
A212: TRANSFER STATIONS
A213: % Municipal waste through transfer stations | B213: (tons pa) | C213: =targets!C52 ->  | D213: =($H213-$C213)/5+C213 ->  | G213: =($H213-$C213)/5+F213 ->  | H213: =IF(targets!D52="",targets!C52,targets!D52) ->  | I213: =($M213-$H213)/5+H213 ->  | M213: =IF(targets!E52="",targets!C52,targets!E52) -> 
A214: % transfer station waste delivered directly | C214: =targets!C53 ->  | H214: =IF(targets!D53="",targets!C53,targets!D53) ->  | M214: =IF(targets!E53="",targets!C53,targets!E53) -> 
A215: Municipal waste through transfer stations | C215: =C213*C184 ->  | D215: =D213*D184 -> 
A216: Waste delivered directly to transfer stations | C216: =C215*C214/(1-C214) -> 
A217: Chargeable waste delivered to transfer stations | C217: =C216*(1-IF('WASTE FACILITIES'!$D$15="",'WASTE FACILITIES'!$C$15,'WASTE FACILITIES'!$D$15)) ->  | D217: =D216*(1-IF('WASTE FACILITIES'!$D$15="",'WASTE FACILITIES'!$C$15,'WASTE FACILITIES'!$D$15)) ->  | E217: =E216*(1-IF('WASTE FACILITIES'!$D$15="",'WASTE FACILITIES'!$C$15,'WASTE FACILITIES'!$D$15)) ->  | F217: =F216*(1-IF('WASTE FACILITIES'!$D$15="",'WASTE FACILITIES'!$C$15,'WASTE FACILITIES'!$D$15)) ->  | G217: =G216*(1-IF('WASTE FACILITIES'!$D$15="",'WASTE FACILITIES'!$C$15,'WASTE FACILITIES'!$D$15)) ->  | H217: =H216*(1-IF('WASTE FACILITIES'!$D$15="",'WASTE FACILITIES'!$C$15,'WASTE FACILITIES'!$D$15)) ->  | I217: =I216*(1-IF('WASTE FACILITIES'!$D$15="",'WASTE FACILITIES'!$C$15,'WASTE FACILITIES'!$D$15)) ->  | J217: =J216*(1-IF('WASTE FACILITIES'!$D$15="",'WASTE FACILITIES'!$C$15,'WASTE FACILITIES'!$D$15)) ->  | K217: =K216*(1-IF('WASTE FACILITIES'!$D$15="",'WASTE FACILITIES'!$C$15,'WASTE FACILITIES'!$D$15)) ->  | L217: =L216*(1-IF('WASTE FACILITIES'!$D$15="",'WASTE FACILITIES'!$C$15,'WASTE FACILITIES'!$D$15)) ->  | M217: =M216*(1-IF('WASTE FACILITIES'!$D$15="",'WASTE FACILITIES'!$C$15,'WASTE FACILITIES'!$D$15)) -> 
A218: Total mass through transfer stations | C218: =SUM(C215:C216) -> 
... 168 more rows

Sheet e-opex
A1: OPERATING COSTS | F1: All monetary values in REAL terms
A2: Key: | B2: from user input sheets
B3: key outputs used in other sheets
A6: Year | D6: =Base_year -> 0 | E6: =Base_year+1 -> 1 | F6: =Base_year+2 -> 2 | G6: =Base_year+3 -> 3 | H6: =Base_year+4 -> 4 | I6: =Base_year+5 -> 5 | J6: =Base_year+6 -> 6 | K6: =Base_year+7 -> 7 | L6: =Base_year+8 -> 8 | M6: =Base_year+9 -> 9 | N6: =Base_year+10 -> 10
A8: SUMMARY OPERATING COSTS | E8: All values in thousands of Rands, real
A9: Residential storage and collection | B9: R'000 pa | D9: =D56 -> 0 | E9: 0 | F9: 0 | G9: 0 | H9: 0 | I9: 0 | J9: 0 | K9: 0 | L9: 0 | M9: 0 | N9: 0
A10: Non-residential storage and collection | B10: R'000 pa | D10: =SUM(D75:D78,D81) -> 
A11: Household collection of recycleables | B11: R'000 pa | D11: =SUM(D64:D66) -> 
A12: Public cleansing | B12: R'000 pa | D12: =SUM(D88:D89) -> 
A13: Transfer stations | B13: R'000 pa | D13: =D104 ->  | E13: =E104 -> 
A14: Recycling | B14: R'000 pa | D14: =D114 -> 
A15: Landfill | B15: R'000 pa | D15: =SUM(D146:D147) -> 
A16: Waste-to-energy | B16: R'000 pa | D16: =D124 -> 
A17: Landfill gas | B17: R'000 pa | D17: =D134 -> 0 | E17: =E134 -> 0 | F17: 0 | G17: 0 | H17: 0 | I17: 0 | J17: 0 | K17: 0 | L17: 0 | M17: 0 | N17: 0
A18: Other expenditure | B18: R'000 pa | D18: =D161 -> 0
A19: Provision for bad debt | B19: R'000 pa | D19: =D169 -> 0 | E19: =E169 -> 
A20: Depreciation | B20: R'000 pa | D20: =D184 ->  | E20: =E184 ->  | F20: =F184 -> 
A21: Interest | B21: R'000 pa | D21: =E21 -> 0 | E21: ='e-loans'!C25 -> 0 | F21: ='e-loans'!D25 ->  | G21: ='e-loans'!E25 ->  | H21: ='e-loans'!F25 ->  | I21: ='e-loans'!G25 ->  | J21: ='e-loans'!H25 ->  | K21: ='e-loans'!I25 ->  | L21: ='e-loans'!J25 ->  | M21: ='e-loans'!K25 ->  | N21: ='e-loans'!L25 -> 
A22: Contribution to capital reserves | B22: R'000 pa | D22: =D200 -> 0 | E22: =E200 -> 0 | F22: 0 | G22: 0 | H22: 0 | I22: 0 | J22: 0 | K22: 0 | L22: 0 | M22: 0 | N22: 0
A24: total operating costs | B24: R'000 pa | D24: =SUM(D9:D22) ->  | E24: =SUM(E9:E22) -> 
A26: total operating cost per chargeable ton | D26: =D24*1000/SUM('e-waste'!C184,'e-waste'!C217,'e-waste'!C349) ->  | E26: =E24*1000/SUM('e-waste'!D184,'e-waste'!D217,'e-waste'!D349) ->  | F26: =F24*1000/SUM('e-waste'!E184,'e-waste'!E217,'e-waste'!E349) ->  | G26: =G24*1000/SUM('e-waste'!F184,'e-waste'!F217,'e-waste'!F349) ->  | H26: =H24*1000/SUM('e-waste'!G184,'e-waste'!G217,'e-waste'!G349) ->  | I26: =I24*1000/SUM('e-waste'!H184,'e-waste'!H217,'e-waste'!H349) ->  | J26: =J24*1000/SUM('e-waste'!I184,'e-waste'!I217,'e-waste'!I349) ->  | K26: =K24*1000/SUM('e-waste'!J184,'e-waste'!J217,'e-waste'!J349) ->  | L26: =L24*1000/SUM('e-waste'!K184,'e-waste'!K217,'e-waste'!K349) ->  | M26: =M24*1000/SUM('e-waste'!L184,'e-waste'!L217,'e-waste'!L349) ->  | N26: =N24*1000/SUM('e-waste'!M184,'e-waste'!M217,'e-waste'!M349) -> 
A27: total operating cost per handled ton | D27: =D24*1000/SUM('e-waste'!C348,'e-waste'!C216,'e-waste'!C184) ->  | E27: =E24*1000/SUM('e-waste'!D348,'e-waste'!D216,'e-waste'!D184) ->  | F27: =F24*1000/SUM('e-waste'!E348,'e-waste'!E216,'e-waste'!E184) ->  | G27: =G24*1000/SUM('e-waste'!F348,'e-waste'!F216,'e-waste'!F184) ->  | H27: =H24*1000/SUM('e-waste'!G348,'e-waste'!G216,'e-waste'!G184) ->  | I27: =I24*1000/SUM('e-waste'!H348,'e-waste'!H216,'e-waste'!H184) ->  | J27: =J24*1000/SUM('e-waste'!I348,'e-waste'!I216,'e-waste'!I184) ->  | K27: =K24*1000/SUM('e-waste'!J348,'e-waste'!J216,'e-waste'!J184) ->  | L27: =L24*1000/SUM('e-waste'!K348,'e-waste'!K216,'e-waste'!K184) ->  | M27: =M24*1000/SUM('e-waste'!L348,'e-waste'!L216,'e-waste'!L184) ->  | N27: =N24*1000/SUM('e-waste'!M348,'e-waste'!M216,'e-waste'!M184) -> 
A29: REAL INCREASE IN OPERATING COSTS
E30: =Base_year+1 -> 1 | F30: =Base_year+2 -> 2 | G30: =Base_year+3 -> 3 | H30: =Base_year+4 -> 4 | I30: =Base_year+5 -> 5 | J30: =Base_year+6 -> 6 | K30: =Base_year+7 -> 7 | L30: =Base_year+8 -> 8 | M30: =Base_year+9 -> 9 | N30: =Base_year+10 -> 10
A31: =targets!B94 -> Real cost increase for storage and collection costs | E31: =targets!C94 -> 0 | F31: =(I31-E31)/4+E31 -> 0 | G31: =(I31-E31)/4+F31 -> 0 | H31: =(I31-E31/4)+G31 -> 0 | I31: =IF(targets!D94="",targets!C94,targets!D94) -> 0 | J31: =(N31-I31)/5+I31 -> 0 | K31: =(N31-I31)/5+J31 -> 0 | L31: =(N31-I31)/5+K31 -> 0 | M31: =(N31-I31)/5+L31 -> 0 | N31: =IF(targets!E94="",targets!C94,targets!E94) -> 0
A32: =targets!B95 -> Real cost increase for transfer station operating costs | E32: =targets!C95 -> 0 | F32: =(I32-E32)/4+E32 -> 0 | G32: =(I32-E32)/4+F32 -> 0 | H32: =(I32-E32/4)+G32 -> 0 | I32: =IF(targets!D95="",targets!C95,targets!D95) -> 0 | J32: =(N32-I32)/5+I32 -> 0 | K32: =(N32-I32)/5+J32 -> 0 | L32: =(N32-I32)/5+K32 -> 0 | M32: =(N32-I32)/5+L32 -> 0 | N32: =IF(targets!E95="",targets!C95,targets!E95) -> 0
A33: =targets!B96 -> Real cost increase for disposal operating costs | E33: =targets!C96 -> 0 | F33: =(I33-E33)/4+E33 -> 0 | G33: =(I33-E33)/4+F33 -> 0 | H33: =(I33-E33/4)+G33 -> 0 | I33: =IF(targets!D96="",targets!C96,targets!D96) -> 0 | J33: =(N33-I33)/5+I33 -> 0 | K33: =(N33-I33)/5+J33 -> 0 | L33: =(N33-I33)/5+K33 -> 0 | M33: =(N33-I33)/5+L33 -> 0 | N33: =IF(targets!E96="",targets!C96,targets!E96) -> 0
A35: RESIDENTIAL STORAGE AND COLLECTION COSTS
C36: responsibility | D36: =Base_year -> 0 | E36: =Base_year+1 -> 1 | F36: =Base_year+2 -> 2 | G36: =Base_year+3 -> 3 | H36: =Base_year+4 -> 4 | I36: =Base_year+5 -> 5 | J36: =Base_year+6 -> 6 | K36: =Base_year+7 -> 7 | L36: =Base_year+8 -> 8 | M36: =Base_year+9 -> 9 | N36: =Base_year+10 -> 10
A37: =IF('SERVICE LEVELS'!B6="","",'SERVICE LEVELS'!B6) -> No service | B37: R/CU/month | D37: =IFERROR(IF($C37="","",IF(C37="municipality",IF('unit costs'!$D7="",'unit costs'!$C7,'unit costs'!$D7),IF(C37="Full Contract",IF('unit costs'!$F7="",'unit costs'!$E7,'unit costs'!$F7),IF(C37="Labour only contract",IF('unit costs'!$H7="",'unit costs'!$G7,'unit costs'!$H7),IF(C37="none",0))))),"") ->  | E37: =IFERROR(D37+D37*E31,"") -> 
A38: =IF('SERVICE LEVELS'!B7="","",'SERVICE LEVELS'!B7) ->  | B38: R/CU/month | C38: =IF(A38="","",(VLOOKUP(A38,'SERVICE LEVELS'!$B$5:$D$13,2,FALSE))) ->  | D38: =IFERROR(IF($C38="",0,IF(C38="municipality",IF('unit costs'!$D7="",'unit costs'!$C7,'unit costs'!$D7),IF(C38="Full Contract",IF('unit costs'!$F7="",'unit costs'!$E7,'unit costs'!$F7),IF(C38="Labour only contract",IF('unit costs'!$H7="",'unit costs'!$G7,'unit costs'!$H7),IF(C38="none",0))))),"") -> 0 | E38: =IFERROR(D38+D38*E$33,"") -> 0 | F38: =IFERROR(E38+E38*F$33,"") -> 0 | G38: 0 | H38: 0 | I38: 0 | J38: 0 | K38: 0 | L38: 0 | M38: 0 | N38: 0
A39: =IF('SERVICE LEVELS'!B8="","",'SERVICE LEVELS'!B8) ->  | B39: R/CU/month | C39: =IF(A39="","",(VLOOKUP(A39,'SERVICE LEVELS'!$B$5:$D$13,2,FALSE))) ->  | D39: =IFERROR(IF($C39="",0,IF(C39="municipality",IF('unit costs'!$D8="",'unit costs'!$C8,'unit costs'!$D8),IF(C39="Full Contract",IF('unit costs'!$F8="",'unit costs'!$E8,'unit costs'!$F8),IF(C39="Labour only contract",IF('unit costs'!$H8="",'unit costs'!$G8,'unit costs'!$H8),IF(C39="none",0))))),"") -> 0 | E39: =IFERROR(D39+D39*E$33,"") -> 0 | F39: 0 | G39: 0 | H39: 0 | I39: 0 | J39: 0 | K39: 0 | L39: 0 | M39: 0 | N39: 0
A40: =IF('SERVICE LEVELS'!B9="","",'SERVICE LEVELS'!B9) ->  | B40: R/CU/month | C40: =IF(A40="","",(VLOOKUP(A40,'SERVICE LEVELS'!$B$5:$D$13,2,FALSE))) ->  | D40: =IFERROR(IF($C40="",0,IF(C40="municipality",IF('unit costs'!$D9="",'unit costs'!$C9,'unit costs'!$D9),IF(C40="Full Contract",IF('unit costs'!$F9="",'unit costs'!$E9,'unit costs'!$F9),IF(C40="Labour only contract",IF('unit costs'!$H9="",'unit costs'!$G9,'unit costs'!$H9),IF(C40="none",0))))),"") -> 0 | E40: 0 | F40: 0 | G40: 0 | H40: 0 | I40: 0 | J40: 0 | K40: 0 | L40: 0 | M40: 0 | N40: 0
A41: =IF('SERVICE LEVELS'!B10="","",'SERVICE LEVELS'!B10) ->  | B41: R/CU/month | C41: =IF(A41="","",(VLOOKUP(A41,'SERVICE LEVELS'!$B$5:$D$13,2,FALSE))) ->  | D41: =IFERROR(IF($C41="",0,IF(C41="municipality",IF('unit costs'!$D10="",'unit costs'!$C10,'unit costs'!$D10),IF(C41="Full Contract",IF('unit costs'!$F10="",'unit costs'!$E10,'unit costs'!$F10),IF(C41="Labour only contract",IF('unit costs'!$H10="",'unit costs'!$G10,'unit costs'!$H10),IF(C41="none",0))))),"") -> 0 | E41: 0 | F41: 0 | G41: 0 | H41: 0 | I41: 0 | J41: 0 | K41: 0 | L41: 0 | M41: 0 | N41: 0
A42: =IF('SERVICE LEVELS'!B11="","",'SERVICE LEVELS'!B11) ->  | B42: R/CU/month | C42: =IF(A42="","",(VLOOKUP(A42,'SERVICE LEVELS'!$B$5:$D$13,2,FALSE))) ->  | D42: =IFERROR(IF($C42="",0,IF(C42="municipality",IF('unit costs'!$D11="",'unit costs'!$C11,'unit costs'!$D11),IF(C42="Full Contract",IF('unit costs'!$F11="",'unit costs'!$E11,'unit costs'!$F11),IF(C42="Labour only contract",IF('unit costs'!$H11="",'unit costs'!$G11,'unit costs'!$H11),IF(C42="none",0))))),"") -> 0 | E42: 0 | F42: 0 | G42: 0 | H42: 0 | I42: 0 | J42: 0 | K42: 0 | L42: 0 | M42: 0 | N42: 0
A43: =IF('SERVICE LEVELS'!B12="","",'SERVICE LEVELS'!B12) ->  | B43: R/CU/month | C43: =IF(A43="","",(VLOOKUP(A43,'SERVICE LEVELS'!$B$5:$D$13,2,FALSE))) ->  | D43: =IFERROR(IF($C43="",0,IF(C43="municipality",IF('unit costs'!$D12="",'unit costs'!$C12,'unit costs'!$D12),IF(C43="Full Contract",IF('unit costs'!$F12="",'unit costs'!$E12,'unit costs'!$F12),IF(C43="Labour only contract",IF('unit costs'!$H12="",'unit costs'!$G12,'unit costs'!$H12),IF(C43="none",0))))),"") -> 0 | E43: 0 | F43: 0 | G43: 0 | H43: 0 | I43: 0 | J43: 0 | K43: 0 | L43: 0 | M43: 0 | N43: 0
A44: =IF('SERVICE LEVELS'!B13="","",'SERVICE LEVELS'!B13) ->  | B44: R/CU/month | C44: =IF(A44="","",(VLOOKUP(A44,'SERVICE LEVELS'!$B$5:$D$13,2,FALSE))) ->  | D44: =IFERROR(IF($C44="",0,IF(C44="municipality",IF('unit costs'!$D13="",'unit costs'!$C13,'unit costs'!$D13),IF(C44="Full Contract",IF('unit costs'!$F13="",'unit costs'!$E13,'unit costs'!$F13),IF(C44="Labour only contract",IF('unit costs'!$H13="",'unit costs'!$G13,'unit costs'!$H13),IF(C44="none",0))))),"") -> 0 | E44: 0 | F44: 0 | G44: 0 | H44: 0 | I44: 0 | J44: 0 | K44: 0 | L44: 0 | M44: 0 | N44: 0
A45: =IF('SERVICE LEVELS'!B14="","",'SERVICE LEVELS'!B14) ->  | B45: R/CU/month | C45: =IF(A45="","",(VLOOKUP(A45,'SERVICE LEVELS'!$B$5:$D$13,2,FALSE))) ->  | D45: =IFERROR(IF($C45="",0,IF(C45="municipality",IF('unit costs'!$D14="",'unit costs'!$C14,'unit costs'!$D14),IF(C45="Full Contract",IF('unit costs'!$F14="",'unit costs'!$E14,'unit costs'!$F14),IF(C45="Labour only contract",IF('unit costs'!$H14="",'unit costs'!$G14,'unit costs'!$H14),IF(C45="none",0))))),"") -> 0 | E45: 0 | F45: 0 | G45: 0 | H45: 0 | I45: 0 | J45: 0 | K45: 0 | L45: 0 | M45: 0 | N45: 0
A47: =A37 -> No service | B47: R'000 pa | D47: =IFERROR(D37*'e-waste'!C15*12/1000,"") ->  | E47: =IFERROR(E37*'e-waste'!D15,"") ->  | F47: =IFERROR(F37*'e-waste'!E15,"") ->  | G47: =IFERROR(G37*'e-waste'!F15,"") ->  | H47: =IFERROR(H37*'e-waste'!G15,"") ->  | I47: =IFERROR(I37*'e-waste'!H15,"") ->  | J47: =IFERROR(J37*'e-waste'!I15,"") ->  | K47: =IFERROR(K37*'e-waste'!J15,"") ->  | L47: =IFERROR(L37*'e-waste'!K15,"") ->  | M47: =IFERROR(M37*'e-waste'!L15,"") ->  | N47: =IFERROR(N37*'e-waste'!M15,"") -> 
A48: =A38 ->  | B48: R'000 pa | D48: =IFERROR(D38*'e-waste'!C16*12/1000,"") -> 0 | E48: =IFERROR(E38*'e-waste'!D16*12/1000,"") ->  | F48: =IFERROR(F38*'e-waste'!E16*12/1000,"") ->  | G48: =IFERROR(G38*'e-waste'!F16*12/1000,"") ->  | H48: =IFERROR(H38*'e-waste'!G16*12/1000,"") ->  | I48: =IFERROR(I38*'e-waste'!H16*12/1000,"") ->  | J48: =IFERROR(J38*'e-waste'!I16*12/1000,"") ->  | K48: =IFERROR(K38*'e-waste'!J16*12/1000,"") ->  | L48: =IFERROR(L38*'e-waste'!K16*12/1000,"") ->  | M48: =IFERROR(M38*'e-waste'!L16*12/1000,"") ->  | N48: =IFERROR(N38*'e-waste'!M16*12/1000,"") -> 
A49: =A39 ->  | B49: R'000 pa | D49: =IFERROR(D39*'e-waste'!C17*12/1000,"") -> 0 | E49: =IFERROR(E39*'e-waste'!D17*12/1000,"") ->  | F49: =IFERROR(F39*'e-waste'!E17*12/1000,"") ->  | G49: =IFERROR(G39*'e-waste'!F17*12/1000,"") ->  | H49: =IFERROR(H39*'e-waste'!G17*12/1000,"") ->  | I49: =IFERROR(I39*'e-waste'!H17*12/1000,"") ->  | J49: =IFERROR(J39*'e-waste'!I17*12/1000,"") ->  | K49: =IFERROR(K39*'e-waste'!J17*12/1000,"") ->  | L49: =IFERROR(L39*'e-waste'!K17*12/1000,"") ->  | M49: =IFERROR(M39*'e-waste'!L17*12/1000,"") ->  | N49: =IFERROR(N39*'e-waste'!M17*12/1000,"") -> 
A50: =A40 ->  | B50: R'000 pa | D50: =IFERROR(D40*'e-waste'!C18*12/1000,"") -> 0 | E50: =IFERROR(E40*'e-waste'!D18*12/1000,"") ->  | F50: =IFERROR(F40*'e-waste'!E18*12/1000,"") ->  | G50: =IFERROR(G40*'e-waste'!F18*12/1000,"") ->  | H50: =IFERROR(H40*'e-waste'!G18*12/1000,"") ->  | I50: =IFERROR(I40*'e-waste'!H18*12/1000,"") ->  | J50: =IFERROR(J40*'e-waste'!I18*12/1000,"") ->  | K50: =IFERROR(K40*'e-waste'!J18*12/1000,"") ->  | L50: =IFERROR(L40*'e-waste'!K18*12/1000,"") ->  | M50: =IFERROR(M40*'e-waste'!L18*12/1000,"") ->  | N50: =IFERROR(N40*'e-waste'!M18*12/1000,"") -> 
B51: R'000 pa | D51: =IFERROR(D41*'e-waste'!C19*12/1000,"") -> 0 | E51: =IFERROR(E41*'e-waste'!D19*12/1000,"") ->  | F51: =IFERROR(F41*'e-waste'!E19*12/1000,"") ->  | G51: =IFERROR(G41*'e-waste'!F19*12/1000,"") ->  | H51: =IFERROR(H41*'e-waste'!G19*12/1000,"") ->  | I51: =IFERROR(I41*'e-waste'!H19*12/1000,"") ->  | J51: =IFERROR(J41*'e-waste'!I19*12/1000,"") ->  | K51: =IFERROR(K41*'e-waste'!J19*12/1000,"") ->  | L51: =IFERROR(L41*'e-waste'!K19*12/1000,"") ->  | M51: =IFERROR(M41*'e-waste'!L19*12/1000,"") ->  | N51: =IFERROR(N41*'e-waste'!M19*12/1000,"") -> 
B52: R'000 pa | D52: =IFERROR(D42*'e-waste'!C20*12/1000,"") -> 0 | E52: =IFERROR(E42*'e-waste'!D20*12/1000,"") ->  | F52: =IFERROR(F42*'e-waste'!E20*12/1000,"") ->  | G52: =IFERROR(G42*'e-waste'!F20*12/1000,"") ->  | H52: =IFERROR(H42*'e-waste'!G20*12/1000,"") ->  | I52: =IFERROR(I42*'e-waste'!H20*12/1000,"") ->  | J52: =IFERROR(J42*'e-waste'!I20*12/1000,"") ->  | K52: =IFERROR(K42*'e-waste'!J20*12/1000,"") ->  | L52: =IFERROR(L42*'e-waste'!K20*12/1000,"") ->  | M52: =IFERROR(M42*'e-waste'!L20*12/1000,"") ->  | N52: =IFERROR(N42*'e-waste'!M20*12/1000,"") -> 
B53: R'000 pa | D53: =IFERROR(D43*'e-waste'!C21*12/1000,"") -> 0 | E53: =IFERROR(E43*'e-waste'!D21*12/1000,"") ->  | F53: =IFERROR(F43*'e-waste'!E21*12/1000,"") ->  | G53: =IFERROR(G43*'e-waste'!F21*12/1000,"") ->  | H53: =IFERROR(H43*'e-waste'!G21*12/1000,"") ->  | I53: =IFERROR(I43*'e-waste'!H21*12/1000,"") ->  | J53: =IFERROR(J43*'e-waste'!I21*12/1000,"") ->  | K53: =IFERROR(K43*'e-waste'!J21*12/1000,"") ->  | L53: =IFERROR(L43*'e-waste'!K21*12/1000,"") ->  | M53: =IFERROR(M43*'e-waste'!L21*12/1000,"") ->  | N53: =IFERROR(N43*'e-waste'!M21*12/1000,"") -> 
B54: R'000 pa | D54: =IFERROR(D44*'e-waste'!C22*12/1000,"") -> 0 | E54: =IFERROR(E44*'e-waste'!D22*12/1000,"") ->  | F54: =IFERROR(F44*'e-waste'!E22*12/1000,"") ->  | G54: =IFERROR(G44*'e-waste'!F22*12/1000,"") ->  | H54: =IFERROR(H44*'e-waste'!G22*12/1000,"") ->  | I54: =IFERROR(I44*'e-waste'!H22*12/1000,"") ->  | J54: =IFERROR(J44*'e-waste'!I22*12/1000,"") ->  | K54: =IFERROR(K44*'e-waste'!J22*12/1000,"") ->  | L54: =IFERROR(L44*'e-waste'!K22*12/1000,"") ->  | M54: =IFERROR(M44*'e-waste'!L22*12/1000,"") ->  | N54: =IFERROR(N44*'e-waste'!M22*12/1000,"") -> 
B56: Total residential (R'000 pa) | D56: =IFERROR(SUM(D47:D54),"") -> 0 | E56: 0 | F56: 0 | G56: 0 | H56: 0 | I56: 0 | J56: 0 | K56: 0 | L56: 0 | M56: 0 | N56: 0
A58: HOUSEHOLD COLLECTION OF RECYCLABLES (R'000 pa)
A59: ='e-waste'!A188 -> Split of service levels | C59: responsibility | D59: =Base_year -> 0 | E59: =Base_year+1 -> 1 | F59: =Base_year+2 -> 2 | G59: =Base_year+3 -> 3 | H59: =Base_year+4 -> 4 | I59: =Base_year+5 -> 5 | J59: =Base_year+6 -> 6 | K59: =Base_year+7 -> 7 | L59: =Base_year+8 -> 8 | M59: =Base_year+9 -> 9 | N59: =Base_year+10 -> 10
A60: =IF('SERVICE LEVELS'!B17="","",'SERVICE LEVELS'!B17) ->  | B60: R/CU/month | C60: =IF(A60="","",VLOOKUP(A60,'SERVICE LEVELS'!$B$17:$D$19,2,FALSE)) ->  | D60: =IFERROR(IF(C60="",0,IF(C60="municipality",IF('unit costs'!$D19="",'unit costs'!$C19,'unit costs'!$D19),IF(C60="Full Contract",IF('unit costs'!$F19="",'unit costs'!$E19,'unit costs'!$F19),IF(C60="Labour only contract",IF('unit costs'!$H19="",'unit costs'!$G19,'unit costs'!$H19),IF(C60="none",0))))),0) -> 0 | E60: =IFERROR(D60+D60*E$31,"") -> 0 | F60: =IFERROR(E60+E60*F$31,"") -> 0 | G60: 0 | H60: 0 | I60: 0 | J60: 0 | K60: 0 | L60: 0 | M60: 0 | N60: 0
A61: =IF('SERVICE LEVELS'!B18="","",'SERVICE LEVELS'!B18) ->  | B61: R/CU/month | C61: =IF(A61="","",VLOOKUP(A61,'SERVICE LEVELS'!$B$17:$D$19,2,FALSE)) ->  | D61: =IFERROR(IF(C61="",0,IF(C61="municipality",IF('unit costs'!$D20="",'unit costs'!$C20,'unit costs'!$D20),IF(C61="Full Contract",IF('unit costs'!$F20="",'unit costs'!$E20,'unit costs'!$F20),IF(C61="Labour only contract",IF('unit costs'!$H20="",'unit costs'!$G20,'unit costs'!$H20),IF(C61="none",0))))),0) -> 0 | E61: =IFERROR(D61+D61*E$31,"") -> 0 | F61: 0 | G61: 0 | H61: 0 | I61: 0 | J61: 0 | K61: 0 | L61: 0 | M61: 0 | N61: 0
A62: =IF('SERVICE LEVELS'!B19="","",'SERVICE LEVELS'!B19) ->  | B62: R/CU/month | C62: =IF(A62="","",VLOOKUP(A62,'SERVICE LEVELS'!$B$17:$D$19,2,FALSE)) ->  | D62: =IFERROR(IF(C62="",0,IF(C62="municipality",IF('unit costs'!$D21="",'unit costs'!$C21,'unit costs'!$D21),IF(C62="Full Contract",IF('unit costs'!$F21="",'unit costs'!$E21,'unit costs'!$F21),IF(C62="Labour only contract",IF('unit costs'!$H21="",'unit costs'!$G21,'unit costs'!$H21),IF(C62="none",0))))),0) -> 0 | E62: 0 | F62: 0 | G62: 0 | H62: 0 | I62: 0 | J62: 0 | K62: 0 | L62: 0 | M62: 0 | N62: 0
A64: =A60 ->  | B64: R'000 pa | D64: =D60*12*'e-waste'!C193/1000 ->  | E64: =E60*12*'e-waste'!D193/1000 ->  | F64: =F60*12*'e-waste'!E193/1000 ->  | G64: =G60*12*'e-waste'!F193/1000 ->  | H64: =H60*12*'e-waste'!G193/1000 ->  | I64: =I60*12*'e-waste'!H193/1000 ->  | J64: =J60*12*'e-waste'!I193/1000 ->  | K64: =K60*12*'e-waste'!J193/1000 ->  | L64: =L60*12*'e-waste'!K193/1000 ->  | M64: =M60*12*'e-waste'!L193/1000 ->  | N64: =N60*12*'e-waste'!M193/1000 -> 
A65: =A61 ->  | B65: R'000 pa | D65: =IFERROR(D61*12*'e-waste'!C194/1000,"") ->  | E65: =IFERROR(E61*12*'e-waste'!D194/1000,"") ->  | F65: =IFERROR(F61*12*'e-waste'!E194/1000,"") ->  | G65: =IFERROR(G61*12*'e-waste'!F194/1000,"") ->  | H65: =IFERROR(H61*12*'e-waste'!G194/1000,"") ->  | I65: =IFERROR(I61*12*'e-waste'!H194/1000,"") ->  | J65: =IFERROR(J61*12*'e-waste'!I194/1000,"") ->  | K65: =IFERROR(K61*12*'e-waste'!J194/1000,"") ->  | L65: =IFERROR(L61*12*'e-waste'!K194/1000,"") ->  | M65: =IFERROR(M61*12*'e-waste'!L194/1000,"") ->  | N65: =IFERROR(N61*12*'e-waste'!M194/1000,"") -> 
A66: =A62 ->  | B66: R'000 pa | D66: =IFERROR(D62*12*'e-waste'!C195/1000,"") ->  | E66: =IFERROR(E62*12*'e-waste'!D195/1000,"") ->  | F66: =IFERROR(F62*12*'e-waste'!E195/1000,"") ->  | G66: =IFERROR(G62*12*'e-waste'!F195/1000,"") ->  | H66: =IFERROR(H62*12*'e-waste'!G195/1000,"") ->  | I66: =IFERROR(I62*12*'e-waste'!H195/1000,"") ->  | J66: =IFERROR(J62*12*'e-waste'!I195/1000,"") ->  | K66: =IFERROR(K62*12*'e-waste'!J195/1000,"") ->  | L66: =IFERROR(L62*12*'e-waste'!K195/1000,"") ->  | M66: =IFERROR(M62*12*'e-waste'!L195/1000,"") ->  | N66: =IFERROR(N62*12*'e-waste'!M195/1000,"") -> 
A68: NON RESIDENTIAL COLLECTION AND STORAGE COSTS (R'000 pa, real)
A69: Non res collection costs (R'000 pa) | D69: =Base_year -> 0 | E69: =Base_year+1 -> 1 | F69: =Base_year+2 -> 2 | G69: =Base_year+3 -> 3 | H69: =Base_year+4 -> 4 | I69: =Base_year+5 -> 5 | J69: =Base_year+6 -> 6 | K69: =Base_year+7 -> 7 | L69: =Base_year+8 -> 8 | M69: =Base_year+9 -> 9 | N69: =Base_year+10 -> 10
A70: ='e-waste'!A146 -> 0 | B70: R/CU/month | D70: =IF(A70="",0,IF('unit costs'!D26="",'unit costs'!C26,'unit costs'!D26)) -> 0 | E70: =D70+D70*E$31 -> 0 | F70: 0 | G70: 0 | H70: 0 | I70: 0 | J70: 0 | K70: 0 | L70: 0 | M70: 0 | N70: 0
A71: ='e-waste'!A117 ->  | B71: R/CU/month | D71: =IF(A71="",0,IF('unit costs'!D27="",'unit costs'!C27,'unit costs'!D27)) -> 0 | E71: =D71+D71*E$31 -> 0 | F71: 0 | G71: 0 | H71: 0 | I71: 0 | J71: 0 | K71: 0 | L71: 0 | M71: 0 | N71: 0
A72: ='e-waste'!A118 ->  | B72: R/CU/month | D72: =IF(A72="",0,IF('unit costs'!D28="",'unit costs'!C28,'unit costs'!D28)) -> 0 | E72: =D72+D72*E$31 -> 0 | F72: 0 | G72: 0 | H72: 0 | I72: 0 | J72: 0 | K72: 0 | L72: 0 | M72: 0 | N72: 0
A73: ='e-waste'!A119 ->  | B73: R/CU/month | D73: =IF(A73="",0,IF('unit costs'!D29="",'unit costs'!C29,'unit costs'!D29)) -> 0 | E73: =D73+D73*E$31 -> 0 | F73: 0 | G73: 0 | H73: 0 | I73: 0 | J73: 0 | K73: 0 | L73: 0 | M73: 0 | N73: 0
A75: =A70 -> 0 | B75: R'000 pa | D75: =D70*'e-waste'!C122/1000 ->  | E75: =E70*'e-waste'!D122/1000 ->  | F75: =F70*'e-waste'!E122/1000 ->  | G75: =G70*'e-waste'!F122/1000 ->  | H75: =H70*'e-waste'!G122/1000 ->  | I75: =I70*'e-waste'!H122/1000 ->  | J75: =J70*'e-waste'!I122/1000 ->  | K75: =K70*'e-waste'!J122/1000 ->  | L75: =L70*'e-waste'!K122/1000 ->  | M75: =M70*'e-waste'!L122/1000 ->  | N75: =N70*'e-waste'!M122/1000 -> 
A76: =A71 ->  | B76: R'000 pa | D76: =D71*'e-waste'!C123/1000 ->  | E76: =E71*'e-waste'!D123/1000 ->  | F76: =F71*'e-waste'!E123/1000 ->  | G76: =G71*'e-waste'!F123/1000 ->  | H76: =H71*'e-waste'!G123/1000 ->  | I76: =I71*'e-waste'!H123/1000 ->  | J76: =J71*'e-waste'!I123/1000 ->  | K76: =K71*'e-waste'!J123/1000 ->  | L76: =L71*'e-waste'!K123/1000 ->  | M76: =M71*'e-waste'!L123/1000 ->  | N76: =N71*'e-waste'!M123/1000 -> 
A77: =A72 ->  | B77: R'000 pa | D77: =D72*'e-waste'!C124/1000 ->  | E77: =E72*'e-waste'!D124/1000 ->  | F77: =F72*'e-waste'!E124/1000 ->  | G77: =G72*'e-waste'!F124/1000 ->  | H77: =H72*'e-waste'!G124/1000 ->  | I77: =I72*'e-waste'!H124/1000 ->  | J77: =J72*'e-waste'!I124/1000 ->  | K77: =K72*'e-waste'!J124/1000 ->  | L77: =L72*'e-waste'!K124/1000 ->  | M77: =M72*'e-waste'!L124/1000 ->  | N77: =N72*'e-waste'!M124/1000 -> 
A78: =A73 ->  | B78: R'000 pa | D78: =D73*'e-waste'!C125/1000 ->  | E78: =E73*'e-waste'!D125/1000 ->  | F78: =F73*'e-waste'!E125/1000 ->  | G78: =G73*'e-waste'!F125/1000 ->  | H78: =H73*'e-waste'!G125/1000 ->  | I78: =I73*'e-waste'!H125/1000 ->  | J78: =J73*'e-waste'!I125/1000 ->  | K78: =K73*'e-waste'!J125/1000 ->  | L78: =L73*'e-waste'!K125/1000 ->  | M78: =M73*'e-waste'!L125/1000 ->  | N78: =N73*'e-waste'!M125/1000 -> 
A80: ='e-waste'!A150 -> DCW | B80: R/m3 | D80: =IF('unit costs'!$D$32="",'unit costs'!$C$32,'unit costs'!$D$32) -> 100 | E80: =D80+D80*E31 -> 100 | F80: 100 | G80: 100 | H80: 100 | I80: 100 | J80: 100 | K80: 100 | L80: 100 | M80: 100 | N80: 100
A81: =A80 -> DCW | B81: R'000 pa | D81: ='e-waste'!C150/(IF('waste gen'!$D$44="",'waste gen'!$C$44,'waste gen'!$D$44)/1000)*D80/1000 -> 0 | E81: ='e-waste'!D150/(IF('waste gen'!$D$44="",'waste gen'!$C$44,'waste gen'!$D$44)/1000)*E80/1000 -> 0 | F81: ='e-waste'!E150/(IF('waste gen'!$D$44="",'waste gen'!$C$44,'waste gen'!$D$44)/1000)*F80/1000 -> 0 | G81: ='e-waste'!F150/(IF('waste gen'!$D$44="",'waste gen'!$C$44,'waste gen'!$D$44)/1000)*G80/1000 -> 0 | H81: ='e-waste'!G150/(IF('waste gen'!$D$44="",'waste gen'!$C$44,'waste gen'!$D$44)/1000)*H80/1000 -> 0 | I81: ='e-waste'!H150/(IF('waste gen'!$D$44="",'waste gen'!$C$44,'waste gen'!$D$44)/1000)*I80/1000 -> 0 | J81: ='e-waste'!I150/(IF('waste gen'!$D$44="",'waste gen'!$C$44,'waste gen'!$D$44)/1000)*J80/1000 -> 0 | K81: ='e-waste'!J150/(IF('waste gen'!$D$44="",'waste gen'!$C$44,'waste gen'!$D$44)/1000)*K80/1000 -> 0 | L81: ='e-waste'!K150/(IF('waste gen'!$D$44="",'waste gen'!$C$44,'waste gen'!$D$44)/1000)*L80/1000 -> 0 | M81: ='e-waste'!L150/(IF('waste gen'!$D$44="",'waste gen'!$C$44,'waste gen'!$D$44)/1000)*M80/1000 -> 0 | N81: ='e-waste'!M150/(IF('waste gen'!$D$44="",'waste gen'!$C$44,'waste gen'!$D$44)/1000)*N80/1000 -> 0
A83: PUBLIC CLEANSING COSTS (R'000 pa)
D84: =Base_year -> 0 | E84: =Base_year+1 -> 1 | F84: =Base_year+2 -> 2 | G84: =Base_year+3 -> 3 | H84: =Base_year+4 -> 4 | I84: =Base_year+5 -> 5 | J84: =Base_year+6 -> 6 | K84: =Base_year+7 -> 7 | L84: =Base_year+8 -> 8 | M84: =Base_year+9 -> 9 | N84: =Base_year+10 -> 10
A85: ='SERVICE LEVELS'!B35 -> Street Cleaning | B85: R/ton | C85: =IFERROR(VLOOKUP(A85,'SERVICE LEVELS'!$B$35:$D$36,2,FALSE),"") -> 0 | D85: =IF(C85="","",IF(C85="municipality",IF('unit costs'!$D38="",'unit costs'!$C38,'unit costs'!$D38),IF(C85="Full Contract",IF('unit costs'!$F38="",'unit costs'!$E38,'unit costs'!$F38),IF(C85="Labour only contract",IF('unit costs'!H$38="",'unit costs'!G$38,'unit costs'!H$38),IF(C85="none",0))))) -> FALSE | E85: =D85 -> FALSE | F85: FALSE | G85: FALSE | H85: FALSE | I85: FALSE | J85: FALSE | K85: FALSE | L85: FALSE | M85: FALSE | N85: FALSE
A86: ='SERVICE LEVELS'!B36 -> Area Cleaning (including illegal dumping) | B86: R/ton | C86: =IFERROR(VLOOKUP(A86,'SERVICE LEVELS'!$B$35:$D$36,2,FALSE),"") -> 0 | D86: =IF(C86="","",IF(C86="municipality",IF('unit costs'!$D39="",'unit costs'!$C39,'unit costs'!$D39),IF(C86="Full Contract",IF('unit costs'!$F39="",'unit costs'!$E39,'unit costs'!$F39),IF(C86="Labour only contract",IF('unit costs'!H$38="",'unit costs'!G$38,'unit costs'!H$38),IF(C86="none",0))))) -> FALSE | E86: =D86 -> FALSE | F86: FALSE | G86: FALSE | H86: FALSE | I86: FALSE | J86: FALSE | K86: FALSE | L86: FALSE | M86: FALSE | N86: FALSE
A88: =A85 -> Street Cleaning | B88: R'000 pa | D88: =D85*'e-waste'!C156/1000 ->  | E88: =E85*'e-waste'!D156/1000 ->  | F88: =F85*'e-waste'!E156/1000 ->  | G88: =G85*'e-waste'!F156/1000 ->  | H88: =H85*'e-waste'!G156/1000 ->  | I88: =I85*'e-waste'!H156/1000 ->  | J88: =J85*'e-waste'!I156/1000 ->  | K88: =K85*'e-waste'!J156/1000 ->  | L88: =L85*'e-waste'!K156/1000 ->  | M88: =M85*'e-waste'!L156/1000 ->  | N88: =N85*'e-waste'!M156/1000 -> 
A89: =A86 -> Area Cleaning (including illegal dumping) | B89: R'000 pa | D89: =D86*'e-waste'!C157/1000 ->  | E89: =E86*'e-waste'!D157/1000 ->  | F89: =F86*'e-waste'!E157/1000 ->  | G89: =G86*'e-waste'!F157/1000 ->  | H89: =H86*'e-waste'!G157/1000 ->  | I89: =I86*'e-waste'!H157/1000 ->  | J89: =J86*'e-waste'!I157/1000 ->  | K89: =K86*'e-waste'!J157/1000 ->  | L89: =L86*'e-waste'!K157/1000 ->  | M89: =M86*'e-waste'!L157/1000 ->  | N89: =N86*'e-waste'!M157/1000 -> 
A91: ='e-waste'!A172 -> Public cleansing by income group
A92: =A85 -> Street Cleaning
A93: ='e-waste'!A173 -> Low inc res | D93: =D85*'e-waste'!C162/1000 ->  | E93: =E85*'e-waste'!D162/1000 ->  | F93: =F85*'e-waste'!E162/1000 ->  | G93: =G85*'e-waste'!F162/1000 ->  | H93: =H85*'e-waste'!G162/1000 ->  | I93: =I85*'e-waste'!H162/1000 ->  | J93: =J85*'e-waste'!I162/1000 ->  | K93: =K85*'e-waste'!J162/1000 ->  | L93: =L85*'e-waste'!K162/1000 ->  | M93: =M85*'e-waste'!L162/1000 ->  | N93: =N85*'e-waste'!M162/1000 -> 
A94: ='e-waste'!A174 -> Hi in res | D94: =D85*'e-waste'!C163/1000 ->  | E94: =E85*'e-waste'!D163/1000 ->  | F94: =F85*'e-waste'!E163/1000 ->  | G94: =G85*'e-waste'!F163/1000 ->  | H94: =H85*'e-waste'!G163/1000 ->  | I94: =I85*'e-waste'!H163/1000 ->  | J94: =J85*'e-waste'!I163/1000 ->  | K94: =K85*'e-waste'!J163/1000 ->  | L94: =L85*'e-waste'!K163/1000 ->  | M94: =M85*'e-waste'!L163/1000 ->  | N94: =N85*'e-waste'!M163/1000 -> 
A95: ='e-waste'!A175 -> Non res | D95: =D85*'e-waste'!C164/1000 ->  | E95: =E85*'e-waste'!D164/1000 ->  | F95: =F85*'e-waste'!E164/1000 ->  | G95: =G85*'e-waste'!F164/1000 ->  | H95: =H85*'e-waste'!G164/1000 ->  | I95: =I85*'e-waste'!H164/1000 ->  | J95: =J85*'e-waste'!I164/1000 ->  | K95: =K85*'e-waste'!J164/1000 ->  | L95: =L85*'e-waste'!K164/1000 ->  | M95: =M85*'e-waste'!L164/1000 ->  | N95: =N85*'e-waste'!M164/1000 -> 
A96: =A86 -> Area Cleaning (including illegal dumping)
A97: =A93 -> Low inc res | D97: =D86*'e-waste'!C168/1000 ->  | E97: =E86*'e-waste'!D168/1000 ->  | F97: =F86*'e-waste'!E168/1000 ->  | G97: =G86*'e-waste'!F168/1000 ->  | H97: =H86*'e-waste'!G168/1000 ->  | I97: =I86*'e-waste'!H168/1000 ->  | J97: =J86*'e-waste'!I168/1000 ->  | K97: =K86*'e-waste'!J168/1000 ->  | L97: =L86*'e-waste'!K168/1000 ->  | M97: =M86*'e-waste'!L168/1000 ->  | N97: =N86*'e-waste'!M168/1000 -> 
A98: =A94 -> Hi in res | D98: =D86*'e-waste'!C169/1000 ->  | E98: =E86*'e-waste'!D169/1000 ->  | F98: =F86*'e-waste'!E169/1000 ->  | G98: =G86*'e-waste'!F169/1000 ->  | H98: =H86*'e-waste'!G169/1000 ->  | I98: =I86*'e-waste'!H169/1000 ->  | J98: =J86*'e-waste'!I169/1000 ->  | K98: =K86*'e-waste'!J169/1000 ->  | L98: =L86*'e-waste'!K169/1000 ->  | M98: =M86*'e-waste'!L169/1000 ->  | N98: =N86*'e-waste'!M169/1000 -> 
A99: =A95 -> Non res | D99: =D86*'e-waste'!C170/1000 ->  | E99: =E86*'e-waste'!D170/1000 ->  | F99: =F86*'e-waste'!E170/1000 ->  | G99: =G86*'e-waste'!F170/1000 ->  | H99: =H86*'e-waste'!G170/1000 ->  | I99: =I86*'e-waste'!H170/1000 ->  | J99: =J86*'e-waste'!I170/1000 ->  | K99: =K86*'e-waste'!J170/1000 ->  | L99: =L86*'e-waste'!K170/1000 ->  | M99: =M86*'e-waste'!L170/1000 ->  | N99: =N86*'e-waste'!M170/1000 -> 
A101: TRANSFER STATION OPERATING COSTS (R'000 pa)
A103: Transfer station | B103: R/ton | D103: =IF('unit costs'!D43="",'unit costs'!C43,'unit costs'!D43) -> 22.5 | E103: =D103+D103*E32 -> 22.5 | F103: 22.5 | G103: 22.5 | H103: 22.5 | I103: 22.5 | J103: 22.5 | K103: 22.5 | L103: 22.5 | M103: 22.5 | N103: 22.5
A104: Transfer station | B104: R'000 pa | D104: =D103*'e-waste'!C218/1000 ->  | E104: =E103*'e-waste'!D218/1000 ->  | F104: =F103*'e-waste'!E218/1000 ->  | G104: =G103*'e-waste'!F218/1000 ->  | H104: =H103*'e-waste'!G218/1000 ->  | I104: =I103*'e-waste'!H218/1000 ->  | J104: =J103*'e-waste'!I218/1000 ->  | K104: =K103*'e-waste'!J218/1000 ->  | L104: =L103*'e-waste'!K218/1000 ->  | M104: =M103*'e-waste'!L218/1000 ->  | N104: =N103*'e-waste'!M218/1000 -> 
A106: Transfer station costs by income group
A107: Low inc res | D107: =D103*'e-waste'!C221/1000 ->  | E107: =E103*'e-waste'!D221/1000 ->  | F107: =F103*'e-waste'!E221/1000 ->  | G107: =G103*'e-waste'!F221/1000 ->  | H107: =H103*'e-waste'!G221/1000 ->  | I107: =I103*'e-waste'!H221/1000 ->  | J107: =J103*'e-waste'!I221/1000 ->  | K107: =K103*'e-waste'!J221/1000 ->  | L107: =L103*'e-waste'!K221/1000 ->  | M107: =M103*'e-waste'!L221/1000 ->  | N107: =N103*'e-waste'!M221/1000 -> 
A108: Hi in res | D108: =D103*'e-waste'!C222/1000 ->  | E108: =E103*'e-waste'!D222/1000 ->  | F108: =F103*'e-waste'!E222/1000 ->  | G108: =G103*'e-waste'!F222/1000 ->  | H108: =H103*'e-waste'!G222/1000 ->  | I108: =I103*'e-waste'!H222/1000 ->  | J108: =J103*'e-waste'!I222/1000 ->  | K108: =K103*'e-waste'!J222/1000 ->  | L108: =L103*'e-waste'!K222/1000 ->  | M108: =M103*'e-waste'!L222/1000 ->  | N108: =N103*'e-waste'!M222/1000 -> 
A109: Non res | D109: =D103*'e-waste'!C223/1000 ->  | E109: =E103*'e-waste'!D223/1000 ->  | F109: =F103*'e-waste'!E223/1000 ->  | G109: =G103*'e-waste'!F223/1000 ->  | H109: =H103*'e-waste'!G223/1000 ->  | I109: =I103*'e-waste'!H223/1000 ->  | J109: =J103*'e-waste'!I223/1000 ->  | K109: =K103*'e-waste'!J223/1000 ->  | L109: =L103*'e-waste'!K223/1000 ->  | M109: =M103*'e-waste'!L223/1000 ->  | N109: =N103*'e-waste'!M223/1000 -> 
A111: RECLAMATION FACILITY OPERATING COSTS (R'000 pa)
A113: Reclamation facility | B113: R/ton | D113: =IF('unit costs'!D44="",'unit costs'!C44,'unit costs'!D44) -> 40 | E113: =D113 -> 40 | F113: 40 | G113: 40 | H113: 40 | I113: 40 | J113: 40 | K113: 40 | L113: 40 | M113: 40 | N113: 40
A114: Reclamation facility | B114: R'000 pa | D114: =D113*'e-waste'!C274/1000 ->  | E114: =E113*'e-waste'!D274/1000 ->  | F114: =F113*'e-waste'!E274/1000 ->  | G114: =G113*'e-waste'!F274/1000 ->  | H114: =H113*'e-waste'!G274/1000 ->  | I114: =I113*'e-waste'!H274/1000 ->  | J114: =J113*'e-waste'!I274/1000 ->  | K114: =K113*'e-waste'!J274/1000 ->  | L114: =L113*'e-waste'!K274/1000 ->  | M114: =M113*'e-waste'!L274/1000 ->  | N114: =N113*'e-waste'!M274/1000 -> 
A116: Reclamation facility costs by income group
A117: Low inc res | D117: =D113*'e-waste'!C301/1000 ->  | E117: =E113*'e-waste'!D301/1000 ->  | F117: =F113*'e-waste'!E301/1000 ->  | G117: =G113*'e-waste'!F301/1000 ->  | H117: =H113*'e-waste'!G301/1000 ->  | I117: =I113*'e-waste'!H301/1000 ->  | J117: =J113*'e-waste'!I301/1000 ->  | K117: =K113*'e-waste'!J301/1000 ->  | L117: =L113*'e-waste'!K301/1000 ->  | M117: =M113*'e-waste'!L301/1000 ->  | N117: =N113*'e-waste'!M301/1000 -> 
A118: Hi in res | D118: =D113*'e-waste'!C302/1000 ->  | E118: =E113*'e-waste'!D302/1000 ->  | F118: =F113*'e-waste'!E302/1000 ->  | G118: =G113*'e-waste'!F302/1000 ->  | H118: =H113*'e-waste'!G302/1000 ->  | I118: =I113*'e-waste'!H302/1000 ->  | J118: =J113*'e-waste'!I302/1000 ->  | K118: =K113*'e-waste'!J302/1000 ->  | L118: =L113*'e-waste'!K302/1000 ->  | M118: =M113*'e-waste'!L302/1000 ->  | N118: =N113*'e-waste'!M302/1000 -> 
A119: Non res | D119: =D113*'e-waste'!C303/1000 ->  | E119: =E113*'e-waste'!D303/1000 ->  | F119: =F113*'e-waste'!E303/1000 ->  | G119: =G113*'e-waste'!F303/1000 ->  | H119: =H113*'e-waste'!G303/1000 ->  | I119: =I113*'e-waste'!H303/1000 ->  | J119: =J113*'e-waste'!I303/1000 ->  | K119: =K113*'e-waste'!J303/1000 ->  | L119: =L113*'e-waste'!K303/1000 ->  | M119: =M113*'e-waste'!L303/1000 ->  | N119: =N113*'e-waste'!M303/1000 -> 
A121: WASTE-TO-ENERGY OPERATING COSTS (R'000 pa)
A123: Waste-to-energy facility | B123: R/ton | D123: =IF('unit costs'!D48="",'unit costs'!C48,'unit costs'!D48) -> 100 | E123: =D123 -> 100 | F123: 100 | G123: 100 | H123: 100 | I123: 100 | J123: 100 | K123: 100 | L123: 100 | M123: 100 | N123: 100
A124: Waste-to-energy facility | B124: R'000 pa | D124: =D123*'e-waste'!C323/1000 ->  | E124: =E123*'e-waste'!D323/1000 ->  | F124: =F123*'e-waste'!E323/1000 ->  | G124: =G123*'e-waste'!F323/1000 ->  | H124: =H123*'e-waste'!G323/1000 ->  | I124: =I123*'e-waste'!H323/1000 ->  | J124: =J123*'e-waste'!I323/1000 ->  | K124: =K123*'e-waste'!J323/1000 ->  | L124: =L123*'e-waste'!K323/1000 ->  | M124: =M123*'e-waste'!L323/1000 ->  | N124: =N123*'e-waste'!M323/1000 -> 
A126: Waste to energy costs by income group
A127: Low inc res | D127: =D123*'e-waste'!C330/1000 ->  | E127: =E123*'e-waste'!D330/1000 ->  | F127: =F123*'e-waste'!E330/1000 ->  | G127: =G123*'e-waste'!F330/1000 ->  | H127: =H123*'e-waste'!G330/1000 ->  | I127: =I123*'e-waste'!H330/1000 ->  | J127: =J123*'e-waste'!I330/1000 ->  | K127: =K123*'e-waste'!J330/1000 ->  | L127: =L123*'e-waste'!K330/1000 ->  | M127: =M123*'e-waste'!L330/1000 ->  | N127: =N123*'e-waste'!M330/1000 -> 
A128: Hi in res | D128: =D123*'e-waste'!C331/1000 ->  | E128: =E123*'e-waste'!D331/1000 ->  | F128: =F123*'e-waste'!E331/1000 ->  | G128: =G123*'e-waste'!F331/1000 ->  | H128: =H123*'e-waste'!G331/1000 ->  | I128: =I123*'e-waste'!H331/1000 ->  | J128: =J123*'e-waste'!I331/1000 ->  | K128: =K123*'e-waste'!J331/1000 ->  | L128: =L123*'e-waste'!K331/1000 ->  | M128: =M123*'e-waste'!L331/1000 ->  | N128: =N123*'e-waste'!M331/1000 -> 
A129: Non res | D129: =D123*'e-waste'!C332/1000 ->  | E129: =E123*'e-waste'!D332/1000 ->  | F129: =F123*'e-waste'!E332/1000 ->  | G129: =G123*'e-waste'!F332/1000 ->  | H129: =H123*'e-waste'!G332/1000 ->  | I129: =I123*'e-waste'!H332/1000 ->  | J129: =J123*'e-waste'!I332/1000 ->  | K129: =K123*'e-waste'!J332/1000 ->  | L129: =L123*'e-waste'!K332/1000 ->  | M129: =M123*'e-waste'!L332/1000 ->  | N129: =N123*'e-waste'!M332/1000 -> 
A131: LANDFILL GAS TO ENERGY OPERATING COSTS (R'000 pa)
A133: Landfill Gas to Energy | B133: R/kWh | D133: =IF('unit costs'!D47="",'unit costs'!C47,'unit costs'!D47) -> 0.25 | E133: =D133 -> 0.25 | F133: 0.25 | G133: 0.25 | H133: 0.25 | I133: 0.25 | J133: 0.25 | K133: 0.25 | L133: 0.25 | M133: 0.25 | N133: 0.25
A134: Landfill Gas to Energy | B134: R'000 pa | D134: =D133*1000000*'e-waste'!C373/1000 -> 0 | E134: =E133*1000000*'e-waste'!D373/1000 -> 0 | F134: =F133*1000000*'e-waste'!E373/1000 -> 0 | G134: =G133*1000000*'e-waste'!F373/1000 -> 0 | H134: =H133*1000000*'e-waste'!G373/1000 -> 0 | I134: =I133*1000000*'e-waste'!H373/1000 -> 0 | J134: =J133*1000000*'e-waste'!I373/1000 -> 0 | K134: =K133*1000000*'e-waste'!J373/1000 -> 0 | L134: =L133*1000000*'e-waste'!K373/1000 -> 0 | M134: =M133*1000000*'e-waste'!L373/1000 -> 0 | N134: =N133*1000000*'e-waste'!M373/1000 -> 0
A136: Landfill gas to energy costs by income group
A137: Low inc res | D137: =D133*1000*'e-waste'!C379 -> 0 | E137: =E133*1000*'e-waste'!D379 ->  | F137: =F133*1000*'e-waste'!E379 ->  | G137: =G133*1000*'e-waste'!F379 ->  | H137: =H133*1000*'e-waste'!G379 ->  | I137: =I133*1000*'e-waste'!H379 ->  | J137: =J133*1000*'e-waste'!I379 ->  | K137: =K133*1000*'e-waste'!J379 ->  | L137: =L133*1000*'e-waste'!K379 ->  | M137: =M133*1000*'e-waste'!L379 ->  | N137: =N133*1000*'e-waste'!M379 -> 
A138: Hi in res | D138: =D133*1000*'e-waste'!C380 -> 0 | E138: =E133*1000*'e-waste'!D380 ->  | F138: =F133*1000*'e-waste'!E380 ->  | G138: =G133*1000*'e-waste'!F380 ->  | H138: =H133*1000*'e-waste'!G380 ->  | I138: =I133*1000*'e-waste'!H380 ->  | J138: =J133*1000*'e-waste'!I380 ->  | K138: =K133*1000*'e-waste'!J380 ->  | L138: =L133*1000*'e-waste'!K380 ->  | M138: =M133*1000*'e-waste'!L380 ->  | N138: =N133*1000*'e-waste'!M380 -> 
A139: Non res | D139: =D133*1000*'e-waste'!C381 -> 0 | E139: =E133*1000*'e-waste'!D381 ->  | F139: =F133*1000*'e-waste'!E381 ->  | G139: =G133*1000*'e-waste'!F381 ->  | H139: =H133*1000*'e-waste'!G381 ->  | I139: =I133*1000*'e-waste'!H381 ->  | J139: =J133*1000*'e-waste'!I381 ->  | K139: =K133*1000*'e-waste'!J381 ->  | L139: =L133*1000*'e-waste'!K381 ->  | M139: =M133*1000*'e-waste'!L381 ->  | N139: =N133*1000*'e-waste'!M381 -> 
A141: LANDFILL OPERATING COSTS (R'000 pa)
A143: ='unit costs'!B45 -> Municipal landfill | B143: R/ton | D143: =IF('unit costs'!D45="",'unit costs'!C45,'unit costs'!D45) -> 56.2 | E143: =D143+D143*E33 -> 56.2 | F143: 56.2 | G143: 56.2 | H143: 56.2 | I143: 56.2 | J143: 56.2 | K143: 56.2 | L143: 56.2 | M143: 56.2 | N143: 56.2
A144: ='unit costs'!B46 -> Disposal fees at other landfill | B144: R/ton | D144: =IF('unit costs'!D46="",'unit costs'!C46,'unit costs'!D46) -> 200 | E144: =D144+D144*E33 -> 200 | F144: 200 | G144: 200 | H144: 200 | I144: 200 | J144: 200 | K144: 200 | L144: 200 | M144: 200 | N144: 200
A146: =A143 -> Municipal landfill | B146: R'000 pa | D146: =D143*'e-waste'!C350/1000 ->  | E146: =E143*'e-waste'!D350/1000 ->  | F146: =F143*'e-waste'!E350/1000 ->  | G146: =G143*'e-waste'!F350/1000 ->  | H146: =H143*'e-waste'!G350/1000 ->  | I146: =I143*'e-waste'!H350/1000 ->  | J146: =J143*'e-waste'!I350/1000 ->  | K146: =K143*'e-waste'!J350/1000 ->  | L146: =L143*'e-waste'!K350/1000 ->  | M146: =M143*'e-waste'!L350/1000 ->  | N146: =N143*'e-waste'!M350/1000 -> 
A147: =A144 -> Disposal fees at other landfill | B147: R'000 pa | D147: =D144*'e-waste'!C351/1000 ->  | E147: =E144*'e-waste'!D351/1000 ->  | F147: =F144*'e-waste'!E351/1000 ->  | G147: =G144*'e-waste'!F351/1000 ->  | H147: =H144*'e-waste'!G351/1000 ->  | I147: =I144*'e-waste'!H351/1000 ->  | J147: =J144*'e-waste'!I351/1000 ->  | K147: =K144*'e-waste'!J351/1000 ->  | L147: =L144*'e-waste'!K351/1000 ->  | M147: =M144*'e-waste'!L351/1000 ->  | N147: =N144*'e-waste'!M351/1000 -> 
A149: Landfill Operating Costs by income group
A150: =A143 -> Municipal landfill
A151: Low inc res | B151: R'000 pa | D151: =D143*'e-waste'!C356/1000 ->  | E151: =E143*'e-waste'!D356/1000 ->  | F151: =F143*'e-waste'!E356/1000 ->  | G151: =G143*'e-waste'!F356/1000 ->  | H151: =H143*'e-waste'!G356/1000 ->  | I151: =I143*'e-waste'!H356/1000 ->  | J151: =J143*'e-waste'!I356/1000 ->  | K151: =K143*'e-waste'!J356/1000 ->  | L151: =L143*'e-waste'!K356/1000 ->  | M151: =M143*'e-waste'!L356/1000 ->  | N151: =N143*'e-waste'!M356/1000 -> 
A152: Hi in res | B152: R'000 pa | D152: =D143*'e-waste'!C357/1000 ->  | E152: =E143*'e-waste'!D357/1000 ->  | F152: =F143*'e-waste'!E357/1000 ->  | G152: =G143*'e-waste'!F357/1000 ->  | H152: =H143*'e-waste'!G357/1000 ->  | I152: =I143*'e-waste'!H357/1000 ->  | J152: =J143*'e-waste'!I357/1000 ->  | K152: =K143*'e-waste'!J357/1000 ->  | L152: =L143*'e-waste'!K357/1000 ->  | M152: =M143*'e-waste'!L357/1000 ->  | N152: =N143*'e-waste'!M357/1000 -> 
A153: Non res | B153: R'000 pa | D153: =D143*'e-waste'!C358/1000 ->  | E153: =E143*'e-waste'!D358/1000 ->  | F153: =F143*'e-waste'!E358/1000 ->  | G153: =G143*'e-waste'!F358/1000 ->  | H153: =H143*'e-waste'!G358/1000 ->  | I153: =I143*'e-waste'!H358/1000 ->  | J153: =J143*'e-waste'!I358/1000 ->  | K153: =K143*'e-waste'!J358/1000 ->  | L153: =L143*'e-waste'!K358/1000 ->  | M153: =M143*'e-waste'!L358/1000 ->  | N153: =N143*'e-waste'!M358/1000 -> 
A154: =A144 -> Disposal fees at other landfill
A155: Low inc res | B155: R'000 pa | D155: =D144*'e-waste'!C361/1000 ->  | E155: =E144*'e-waste'!D361/1000 ->  | F155: =F144*'e-waste'!E361/1000 ->  | G155: =G144*'e-waste'!F361/1000 ->  | H155: =H144*'e-waste'!G361/1000 ->  | I155: =I144*'e-waste'!H361/1000 ->  | J155: =J144*'e-waste'!I361/1000 ->  | K155: =K144*'e-waste'!J361/1000 ->  | L155: =L144*'e-waste'!K361/1000 ->  | M155: =M144*'e-waste'!L361/1000 ->  | N155: =N144*'e-waste'!M361/1000 -> 
A156: Hi in res | B156: R'000 pa | D156: =D144*'e-waste'!C362/1000 ->  | E156: =E144*'e-waste'!D362/1000 ->  | F156: =F144*'e-waste'!E362/1000 ->  | G156: =G144*'e-waste'!F362/1000 ->  | H156: =H144*'e-waste'!G362/1000 ->  | I156: =I144*'e-waste'!H362/1000 ->  | J156: =J144*'e-waste'!I362/1000 ->  | K156: =K144*'e-waste'!J362/1000 ->  | L156: =L144*'e-waste'!K362/1000 ->  | M156: =M144*'e-waste'!L362/1000 ->  | N156: =N144*'e-waste'!M362/1000 -> 
A157: Non res | B157: R'000 pa | D157: ='e-waste'!C363*'e-opex'!D144/1000 ->  | E157: ='e-waste'!D363*'e-opex'!E144/1000 ->  | F157: ='e-waste'!E363*'e-opex'!F144/1000 ->  | G157: ='e-waste'!F363*'e-opex'!G144/1000 ->  | H157: ='e-waste'!G363*'e-opex'!H144/1000 ->  | I157: ='e-waste'!H363*'e-opex'!I144/1000 ->  | J157: ='e-waste'!I363*'e-opex'!J144/1000 ->  | K157: ='e-waste'!J363*'e-opex'!K144/1000 ->  | L157: ='e-waste'!K363*'e-opex'!L144/1000 ->  | M157: ='e-waste'!L363*'e-opex'!M144/1000 ->  | N157: ='e-waste'!M363*'e-opex'!N144/1000 -> 
A159: OTHER EXPENDITURE
A161: Other expenditure | B161: R'000 pa | D161: =OPERATING!D9 -> 0 | E161: =SUM(E163:E164) -> 
A163: Low inc res | B163: R'000 pa | D163: =$D$161*('e-hh impact'!C7/SUM('e-hh impact'!C7:C8)) ->  | E163: =D163+D163*IF('waste gen'!$D$11="",'waste gen'!$C$11,'waste gen'!$D$11) ->  | F163: =E163+E163*IF('waste gen'!$D$11="",'waste gen'!$C$11,'waste gen'!$D$11) ->  | G163: =F163+F163*IF('waste gen'!$D$11="",'waste gen'!$C$11,'waste gen'!$D$11) ->  | H163: =G163+G163*IF('waste gen'!$D$11="",'waste gen'!$C$11,'waste gen'!$D$11) ->  | I163: =H163+H163*IF('waste gen'!$D$11="",'waste gen'!$C$11,'waste gen'!$D$11) ->  | J163: =I163+I163*IF('waste gen'!$D$11="",'waste gen'!$C$11,'waste gen'!$D$11) ->  | K163: =J163+J163*IF('waste gen'!$D$11="",'waste gen'!$C$11,'waste gen'!$D$11) ->  | L163: =K163+K163*IF('waste gen'!$D$11="",'waste gen'!$C$11,'waste gen'!$D$11) ->  | M163: =L163+L163*IF('waste gen'!$D$11="",'waste gen'!$C$11,'waste gen'!$D$11) ->  | N163: =M163+M163*IF('waste gen'!$D$11="",'waste gen'!$C$11,'waste gen'!$D$11) -> 
A164: Hi in res | B164: R'000 pa | D164: =$D$161*('e-hh impact'!C8/SUM('e-hh impact'!C8:C9)) ->  | E164: =D164+D164*IF('waste gen'!$D$12="",'waste gen'!$C$12,'waste gen'!$D$12) ->  | F164: =E164+E164*IF('waste gen'!$D$12="",'waste gen'!$C$12,'waste gen'!$D$12) ->  | G164: =F164+F164*IF('waste gen'!$D$12="",'waste gen'!$C$12,'waste gen'!$D$12) ->  | H164: =G164+G164*IF('waste gen'!$D$12="",'waste gen'!$C$12,'waste gen'!$D$12) ->  | I164: =H164+H164*IF('waste gen'!$D$12="",'waste gen'!$C$12,'waste gen'!$D$12) ->  | J164: =I164+I164*IF('waste gen'!$D$12="",'waste gen'!$C$12,'waste gen'!$D$12) ->  | K164: =J164+J164*IF('waste gen'!$D$12="",'waste gen'!$C$12,'waste gen'!$D$12) ->  | L164: =K164+K164*IF('waste gen'!$D$12="",'waste gen'!$C$12,'waste gen'!$D$12) ->  | M164: =L164+L164*IF('waste gen'!$D$12="",'waste gen'!$C$12,'waste gen'!$D$12) ->  | N164: =M164+M164*IF('waste gen'!$D$12="",'waste gen'!$C$12,'waste gen'!$D$12) -> 
A166: PROVISION FOR BAD DEBT
A168: Provision for bad debt as % of opex | D168: =targets!C97 ->  | E168: =($I168-$D168)/5+D168 ->  | F168: =($I168-$D168)/5+E168 ->  | G168: =($I168-$D168)/5+F168 ->  | H168: =($I168-$D168)/5+G168 ->  | I168: =IF(targets!D97="",targets!C97,targets!D97) ->  | J168: =($N168-$I168)/5+I168 ->  | K168: =($N168-$I168)/5+J168 ->  | L168: =($N168-$I168)/5+K168 ->  | M168: =($N168-$I168)/5+L168 ->  | N168: =IF(targets!E97="",targets!C97,targets!E97) -> 
A169: Provision for bad debt | B169: R'000 pa | D169: =IF(OPERATING!D10="",OPERATING!C10,OPERATING!D10) -> 0 | E169: =(E168*SUM(E9:E18,E20,E21,E22))/(1-E168) ->  | F169: =(F168*SUM(F9:F18,F20,F21,F22))/(1-F168) -> 
A171: Bad debt by income group
A172: Low inc res | B172: R'000 pa | D172: =D$169*D188/D$191 ->  | E172: =E$169*E188/E$191 -> 
A173: Hi in res | B173: R'000 pa | D173: =D$169*D189/D$191 -> 
A174: Non res | B174: R'000 pa
C175: check=0 | D175: =SUM(D172:D174)-D169 ->  | E175: =SUM(E172:E174)-E169 -> 
A176: DEPRECIATION
A178: ='e-capex'!B53 -> Vehicles | B178: R'000 pa | D178: ='e-capex'!L53 -> 0 | E178: =D178 -> 0 | F178: 0 | G178: 0 | H178: 0 | I178: 0 | J178: 0 | K178: 0 | L178: 0 | M178: 0 | N178: 0
A179: ='e-capex'!B54 -> Transfer stations | B179: R'000 pa | D179: ='e-capex'!L54 ->  | E179: =D179 -> 
A180: ='e-capex'!B55 -> Reclamation facilities | B180: R'000 pa | D180: ='e-capex'!L55 ->  | E180: =D180 -> 
A181: ='e-capex'!B56 -> Waste-to-energy facilities | B181: R'000 pa | D181: ='e-capex'!L56 ->  | E181: =D181 -> 
A182: ='e-capex'!B57 -> Landfills | B182: R'000 pa | D182: ='e-capex'!L57 -> 0 | E182: =D182 -> 0 | F182: 0 | G182: 0 | H182: 0 | I182: 0 | J182: 0 | K182: 0 | L182: 0 | M182: 0 | N182: 0
A183: ='e-capex'!B58 -> Landfill gas to energy facilities | B183: R'000 pa | D183: ='e-capex'!L58 -> 0 | E183: =D183 -> 0 | F183: 0 | G183: 0 | H183: 0 | I183: 0 | J183: 0 | K183: 0 | L183: 0 | M183: 0 | N183: 0
A184: ='e-capex'!B59 -> Total | B184: R'000 pa | D184: =SUM(D178:D183) -> 
A185: Accumulated depreciation | B185: R'000 | D185: =SUM($D184:D184) ->  | E185: =SUM($D184:E184) ->  | F185: =SUM($D184:F184) ->  | G185: =SUM($D184:G184) ->  | H185: =SUM($D184:H184) ->  | I185: =SUM($D184:I184) ->  | J185: =SUM($D184:J184) ->  | K185: =SUM($D184:K184) ->  | L185: =SUM($D184:L184) ->  | M185: =SUM($D184:M184) ->  | N185: =SUM($D184:N184) -> 
A187: Waste produced
A188: Low inc res | B188: tons | D188: ='e-waste'!C179 ->  | E188: ='e-waste'!D179 ->  | F188: ='e-waste'!E179 ->  | G188: ='e-waste'!F179 ->  | H188: ='e-waste'!G179 ->  | I188: ='e-waste'!H179 ->  | J188: ='e-waste'!I179 ->  | K188: ='e-waste'!J179 ->  | L188: ='e-waste'!K179 ->  | M188: ='e-waste'!L179 ->  | N188: ='e-waste'!M179 -> 
A189: Hi in res | B189: tons | D189: ='e-waste'!C180 ->  | E189: ='e-waste'!D180 ->  | F189: ='e-waste'!E180 ->  | G189: ='e-waste'!F180 ->  | H189: ='e-waste'!G180 ->  | I189: ='e-waste'!H180 ->  | J189: ='e-waste'!I180 ->  | K189: ='e-waste'!J180 ->  | L189: ='e-waste'!K180 ->  | M189: ='e-waste'!L180 ->  | N189: ='e-waste'!M180 -> 
A190: Non res | B190: tons | D190: ='e-waste'!C182 ->  | E190: ='e-waste'!D182 ->  | F190: ='e-waste'!E182 ->  | G190: ='e-waste'!F182 ->  | H190: ='e-waste'!G182 ->  | I190: ='e-waste'!H182 ->  | J190: ='e-waste'!I182 ->  | K190: ='e-waste'!J182 ->  | L190: ='e-waste'!K182 ->  | M190: ='e-waste'!L182 ->  | N190: ='e-waste'!M182 -> 
D191: =SUM(D188:D190) -> 
A192: Depreciation by income group
A193: Low inc res | D193: =D188/D191*D184 -> 
A194: Hi in res | D194: =D189/D191*D184 -> 
A195: Non res | D195: =D190/D191*D184 -> 
A197: CONTRIBUTION TO CAPITAL RESERVES
A199: Increase in contribution to capital reserves | B199: (assumed equal to own reserve funding) | D199: 0 | E199: =D199 -> 0 | F199: =E199 -> 0 | G199: =F199 -> 0 | H199: =G199 -> 0 | I199: =IF(targets!D90="",0,targets!D90-targets!C90) -> 0 | J199: =I199 -> 0 | K199: =J199 -> 0 | L199: =K199 -> 0 | M199: =L199 -> 0 | N199: =IF(targets!E90="",0,targets!E90-targets!C90) -> 0
A200: Contribution to capital reserves | B200: R'000 pa | D200: =IF(OPERATING!D13="",0,OPERATING!D13) -> 0 | E200: =D200*(1+E199) -> 0 | F200: =E200*(1+F199) -> 0 | G200: 0 | H200: 0 | I200: 0 | J200: 0 | K200: 0 | L200: 0 | M200: 0 | N200: 0

Sheet e-rev
B1: REVENUE
A2: Key: | B2: from user input sheets
B3: key outputs used in other sheets
A5: SUMMARY TABLE
A6: Year | C6: =Base_year -> 0 | D6: =Base_year+1 -> 1 | E6: =Base_year+2 -> 2 | F6: =Base_year+3 -> 3 | G6: =Base_year+4 -> 4 | H6: =Base_year+5 -> 5 | I6: =Base_year+6 -> 6 | J6: =Base_year+7 -> 7 | K6: =Base_year+8 -> 8 | L6: =Base_year+9 -> 9 | M6: =Base_year+10 -> 10
A7: Residential Tariff Income | C7: ='e-rev'!C29 ->  | D7: ='e-rev'!D29 ->  | E7: ='e-rev'!E29 ->  | F7: ='e-rev'!F29 ->  | G7: ='e-rev'!G29 ->  | H7: ='e-rev'!H29 ->  | I7: ='e-rev'!I29 ->  | J7: ='e-rev'!J29 ->  | K7: ='e-rev'!K29 ->  | L7: ='e-rev'!L29 ->  | M7: ='e-rev'!M29 -> 
A8: Non-residential Tariff Income | C8: =C54 ->  | D8: =D54 ->  | E8: =E54 -> 
A9: Residential rates | C9: ='e-rev'!C73 -> 0 | D9: ='e-rev'!D73 -> 0 | E9: ='e-rev'!E73 -> 0 | F9: ='e-rev'!F73 -> 0 | G9: ='e-rev'!G73 -> 0 | H9: ='e-rev'!H73 -> 0 | I9: ='e-rev'!I73 -> 0 | J9: ='e-rev'!J73 -> 0 | K9: ='e-rev'!K73 -> 0 | L9: ='e-rev'!L73 -> 0 | M9: ='e-rev'!M73 -> 0
A10: Non-residential rates | C10: ='e-rev'!C74 ->  | D10: ='e-rev'!D74 ->  | E10: ='e-rev'!E74 ->  | F10: ='e-rev'!F74 ->  | G10: ='e-rev'!G74 ->  | H10: ='e-rev'!H74 ->  | I10: ='e-rev'!I74 ->  | J10: ='e-rev'!J74 ->  | K10: ='e-rev'!K74 ->  | L10: ='e-rev'!L74 ->  | M10: ='e-rev'!M74 -> 
A11: Disposal Charges | C11: ='e-rev'!C88 ->  | D11: ='e-rev'!D88 ->  | E11: ='e-rev'!E88 ->  | F11: ='e-rev'!F88 ->  | G11: ='e-rev'!G88 ->  | H11: ='e-rev'!H88 ->  | I11: ='e-rev'!I88 ->  | J11: ='e-rev'!J88 ->  | K11: ='e-rev'!K88 ->  | L11: ='e-rev'!L88 ->  | M11: ='e-rev'!M88 -> 
A12: Subsidies (ES) | C12: ='e-rev'!C81 -> 0 | D12: ='e-rev'!D81 -> 0 | E12: ='e-rev'!E81 -> 0 | F12: ='e-rev'!F81 -> 0 | G12: ='e-rev'!G81 -> 0 | H12: ='e-rev'!H81 -> 0 | I12: ='e-rev'!I81 -> 0 | J12: ='e-rev'!J81 -> 0 | K12: ='e-rev'!K81 -> 0 | L12: ='e-rev'!L81 -> 0 | M12: ='e-rev'!M81 -> 0
A13: Other income | C13: =IF(SUM(C59,C61,C63)<C65,C65,SUM(C59,C61,C63)) -> 0 | D13: =IF(SUM(D59,D61,D63)<D65,D65,SUM(D59,D61,D63)) -> 0 | E13: =IF(SUM(E59,E61,E63)<E65,E65,SUM(E59,E61,E63)) -> 0 | F13: 0 | G13: 0 | H13: 0 | I13: 0 | J13: 0 | K13: 0 | L13: 0 | M13: 0
A15: Total Income | C15: =SUM(C7:C13) ->  | D15: =SUM(D7:D13) ->  | E15: =SUM(E7:E13) -> 
A16: Total expenditure | C16: ='e-opex'!D24 ->  | D16: ='e-opex'!E24 ->  | E16: ='e-opex'!F24 ->  | F16: ='e-opex'!G24 ->  | G16: ='e-opex'!H24 ->  | H16: ='e-opex'!I24 ->  | I16: ='e-opex'!J24 ->  | J16: ='e-opex'!K24 ->  | K16: ='e-opex'!L24 ->  | L16: ='e-opex'!M24 ->  | M16: ='e-opex'!N24 -> 
A17: Surplus/deficit | C17: =C15-C16 ->  | D17: =D15-D16 -> 
A18: RESIDENTIAL TARIFF REVENUE (R'000)
A19: =service_level_tariff -> 0 | C19: =Base_year -> 0 | D19: =C19+1 -> 1 | E19: =D19+1 -> 2 | F19: 3 | G19: 4 | H19: 5 | I19: 6 | J19: 7 | K19: 8 | L19: 9 | M19: 10
A20: Residential Income (R'000)
A21: =IF(TARIFFS!$B$21="service level tariff",IF('SERVICE LEVELS'!B6="","",'SERVICE LEVELS'!B6),IF(TARIFFS!B34="",0,TARIFFS!B34)) -> No service | B21: R'000 | C21: ='e-hh impact'!C218 ->  | D21: ='e-hh impact'!D218 ->  | E21: ='e-hh impact'!E218 ->  | F21: ='e-hh impact'!F218 ->  | G21: ='e-hh impact'!G218 ->  | H21: ='e-hh impact'!H218 ->  | I21: ='e-hh impact'!I218 ->  | J21: ='e-hh impact'!J218 ->  | K21: ='e-hh impact'!K218 ->  | L21: ='e-hh impact'!L218 ->  | M21: ='e-hh impact'!M218 -> 
A22: =IF(TARIFFS!$B$21="service level tariff",IF('SERVICE LEVELS'!B7="","",'SERVICE LEVELS'!B7),IF(TARIFFS!B35="",0,TARIFFS!B35)) -> 0 | B22: R'000 | C22: ='e-hh impact'!C219 ->  | D22: ='e-hh impact'!D219 ->  | E22: ='e-hh impact'!E219 ->  | F22: ='e-hh impact'!F219 ->  | G22: ='e-hh impact'!G219 ->  | H22: ='e-hh impact'!H219 ->  | I22: ='e-hh impact'!I219 ->  | J22: ='e-hh impact'!J219 ->  | K22: ='e-hh impact'!K219 ->  | L22: ='e-hh impact'!L219 ->  | M22: ='e-hh impact'!M219 -> 
A23: =IF(TARIFFS!$B$21="service level tariff",IF('SERVICE LEVELS'!B8="","",'SERVICE LEVELS'!B8),IF(TARIFFS!B36="",0,TARIFFS!B36)) -> 0 | B23: R'000 | C23: ='e-hh impact'!C220 ->  | D23: ='e-hh impact'!D220 ->  | E23: ='e-hh impact'!E220 ->  | F23: ='e-hh impact'!F220 ->  | G23: ='e-hh impact'!G220 ->  | H23: ='e-hh impact'!H220 ->  | I23: ='e-hh impact'!I220 ->  | J23: ='e-hh impact'!J220 ->  | K23: ='e-hh impact'!K220 ->  | L23: ='e-hh impact'!L220 ->  | M23: ='e-hh impact'!M220 -> 
A24: =IF(TARIFFS!$B$21="service level tariff",IF('SERVICE LEVELS'!B10="","",'SERVICE LEVELS'!B10),IF(TARIFFS!B37="",0,TARIFFS!B37)) -> 0 | B24: R'000 | C24: ='e-hh impact'!C221 ->  | D24: ='e-hh impact'!D221 ->  | E24: ='e-hh impact'!E221 ->  | F24: ='e-hh impact'!F221 ->  | G24: ='e-hh impact'!G221 ->  | H24: ='e-hh impact'!H221 ->  | I24: ='e-hh impact'!I221 ->  | J24: ='e-hh impact'!J221 ->  | K24: ='e-hh impact'!K221 ->  | L24: ='e-hh impact'!L221 ->  | M24: ='e-hh impact'!M221 -> 
A25: =IF(TARIFFS!$B$21="service level tariff",IF('SERVICE LEVELS'!B11="","",'SERVICE LEVELS'!B11),IF(TARIFFS!B38="",0,TARIFFS!B38)) -> 0 | B25: R'000 | C25: ='e-hh impact'!C222 ->  | D25: ='e-hh impact'!D222 ->  | E25: ='e-hh impact'!E222 ->  | F25: ='e-hh impact'!F222 ->  | G25: ='e-hh impact'!G222 ->  | H25: ='e-hh impact'!H222 ->  | I25: ='e-hh impact'!I222 ->  | J25: ='e-hh impact'!J222 ->  | K25: ='e-hh impact'!K222 ->  | L25: ='e-hh impact'!L222 ->  | M25: ='e-hh impact'!M222 -> 
A26: =IF(TARIFFS!$B$21="service level tariff",IF('SERVICE LEVELS'!B12="","",'SERVICE LEVELS'!B12),IF(TARIFFS!B39="",0,TARIFFS!B39)) -> 0 | B26: R'000 | C26: ='e-hh impact'!C223 ->  | D26: ='e-hh impact'!D223 ->  | E26: ='e-hh impact'!E223 ->  | F26: ='e-hh impact'!F223 ->  | G26: ='e-hh impact'!G223 ->  | H26: ='e-hh impact'!H223 ->  | I26: ='e-hh impact'!I223 ->  | J26: ='e-hh impact'!J223 ->  | K26: ='e-hh impact'!K223 ->  | L26: ='e-hh impact'!L223 ->  | M26: ='e-hh impact'!M223 -> 
A27: =IF(TARIFFS!$B$21="service level tariff",IF('SERVICE LEVELS'!B13="","",'SERVICE LEVELS'!B13),IF(TARIFFS!B40="",0,TARIFFS!B40)) -> 0 | B27: R'000 | C27: ='e-hh impact'!C224 ->  | D27: ='e-hh impact'!D224 ->  | E27: ='e-hh impact'!E224 ->  | F27: ='e-hh impact'!F224 ->  | G27: ='e-hh impact'!G224 ->  | H27: ='e-hh impact'!H224 ->  | I27: ='e-hh impact'!I224 ->  | J27: ='e-hh impact'!J224 ->  | K27: ='e-hh impact'!K224 ->  | L27: ='e-hh impact'!L224 ->  | M27: ='e-hh impact'!M224 -> 
A28: =IF(TARIFFS!$B$21="service level tariff",IF('SERVICE LEVELS'!B14="","",'SERVICE LEVELS'!B14),IF(TARIFFS!B41="",0,TARIFFS!B41)) -> 0 | B28: R'000 | C28: ='e-hh impact'!C225 ->  | D28: ='e-hh impact'!D225 ->  | E28: ='e-hh impact'!E225 ->  | F28: ='e-hh impact'!F225 ->  | G28: ='e-hh impact'!G225 ->  | H28: ='e-hh impact'!H225 ->  | I28: ='e-hh impact'!I225 ->  | J28: ='e-hh impact'!J225 ->  | K28: ='e-hh impact'!K225 ->  | L28: ='e-hh impact'!L225 ->  | M28: ='e-hh impact'!M225 -> 
A29: TOTAL | C29: =SUM(C21:C28) ->  | D29: =SUM(D21:D28) -> 
A30: NON-RESIDENTIAL TARIFF REVENUE (R'000)
A31: RCW tariff revenue (based on waste) | C31: =Base_year -> 0 | D31: =Base_year+1 -> 1 | E31: =Base_year+2 -> 2 | F31: =Base_year+3 -> 3 | G31: =Base_year+4 -> 4 | H31: =Base_year+5 -> 5 | I31: =Base_year+6 -> 6 | J31: =Base_year+7 -> 7 | K31: =Base_year+8 -> 8 | L31: =Base_year+9 -> 9 | M31: =Base_year+10 -> 10
A32: =IF('SERVICE LEVELS'!B24="","",'SERVICE LEVELS'!B24) ->  | C32: =('e-waste'!C146/('waste gen'!$C37/1000)*'Tariff projection'!D$24)/1000 ->  | D32: =('e-waste'!D146/('waste gen'!$C37/1000)*'Tariff projection'!E$24)/1000 ->  | E32: =('e-waste'!E146/('waste gen'!$C37/1000)*'Tariff projection'!F$24)/1000 ->  | F32: =('e-waste'!F146/('waste gen'!$C37/1000)*'Tariff projection'!G$24)/1000 ->  | G32: =('e-waste'!G146/('waste gen'!$C37/1000)*'Tariff projection'!H$24)/1000 ->  | H32: =('e-waste'!H146/('waste gen'!$C37/1000)*'Tariff projection'!I$24)/1000 ->  | I32: =('e-waste'!I146/('waste gen'!$C37/1000)*'Tariff projection'!J$24)/1000 ->  | J32: =('e-waste'!J146/('waste gen'!$C37/1000)*'Tariff projection'!K$24)/1000 ->  | K32: =('e-waste'!K146/('waste gen'!$C37/1000)*'Tariff projection'!L$24)/1000 ->  | L32: =('e-waste'!L146/('waste gen'!$C37/1000)*'Tariff projection'!M$24)/1000 ->  | M32: =('e-waste'!M146/('waste gen'!$C37/1000)*'Tariff projection'!N$24)/1000 -> 
A33: =IF('SERVICE LEVELS'!B25="","",'SERVICE LEVELS'!B25) ->  | C33: =('e-waste'!C147/('waste gen'!$C38/1000)*'Tariff projection'!D$24)/1000 ->  | D33: =('e-waste'!D147/('waste gen'!$C38/1000)*'Tariff projection'!E$24)/1000 ->  | E33: =('e-waste'!E147/('waste gen'!$C38/1000)*'Tariff projection'!F$24)/1000 ->  | F33: =('e-waste'!F147/('waste gen'!$C38/1000)*'Tariff projection'!G$24)/1000 ->  | G33: =('e-waste'!G147/('waste gen'!$C38/1000)*'Tariff projection'!H$24)/1000 ->  | H33: =('e-waste'!H147/('waste gen'!$C38/1000)*'Tariff projection'!I$24)/1000 ->  | I33: =('e-waste'!I147/('waste gen'!$C38/1000)*'Tariff projection'!J$24)/1000 ->  | J33: =('e-waste'!J147/('waste gen'!$C38/1000)*'Tariff projection'!K$24)/1000 ->  | K33: =('e-waste'!K147/('waste gen'!$C38/1000)*'Tariff projection'!L$24)/1000 ->  | L33: =('e-waste'!L147/('waste gen'!$C38/1000)*'Tariff projection'!M$24)/1000 ->  | M33: =('e-waste'!M147/('waste gen'!$C38/1000)*'Tariff projection'!N$24)/1000 -> 
A34: =IF('SERVICE LEVELS'!B26="","",'SERVICE LEVELS'!B26) ->  | C34: =('e-waste'!C148/('waste gen'!$C39/1000)*'Tariff projection'!D$24)/1000 ->  | D34: =('e-waste'!D148/('waste gen'!$C39/1000)*'Tariff projection'!E$24)/1000 ->  | E34: =('e-waste'!E148/('waste gen'!$C39/1000)*'Tariff projection'!F$24)/1000 ->  | F34: =('e-waste'!F148/('waste gen'!$C39/1000)*'Tariff projection'!G$24)/1000 ->  | G34: =('e-waste'!G148/('waste gen'!$C39/1000)*'Tariff projection'!H$24)/1000 ->  | H34: =('e-waste'!H148/('waste gen'!$C39/1000)*'Tariff projection'!I$24)/1000 ->  | I34: =('e-waste'!I148/('waste gen'!$C39/1000)*'Tariff projection'!J$24)/1000 ->  | J34: =('e-waste'!J148/('waste gen'!$C39/1000)*'Tariff projection'!K$24)/1000 ->  | K34: =('e-waste'!K148/('waste gen'!$C39/1000)*'Tariff projection'!L$24)/1000 ->  | L34: =('e-waste'!L148/('waste gen'!$C39/1000)*'Tariff projection'!M$24)/1000 ->  | M34: =('e-waste'!M148/('waste gen'!$C39/1000)*'Tariff projection'!N$24)/1000 -> 
A35: =IF('SERVICE LEVELS'!B27="","",'SERVICE LEVELS'!B27) ->  | C35: =('e-waste'!C149/('waste gen'!$C40/1000)*'Tariff projection'!D$24)/1000 ->  | D35: =('e-waste'!D149/('waste gen'!$C40/1000)*'Tariff projection'!E$24)/1000 ->  | E35: =('e-waste'!E149/('waste gen'!$C40/1000)*'Tariff projection'!F$24)/1000 ->  | F35: =('e-waste'!F149/('waste gen'!$C40/1000)*'Tariff projection'!G$24)/1000 ->  | G35: =('e-waste'!G149/('waste gen'!$C40/1000)*'Tariff projection'!H$24)/1000 ->  | H35: =('e-waste'!H149/('waste gen'!$C40/1000)*'Tariff projection'!I$24)/1000 ->  | I35: =('e-waste'!I149/('waste gen'!$C40/1000)*'Tariff projection'!J$24)/1000 ->  | J35: =('e-waste'!J149/('waste gen'!$C40/1000)*'Tariff projection'!K$24)/1000 ->  | K35: =('e-waste'!K149/('waste gen'!$C40/1000)*'Tariff projection'!L$24)/1000 ->  | L35: =('e-waste'!L149/('waste gen'!$C40/1000)*'Tariff projection'!M$24)/1000 ->  | M35: =('e-waste'!M149/('waste gen'!$C40/1000)*'Tariff projection'!N$24)/1000 -> 
A36: Total RCW tariff revenue | C36: =SUM(C32:C35) ->  | D36: =SUM(D32:D35) -> 
A37: RCW basic fee revenue
A38: =A32 ->  | C38: =IF(TARIFFS!$B$48="All non-residential Cus",('e-waste'!C114*'Tariff projection'!D$29)/1000,('e-waste'!C122*'Tariff projection'!D$29/1000)) ->  | D38: =IF(TARIFFS!$B$48="All non-residential Cus",('e-waste'!D114*'Tariff projection'!E$29)/1000,('e-waste'!D122*'Tariff projection'!E$29/1000)) ->  | E38: =IF(TARIFFS!$B$48="All non-residential Cus",('e-waste'!E114*'Tariff projection'!F$29)/1000,('e-waste'!E122*'Tariff projection'!F$29/1000)) ->  | F38: =IF(TARIFFS!$B$48="All non-residential Cus",('e-waste'!F114*'Tariff projection'!G$29)/1000,('e-waste'!F122*'Tariff projection'!G$29/1000)) ->  | G38: =IF(TARIFFS!$B$48="All non-residential Cus",('e-waste'!G114*'Tariff projection'!H$29)/1000,('e-waste'!G122*'Tariff projection'!H$29/1000)) ->  | H38: =IF(TARIFFS!$B$48="All non-residential Cus",('e-waste'!H114*'Tariff projection'!I$29)/1000,('e-waste'!H122*'Tariff projection'!I$29/1000)) ->  | I38: =IF(TARIFFS!$B$48="All non-residential Cus",('e-waste'!I114*'Tariff projection'!J$29)/1000,('e-waste'!I122*'Tariff projection'!J$29/1000)) ->  | J38: =IF(TARIFFS!$B$48="All non-residential Cus",('e-waste'!J114*'Tariff projection'!K$29)/1000,('e-waste'!J122*'Tariff projection'!K$29/1000)) ->  | K38: =IF(TARIFFS!$B$48="All non-residential Cus",('e-waste'!K114*'Tariff projection'!L$29)/1000,('e-waste'!K122*'Tariff projection'!L$29/1000)) ->  | L38: =IF(TARIFFS!$B$48="All non-residential Cus",('e-waste'!L114*'Tariff projection'!M$29)/1000,('e-waste'!L122*'Tariff projection'!M$29/1000)) ->  | M38: =IF(TARIFFS!$B$48="All non-residential Cus",('e-waste'!M114*'Tariff projection'!N$29)/1000,('e-waste'!M122*'Tariff projection'!N$29/1000)) -> 
A39: =A33 ->  | C39: =IF(TARIFFS!$B$48="All non-residential Cus",0,('e-waste'!C123*'Tariff projection'!D$29/1000)) ->  | D39: =IF(TARIFFS!$B$48="All non-residential Cus",0,('e-waste'!D123*'Tariff projection'!E$29/1000)) ->  | E39: =IF(TARIFFS!$B$48="All non-residential Cus",0,('e-waste'!E123*'Tariff projection'!F$29/1000)) ->  | F39: =IF(TARIFFS!$B$48="All non-residential Cus",0,('e-waste'!F123*'Tariff projection'!G$29/1000)) ->  | G39: =IF(TARIFFS!$B$48="All non-residential Cus",0,('e-waste'!G123*'Tariff projection'!H$29/1000)) ->  | H39: =IF(TARIFFS!$B$48="All non-residential Cus",0,('e-waste'!H123*'Tariff projection'!I$29/1000)) ->  | I39: =IF(TARIFFS!$B$48="All non-residential Cus",0,('e-waste'!I123*'Tariff projection'!J$29/1000)) ->  | J39: =IF(TARIFFS!$B$48="All non-residential Cus",0,('e-waste'!J123*'Tariff projection'!K$29/1000)) ->  | K39: =IF(TARIFFS!$B$48="All non-residential Cus",0,('e-waste'!K123*'Tariff projection'!L$29/1000)) ->  | L39: =IF(TARIFFS!$B$48="All non-residential Cus",0,('e-waste'!L123*'Tariff projection'!M$29/1000)) ->  | M39: =IF(TARIFFS!$B$48="All non-residential Cus",0,('e-waste'!M123*'Tariff projection'!N$29/1000)) -> 
C40: =IF(TARIFFS!$B$48="All non-residential Cus",0,('e-waste'!C124*'Tariff projection'!D$29/1000)) ->  | D40: =IF(TARIFFS!$B$48="All non-residential Cus",0,('e-waste'!D124*'Tariff projection'!E$29/1000)) ->  | E40: =IF(TARIFFS!$B$48="All non-residential Cus",0,('e-waste'!E124*'Tariff projection'!F$29/1000)) ->  | F40: =IF(TARIFFS!$B$48="All non-residential Cus",0,('e-waste'!F124*'Tariff projection'!G$29/1000)) ->  | G40: =IF(TARIFFS!$B$48="All non-residential Cus",0,('e-waste'!G124*'Tariff projection'!H$29/1000)) ->  | H40: =IF(TARIFFS!$B$48="All non-residential Cus",0,('e-waste'!H124*'Tariff projection'!I$29/1000)) ->  | I40: =IF(TARIFFS!$B$48="All non-residential Cus",0,('e-waste'!I124*'Tariff projection'!J$29/1000)) ->  | J40: =IF(TARIFFS!$B$48="All non-residential Cus",0,('e-waste'!J124*'Tariff projection'!K$29/1000)) ->  | K40: =IF(TARIFFS!$B$48="All non-residential Cus",0,('e-waste'!K124*'Tariff projection'!L$29/1000)) ->  | L40: =IF(TARIFFS!$B$48="All non-residential Cus",0,('e-waste'!L124*'Tariff projection'!M$29/1000)) ->  | M40: =IF(TARIFFS!$B$48="All non-residential Cus",0,('e-waste'!M124*'Tariff projection'!N$29/1000)) -> 
C41: =IF(TARIFFS!$B$48="All non-residential Cus",0,('e-waste'!C125*'Tariff projection'!D$29/1000)) ->  | D41: =IF(TARIFFS!$B$48="All non-residential Cus",0,('e-waste'!D125*'Tariff projection'!E$29/1000)) ->  | E41: =IF(TARIFFS!$B$48="All non-residential Cus",0,('e-waste'!E125*'Tariff projection'!F$29/1000)) ->  | F41: =IF(TARIFFS!$B$48="All non-residential Cus",0,('e-waste'!F125*'Tariff projection'!G$29/1000)) ->  | G41: =IF(TARIFFS!$B$48="All non-residential Cus",0,('e-waste'!G125*'Tariff projection'!H$29/1000)) ->  | H41: =IF(TARIFFS!$B$48="All non-residential Cus",0,('e-waste'!H125*'Tariff projection'!I$29/1000)) ->  | I41: =IF(TARIFFS!$B$48="All non-residential Cus",0,('e-waste'!I125*'Tariff projection'!J$29/1000)) ->  | J41: =IF(TARIFFS!$B$48="All non-residential Cus",0,('e-waste'!J125*'Tariff projection'!K$29/1000)) ->  | K41: =IF(TARIFFS!$B$48="All non-residential Cus",0,('e-waste'!K125*'Tariff projection'!L$29/1000)) ->  | L41: =IF(TARIFFS!$B$48="All non-residential Cus",0,('e-waste'!L125*'Tariff projection'!M$29/1000)) ->  | M41: =IF(TARIFFS!$B$48="All non-residential Cus",0,('e-waste'!M125*'Tariff projection'!N$29/1000)) -> 
A42: Total RCW basic fee revenue | C42: =SUM(C38:C41) ->  | D42: =SUM(D38:D41) -> 
A43: RCW total revenue
A44: =A38 ->  | C44: =C38+C32 ->  | D44: =D38+D32 -> 
A45: =A39 ->  | C45: =C39+C33 -> 
A48: Total RCW revenue | C48: =SUM(C44:C47) ->  | D48: =SUM(D44:D47) ->  | E48: =SUM(E44:E47) ->  | F48: =SUM(F44:F47) ->  | G48: =SUM(G44:G47) ->  | H48: =SUM(H44:H47) ->  | I48: =SUM(I44:I47) ->  | J48: =SUM(J44:J47) ->  | K48: =SUM(K44:K47) ->  | L48: =SUM(L44:L47) ->  | M48: =SUM(M44:M47) -> 
A50: DCW tariff revenue | C50: ='e-waste'!C150/('waste gen'!$C44/1000)*'Tariff projection'!D25/1000 -> 0 | D50: ='e-waste'!D150/('waste gen'!$C44/1000)*'Tariff projection'!E25/1000 -> 0 | E50: ='e-waste'!E150/('waste gen'!$C44/1000)*'Tariff projection'!F25/1000 -> 0 | F50: ='e-waste'!F150/('waste gen'!$C44/1000)*'Tariff projection'!G25/1000 -> 0 | G50: ='e-waste'!G150/('waste gen'!$C44/1000)*'Tariff projection'!H25/1000 -> 0 | H50: ='e-waste'!H150/('waste gen'!$C44/1000)*'Tariff projection'!I25/1000 -> 0 | I50: ='e-waste'!I150/('waste gen'!$C44/1000)*'Tariff projection'!J25/1000 -> 0 | J50: ='e-waste'!J150/('waste gen'!$C44/1000)*'Tariff projection'!K25/1000 -> 0 | K50: ='e-waste'!K150/('waste gen'!$C44/1000)*'Tariff projection'!L25/1000 -> 0 | L50: ='e-waste'!L150/('waste gen'!$C44/1000)*'Tariff projection'!M25/1000 -> 0 | M50: ='e-waste'!M150/('waste gen'!$C44/1000)*'Tariff projection'!N25/1000 -> 0
A51: DCW basic fee revenue | C51: ='e-waste'!C128*'Tariff projection'!D30/1000 -> 0 | D51: ='e-waste'!D128*'Tariff projection'!E30/1000 -> 0 | E51: ='e-waste'!E128*'Tariff projection'!F30/1000 -> 0 | F51: ='e-waste'!F128*'Tariff projection'!G30/1000 -> 0 | G51: ='e-waste'!G128*'Tariff projection'!H30/1000 -> 0 | H51: ='e-waste'!H128*'Tariff projection'!I30/1000 -> 0 | I51: ='e-waste'!I128*'Tariff projection'!J30/1000 -> 0 | J51: ='e-waste'!J128*'Tariff projection'!K30/1000 -> 0 | K51: ='e-waste'!K128*'Tariff projection'!L30/1000 -> 0 | L51: ='e-waste'!L128*'Tariff projection'!M30/1000 -> 0 | M51: ='e-waste'!M128*'Tariff projection'!N30/1000 -> 0
A52: Total DCW revenue | C52: =SUM(C50:C51) -> 0 | D52: =SUM(D50:D51) -> 0 | E52: 0 | F52: 0 | G52: 0 | H52: 0 | I52: 0 | J52: 0 | K52: 0 | L52: 0 | M52: 0
A54: Total non-res revenue | C54: =C48+C52 ->  | D54: =D48+D52 -> 
A57: OTHER REVENUE
C58: =Base_year -> 0 | D58: =Base_year+1 -> 1 | E58: =Base_year+2 -> 2 | F58: =Base_year+3 -> 3 | G58: =Base_year+4 -> 4 | H58: =Base_year+5 -> 5 | I58: =Base_year+6 -> 6 | J58: =Base_year+7 -> 7 | K58: =Base_year+8 -> 8 | L58: =Base_year+9 -> 9 | M58: =Base_year+10 -> 10
A59: Recycling revenue | B59: R'000 pa | C59: =IFERROR(IF('WASTE FACILITIES'!$C$25="no",0,'e-waste'!C298*IF('WASTE FACILITIES'!$D$26="",'WASTE FACILITIES'!$C$26,'WASTE FACILITIES'!$D$26)/1000),0) -> 0 | D59: =IFERROR(IF('WASTE FACILITIES'!$C$25="no",0,'e-waste'!D298*IF('WASTE FACILITIES'!$D$26="",'WASTE FACILITIES'!$C$26,'WASTE FACILITIES'!$D$26)/1000),0) -> 0 | E59: =IFERROR(IF('WASTE FACILITIES'!$C$25="no",0,'e-waste'!E298*IF('WASTE FACILITIES'!$D$26="",'WASTE FACILITIES'!$C$26,'WASTE FACILITIES'!$D$26)/1000),0) -> 0 | F59: =IFERROR(IF('WASTE FACILITIES'!$C$25="no",0,'e-waste'!F298*IF('WASTE FACILITIES'!$D$26="",'WASTE FACILITIES'!$C$26,'WASTE FACILITIES'!$D$26)/1000),0) -> 0 | G59: =IFERROR(IF('WASTE FACILITIES'!$C$25="no",0,'e-waste'!G298*IF('WASTE FACILITIES'!$D$26="",'WASTE FACILITIES'!$C$26,'WASTE FACILITIES'!$D$26)/1000),0) -> 0 | H59: =IFERROR(IF('WASTE FACILITIES'!$C$25="no",0,'e-waste'!H298*IF('WASTE FACILITIES'!$D$26="",'WASTE FACILITIES'!$C$26,'WASTE FACILITIES'!$D$26)/1000),0) -> 0 | I59: =IFERROR(IF('WASTE FACILITIES'!$C$25="no",0,'e-waste'!I298*IF('WASTE FACILITIES'!$D$26="",'WASTE FACILITIES'!$C$26,'WASTE FACILITIES'!$D$26)/1000),0) -> 0 | J59: =IFERROR(IF('WASTE FACILITIES'!$C$25="no",0,'e-waste'!J298*IF('WASTE FACILITIES'!$D$26="",'WASTE FACILITIES'!$C$26,'WASTE FACILITIES'!$D$26)/1000),0) -> 0 | K59: =IFERROR(IF('WASTE FACILITIES'!$C$25="no",0,'e-waste'!K298*IF('WASTE FACILITIES'!$D$26="",'WASTE FACILITIES'!$C$26,'WASTE FACILITIES'!$D$26)/1000),0) -> 0 | L59: =IFERROR(IF('WASTE FACILITIES'!$C$25="no",0,'e-waste'!L298*IF('WASTE FACILITIES'!$D$26="",'WASTE FACILITIES'!$C$26,'WASTE FACILITIES'!$D$26)/1000),0) -> 0 | M59: =IFERROR(IF('WASTE FACILITIES'!$C$25="no",0,'e-waste'!M298*IF('WASTE FACILITIES'!$D$26="",'WASTE FACILITIES'!$C$26,'WASTE FACILITIES'!$D$26)/1000),0) -> 0
A61: Landfill gas to energy revenue | B61: R'000 pa | C61: =IFERROR(IF('WASTE FACILITIES'!$C$50="no",0,'e-waste'!C373*IF('unit costs'!$D$63="",'unit costs'!$C$63,'unit costs'!$D$63)/100*1000000/1000*'WASTE FACILITIES'!$C$53+'WASTE FACILITIES'!$C$53*IF('unit costs'!$D$64="",'unit costs'!$C$64,'unit costs'!$D$64)*'e-waste'!C374/1000),0) -> 0 | D61: =IFERROR(IF('WASTE FACILITIES'!$C$50="no",0,'e-waste'!D373*IF('unit costs'!$D$63="",'unit costs'!$C$63,'unit costs'!$D$63)/100*1000000/1000*'WASTE FACILITIES'!$C$53+'WASTE FACILITIES'!$C$53*IF('unit costs'!$D$64="",'unit costs'!$C$64,'unit costs'!$D$64)*'e-waste'!D374/1000),0) -> 0 | E61: =IFERROR(IF('WASTE FACILITIES'!$C$50="no",0,'e-waste'!E373*IF('unit costs'!$D$63="",'unit costs'!$C$63,'unit costs'!$D$63)/100*1000000/1000*'WASTE FACILITIES'!$C$53+'WASTE FACILITIES'!$C$53*IF('unit costs'!$D$64="",'unit costs'!$C$64,'unit costs'!$D$64)*'e-waste'!E374/1000),0) -> 0 | F61: =IFERROR(IF('WASTE FACILITIES'!$C$50="no",0,'e-waste'!F373*IF('unit costs'!$D$63="",'unit costs'!$C$63,'unit costs'!$D$63)/100*1000000/1000*'WASTE FACILITIES'!$C$53+'WASTE FACILITIES'!$C$53*IF('unit costs'!$D$64="",'unit costs'!$C$64,'unit costs'!$D$64)*'e-waste'!F374/1000),0) -> 0 | G61: =IFERROR(IF('WASTE FACILITIES'!$C$50="no",0,'e-waste'!G373*IF('unit costs'!$D$63="",'unit costs'!$C$63,'unit costs'!$D$63)/100*1000000/1000*'WASTE FACILITIES'!$C$53+'WASTE FACILITIES'!$C$53*IF('unit costs'!$D$64="",'unit costs'!$C$64,'unit costs'!$D$64)*'e-waste'!G374/1000),0) -> 0 | H61: =IFERROR(IF('WASTE FACILITIES'!$C$50="no",0,'e-waste'!H373*IF('unit costs'!$D$63="",'unit costs'!$C$63,'unit costs'!$D$63)/100*1000000/1000*'WASTE FACILITIES'!$C$53+'WASTE FACILITIES'!$C$53*IF('unit costs'!$D$64="",'unit costs'!$C$64,'unit costs'!$D$64)*'e-waste'!H374/1000),0) -> 0 | I61: =IFERROR(IF('WASTE FACILITIES'!$C$50="no",0,'e-waste'!I373*IF('unit costs'!$D$63="",'unit costs'!$C$63,'unit costs'!$D$63)/100*1000000/1000*'WASTE FACILITIES'!$C$53+'WASTE FACILITIES'!$C$53*IF('unit costs'!$D$64="",'unit costs'!$C$64,'unit costs'!$D$64)*'e-waste'!I374/1000),0) -> 0 | J61: =IFERROR(IF('WASTE FACILITIES'!$C$50="no",0,'e-waste'!J373*IF('unit costs'!$D$63="",'unit costs'!$C$63,'unit costs'!$D$63)/100*1000000/1000*'WASTE FACILITIES'!$C$53+'WASTE FACILITIES'!$C$53*IF('unit costs'!$D$64="",'unit costs'!$C$64,'unit costs'!$D$64)*'e-waste'!J374/1000),0) -> 0 | K61: =IFERROR(IF('WASTE FACILITIES'!$C$50="no",0,'e-waste'!K373*IF('unit costs'!$D$63="",'unit costs'!$C$63,'unit costs'!$D$63)/100*1000000/1000*'WASTE FACILITIES'!$C$53+'WASTE FACILITIES'!$C$53*IF('unit costs'!$D$64="",'unit costs'!$C$64,'unit costs'!$D$64)*'e-waste'!K374/1000),0) -> 0 | L61: =IFERROR(IF('WASTE FACILITIES'!$C$50="no",0,'e-waste'!L373*IF('unit costs'!$D$63="",'unit costs'!$C$63,'unit costs'!$D$63)/100*1000000/1000*'WASTE FACILITIES'!$C$53+'WASTE FACILITIES'!$C$53*IF('unit costs'!$D$64="",'unit costs'!$C$64,'unit costs'!$D$64)*'e-waste'!L374/1000),0) -> 0 | M61: =IFERROR(IF('WASTE FACILITIES'!$C$50="no",0,'e-waste'!M373*IF('unit costs'!$D$63="",'unit costs'!$C$63,'unit costs'!$D$63)/100*1000000/1000*'WASTE FACILITIES'!$C$53+'WASTE FACILITIES'!$C$53*IF('unit costs'!$D$64="",'unit costs'!$C$64,'unit costs'!$D$64)*'e-waste'!M374/1000),0) -> 0
A63: Waste to energy revenue | B63: R'000 pa | C63: =IFERROR(IF('WASTE FACILITIES'!$C$42="no",0,IF('unit costs'!$D$63="",'unit costs'!$C$63,'unit costs'!$D$63)/100*'e-waste'!C324*1000*'WASTE FACILITIES'!$C$47+IF('unit costs'!$D$64="",'unit costs'!$C$64,'unit costs'!$D$64)*defaults!B74/1000*'e-waste'!C324*1000/1000),0) -> 0 | D63: =IFERROR(IF('WASTE FACILITIES'!$C$42="no",0,IF('unit costs'!$D$63="",'unit costs'!$C$63,'unit costs'!$D$63)/100*'e-waste'!D324*1000*'WASTE FACILITIES'!$C$47+IF('unit costs'!$D$64="",'unit costs'!$C$64,'unit costs'!$D$64)*defaults!C74/1000*'e-waste'!D324*1000/1000),0) -> 0 | E63: =IFERROR(IF('WASTE FACILITIES'!$C$42="no",0,IF('unit costs'!$D$63="",'unit costs'!$C$63,'unit costs'!$D$63)/100*'e-waste'!E324*1000*'WASTE FACILITIES'!$C$47+IF('unit costs'!$D$64="",'unit costs'!$C$64,'unit costs'!$D$64)*defaults!D74/1000*'e-waste'!E324*1000/1000),0) -> 0 | F63: =IFERROR(IF('WASTE FACILITIES'!$C$42="no",0,IF('unit costs'!$D$63="",'unit costs'!$C$63,'unit costs'!$D$63)/100*'e-waste'!F324*1000*'WASTE FACILITIES'!$C$47+IF('unit costs'!$D$64="",'unit costs'!$C$64,'unit costs'!$D$64)*defaults!E74/1000*'e-waste'!F324*1000/1000),0) -> 0 | G63: =IFERROR(IF('WASTE FACILITIES'!$C$42="no",0,IF('unit costs'!$D$63="",'unit costs'!$C$63,'unit costs'!$D$63)/100*'e-waste'!G324*1000*'WASTE FACILITIES'!$C$47+IF('unit costs'!$D$64="",'unit costs'!$C$64,'unit costs'!$D$64)*defaults!F74/1000*'e-waste'!G324*1000/1000),0) -> 0 | H63: =IFERROR(IF('WASTE FACILITIES'!$C$42="no",0,IF('unit costs'!$D$63="",'unit costs'!$C$63,'unit costs'!$D$63)/100*'e-waste'!H324*1000*'WASTE FACILITIES'!$C$47+IF('unit costs'!$D$64="",'unit costs'!$C$64,'unit costs'!$D$64)*defaults!G74/1000*'e-waste'!H324*1000/1000),0) -> 0 | I63: =IFERROR(IF('WASTE FACILITIES'!$C$42="no",0,IF('unit costs'!$D$63="",'unit costs'!$C$63,'unit costs'!$D$63)/100*'e-waste'!I324*1000*'WASTE FACILITIES'!$C$47+IF('unit costs'!$D$64="",'unit costs'!$C$64,'unit costs'!$D$64)*defaults!H74/1000*'e-waste'!I324*1000/1000),0) -> 0 | J63: =IFERROR(IF('WASTE FACILITIES'!$C$42="no",0,IF('unit costs'!$D$63="",'unit costs'!$C$63,'unit costs'!$D$63)/100*'e-waste'!J324*1000*'WASTE FACILITIES'!$C$47+IF('unit costs'!$D$64="",'unit costs'!$C$64,'unit costs'!$D$64)*defaults!I74/1000*'e-waste'!J324*1000/1000),0) -> 0 | K63: =IFERROR(IF('WASTE FACILITIES'!$C$42="no",0,IF('unit costs'!$D$63="",'unit costs'!$C$63,'unit costs'!$D$63)/100*'e-waste'!K324*1000*'WASTE FACILITIES'!$C$47+IF('unit costs'!$D$64="",'unit costs'!$C$64,'unit costs'!$D$64)*defaults!J74/1000*'e-waste'!K324*1000/1000),0) -> 0 | L63: =IFERROR(IF('WASTE FACILITIES'!$C$42="no",0,IF('unit costs'!$D$63="",'unit costs'!$C$63,'unit costs'!$D$63)/100*'e-waste'!L324*1000*'WASTE FACILITIES'!$C$47+IF('unit costs'!$D$64="",'unit costs'!$C$64,'unit costs'!$D$64)*defaults!K74/1000*'e-waste'!L324*1000/1000),0) -> 0 | M63: =IFERROR(IF('WASTE FACILITIES'!$C$42="no",0,IF('unit costs'!$D$63="",'unit costs'!$C$63,'unit costs'!$D$63)/100*'e-waste'!M324*1000*'WASTE FACILITIES'!$C$47+IF('unit costs'!$D$64="",'unit costs'!$C$64,'unit costs'!$D$64)*defaults!L74/1000*'e-waste'!M324*1000/1000),0) -> 0
A65: Other non-specific revenue | B65: R'000 pa | C65: =OPERATING!D29 -> 0 | D65: =C65 -> 0 | E65: =D65 -> 0 | F65: 0 | G65: 0 | H65: 0 | I65: 0 | J65: 0 | K65: 0 | L65: 0 | M65: 0
C66: Assumed to be paid for at the bulk electricity purchase price
A67: PROPERTY RATES INCOME
C68: =Base_year -> 0 | D68: =Base_year+1 -> 1 | E68: =Base_year+2 -> 2 | F68: =Base_year+3 -> 3 | G68: =Base_year+4 -> 4 | H68: =Base_year+5 -> 5 | I68: =Base_year+6 -> 6 | J68: =Base_year+7 -> 7 | K68: =Base_year+8 -> 8 | L68: =Base_year+9 -> 9 | M68: =Base_year+10 -> 10
A69: Residential Rates Increase | C69: 0 | D69: =($H$69-$C$69)/5+C69 -> 0 | E69: =($H$69-$C$69)/5+D69 -> 0 | F69: =($H$69-$C$69)/5+E69 -> 0 | G69: 0 | H69: =IF(targets!D102="",targets!C102,targets!D102) -> 0 | I69: =($M$69-$H$69)/5+H69 -> 0 | J69: =($M$69-$H$69)/5+I69 -> 0 | K69: 0 | L69: 0 | M69: =IF(targets!E102="",targets!C102,targets!E102) -> 0
A70: Non-residential Rates Increase | C70: =targets!C103 -> 0 | D70: =($H$70-$C$70)/5+C70 -> 0 | E70: =($H$70-$C$70)/5+D70 -> 0 | F70: 0 | G70: 0 | H70: =IF(targets!D103="",targets!C103,targets!D103) -> 0 | I70: =(M70-H70)/5+H70 -> 0 | J70: =(N70-I70)/5+I70 -> 0 | K70: 0 | L70: 0 | M70: =IF(targets!E103="",targets!C103,targets!E103) -> 0
A71: Property rates charge | B71: c /R | C71: =IF(CONSUMERS!E21="",CONSUMERS!D21,CONSUMERS!E21) -> 0.8 | D71: =C71*(1+D69) -> 0.8 | E71: =D71*(1+E69) -> 0.8 | F71: 0.8 | G71: 0.8 | H71: 0.8 | I71: 0.8 | J71: 0.8 | K71: 0.8 | L71: 0.8 | M71: 0.8
A73: Residential Rates Income | B73: R'000 | C73: =IF(OPERATING!D24="",OPERATING!C24,OPERATING!D24) -> 0 | D73: =$C$73*(1+D69) -> 0 | E73: =$C$73*(1+E69) -> 0 | F73: 0 | G73: 0 | H73: 0 | I73: 0 | J73: 0 | K73: 0 | L73: 0 | M73: 0
A74: Non-residential Rates Income | B74: R'000 | C74: =IF(OPERATING!D25="",OPERATING!C25,OPERATING!D25) ->  | D74: =C74*(1+D70) ->  | E74: =D74*(1+E70) -> 
A76: Total transfer from rates account | B76: R'000 | C76: =SUM(C73:C74) ->  | D76: =SUM(D73:D74) -> 
A78: SUBSIDIES | D78: =Base_year -> 0
C79: =Base_year -> 0 | D79: =Base_year+1 -> 1 | E79: =Base_year+2 -> 2 | F79: =Base_year+3 -> 3 | G79: =Base_year+4 -> 4 | H79: =Base_year+5 -> 5 | I79: =Base_year+6 -> 6 | J79: =Base_year+7 -> 7 | K79: =Base_year+8 -> 8 | L79: =Base_year+9 -> 9 | M79: =Base_year+10 -> 10
A80: % subsidy increase | C80: =targets!C101 -> 0 | D80: =($H$80-$C$80)/5+C80 -> 0 | E80: =($H$80-$C$80)/5+D80 -> 0 | F80: 0 | G80: 0 | H80: =IF(targets!D101="",targets!C101,targets!D101) -> 0 | I80: =($M$80-$H$80)/5+H80 -> 0 | J80: =($M$80-$H$80)/5+I80 -> 0 | K80: 0 | L80: 0 | M80: =IF(targets!E101="",targets!C101,targets!E101) -> 0
A81: Subsidies | B81: R'000 | C81: =' FINANCE'!C28 -> 0 | D81: =' FINANCE'!D28 -> 0 | E81: =' FINANCE'!E28 -> 0 | F81: =$C$81*(1+F80) -> 0 | G81: =$C$81*(1+G80) -> 0 | H81: 0 | I81: 0 | J81: 0 | K81: 0 | L81: 0 | M81: 0
A82: No of poor households (pop growth only) | C82: ='e-inc'!D116 -> 0 | D82: ='e-inc'!E116 -> 0 | E82: ='e-inc'!F116 -> 0 | F82: ='e-inc'!G116 -> 0 | G82: ='e-inc'!H116 -> 0 | H82: ='e-inc'!I116 -> 0 | I82: ='e-inc'!J116 -> 0 | J82: ='e-inc'!K116 -> 0 | K82: ='e-inc'!L116 -> 0 | L82: ='e-inc'!M116 -> 0 | M82: ='e-inc'!N116 -> 0
A83: Subsidy per hh for SW | B83: R/CU/month | C83: =C81*1000/C82/12 ->  | D83: =D81*1000/D82/12 -> 
A86: DISPOSAL CHARGE INCOME
C87: =Base_year -> 0 | D87: =Base_year+1 -> 1 | E87: =Base_year+2 -> 2 | F87: =Base_year+3 -> 3 | G87: =Base_year+4 -> 4 | H87: =Base_year+5 -> 5 | I87: =Base_year+6 -> 6 | J87: =Base_year+7 -> 7 | K87: =Base_year+8 -> 8 | L87: =Base_year+9 -> 9 | M87: =Base_year+10 -> 10
A88: Disposal Charges Income | B88: R'000 | C88: =C89*C91/1000 ->  | D88: =D89*D91/1000 -> 
A89: Chargeable tons delivered to landfill and transfer stations | B89: tons | C89: ='e-waste'!C349+'e-waste'!C217 ->  | D89: ='e-waste'!D349+'e-waste'!D217 ->  | E89: ='e-waste'!E349+'e-waste'!E217 ->  | F89: ='e-waste'!F349+'e-waste'!F217 ->  | G89: ='e-waste'!G349+'e-waste'!G217 ->  | H89: ='e-waste'!H349+'e-waste'!H217 ->  | I89: ='e-waste'!I349+'e-waste'!I217 ->  | J89: ='e-waste'!J349+'e-waste'!J217 ->  | K89: ='e-waste'!K349+'e-waste'!K217 ->  | L89: ='e-waste'!L349+'e-waste'!L217 ->  | M89: ='e-waste'!M349+'e-waste'!M217 -> 
A90: Total tons delivered to landfill and transfer stations | B90: tons | C90: ='e-waste'!C216+'e-waste'!C348 ->  | D90: ='e-waste'!D216+'e-waste'!D348 ->  | E90: ='e-waste'!E216+'e-waste'!E348 ->  | F90: ='e-waste'!F216+'e-waste'!F348 ->  | G90: ='e-waste'!G216+'e-waste'!G348 ->  | H90: ='e-waste'!H216+'e-waste'!H348 ->  | I90: ='e-waste'!I216+'e-waste'!I348 ->  | J90: ='e-waste'!J216+'e-waste'!J348 ->  | K90: ='e-waste'!K216+'e-waste'!K348 ->  | L90: ='e-waste'!L216+'e-waste'!L348 ->  | M90: ='e-waste'!M216+'e-waste'!M348 -> 
A91: Tariff/ton | B91: R/ton | C91: ='Tariff projection'!D34 -> 0 | D91: ='Tariff projection'!E34 -> 0 | E91: ='Tariff projection'!F34 -> 0 | F91: ='Tariff projection'!G34 -> 0 | G91: ='Tariff projection'!H34 -> 0 | H91: ='Tariff projection'!I34 -> 0 | I91: ='Tariff projection'!J34 -> 0 | J91: ='Tariff projection'!K34 -> 0 | K91: ='Tariff projection'!L34 -> 0 | L91: ='Tariff projection'!M34 -> 0 | M91: ='Tariff projection'!N34 -> 0

Sheet e-loans
B1: CAPITAL CHARGES (interest payments) | G1: All values in R'000 real
A2: Key: | B2: from user input sheets
B3: key outputs used in other sheets
A5: INTEREST AND REDEMPTION PAYMENTS
A7: Inflation index | B7: 1 | C7: =B7*(1+$B$8) -> 1.06 | D7: 1.1236 | E7: 1.191016 | F7: 1.26247696 | G7: 1.338225578 | H7: 1.418519112 | I7: 1.503630259 | J7: 1.593848075 | K7: 1.689478959 | L7: 1.790847697
A8: Inflation | B8: =IF(' FINANCE'!D15="",' FINANCE'!C15,' FINANCE'!D15) -> 0.06
B10: Nominal interest per annum | C10: Repayment period | D10: Adjusted | M10: Factor | N10: Modelled | O10: Target | P10: Difference
A11: Existing Debt | B11: =IF(' FINANCE'!D8="",' FINANCE'!C8,' FINANCE'!D8) -> 0.12 | C11: =IF(' FINANCE'!D9="",' FINANCE'!C9,' FINANCE'!D9) -> 5 | D11: =defaults!B76*$M$11 -> 0.12 | M11: 1 | N11: =OPERATING!C12 -> 0 | O11: =OPERATING!D12 -> 0 | P11: =N11-O11 -> 0
A12: New debt | B12: =IF(' FINANCE'!D12="",' FINANCE'!C12,' FINANCE'!D12) -> 0.1 | C12: =IF(' FINANCE'!D13="",' FINANCE'!C13,' FINANCE'!D13) -> 10
A15: SUMMARY OF PRINCIPLE PAYMENTS R'000
A16: Yr | B16: 0 | C16: 1 | D16: 2 | E16: 3 | F16: 4 | G16: 5 | H16: 6 | I16: 7 | J16: 8 | K16: 9 | L16: 10
A17: New debt raised | C17: ='e-capex'!D30 ->  | D17: ='e-capex'!E30 ->  | E17: ='e-capex'!F30 ->  | F17: ='e-capex'!G30 ->  | G17: ='e-capex'!H30 ->  | H17: ='e-capex'!I30 ->  | I17: ='e-capex'!J30 ->  | J17: ='e-capex'!K30 ->  | K17: ='e-capex'!L30 ->  | L17: ='e-capex'!M30 -> 
A19: Debt repaid | C19: =C33+C65 -> 0
A21: Debt outstanding (R'000) | B21: =' FINANCE'!C6 -> 0 | C21: =B21+C17+C19 -> 
A23: SUMMARY OF INTEREST PAYMENTS R'000
A25: Net interest paid | B25: =-C32 -> 0 | C25: =-C32-C52 -> 0
A28: Detailed Calculations of Interest and Principle payments
A29: Initial debt
A30: Yr | B30: 0 | C30: 1 | D30: 2 | E30: 3 | F30: 4 | G30: 5 | H30: 6 | I30: 7 | J30: 8 | K30: 9 | L30: 10
A31: Debt outstanding | B31: =B21 -> 0 | C31: =B31+C33 -> 0 | D31: 0 | E31: 0 | F31: 0 | G31: 0 | H31: 0 | I31: 0 | J31: 0 | K31: 0 | L31: 0
A32: Interest repayments | C32: =-$B$11*B31 -> 0 | D32: 0 | E32: 0 | F32: 0 | G32: 0 | H32: 0 | I32: 0 | J32: 0 | K32: 0 | L32: 0
A33: Principal repayments | C33: =-IF(C30>$C$11,0,$B$31/$C$11) -> 0 | D33: 0 | E33: 0 | F33: 0 | G33: 0 | H33: 0 | I33: 0 | J33: 0 | K33: 0 | L33: 0
A35: New debt
A36: Interest & Principle Payments calculations
A37: Interest and principal payment calculations | D37: 1 | E37: 2 | F37: 3 | G37: 4 | H37: 5 | I37: 6 | J37: 7 | K37: 8 | L37: 9
A38: New debt raised | C38: =C17 -> 
A39: Yr | B39: 0 | C39: 1 | D39: 2 | E39: 3 | F39: 4 | G39: 5 | H39: 6 | I39: 7 | J39: 8 | K39: 9 | L39: 10
B40: loanyr
A41: Interest | B41: 1 | D41: =IF(D37<=$C$12,IPMT($B$12,D37,$C$12,$C$38),0) -> 
A42: Interest | B42: =B41+1 -> 2 | E42: =IF(D37<=$C$12,IPMT($B$12,D37,$C$12,$D$38),0) -> 
A43: Interest | B43: 3 | F43: =IF(D37<=$C$12,IPMT($B$12,D37,$C$12,$E$38),0) -> 
A44: Interest | B44: 4 | G44: =IF(D37<=$C$12,IPMT($B$12,D37,$C$12,$F$38),0) -> 
A45: Interest | B45: 5 | H45: =IF(D37<=$C$12,IPMT($B$12,D37,$C$12,$G$38),0) ->  | I45: =IF(E37<=$C$12,IPMT($B$12,E37,$C$12,$G$38),0) ->  | J45: =IF(F37<=$C$12,IPMT($B$12,F37,$C$12,$G$38),0) ->  | K45: =IF(G37<=$C$12,IPMT($B$12,G37,$C$12,$G$38),0) ->  | L45: =IF(H37<=$C$12,IPMT($B$12,H37,$C$12,$G$38),0) -> 
A46: Interest | B46: 6 | I46: =IF(D37<=$C$12,IPMT($B$12,D37,$C$12,$H$38),0) ->  | J46: =IF(E37<=$C$12,IPMT($B$12,E37,$C$12,$H$38),0) ->  | K46: =IF(F37<=$C$12,IPMT($B$12,F37,$C$12,$H$38),0) ->  | L46: =IF(G37<=$C$12,IPMT($B$12,G37,$C$12,$H$38),0) -> 
A47: Interest | B47: 7 | J47: =IF(D37<=$C$12,IPMT($B$12,D37,$C$12,$I$38),0) ->  | K47: =IF(E37<=$C$12,IPMT($B$12,E37,$C$12,$I$38),0) ->  | L47: =IF(F37<=$C$12,IPMT($B$12,F37,$C$12,$I$38),0) -> 
A48: Interest | B48: 8 | K48: =IF(D37<=$C$12,IPMT($B$12,D37,$C$12,$J$38),0) ->  | L48: =IF(E37<=$C$12,IPMT($B$12,E37,$C$12,$J$38),0) -> 
A49: Interest | B49: 9 | L49: =IF(D37<=$C$12,IPMT($B$12,D37,$C$12,$K$38),0) -> 
A50: Interest | B50: 10
A52: Total annual interest | C52: =SUM(C41:C50) -> 0
B53: loanyr
A54: Principle | B54: 1 | D54: =IF(D37<=$C$12,PPMT($B$12,D37,$C$12,$C$38),0) -> 
A55: Principle | B55: =B54+1 -> 2 | E55: =IF(D37<=$C$12,PPMT($B$12,D37,$C$12,$D$38),0) -> 
A56: Principle | B56: 3 | F56: =IF(D37<=$C$12,PPMT($B$12,D37,$C$12,$E$38),0) -> 
A57: Principle | B57: 4 | G57: =IF(D37<=$C$12,PPMT($B$12,D37,$C$12,$F$38),0) -> 
A58: Principle | B58: 5 | H58: =IF(D37<=$C$12,PPMT($B$12,D37,$C$12,$G$38),0) ->  | I58: =IF(E37<=$C$12,PPMT($B$12,E37,$C$12,$G$38),0) ->  | J58: =IF(F37<=$C$12,PPMT($B$12,F37,$C$12,$G$38),0) ->  | K58: =IF(G37<=$C$12,PPMT($B$12,G37,$C$12,$G$38),0) ->  | L58: =IF(H37<=$C$12,PPMT($B$12,H37,$C$12,$G$38),0) -> 
A59: Principle | B59: 6 | I59: =IF(D37<=$C$12,PPMT($B$12,D37,$C$12,$H$38),0) ->  | J59: =IF(E37<=$C$12,PPMT($B$12,E37,$C$12,$H$38),0) ->  | K59: =IF(F37<=$C$12,PPMT($B$12,F37,$C$12,$H$38),0) ->  | L59: =IF(G37<=$C$12,PPMT($B$12,G37,$C$12,$H$38),0) -> 
A60: Principle | B60: 7 | J60: =IF(D37<=$C$12,PPMT($B$12,D37,$C$12,$I$38),0) ->  | K60: =IF(E37<=$C$12,PPMT($B$12,E37,$C$12,$I$38),0) ->  | L60: =IF(F37<=$C$12,PPMT($B$12,F37,$C$12,$I$38),0) -> 
A61: Principle | B61: 8 | K61: =IF(D37<=$C$12,PPMT($B$12,D37,$C$12,$J$38),0) ->  | L61: =IF(E37<=$C$12,PPMT($B$12,E37,$C$12,$J$38),0) -> 
A62: Principle | B62: 9 | L62: =IF(D37<=$C$12,PPMT($B$12,D37,$C$12,$K$38),0) -> 
A63: Principle | B63: 10
A65: Total annual principle payments | C65: =SUM(C54:C63) -> 0

Sheet e-hh impact
B1: HOUSEHOLD AFFORDABILITY | F1: All values in R'000 real
A2: Key: | B2: from user input sheets
B3: key outputs used in other sheets
A5: Operating Expenditure Split by Income Group
A6: Customer Units per income group | C6: =Base_year -> 0 | D6: =C6+1 -> 1 | E6: =D6+1 -> 2 | F6: 3 | G6: 4 | H6: 5 | I6: 6 | J6: 7 | K6: 8 | L6: 9 | M6: 10
A7: low income Cus | B7: Cus | C7: ='e-inc'!D113 ->  | D7: ='e-inc'!E113 ->  | E7: ='e-inc'!F113 ->  | F7: ='e-inc'!G113 ->  | G7: ='e-inc'!H113 ->  | H7: ='e-inc'!I113 ->  | I7: ='e-inc'!J113 ->  | J7: ='e-inc'!K113 ->  | K7: ='e-inc'!L113 ->  | L7: ='e-inc'!M113 ->  | M7: ='e-inc'!N113 -> 
A8: high income Cus | B8: Cus | C8: ='e-inc'!D114 ->  | D8: ='e-inc'!E114 ->  | E8: ='e-inc'!F114 ->  | F8: ='e-inc'!G114 ->  | G8: ='e-inc'!H114 ->  | H8: ='e-inc'!I114 ->  | I8: ='e-inc'!J114 ->  | J8: ='e-inc'!K114 ->  | K8: ='e-inc'!L114 ->  | L8: ='e-inc'!M114 ->  | M8: ='e-inc'!N114 -> 
A10: Low Income
A11: low income total operating expenditure (excl. collection) | B11: R'000 pa | C11: =SUM('e-opex'!D93,'e-opex'!D97,'e-opex'!D107,'e-opex'!D117,'e-opex'!D127,'e-opex'!D137,'e-opex'!D151,'e-opex'!D155,'e-opex'!D163,'e-opex'!D172,'e-opex'!D193) ->  | D11: =SUM('e-opex'!E93,'e-opex'!E97,'e-opex'!E107,'e-opex'!E117,'e-opex'!E127,'e-opex'!E137,'e-opex'!E151,'e-opex'!E155,'e-opex'!E163,,'e-opex'!E172,'e-opex'!E193) ->  | E11: =SUM('e-opex'!F93,'e-opex'!F97,'e-opex'!F107,'e-opex'!F117,'e-opex'!F127,'e-opex'!F137,'e-opex'!F151,'e-opex'!F155,'e-opex'!F163,,'e-opex'!F172,'e-opex'!F193) ->  | F11: =SUM('e-opex'!G93,'e-opex'!G97,'e-opex'!G107,'e-opex'!G117,'e-opex'!G127,'e-opex'!G137,'e-opex'!G151,'e-opex'!G155,'e-opex'!G163,,'e-opex'!G172,'e-opex'!G193) ->  | G11: =SUM('e-opex'!H93,'e-opex'!H97,'e-opex'!H107,'e-opex'!H117,'e-opex'!H127,'e-opex'!H137,'e-opex'!H151,'e-opex'!H155,'e-opex'!H163,,'e-opex'!H172,'e-opex'!H193) ->  | H11: =SUM('e-opex'!I93,'e-opex'!I97,'e-opex'!I107,'e-opex'!I117,'e-opex'!I127,'e-opex'!I137,'e-opex'!I151,'e-opex'!I155,'e-opex'!I163,,'e-opex'!I172,'e-opex'!I193) ->  | I11: =SUM('e-opex'!J93,'e-opex'!J97,'e-opex'!J107,'e-opex'!J117,'e-opex'!J127,'e-opex'!J137,'e-opex'!J151,'e-opex'!J155,'e-opex'!J163,,'e-opex'!J172,'e-opex'!J193) ->  | J11: =SUM('e-opex'!K93,'e-opex'!K97,'e-opex'!K107,'e-opex'!K117,'e-opex'!K127,'e-opex'!K137,'e-opex'!K151,'e-opex'!K155,'e-opex'!K163,,'e-opex'!K172,'e-opex'!K193) ->  | K11: =SUM('e-opex'!L93,'e-opex'!L97,'e-opex'!L107,'e-opex'!L117,'e-opex'!L127,'e-opex'!L137,'e-opex'!L151,'e-opex'!L155,'e-opex'!L163,,'e-opex'!L172,'e-opex'!L193) ->  | L11: =SUM('e-opex'!M93,'e-opex'!M97,'e-opex'!M107,'e-opex'!M117,'e-opex'!M127,'e-opex'!M137,'e-opex'!M151,'e-opex'!M155,'e-opex'!M163,,'e-opex'!M172,'e-opex'!M193) ->  | M11: =SUM('e-opex'!N93,'e-opex'!N97,'e-opex'!N107,'e-opex'!N117,'e-opex'!N127,'e-opex'!N137,'e-opex'!N151,'e-opex'!N155,'e-opex'!N163,,'e-opex'!N172,'e-opex'!N193) -> 
A12: Public & bulk waste operating cost/CU | B12: R/Cus/month | C12: =C11*1000/(C7-C15)/12 ->  | D12: =D11*1000/(D7-D15)/12 -> 
A14: Low Income total number Cus per Service level
A15: ='e-opex'!A37 -> No service | B15: Cus | C15: ='e-service levels'!D74 ->  | D15: ='e-service levels'!E74 ->  | E15: ='e-service levels'!F74 ->  | F15: ='e-service levels'!G74 ->  | G15: ='e-service levels'!H74 ->  | H15: ='e-service levels'!I74 ->  | I15: ='e-service levels'!J74 ->  | J15: ='e-service levels'!K74 ->  | K15: ='e-service levels'!L74 ->  | L15: ='e-service levels'!M74 ->  | M15: ='e-service levels'!N74 -> 
A16: ='e-opex'!A38 ->  | B16: Cus | C16: ='e-service levels'!D75 ->  | D16: ='e-service levels'!E75 ->  | E16: ='e-service levels'!F75 ->  | F16: ='e-service levels'!G75 ->  | G16: ='e-service levels'!H75 ->  | H16: ='e-service levels'!I75 ->  | I16: ='e-service levels'!J75 ->  | J16: ='e-service levels'!K75 ->  | K16: ='e-service levels'!L75 ->  | L16: ='e-service levels'!M75 ->  | M16: ='e-service levels'!N75 -> 
A17: ='e-opex'!A39 ->  | B17: Cus | C17: ='e-service levels'!D76 ->  | D17: ='e-service levels'!E76 ->  | E17: ='e-service levels'!F76 ->  | F17: ='e-service levels'!G76 ->  | G17: ='e-service levels'!H76 ->  | H17: ='e-service levels'!I76 ->  | I17: ='e-service levels'!J76 ->  | J17: ='e-service levels'!K76 ->  | K17: ='e-service levels'!L76 ->  | L17: ='e-service levels'!M76 ->  | M17: ='e-service levels'!N76 -> 
A18: ='e-opex'!A40 ->  | B18: Cus | C18: ='e-service levels'!D77 ->  | D18: ='e-service levels'!E77 ->  | E18: ='e-service levels'!F77 ->  | F18: ='e-service levels'!G77 ->  | G18: ='e-service levels'!H77 ->  | H18: ='e-service levels'!I77 ->  | I18: ='e-service levels'!J77 ->  | J18: ='e-service levels'!K77 ->  | K18: ='e-service levels'!L77 ->  | L18: ='e-service levels'!M77 ->  | M18: ='e-service levels'!N77 -> 
A19: ='e-opex'!A41 ->  | B19: Cus | C19: ='e-service levels'!D78 ->  | D19: ='e-service levels'!E78 ->  | E19: ='e-service levels'!F78 ->  | F19: ='e-service levels'!G78 ->  | G19: ='e-service levels'!H78 ->  | H19: ='e-service levels'!I78 ->  | I19: ='e-service levels'!J78 ->  | J19: ='e-service levels'!K78 ->  | K19: ='e-service levels'!L78 ->  | L19: ='e-service levels'!M78 ->  | M19: ='e-service levels'!N78 -> 
A20: ='e-opex'!A42 ->  | B20: Cus | C20: ='e-service levels'!D79 ->  | D20: ='e-service levels'!E79 ->  | E20: ='e-service levels'!F79 ->  | F20: ='e-service levels'!G79 ->  | G20: ='e-service levels'!H79 ->  | H20: ='e-service levels'!I79 ->  | I20: ='e-service levels'!J79 ->  | J20: ='e-service levels'!K79 ->  | K20: ='e-service levels'!L79 ->  | L20: ='e-service levels'!M79 ->  | M20: ='e-service levels'!N79 -> 
A21: ='e-opex'!A43 ->  | B21: Cus | C21: ='e-service levels'!D80 ->  | D21: ='e-service levels'!E80 ->  | E21: ='e-service levels'!F80 ->  | F21: ='e-service levels'!G80 ->  | G21: ='e-service levels'!H80 ->  | H21: ='e-service levels'!I80 ->  | I21: ='e-service levels'!J80 ->  | J21: ='e-service levels'!K80 ->  | K21: ='e-service levels'!L80 ->  | L21: ='e-service levels'!M80 ->  | M21: ='e-service levels'!N80 -> 
A22: ='e-opex'!A44 ->  | B22: Cus | C22: ='e-service levels'!D81 ->  | D22: ='e-service levels'!E81 ->  | E22: ='e-service levels'!F81 ->  | F22: ='e-service levels'!G81 ->  | G22: ='e-service levels'!H81 ->  | H22: ='e-service levels'!I81 ->  | I22: ='e-service levels'!J81 ->  | J22: ='e-service levels'!K81 ->  | K22: ='e-service levels'!L81 ->  | L22: ='e-service levels'!M81 ->  | M22: ='e-service levels'!N81 -> 
A24: Total collection cost per service level
A25: =A15 -> No service | B25: R'000 pa | C25: ='e-opex'!D47 ->  | D25: ='e-opex'!E47 ->  | E25: ='e-opex'!F47 ->  | F25: ='e-opex'!G47 ->  | G25: ='e-opex'!H47 ->  | H25: ='e-opex'!I47 ->  | I25: ='e-opex'!J47 ->  | J25: ='e-opex'!K47 ->  | K25: ='e-opex'!L47 ->  | L25: ='e-opex'!M47 ->  | M25: ='e-opex'!N47 -> 
A26: =A16 ->  | B26: R'000 pa | C26: =C16*'e-opex'!D38 ->  | D26: ='e-opex'!E48 ->  | E26: ='e-opex'!F48 ->  | F26: ='e-opex'!G48 ->  | G26: ='e-opex'!H48 ->  | H26: ='e-opex'!I48 ->  | I26: ='e-opex'!J48 ->  | J26: ='e-opex'!K48 ->  | K26: ='e-opex'!L48 ->  | L26: ='e-opex'!M48 ->  | M26: ='e-opex'!N48 -> 
B27: R'000 pa | C27: =C17*'e-opex'!D39 ->  | D27: ='e-opex'!E49 ->  | E27: ='e-opex'!F49 ->  | F27: ='e-opex'!G49 ->  | G27: ='e-opex'!H49 ->  | H27: ='e-opex'!I49 ->  | I27: ='e-opex'!J49 ->  | J27: ='e-opex'!K49 ->  | K27: ='e-opex'!L49 ->  | L27: ='e-opex'!M49 ->  | M27: ='e-opex'!N49 -> 
B28: R'000 pa | C28: =C18*'e-opex'!D40 ->  | D28: ='e-opex'!E50 ->  | E28: ='e-opex'!F50 ->  | F28: ='e-opex'!G50 ->  | G28: ='e-opex'!H50 ->  | H28: ='e-opex'!I50 ->  | I28: ='e-opex'!J50 ->  | J28: ='e-opex'!K50 ->  | K28: ='e-opex'!L50 ->  | L28: ='e-opex'!M50 ->  | M28: ='e-opex'!N50 -> 
B29: R'000 pa | C29: =C19*'e-opex'!D41 -> 
B30: R'000 pa | C30: =C20*'e-opex'!D42 -> 
B31: R'000 pa | C31: =C21*'e-opex'!D43 ->  | D31: ='e-opex'!E51 ->  | E31: ='e-opex'!F51 ->  | F31: ='e-opex'!G51 ->  | G31: ='e-opex'!H51 ->  | H31: ='e-opex'!I51 ->  | I31: ='e-opex'!J51 ->  | J31: ='e-opex'!K51 ->  | K31: ='e-opex'!L51 ->  | L31: ='e-opex'!M51 ->  | M31: ='e-opex'!N51 -> 
B32: R'000 pa | C32: =C22*'e-opex'!D44 ->  | D32: ='e-opex'!E52 ->  | E32: ='e-opex'!F52 ->  | F32: ='e-opex'!G52 ->  | G32: ='e-opex'!H52 ->  | H32: ='e-opex'!I52 ->  | I32: ='e-opex'!J52 ->  | J32: ='e-opex'!K52 ->  | K32: ='e-opex'!L52 ->  | L32: ='e-opex'!M52 ->  | M32: ='e-opex'!N52 -> 
A33: Total | B33: R'000 pa | C33: =SUM(C25:C32) ->  | D33: =SUM(D25:D32) -> 0 | E33: 0 | F33: 0 | G33: 0 | H33: 0 | I33: 0 | J33: 0 | K33: 0 | L33: 0 | M33: 0
A34: Public, bulk & collection based operating costs per service level
A35: =A25 -> No service | B35: R'000 pa
A36: =A26 ->  | B36: R'000 pa
B37: R'000 pa
B38: R'000 pa
B39: R'000 pa
B40: R'000 pa
B41: R'000 pa
B42: R'000 pa
A43: Total | B43: R'000 pa
A45: =A25 -> No service | B45: R/Cus/month | C45: =IFERROR((#REF!+#REF!),"") ->  | D45: =IFERROR((#REF!+#REF!),"") ->  | E45: =IFERROR((#REF!+#REF!),"") ->  | F45: =IFERROR((#REF!+#REF!),"") ->  | G45: =IFERROR((#REF!+#REF!),"") ->  | H45: =IFERROR((#REF!+#REF!),"") ->  | I45: =IFERROR((#REF!+#REF!),"") ->  | J45: =IFERROR((#REF!+#REF!),"") ->  | K45: =IFERROR((#REF!+#REF!),"") ->  | L45: =IFERROR((#REF!+#REF!),"") ->  | M45: =IFERROR((#REF!+#REF!),"") -> 
B46: R/Cus/month | C46: =IFERROR((#REF!+#REF!),"") ->  | D46: =IFERROR((#REF!+#REF!),"") ->  | E46: =IFERROR((#REF!+#REF!),"") ->  | F46: =IFERROR((#REF!+#REF!),"") ->  | G46: =IFERROR((#REF!+#REF!),"") ->  | H46: =IFERROR((#REF!+#REF!),"") ->  | I46: =IFERROR((#REF!+#REF!),"") ->  | J46: =IFERROR((#REF!+#REF!),"") ->  | K46: =IFERROR((#REF!+#REF!),"") ->  | L46: =IFERROR((#REF!+#REF!),"") ->  | M46: =IFERROR((#REF!+#REF!),"") -> 
B47: R/Cus/month | C47: =IFERROR((#REF!+#REF!),"") ->  | D47: =IFERROR((#REF!+#REF!),"") ->  | E47: =IFERROR((#REF!+#REF!),"") ->  | F47: =IFERROR((#REF!+#REF!),"") ->  | G47: =IFERROR((#REF!+#REF!),"") ->  | H47: =IFERROR((#REF!+#REF!),"") ->  | I47: =IFERROR((#REF!+#REF!),"") ->  | J47: =IFERROR((#REF!+#REF!),"") ->  | K47: =IFERROR((#REF!+#REF!),"") ->  | L47: =IFERROR((#REF!+#REF!),"") ->  | M47: =IFERROR((#REF!+#REF!),"") -> 
B48: R/Cus/month
B49: R/Cus/month
B50: R/Cus/month
B51: R/Cus/month | C51: =IFERROR((#REF!+#REF!),"") ->  | D51: =IFERROR((#REF!+#REF!),"") ->  | E51: =IFERROR((#REF!+#REF!),"") ->  | F51: =IFERROR((#REF!+#REF!),"") ->  | G51: =IFERROR((#REF!+#REF!),"") ->  | H51: =IFERROR((#REF!+#REF!),"") ->  | I51: =IFERROR((#REF!+#REF!),"") ->  | J51: =IFERROR((#REF!+#REF!),"") ->  | K51: =IFERROR((#REF!+#REF!),"") ->  | L51: =IFERROR((#REF!+#REF!),"") ->  | M51: =IFERROR((#REF!+#REF!),"") -> 
B52: R/Cus/month | C52: =IFERROR((#REF!+#REF!),"") ->  | D52: =IFERROR((#REF!+#REF!),"") ->  | E52: =IFERROR((#REF!+#REF!),"") ->  | F52: =IFERROR((#REF!+#REF!),"") ->  | G52: =IFERROR((#REF!+#REF!),"") ->  | H52: =IFERROR((#REF!+#REF!),"") ->  | I52: =IFERROR((#REF!+#REF!),"") ->  | J52: =IFERROR((#REF!+#REF!),"") ->  | K52: =IFERROR((#REF!+#REF!),"") ->  | L52: =IFERROR((#REF!+#REF!),"") ->  | M52: =IFERROR((#REF!+#REF!),"") -> 
A53: Total | B53: R/Cus/month
A54: Total operating cost per low income level households
A55: =A45 -> No service | B55: R/hh | C55: =IFERROR(C45*(IF(CONSUMERS!#REF!="",CONSUMERS!#REF!,CONSUMERS!#REF!)),"") ->  | D55: =IFERROR(D45*(IF(CONSUMERS!#REF!="",CONSUMERS!#REF!,CONSUMERS!#REF!)),"") ->  | E55: =IFERROR(E45*(IF(CONSUMERS!#REF!="",CONSUMERS!#REF!,CONSUMERS!#REF!)),"") ->  | F55: =IFERROR(F45*(IF(CONSUMERS!#REF!="",CONSUMERS!#REF!,CONSUMERS!#REF!)),"") ->  | G55: =IFERROR(G45*(IF(CONSUMERS!#REF!="",CONSUMERS!#REF!,CONSUMERS!#REF!)),"") ->  | H55: =IFERROR(H45*(IF(CONSUMERS!#REF!="",CONSUMERS!#REF!,CONSUMERS!#REF!)),"") ->  | I55: =IFERROR(I45*(IF(CONSUMERS!#REF!="",CONSUMERS!#REF!,CONSUMERS!#REF!)),"") ->  | J55: =IFERROR(J45*(IF(CONSUMERS!#REF!="",CONSUMERS!#REF!,CONSUMERS!#REF!)),"") ->  | K55: =IFERROR(K45*(IF(CONSUMERS!#REF!="",CONSUMERS!#REF!,CONSUMERS!#REF!)),"") ->  | L55: =IFERROR(L45*(IF(CONSUMERS!#REF!="",CONSUMERS!#REF!,CONSUMERS!#REF!)),"") ->  | M55: =IFERROR(M45*(IF(CONSUMERS!#REF!="",CONSUMERS!#REF!,CONSUMERS!#REF!)),"") -> 
A56: =A46 ->  | B56: R/hh | C56: =IFERROR(C46*(IF(CONSUMERS!#REF!="",CONSUMERS!#REF!,CONSUMERS!#REF!)),"") ->  | D56: =IFERROR(D46*(IF(CONSUMERS!#REF!="",CONSUMERS!#REF!,CONSUMERS!#REF!)),"") ->  | E56: =IFERROR(E46*(IF(CONSUMERS!#REF!="",CONSUMERS!#REF!,CONSUMERS!#REF!)),"") ->  | F56: =IFERROR(F46*(IF(CONSUMERS!#REF!="",CONSUMERS!#REF!,CONSUMERS!#REF!)),"") ->  | G56: =IFERROR(G46*(IF(CONSUMERS!#REF!="",CONSUMERS!#REF!,CONSUMERS!#REF!)),"") ->  | H56: =IFERROR(H46*(IF(CONSUMERS!#REF!="",CONSUMERS!#REF!,CONSUMERS!#REF!)),"") ->  | I56: =IFERROR(I46*(IF(CONSUMERS!#REF!="",CONSUMERS!#REF!,CONSUMERS!#REF!)),"") ->  | J56: =IFERROR(J46*(IF(CONSUMERS!#REF!="",CONSUMERS!#REF!,CONSUMERS!#REF!)),"") ->  | K56: =IFERROR(K46*(IF(CONSUMERS!#REF!="",CONSUMERS!#REF!,CONSUMERS!#REF!)),"") ->  | L56: =IFERROR(L46*(IF(CONSUMERS!#REF!="",CONSUMERS!#REF!,CONSUMERS!#REF!)),"") ->  | M56: =IFERROR(M46*(IF(CONSUMERS!#REF!="",CONSUMERS!#REF!,CONSUMERS!#REF!)),"") -> 
A57: =A47 ->  | B57: R/hh | C57: =IFERROR(C47*(IF(CONSUMERS!#REF!="",CONSUMERS!#REF!,CONSUMERS!#REF!)),"") ->  | D57: =IFERROR(D47*(IF(CONSUMERS!#REF!="",CONSUMERS!#REF!,CONSUMERS!#REF!)),"") ->  | E57: =IFERROR(E47*(IF(CONSUMERS!#REF!="",CONSUMERS!#REF!,CONSUMERS!#REF!)),"") ->  | F57: =IFERROR(F47*(IF(CONSUMERS!#REF!="",CONSUMERS!#REF!,CONSUMERS!#REF!)),"") ->  | G57: =IFERROR(G47*(IF(CONSUMERS!#REF!="",CONSUMERS!#REF!,CONSUMERS!#REF!)),"") ->  | H57: =IFERROR(H47*(IF(CONSUMERS!#REF!="",CONSUMERS!#REF!,CONSUMERS!#REF!)),"") ->  | I57: =IFERROR(I47*(IF(CONSUMERS!#REF!="",CONSUMERS!#REF!,CONSUMERS!#REF!)),"") ->  | J57: =IFERROR(J47*(IF(CONSUMERS!#REF!="",CONSUMERS!#REF!,CONSUMERS!#REF!)),"") ->  | K57: =IFERROR(K47*(IF(CONSUMERS!#REF!="",CONSUMERS!#REF!,CONSUMERS!#REF!)),"") ->  | L57: =IFERROR(L47*(IF(CONSUMERS!#REF!="",CONSUMERS!#REF!,CONSUMERS!#REF!)),"") ->  | M57: =IFERROR(M47*(IF(CONSUMERS!#REF!="",CONSUMERS!#REF!,CONSUMERS!#REF!)),"") -> 
A58: =A51 ->  | B58: R/hh | C58: =IFERROR(C51*(IF(CONSUMERS!#REF!="",CONSUMERS!#REF!,CONSUMERS!#REF!)),"") ->  | D58: =IFERROR(D51*(IF(CONSUMERS!#REF!="",CONSUMERS!#REF!,CONSUMERS!#REF!)),"") ->  | E58: =IFERROR(E51*(IF(CONSUMERS!#REF!="",CONSUMERS!#REF!,CONSUMERS!#REF!)),"") ->  | F58: =IFERROR(F51*(IF(CONSUMERS!#REF!="",CONSUMERS!#REF!,CONSUMERS!#REF!)),"") ->  | G58: =IFERROR(G51*(IF(CONSUMERS!#REF!="",CONSUMERS!#REF!,CONSUMERS!#REF!)),"") ->  | H58: =IFERROR(H51*(IF(CONSUMERS!#REF!="",CONSUMERS!#REF!,CONSUMERS!#REF!)),"") ->  | I58: =IFERROR(I51*(IF(CONSUMERS!#REF!="",CONSUMERS!#REF!,CONSUMERS!#REF!)),"") ->  | J58: =IFERROR(J51*(IF(CONSUMERS!#REF!="",CONSUMERS!#REF!,CONSUMERS!#REF!)),"") ->  | K58: =IFERROR(K51*(IF(CONSUMERS!#REF!="",CONSUMERS!#REF!,CONSUMERS!#REF!)),"") ->  | L58: =IFERROR(L51*(IF(CONSUMERS!#REF!="",CONSUMERS!#REF!,CONSUMERS!#REF!)),"") ->  | M58: =IFERROR(M51*(IF(CONSUMERS!#REF!="",CONSUMERS!#REF!,CONSUMERS!#REF!)),"") -> 
B59: R/hh | C59: =IFERROR(C52*(IF(CONSUMERS!#REF!="",CONSUMERS!#REF!,CONSUMERS!#REF!)),"") ->  | D59: =IFERROR(D52*(IF(CONSUMERS!#REF!="",CONSUMERS!#REF!,CONSUMERS!#REF!)),"") ->  | E59: =IFERROR(E52*(IF(CONSUMERS!#REF!="",CONSUMERS!#REF!,CONSUMERS!#REF!)),"") ->  | F59: =IFERROR(F52*(IF(CONSUMERS!#REF!="",CONSUMERS!#REF!,CONSUMERS!#REF!)),"") ->  | G59: =IFERROR(G52*(IF(CONSUMERS!#REF!="",CONSUMERS!#REF!,CONSUMERS!#REF!)),"") ->  | H59: =IFERROR(H52*(IF(CONSUMERS!#REF!="",CONSUMERS!#REF!,CONSUMERS!#REF!)),"") ->  | I59: =IFERROR(I52*(IF(CONSUMERS!#REF!="",CONSUMERS!#REF!,CONSUMERS!#REF!)),"") ->  | J59: =IFERROR(J52*(IF(CONSUMERS!#REF!="",CONSUMERS!#REF!,CONSUMERS!#REF!)),"") ->  | K59: =IFERROR(K52*(IF(CONSUMERS!#REF!="",CONSUMERS!#REF!,CONSUMERS!#REF!)),"") ->  | L59: =IFERROR(L52*(IF(CONSUMERS!#REF!="",CONSUMERS!#REF!,CONSUMERS!#REF!)),"") ->  | M59: =IFERROR(M52*(IF(CONSUMERS!#REF!="",CONSUMERS!#REF!,CONSUMERS!#REF!)),"") -> 
A60: =A53 -> Total | C60: =IFERROR(C53*(IF(CONSUMERS!#REF!="",CONSUMERS!#REF!,CONSUMERS!#REF!)),"") ->  | D60: =IFERROR(D53*(IF(CONSUMERS!#REF!="",CONSUMERS!#REF!,CONSUMERS!#REF!)),"") ->  | E60: =IFERROR(E53*(IF(CONSUMERS!#REF!="",CONSUMERS!#REF!,CONSUMERS!#REF!)),"") ->  | F60: =IFERROR(F53*(IF(CONSUMERS!#REF!="",CONSUMERS!#REF!,CONSUMERS!#REF!)),"") ->  | G60: =IFERROR(G53*(IF(CONSUMERS!#REF!="",CONSUMERS!#REF!,CONSUMERS!#REF!)),"") ->  | H60: =IFERROR(H53*(IF(CONSUMERS!#REF!="",CONSUMERS!#REF!,CONSUMERS!#REF!)),"") ->  | I60: =IFERROR(I53*(IF(CONSUMERS!#REF!="",CONSUMERS!#REF!,CONSUMERS!#REF!)),"") ->  | J60: =IFERROR(J53*(IF(CONSUMERS!#REF!="",CONSUMERS!#REF!,CONSUMERS!#REF!)),"") ->  | K60: =IFERROR(K53*(IF(CONSUMERS!#REF!="",CONSUMERS!#REF!,CONSUMERS!#REF!)),"") ->  | L60: =IFERROR(L53*(IF(CONSUMERS!#REF!="",CONSUMERS!#REF!,CONSUMERS!#REF!)),"") ->  | M60: =IFERROR(M53*(IF(CONSUMERS!#REF!="",CONSUMERS!#REF!,CONSUMERS!#REF!)),"") -> 
A62: High income | B62: R'000 pa | C62: =SUM('e-opex'!D94,'e-opex'!D98,'e-opex'!D108,'e-opex'!D118,'e-opex'!D128,'e-opex'!D138,'e-opex'!D152,'e-opex'!D156,'e-opex'!D164,'e-opex'!D194) ->  | D62: =SUM('e-opex'!E94,'e-opex'!E98,'e-opex'!E108,'e-opex'!E118,'e-opex'!E128,'e-opex'!E138,'e-opex'!E152,'e-opex'!E156,'e-opex'!E164,'e-opex'!E194) ->  | E62: =SUM('e-opex'!F94,'e-opex'!F98,'e-opex'!F108,'e-opex'!F118,'e-opex'!F128,'e-opex'!F138,'e-opex'!F152,'e-opex'!F156,'e-opex'!F164,'e-opex'!F194) ->  | F62: =SUM('e-opex'!G94,'e-opex'!G98,'e-opex'!G108,'e-opex'!G118,'e-opex'!G128,'e-opex'!G138,'e-opex'!G152,'e-opex'!G156,'e-opex'!G164,'e-opex'!G194) ->  | G62: =SUM('e-opex'!H94,'e-opex'!H98,'e-opex'!H108,'e-opex'!H118,'e-opex'!H128,'e-opex'!H138,'e-opex'!H152,'e-opex'!H156,'e-opex'!H164,'e-opex'!H194) ->  | H62: =SUM('e-opex'!I94,'e-opex'!I98,'e-opex'!I108,'e-opex'!I118,'e-opex'!I128,'e-opex'!I138,'e-opex'!I152,'e-opex'!I156,'e-opex'!I164,'e-opex'!I194) ->  | I62: =SUM('e-opex'!J94,'e-opex'!J98,'e-opex'!J108,'e-opex'!J118,'e-opex'!J128,'e-opex'!J138,'e-opex'!J152,'e-opex'!J156,'e-opex'!J164,'e-opex'!J194) ->  | J62: =SUM('e-opex'!K94,'e-opex'!K98,'e-opex'!K108,'e-opex'!K118,'e-opex'!K128,'e-opex'!K138,'e-opex'!K152,'e-opex'!K156,'e-opex'!K164,'e-opex'!K194) ->  | K62: =SUM('e-opex'!L94,'e-opex'!L98,'e-opex'!L108,'e-opex'!L118,'e-opex'!L128,'e-opex'!L138,'e-opex'!L152,'e-opex'!L156,'e-opex'!L164,'e-opex'!L194) ->  | L62: =SUM('e-opex'!M94,'e-opex'!M98,'e-opex'!M108,'e-opex'!M118,'e-opex'!M128,'e-opex'!M138,'e-opex'!M152,'e-opex'!M156,'e-opex'!M164,'e-opex'!M194) ->  | M62: =SUM('e-opex'!N94,'e-opex'!N98,'e-opex'!N108,'e-opex'!N118,'e-opex'!N128,'e-opex'!N138,'e-opex'!N152,'e-opex'!N156,'e-opex'!N164,'e-opex'!N194) -> 
A63: high income recycling expenditure | B63: R'000 pa | C63: ='e-opex'!D118 ->  | D63: ='e-opex'!E118 ->  | E63: ='e-opex'!F118 ->  | F63: ='e-opex'!G118 ->  | G63: ='e-opex'!H118 ->  | H63: ='e-opex'!I118 ->  | I63: ='e-opex'!J118 ->  | J63: ='e-opex'!K118 ->  | K63: ='e-opex'!L118 ->  | L63: ='e-opex'!M118 ->  | M63: ='e-opex'!N118 -> 
A64: Public & bulk waste operating cost/CU | B64: R/CU/month | C64: =C62*1000/(C8-C68)/12 -> 
A65: Public & bulk & recycling operating cost/CU | B65: R/CU/month | C65: =(C62+C63)*1000/(C8-C68)/12 -> 
A67: High income total number Cus per service level
A68: =A15 -> No service | B68: Cus | C68: ='e-waste'!C15*('e-hh impact'!$C8/SUM('e-hh impact'!C$7:C$8)) ->  | D68: ='e-waste'!D15*('e-hh impact'!$C8/SUM('e-hh impact'!D$7:D$8)) ->  | E68: ='e-waste'!E15*('e-hh impact'!$C8/SUM('e-hh impact'!E$7:E$8)) ->  | F68: ='e-waste'!F15*('e-hh impact'!$C8/SUM('e-hh impact'!F$7:F$8)) ->  | G68: ='e-waste'!G15*('e-hh impact'!$C8/SUM('e-hh impact'!G$7:G$8)) ->  | H68: ='e-waste'!H15*('e-hh impact'!$C8/SUM('e-hh impact'!H$7:H$8)) ->  | I68: ='e-waste'!I15*('e-hh impact'!$C8/SUM('e-hh impact'!I$7:I$8)) ->  | J68: ='e-waste'!J15*('e-hh impact'!$C8/SUM('e-hh impact'!J$7:J$8)) ->  | K68: ='e-waste'!K15*('e-hh impact'!$C8/SUM('e-hh impact'!K$7:K$8)) ->  | L68: ='e-waste'!L15*('e-hh impact'!$C8/SUM('e-hh impact'!L$7:L$8)) ->  | M68: ='e-waste'!M15*('e-hh impact'!$C8/SUM('e-hh impact'!M$7:M$8)) -> 
A69: =A16 ->  | B69: Cus | C69: ='e-waste'!C16*('e-hh impact'!$C$8/SUM('e-hh impact'!$C$7:$C$8)) ->  | D69: ='e-waste'!D16*('e-hh impact'!$C$8/SUM('e-hh impact'!$C$7:$C$8)) ->  | E69: ='e-waste'!E16*('e-hh impact'!$C$8/SUM('e-hh impact'!$C$7:$C$8)) ->  | F69: ='e-waste'!F16*('e-hh impact'!$C$8/SUM('e-hh impact'!$C$7:$C$8)) ->  | G69: ='e-waste'!G16*('e-hh impact'!$C$8/SUM('e-hh impact'!$C$7:$C$8)) ->  | H69: ='e-waste'!H16*('e-hh impact'!$C$8/SUM('e-hh impact'!$C$7:$C$8)) ->  | I69: ='e-waste'!I16*('e-hh impact'!$C$8/SUM('e-hh impact'!$C$7:$C$8)) ->  | J69: ='e-waste'!J16*('e-hh impact'!$C$8/SUM('e-hh impact'!$C$7:$C$8)) ->  | K69: ='e-waste'!K16*('e-hh impact'!$C$8/SUM('e-hh impact'!$C$7:$C$8)) ->  | L69: ='e-waste'!L16*('e-hh impact'!$C$8/SUM('e-hh impact'!$C$7:$C$8)) ->  | M69: ='e-waste'!M16*('e-hh impact'!$C$8/SUM('e-hh impact'!$C$7:$C$8)) -> 
A70: =A17 ->  | B70: Cus | C70: ='e-waste'!C17*('e-hh impact'!$C$8/SUM('e-hh impact'!$C$7:$C$8)) ->  | D70: ='e-waste'!D17*('e-hh impact'!$C$8/SUM('e-hh impact'!$C$7:$C$8)) ->  | E70: ='e-waste'!E17*('e-hh impact'!$C$8/SUM('e-hh impact'!$C$7:$C$8)) ->  | F70: ='e-waste'!F17*('e-hh impact'!$C$8/SUM('e-hh impact'!$C$7:$C$8)) ->  | G70: ='e-waste'!G17*('e-hh impact'!$C$8/SUM('e-hh impact'!$C$7:$C$8)) ->  | H70: ='e-waste'!H17*('e-hh impact'!$C$8/SUM('e-hh impact'!$C$7:$C$8)) ->  | I70: ='e-waste'!I17*('e-hh impact'!$C$8/SUM('e-hh impact'!$C$7:$C$8)) ->  | J70: ='e-waste'!J17*('e-hh impact'!$C$8/SUM('e-hh impact'!$C$7:$C$8)) ->  | K70: ='e-waste'!K17*('e-hh impact'!$C$8/SUM('e-hh impact'!$C$7:$C$8)) ->  | L70: ='e-waste'!L17*('e-hh impact'!$C$8/SUM('e-hh impact'!$C$7:$C$8)) ->  | M70: ='e-waste'!M17*('e-hh impact'!$C$8/SUM('e-hh impact'!$C$7:$C$8)) -> 
A71: =A18 ->  | B71: Cus | C71: ='e-waste'!C18*('e-hh impact'!$C$8/SUM('e-hh impact'!$C$7:$C$8)) ->  | D71: ='e-waste'!D18*('e-hh impact'!$C$8/SUM('e-hh impact'!$C$7:$C$8)) ->  | E71: ='e-waste'!E18*('e-hh impact'!$C$8/SUM('e-hh impact'!$C$7:$C$8)) ->  | F71: ='e-waste'!F18*('e-hh impact'!$C$8/SUM('e-hh impact'!$C$7:$C$8)) ->  | G71: ='e-waste'!G18*('e-hh impact'!$C$8/SUM('e-hh impact'!$C$7:$C$8)) ->  | H71: ='e-waste'!H18*('e-hh impact'!$C$8/SUM('e-hh impact'!$C$7:$C$8)) ->  | I71: ='e-waste'!I18*('e-hh impact'!$C$8/SUM('e-hh impact'!$C$7:$C$8)) ->  | J71: ='e-waste'!J18*('e-hh impact'!$C$8/SUM('e-hh impact'!$C$7:$C$8)) ->  | K71: ='e-waste'!K18*('e-hh impact'!$C$8/SUM('e-hh impact'!$C$7:$C$8)) ->  | L71: ='e-waste'!L18*('e-hh impact'!$C$8/SUM('e-hh impact'!$C$7:$C$8)) ->  | M71: ='e-waste'!M18*('e-hh impact'!$C$8/SUM('e-hh impact'!$C$7:$C$8)) -> 
A72: =A21 ->  | B72: Cus | C72: ='e-waste'!C19*('e-hh impact'!$C$8/SUM('e-hh impact'!$C$7:$C$8)) ->  | D72: ='e-waste'!D19*('e-hh impact'!$C$8/SUM('e-hh impact'!$C$7:$C$8)) ->  | E72: ='e-waste'!E19*('e-hh impact'!$C$8/SUM('e-hh impact'!$C$7:$C$8)) ->  | F72: ='e-waste'!F19*('e-hh impact'!$C$8/SUM('e-hh impact'!$C$7:$C$8)) ->  | G72: ='e-waste'!G19*('e-hh impact'!$C$8/SUM('e-hh impact'!$C$7:$C$8)) ->  | H72: ='e-waste'!H19*('e-hh impact'!$C$8/SUM('e-hh impact'!$C$7:$C$8)) ->  | I72: ='e-waste'!I19*('e-hh impact'!$C$8/SUM('e-hh impact'!$C$7:$C$8)) ->  | J72: ='e-waste'!J19*('e-hh impact'!$C$8/SUM('e-hh impact'!$C$7:$C$8)) ->  | K72: ='e-waste'!K19*('e-hh impact'!$C$8/SUM('e-hh impact'!$C$7:$C$8)) ->  | L72: ='e-waste'!L19*('e-hh impact'!$C$8/SUM('e-hh impact'!$C$7:$C$8)) ->  | M72: ='e-waste'!M19*('e-hh impact'!$C$8/SUM('e-hh impact'!$C$7:$C$8)) -> 
A74: Public, bulk & collection based operating costs per service level
A75: =IF(A45="","",A45) -> No service | B75: R/Cus/month | C75: =IFERROR(C25*1000/C68/12,"") -> 
A76: =IF(A46="","",A46) ->  | B76: R/Cus/month | C76: =IFERROR(C26*1000/C69/12,"") -> 
A77: =IF(A47="","",A47) ->  | B77: R/Cus/month | C77: =IFERROR(C27*1000/C70/12,"") -> 
A78: =IF(A51="","",A51) ->  | B78: R/Cus/month | C78: =IFERROR(C28*1000/C71/12,"") -> 
B79: R/Cus/month | C79: =IFERROR(C31*1000/C72/12,"") -> 
A80: Total | B80: R/Cus/month | C80: =IFERROR(C32*1000/C73/12,"") -> 
A81: Public, bulk & collection based operating costs per service level
A82: =A75 -> No service | B82: R/Cus | C82: =IFERROR(IF($A$75="","",C$65+C75),"") ->  | D82: =IFERROR(IF($A$75="","",D$65+D75),"") -> 
B83: R/Cus | D83: =IFERROR(IF($A$75="","",D$65+D76),"") -> 
B84: R/Cus | D84: =IFERROR(IF($A$75="","",D$65+D77),"") -> 
B85: R/Cus | D85: =IFERROR(IF($A$75="","",D$65+D78),"") -> 
B86: R/Cus | D86: =IFERROR(IF($A$75="","",D$65+D79),"") -> 
A87: Total | B87: R/Cus | D87: =IFERROR(IF($A$75="","",D$65+D80),"") -> 
A89: Total operating cost per high income level households
A90: =A82 -> No service | B90: R/hh | C90: =IFERROR(C82*IF(CONSUMERS!#REF!="",CONSUMERS!#REF!,CONSUMERS!#REF!),"") ->  | D90: =IFERROR(D82*IF(CONSUMERS!#REF!="",CONSUMERS!#REF!,CONSUMERS!#REF!),"") ->  | E90: =IFERROR(E82*IF(CONSUMERS!#REF!="",CONSUMERS!#REF!,CONSUMERS!#REF!),"") ->  | F90: =IFERROR(F82*IF(CONSUMERS!#REF!="",CONSUMERS!#REF!,CONSUMERS!#REF!),"") ->  | G90: =IFERROR(G82*IF(CONSUMERS!#REF!="",CONSUMERS!#REF!,CONSUMERS!#REF!),"") ->  | H90: =IFERROR(H82*IF(CONSUMERS!#REF!="",CONSUMERS!#REF!,CONSUMERS!#REF!),"") ->  | I90: =IFERROR(I82*IF(CONSUMERS!#REF!="",CONSUMERS!#REF!,CONSUMERS!#REF!),"") ->  | J90: =IFERROR(J82*IF(CONSUMERS!#REF!="",CONSUMERS!#REF!,CONSUMERS!#REF!),"") ->  | K90: =IFERROR(K82*IF(CONSUMERS!#REF!="",CONSUMERS!#REF!,CONSUMERS!#REF!),"") ->  | L90: =IFERROR(L82*IF(CONSUMERS!#REF!="",CONSUMERS!#REF!,CONSUMERS!#REF!),"") ->  | M90: =IFERROR(M82*IF(CONSUMERS!#REF!="",CONSUMERS!#REF!,CONSUMERS!#REF!),"") -> 
B91: R/hh | C91: =IFERROR(C83*IF(CONSUMERS!#REF!="",CONSUMERS!#REF!,CONSUMERS!#REF!),"") ->  | D91: =IFERROR(D83*IF(CONSUMERS!#REF!="",CONSUMERS!#REF!,CONSUMERS!#REF!),"") ->  | E91: =IFERROR(E83*IF(CONSUMERS!#REF!="",CONSUMERS!#REF!,CONSUMERS!#REF!),"") ->  | F91: =IFERROR(F83*IF(CONSUMERS!#REF!="",CONSUMERS!#REF!,CONSUMERS!#REF!),"") ->  | G91: =IFERROR(G83*IF(CONSUMERS!#REF!="",CONSUMERS!#REF!,CONSUMERS!#REF!),"") ->  | H91: =IFERROR(H83*IF(CONSUMERS!#REF!="",CONSUMERS!#REF!,CONSUMERS!#REF!),"") ->  | I91: =IFERROR(I83*IF(CONSUMERS!#REF!="",CONSUMERS!#REF!,CONSUMERS!#REF!),"") ->  | J91: =IFERROR(J83*IF(CONSUMERS!#REF!="",CONSUMERS!#REF!,CONSUMERS!#REF!),"") ->  | K91: =IFERROR(K83*IF(CONSUMERS!#REF!="",CONSUMERS!#REF!,CONSUMERS!#REF!),"") ->  | L91: =IFERROR(L83*IF(CONSUMERS!#REF!="",CONSUMERS!#REF!,CONSUMERS!#REF!),"") ->  | M91: =IFERROR(M83*IF(CONSUMERS!#REF!="",CONSUMERS!#REF!,CONSUMERS!#REF!),"") -> 
B92: R/hh | C92: =IFERROR(C84*IF(CONSUMERS!#REF!="",CONSUMERS!#REF!,CONSUMERS!#REF!),"") ->  | D92: =IFERROR(D84*IF(CONSUMERS!#REF!="",CONSUMERS!#REF!,CONSUMERS!#REF!),"") ->  | E92: =IFERROR(E84*IF(CONSUMERS!#REF!="",CONSUMERS!#REF!,CONSUMERS!#REF!),"") ->  | F92: =IFERROR(F84*IF(CONSUMERS!#REF!="",CONSUMERS!#REF!,CONSUMERS!#REF!),"") ->  | G92: =IFERROR(G84*IF(CONSUMERS!#REF!="",CONSUMERS!#REF!,CONSUMERS!#REF!),"") ->  | H92: =IFERROR(H84*IF(CONSUMERS!#REF!="",CONSUMERS!#REF!,CONSUMERS!#REF!),"") ->  | I92: =IFERROR(I84*IF(CONSUMERS!#REF!="",CONSUMERS!#REF!,CONSUMERS!#REF!),"") ->  | J92: =IFERROR(J84*IF(CONSUMERS!#REF!="",CONSUMERS!#REF!,CONSUMERS!#REF!),"") ->  | K92: =IFERROR(K84*IF(CONSUMERS!#REF!="",CONSUMERS!#REF!,CONSUMERS!#REF!),"") ->  | L92: =IFERROR(L84*IF(CONSUMERS!#REF!="",CONSUMERS!#REF!,CONSUMERS!#REF!),"") ->  | M92: =IFERROR(M84*IF(CONSUMERS!#REF!="",CONSUMERS!#REF!,CONSUMERS!#REF!),"") -> 
B93: R/hh | C93: =IFERROR(C85*IF(CONSUMERS!#REF!="",CONSUMERS!#REF!,CONSUMERS!#REF!),"") ->  | D93: =IFERROR(D85*IF(CONSUMERS!#REF!="",CONSUMERS!#REF!,CONSUMERS!#REF!),"") ->  | E93: =IFERROR(E85*IF(CONSUMERS!#REF!="",CONSUMERS!#REF!,CONSUMERS!#REF!),"") ->  | F93: =IFERROR(F85*IF(CONSUMERS!#REF!="",CONSUMERS!#REF!,CONSUMERS!#REF!),"") ->  | G93: =IFERROR(G85*IF(CONSUMERS!#REF!="",CONSUMERS!#REF!,CONSUMERS!#REF!),"") ->  | H93: =IFERROR(H85*IF(CONSUMERS!#REF!="",CONSUMERS!#REF!,CONSUMERS!#REF!),"") ->  | I93: =IFERROR(I85*IF(CONSUMERS!#REF!="",CONSUMERS!#REF!,CONSUMERS!#REF!),"") ->  | J93: =IFERROR(J85*IF(CONSUMERS!#REF!="",CONSUMERS!#REF!,CONSUMERS!#REF!),"") ->  | K93: =IFERROR(K85*IF(CONSUMERS!#REF!="",CONSUMERS!#REF!,CONSUMERS!#REF!),"") ->  | L93: =IFERROR(L85*IF(CONSUMERS!#REF!="",CONSUMERS!#REF!,CONSUMERS!#REF!),"") ->  | M93: =IFERROR(M85*IF(CONSUMERS!#REF!="",CONSUMERS!#REF!,CONSUMERS!#REF!),"") -> 
B94: R/hh | C94: =IFERROR(C86*IF(CONSUMERS!#REF!="",CONSUMERS!#REF!,CONSUMERS!#REF!),"") ->  | D94: =IFERROR(D86*IF(CONSUMERS!#REF!="",CONSUMERS!#REF!,CONSUMERS!#REF!),"") ->  | E94: =IFERROR(E86*IF(CONSUMERS!#REF!="",CONSUMERS!#REF!,CONSUMERS!#REF!),"") ->  | F94: =IFERROR(F86*IF(CONSUMERS!#REF!="",CONSUMERS!#REF!,CONSUMERS!#REF!),"") ->  | G94: =IFERROR(G86*IF(CONSUMERS!#REF!="",CONSUMERS!#REF!,CONSUMERS!#REF!),"") ->  | H94: =IFERROR(H86*IF(CONSUMERS!#REF!="",CONSUMERS!#REF!,CONSUMERS!#REF!),"") ->  | I94: =IFERROR(I86*IF(CONSUMERS!#REF!="",CONSUMERS!#REF!,CONSUMERS!#REF!),"") ->  | J94: =IFERROR(J86*IF(CONSUMERS!#REF!="",CONSUMERS!#REF!,CONSUMERS!#REF!),"") ->  | K94: =IFERROR(K86*IF(CONSUMERS!#REF!="",CONSUMERS!#REF!,CONSUMERS!#REF!),"") ->  | L94: =IFERROR(L86*IF(CONSUMERS!#REF!="",CONSUMERS!#REF!,CONSUMERS!#REF!),"") ->  | M94: =IFERROR(M86*IF(CONSUMERS!#REF!="",CONSUMERS!#REF!,CONSUMERS!#REF!),"") -> 
A95: Total | B95: R/hh | C95: =IFERROR(C87*IF(CONSUMERS!#REF!="",CONSUMERS!#REF!,CONSUMERS!#REF!),"") ->  | D95: =IFERROR(D87*IF(CONSUMERS!#REF!="",CONSUMERS!#REF!,CONSUMERS!#REF!),"") ->  | E95: =IFERROR(E87*IF(CONSUMERS!#REF!="",CONSUMERS!#REF!,CONSUMERS!#REF!),"") ->  | F95: =IFERROR(F87*IF(CONSUMERS!#REF!="",CONSUMERS!#REF!,CONSUMERS!#REF!),"") ->  | G95: =IFERROR(G87*IF(CONSUMERS!#REF!="",CONSUMERS!#REF!,CONSUMERS!#REF!),"") ->  | H95: =IFERROR(H87*IF(CONSUMERS!#REF!="",CONSUMERS!#REF!,CONSUMERS!#REF!),"") ->  | I95: =IFERROR(I87*IF(CONSUMERS!#REF!="",CONSUMERS!#REF!,CONSUMERS!#REF!),"") ->  | J95: =IFERROR(J87*IF(CONSUMERS!#REF!="",CONSUMERS!#REF!,CONSUMERS!#REF!),"") ->  | K95: =IFERROR(K87*IF(CONSUMERS!#REF!="",CONSUMERS!#REF!,CONSUMERS!#REF!),"") ->  | L95: =IFERROR(L87*IF(CONSUMERS!#REF!="",CONSUMERS!#REF!,CONSUMERS!#REF!),"") ->  | M95: =IFERROR(M87*IF(CONSUMERS!#REF!="",CONSUMERS!#REF!,CONSUMERS!#REF!),"") -> 
A97: Municipality generated tariff revenue
A98: tariff generated per tariff category | C98: =Base_year -> 0 | D98: =C98+1 -> 1 | E98: =D98+1 -> 2 | F98: 3 | G98: 4 | H98: 5 | I98: 6 | J98: 7 | K98: 8 | L98: 9 | M98: 10
A99: ='Tariff projection'!B13 -> No service | B99: R/CU/month | C99: ='Tariff projection'!D13 -> 0 | D99: ='Tariff projection'!E13 -> 0 | E99: ='Tariff projection'!F13 -> 0 | F99: ='Tariff projection'!G13 -> 0 | G99: ='Tariff projection'!H13 -> 0 | H99: ='Tariff projection'!I13 -> 0 | I99: ='Tariff projection'!J13 -> 0 | J99: ='Tariff projection'!K13 -> 0 | K99: ='Tariff projection'!L13 -> 0 | L99: ='Tariff projection'!M13 -> 0 | M99: ='Tariff projection'!N13 -> 0
A100: ='Tariff projection'!B14 ->  | B100: R/CU/month | C100: ='Tariff projection'!D14 -> 0 | D100: ='Tariff projection'!E14 -> 0 | E100: ='Tariff projection'!F14 -> 0 | F100: ='Tariff projection'!G14 -> 0 | G100: ='Tariff projection'!H14 -> 0 | H100: ='Tariff projection'!I14 -> 0 | I100: ='Tariff projection'!J14 -> 0 | J100: ='Tariff projection'!K14 -> 0 | K100: ='Tariff projection'!L14 -> 0 | L100: ='Tariff projection'!M14 -> 0 | M100: ='Tariff projection'!N14 -> 0
A101: ='Tariff projection'!B15 ->  | B101: R/CU/month | C101: ='Tariff projection'!D15 -> 0 | D101: ='Tariff projection'!E15 -> 0 | E101: ='Tariff projection'!F15 -> 0 | F101: ='Tariff projection'!G15 -> 0 | G101: ='Tariff projection'!H15 -> 0 | H101: ='Tariff projection'!I15 -> 0 | I101: ='Tariff projection'!J15 -> 0 | J101: ='Tariff projection'!K15 -> 0 | K101: ='Tariff projection'!L15 -> 0 | L101: ='Tariff projection'!M15 -> 0 | M101: ='Tariff projection'!N15 -> 0
A102: ='Tariff projection'!B16 ->  | B102: R/CU/month | C102: ='Tariff projection'!D16 -> 0 | D102: ='Tariff projection'!E16 -> 0 | E102: ='Tariff projection'!F16 -> 0 | F102: ='Tariff projection'!G16 -> 0 | G102: ='Tariff projection'!H16 -> 0 | H102: ='Tariff projection'!I16 -> 0 | I102: ='Tariff projection'!J16 -> 0 | J102: ='Tariff projection'!K16 -> 0 | K102: ='Tariff projection'!L16 -> 0 | L102: ='Tariff projection'!M16 -> 0 | M102: ='Tariff projection'!N16 -> 0
A103: ='Tariff projection'!B17 ->  | B103: R/CU/month | C103: ='Tariff projection'!D17 -> 0 | D103: ='Tariff projection'!E17 -> 0 | E103: ='Tariff projection'!F17 -> 0 | F103: ='Tariff projection'!G17 -> 0 | G103: ='Tariff projection'!H17 -> 0 | H103: ='Tariff projection'!I17 -> 0 | I103: ='Tariff projection'!J17 -> 0 | J103: ='Tariff projection'!K17 -> 0 | K103: ='Tariff projection'!L17 -> 0 | L103: ='Tariff projection'!M17 -> 0 | M103: ='Tariff projection'!N17 -> 0
A104: ='Tariff projection'!B18 ->  | B104: R/CU/month | C104: ='Tariff projection'!D18 -> 0 | D104: ='Tariff projection'!E18 -> 0 | E104: ='Tariff projection'!F18 -> 0 | F104: ='Tariff projection'!G18 -> 0 | G104: ='Tariff projection'!H18 -> 0 | H104: ='Tariff projection'!I18 -> 0 | I104: ='Tariff projection'!J18 -> 0 | J104: ='Tariff projection'!K18 -> 0 | K104: ='Tariff projection'!L18 -> 0 | L104: ='Tariff projection'!M18 -> 0 | M104: ='Tariff projection'!N18 -> 0
A105: ='Tariff projection'!B19 ->  | B105: R/CU/month | C105: ='Tariff projection'!D19 -> 0 | D105: ='Tariff projection'!E19 -> 0 | E105: ='Tariff projection'!F19 -> 0 | F105: ='Tariff projection'!G19 -> 0 | G105: ='Tariff projection'!H19 -> 0 | H105: ='Tariff projection'!I19 -> 0 | I105: ='Tariff projection'!J19 -> 0 | J105: ='Tariff projection'!K19 -> 0 | K105: ='Tariff projection'!L19 -> 0 | L105: ='Tariff projection'!M19 -> 0 | M105: ='Tariff projection'!N19 -> 0
A106: ='Tariff projection'!B20 ->  | B106: R/CU/month | C106: ='Tariff projection'!D20 -> 0 | D106: ='Tariff projection'!E20 -> 0 | E106: ='Tariff projection'!F20 -> 0 | F106: ='Tariff projection'!G20 -> 0 | G106: ='Tariff projection'!H20 -> 0 | H106: ='Tariff projection'!I20 -> 0 | I106: ='Tariff projection'!J20 -> 0 | J106: ='Tariff projection'!K20 -> 0 | K106: ='Tariff projection'!L20 -> 0 | L106: ='Tariff projection'!M20 -> 0 | M106: ='Tariff projection'!N20 -> 0
A108: No. of households
A109: ='e-service levels'!A108 -> 0-R1600 | B109: =A99 -> No service | C109: ='e-service levels'!D109*'e-inc'!$D$101 ->  | D109: ='e-service levels'!E109*'e-inc'!$D$101 ->  | E109: ='e-service levels'!F109*'e-inc'!$D$101 ->  | F109: ='e-service levels'!G109*'e-inc'!$D$101 ->  | G109: ='e-service levels'!H109*'e-inc'!$D$101 ->  | H109: ='e-service levels'!I109*'e-inc'!$D$101 ->  | I109: ='e-service levels'!J109*'e-inc'!$D$101 ->  | J109: ='e-service levels'!K109*'e-inc'!$D$101 ->  | K109: ='e-service levels'!L109*'e-inc'!$D$101 ->  | L109: ='e-service levels'!M109*'e-inc'!$D$101 ->  | M109: ='e-service levels'!N109*'e-inc'!$D$101 -> 
C110: ='e-service levels'!D110*'e-inc'!$D$101 ->  | D110: ='e-service levels'!E110*'e-inc'!$D$101 ->  | E110: ='e-service levels'!F110*'e-inc'!$D$101 ->  | F110: ='e-service levels'!G110*'e-inc'!$D$101 ->  | G110: ='e-service levels'!H110*'e-inc'!$D$101 ->  | H110: ='e-service levels'!I110*'e-inc'!$D$101 ->  | I110: ='e-service levels'!J110*'e-inc'!$D$101 ->  | J110: ='e-service levels'!K110*'e-inc'!$D$101 ->  | K110: ='e-service levels'!L110*'e-inc'!$D$101 ->  | L110: ='e-service levels'!M110*'e-inc'!$D$101 ->  | M110: ='e-service levels'!N110*'e-inc'!$D$101 -> 
C111: ='e-service levels'!D111*'e-inc'!$D$101 ->  | D111: ='e-service levels'!E111*'e-inc'!$D$101 ->  | E111: ='e-service levels'!F111*'e-inc'!$D$101 ->  | F111: ='e-service levels'!G111*'e-inc'!$D$101 ->  | G111: ='e-service levels'!H111*'e-inc'!$D$101 ->  | H111: ='e-service levels'!I111*'e-inc'!$D$101 ->  | I111: ='e-service levels'!J111*'e-inc'!$D$101 ->  | J111: ='e-service levels'!K111*'e-inc'!$D$101 ->  | K111: ='e-service levels'!L111*'e-inc'!$D$101 ->  | L111: ='e-service levels'!M111*'e-inc'!$D$101 ->  | M111: ='e-service levels'!N111*'e-inc'!$D$101 -> 
C112: ='e-service levels'!D112*'e-inc'!$D$101 ->  | D112: ='e-service levels'!E112*'e-inc'!$D$101 ->  | E112: ='e-service levels'!F112*'e-inc'!$D$101 ->  | F112: ='e-service levels'!G112*'e-inc'!$D$101 ->  | G112: ='e-service levels'!H112*'e-inc'!$D$101 ->  | H112: ='e-service levels'!I112*'e-inc'!$D$101 ->  | I112: ='e-service levels'!J112*'e-inc'!$D$101 ->  | J112: ='e-service levels'!K112*'e-inc'!$D$101 ->  | K112: ='e-service levels'!L112*'e-inc'!$D$101 ->  | L112: ='e-service levels'!M112*'e-inc'!$D$101 ->  | M112: ='e-service levels'!N112*'e-inc'!$D$101 -> 
C113: ='e-service levels'!D113*'e-inc'!$D$101 ->  | D113: ='e-service levels'!E113*'e-inc'!$D$101 ->  | E113: ='e-service levels'!F113*'e-inc'!$D$101 ->  | F113: ='e-service levels'!G113*'e-inc'!$D$101 ->  | G113: ='e-service levels'!H113*'e-inc'!$D$101 ->  | H113: ='e-service levels'!I113*'e-inc'!$D$101 ->  | I113: ='e-service levels'!J113*'e-inc'!$D$101 ->  | J113: ='e-service levels'!K113*'e-inc'!$D$101 ->  | K113: ='e-service levels'!L113*'e-inc'!$D$101 ->  | L113: ='e-service levels'!M113*'e-inc'!$D$101 ->  | M113: ='e-service levels'!N113*'e-inc'!$D$101 -> 
C114: ='e-service levels'!D114*'e-inc'!$D$101 ->  | D114: ='e-service levels'!E114*'e-inc'!$D$101 ->  | E114: ='e-service levels'!F114*'e-inc'!$D$101 ->  | F114: ='e-service levels'!G114*'e-inc'!$D$101 ->  | G114: ='e-service levels'!H114*'e-inc'!$D$101 ->  | H114: ='e-service levels'!I114*'e-inc'!$D$101 ->  | I114: ='e-service levels'!J114*'e-inc'!$D$101 ->  | J114: ='e-service levels'!K114*'e-inc'!$D$101 ->  | K114: ='e-service levels'!L114*'e-inc'!$D$101 ->  | L114: ='e-service levels'!M114*'e-inc'!$D$101 ->  | M114: ='e-service levels'!N114*'e-inc'!$D$101 -> 
C115: ='e-service levels'!D115*'e-inc'!$D$101 ->  | D115: ='e-service levels'!E115*'e-inc'!$D$101 ->  | E115: ='e-service levels'!F115*'e-inc'!$D$101 ->  | F115: ='e-service levels'!G115*'e-inc'!$D$101 ->  | G115: ='e-service levels'!H115*'e-inc'!$D$101 ->  | H115: ='e-service levels'!I115*'e-inc'!$D$101 ->  | I115: ='e-service levels'!J115*'e-inc'!$D$101 ->  | J115: ='e-service levels'!K115*'e-inc'!$D$101 ->  | K115: ='e-service levels'!L115*'e-inc'!$D$101 ->  | L115: ='e-service levels'!M115*'e-inc'!$D$101 ->  | M115: ='e-service levels'!N115*'e-inc'!$D$101 -> 
C116: ='e-service levels'!D116*'e-inc'!$D$101 ->  | D116: ='e-service levels'!E116*'e-inc'!$D$101 ->  | E116: ='e-service levels'!F116*'e-inc'!$D$101 ->  | F116: ='e-service levels'!G116*'e-inc'!$D$101 ->  | G116: ='e-service levels'!H116*'e-inc'!$D$101 ->  | H116: ='e-service levels'!I116*'e-inc'!$D$101 ->  | I116: ='e-service levels'!J116*'e-inc'!$D$101 ->  | J116: ='e-service levels'!K116*'e-inc'!$D$101 ->  | K116: ='e-service levels'!L116*'e-inc'!$D$101 ->  | L116: ='e-service levels'!M116*'e-inc'!$D$101 ->  | M116: ='e-service levels'!N116*'e-inc'!$D$101 -> 
A118: ='e-service levels'!A119 -> R1600-R3200 | B118: =B109 -> No service | C118: ='e-service levels'!D120*'e-inc'!$D$102 ->  | D118: ='e-service levels'!E120*'e-inc'!$D$102 ->  | E118: ='e-service levels'!F120*'e-inc'!$D$102 ->  | F118: ='e-service levels'!G120*'e-inc'!$D$102 ->  | G118: ='e-service levels'!H120*'e-inc'!$D$102 ->  | H118: ='e-service levels'!I120*'e-inc'!$D$102 ->  | I118: ='e-service levels'!J120*'e-inc'!$D$102 ->  | J118: ='e-service levels'!K120*'e-inc'!$D$102 ->  | K118: ='e-service levels'!L120*'e-inc'!$D$102 ->  | L118: ='e-service levels'!M120*'e-inc'!$D$102 ->  | M118: ='e-service levels'!N120*'e-inc'!$D$102 -> 
C119: ='e-service levels'!D121*'e-inc'!$D$102 ->  | D119: ='e-service levels'!E121*'e-inc'!$D$102 ->  | E119: ='e-service levels'!F121*'e-inc'!$D$102 ->  | F119: ='e-service levels'!G121*'e-inc'!$D$102 ->  | G119: ='e-service levels'!H121*'e-inc'!$D$102 ->  | H119: ='e-service levels'!I121*'e-inc'!$D$102 ->  | I119: ='e-service levels'!J121*'e-inc'!$D$102 ->  | J119: ='e-service levels'!K121*'e-inc'!$D$102 ->  | K119: ='e-service levels'!L121*'e-inc'!$D$102 ->  | L119: ='e-service levels'!M121*'e-inc'!$D$102 ->  | M119: ='e-service levels'!N121*'e-inc'!$D$102 -> 
C120: ='e-service levels'!D122*'e-inc'!$D$102 ->  | D120: ='e-service levels'!E122*'e-inc'!$D$102 ->  | E120: ='e-service levels'!F122*'e-inc'!$D$102 ->  | F120: ='e-service levels'!G122*'e-inc'!$D$102 ->  | G120: ='e-service levels'!H122*'e-inc'!$D$102 ->  | H120: ='e-service levels'!I122*'e-inc'!$D$102 ->  | I120: ='e-service levels'!J122*'e-inc'!$D$102 ->  | J120: ='e-service levels'!K122*'e-inc'!$D$102 ->  | K120: ='e-service levels'!L122*'e-inc'!$D$102 ->  | L120: ='e-service levels'!M122*'e-inc'!$D$102 ->  | M120: ='e-service levels'!N122*'e-inc'!$D$102 -> 
C121: ='e-service levels'!D123*'e-inc'!$D$102 ->  | D121: ='e-service levels'!E123*'e-inc'!$D$102 ->  | E121: ='e-service levels'!F123*'e-inc'!$D$102 ->  | F121: ='e-service levels'!G123*'e-inc'!$D$102 ->  | G121: ='e-service levels'!H123*'e-inc'!$D$102 ->  | H121: ='e-service levels'!I123*'e-inc'!$D$102 ->  | I121: ='e-service levels'!J123*'e-inc'!$D$102 ->  | J121: ='e-service levels'!K123*'e-inc'!$D$102 ->  | K121: ='e-service levels'!L123*'e-inc'!$D$102 ->  | L121: ='e-service levels'!M123*'e-inc'!$D$102 ->  | M121: ='e-service levels'!N123*'e-inc'!$D$102 -> 
C122: ='e-service levels'!D124*'e-inc'!$D$102 ->  | D122: ='e-service levels'!E124*'e-inc'!$D$102 ->  | E122: ='e-service levels'!F124*'e-inc'!$D$102 ->  | F122: ='e-service levels'!G124*'e-inc'!$D$102 ->  | G122: ='e-service levels'!H124*'e-inc'!$D$102 ->  | H122: ='e-service levels'!I124*'e-inc'!$D$102 ->  | I122: ='e-service levels'!J124*'e-inc'!$D$102 ->  | J122: ='e-service levels'!K124*'e-inc'!$D$102 ->  | K122: ='e-service levels'!L124*'e-inc'!$D$102 ->  | L122: ='e-service levels'!M124*'e-inc'!$D$102 ->  | M122: ='e-service levels'!N124*'e-inc'!$D$102 -> 
C123: ='e-service levels'!D125*'e-inc'!$D$102 ->  | D123: ='e-service levels'!E125*'e-inc'!$D$102 ->  | E123: ='e-service levels'!F125*'e-inc'!$D$102 ->  | F123: ='e-service levels'!G125*'e-inc'!$D$102 ->  | G123: ='e-service levels'!H125*'e-inc'!$D$102 ->  | H123: ='e-service levels'!I125*'e-inc'!$D$102 ->  | I123: ='e-service levels'!J125*'e-inc'!$D$102 ->  | J123: ='e-service levels'!K125*'e-inc'!$D$102 ->  | K123: ='e-service levels'!L125*'e-inc'!$D$102 ->  | L123: ='e-service levels'!M125*'e-inc'!$D$102 ->  | M123: ='e-service levels'!N125*'e-inc'!$D$102 -> 
C124: ='e-service levels'!D126*'e-inc'!$D$102 ->  | D124: ='e-service levels'!E126*'e-inc'!$D$102 ->  | E124: ='e-service levels'!F126*'e-inc'!$D$102 ->  | F124: ='e-service levels'!G126*'e-inc'!$D$102 ->  | G124: ='e-service levels'!H126*'e-inc'!$D$102 ->  | H124: ='e-service levels'!I126*'e-inc'!$D$102 ->  | I124: ='e-service levels'!J126*'e-inc'!$D$102 ->  | J124: ='e-service levels'!K126*'e-inc'!$D$102 ->  | K124: ='e-service levels'!L126*'e-inc'!$D$102 ->  | L124: ='e-service levels'!M126*'e-inc'!$D$102 ->  | M124: ='e-service levels'!N126*'e-inc'!$D$102 -> 
C125: ='e-service levels'!D127*'e-inc'!$D$102 ->  | D125: ='e-service levels'!E127*'e-inc'!$D$102 ->  | E125: ='e-service levels'!F127*'e-inc'!$D$102 ->  | F125: ='e-service levels'!G127*'e-inc'!$D$102 ->  | G125: ='e-service levels'!H127*'e-inc'!$D$102 ->  | H125: ='e-service levels'!I127*'e-inc'!$D$102 ->  | I125: ='e-service levels'!J127*'e-inc'!$D$102 ->  | J125: ='e-service levels'!K127*'e-inc'!$D$102 ->  | K125: ='e-service levels'!L127*'e-inc'!$D$102 ->  | L125: ='e-service levels'!M127*'e-inc'!$D$102 ->  | M125: ='e-service levels'!N127*'e-inc'!$D$102 -> 
A127: ='e-service levels'!A130 -> R3200-R6400 | B127: =B109 -> No service | C127: ='e-service levels'!D131*'e-inc'!$D$102 ->  | D127: ='e-service levels'!E131*'e-inc'!$D$102 ->  | E127: ='e-service levels'!F131*'e-inc'!$D$102 ->  | F127: ='e-service levels'!G131*'e-inc'!$D$102 ->  | G127: ='e-service levels'!H131*'e-inc'!$D$102 ->  | H127: ='e-service levels'!I131*'e-inc'!$D$102 ->  | I127: ='e-service levels'!J131*'e-inc'!$D$102 ->  | J127: ='e-service levels'!K131*'e-inc'!$D$102 ->  | K127: ='e-service levels'!L131*'e-inc'!$D$102 ->  | L127: ='e-service levels'!M131*'e-inc'!$D$102 ->  | M127: ='e-service levels'!N131*'e-inc'!$D$102 -> 
C128: ='e-service levels'!D132*'e-inc'!$D$102 ->  | D128: ='e-service levels'!E132*'e-inc'!$D$102 ->  | E128: ='e-service levels'!F132*'e-inc'!$D$102 ->  | F128: ='e-service levels'!G132*'e-inc'!$D$102 ->  | G128: ='e-service levels'!H132*'e-inc'!$D$102 ->  | H128: ='e-service levels'!I132*'e-inc'!$D$102 ->  | I128: ='e-service levels'!J132*'e-inc'!$D$102 ->  | J128: ='e-service levels'!K132*'e-inc'!$D$102 ->  | K128: ='e-service levels'!L132*'e-inc'!$D$102 ->  | L128: ='e-service levels'!M132*'e-inc'!$D$102 ->  | M128: ='e-service levels'!N132*'e-inc'!$D$102 -> 
C129: ='e-service levels'!D133*'e-inc'!$D$102 ->  | D129: ='e-service levels'!E133*'e-inc'!$D$102 ->  | E129: ='e-service levels'!F133*'e-inc'!$D$102 ->  | F129: ='e-service levels'!G133*'e-inc'!$D$102 ->  | G129: ='e-service levels'!H133*'e-inc'!$D$102 ->  | H129: ='e-service levels'!I133*'e-inc'!$D$102 ->  | I129: ='e-service levels'!J133*'e-inc'!$D$102 ->  | J129: ='e-service levels'!K133*'e-inc'!$D$102 ->  | K129: ='e-service levels'!L133*'e-inc'!$D$102 ->  | L129: ='e-service levels'!M133*'e-inc'!$D$102 ->  | M129: ='e-service levels'!N133*'e-inc'!$D$102 -> 
C130: ='e-service levels'!D134*'e-inc'!$D$102 ->  | D130: ='e-service levels'!E134*'e-inc'!$D$102 ->  | E130: ='e-service levels'!F134*'e-inc'!$D$102 ->  | F130: ='e-service levels'!G134*'e-inc'!$D$102 ->  | G130: ='e-service levels'!H134*'e-inc'!$D$102 ->  | H130: ='e-service levels'!I134*'e-inc'!$D$102 ->  | I130: ='e-service levels'!J134*'e-inc'!$D$102 ->  | J130: ='e-service levels'!K134*'e-inc'!$D$102 ->  | K130: ='e-service levels'!L134*'e-inc'!$D$102 ->  | L130: ='e-service levels'!M134*'e-inc'!$D$102 ->  | M130: ='e-service levels'!N134*'e-inc'!$D$102 -> 
C131: ='e-service levels'!D135*'e-inc'!$D$102 ->  | D131: ='e-service levels'!E135*'e-inc'!$D$102 ->  | E131: ='e-service levels'!F135*'e-inc'!$D$102 ->  | F131: ='e-service levels'!G135*'e-inc'!$D$102 ->  | G131: ='e-service levels'!H135*'e-inc'!$D$102 ->  | H131: ='e-service levels'!I135*'e-inc'!$D$102 ->  | I131: ='e-service levels'!J135*'e-inc'!$D$102 ->  | J131: ='e-service levels'!K135*'e-inc'!$D$102 ->  | K131: ='e-service levels'!L135*'e-inc'!$D$102 ->  | L131: ='e-service levels'!M135*'e-inc'!$D$102 ->  | M131: ='e-service levels'!N135*'e-inc'!$D$102 -> 
C132: ='e-service levels'!D136*'e-inc'!$D$102 ->  | D132: ='e-service levels'!E136*'e-inc'!$D$102 ->  | E132: ='e-service levels'!F136*'e-inc'!$D$102 ->  | F132: ='e-service levels'!G136*'e-inc'!$D$102 ->  | G132: ='e-service levels'!H136*'e-inc'!$D$102 ->  | H132: ='e-service levels'!I136*'e-inc'!$D$102 ->  | I132: ='e-service levels'!J136*'e-inc'!$D$102 ->  | J132: ='e-service levels'!K136*'e-inc'!$D$102 ->  | K132: ='e-service levels'!L136*'e-inc'!$D$102 ->  | L132: ='e-service levels'!M136*'e-inc'!$D$102 ->  | M132: ='e-service levels'!N136*'e-inc'!$D$102 -> 
C133: ='e-service levels'!D137*'e-inc'!$D$102 ->  | D133: ='e-service levels'!E137*'e-inc'!$D$102 ->  | E133: ='e-service levels'!F137*'e-inc'!$D$102 ->  | F133: ='e-service levels'!G137*'e-inc'!$D$102 ->  | G133: ='e-service levels'!H137*'e-inc'!$D$102 ->  | H133: ='e-service levels'!I137*'e-inc'!$D$102 ->  | I133: ='e-service levels'!J137*'e-inc'!$D$102 ->  | J133: ='e-service levels'!K137*'e-inc'!$D$102 ->  | K133: ='e-service levels'!L137*'e-inc'!$D$102 ->  | L133: ='e-service levels'!M137*'e-inc'!$D$102 ->  | M133: ='e-service levels'!N137*'e-inc'!$D$102 -> 
C134: ='e-service levels'!D138*'e-inc'!$D$102 ->  | D134: ='e-service levels'!E138*'e-inc'!$D$102 ->  | E134: ='e-service levels'!F138*'e-inc'!$D$102 ->  | F134: ='e-service levels'!G138*'e-inc'!$D$102 ->  | G134: ='e-service levels'!H138*'e-inc'!$D$102 ->  | H134: ='e-service levels'!I138*'e-inc'!$D$102 ->  | I134: ='e-service levels'!J138*'e-inc'!$D$102 ->  | J134: ='e-service levels'!K138*'e-inc'!$D$102 ->  | K134: ='e-service levels'!L138*'e-inc'!$D$102 ->  | L134: ='e-service levels'!M138*'e-inc'!$D$102 ->  | M134: ='e-service levels'!N138*'e-inc'!$D$102 -> 
A136: ='e-service levels'!A141 -> >R6400 | B136: =B118 -> No service | C136: ='e-service levels'!D142*'e-inc'!$D$102 -> 0 | D136: ='e-service levels'!E142*'e-inc'!$D$102 ->  | E136: ='e-service levels'!F142*'e-inc'!$D$102 ->  | F136: ='e-service levels'!G142*'e-inc'!$D$102 ->  | G136: ='e-service levels'!H142*'e-inc'!$D$102 ->  | H136: ='e-service levels'!I142*'e-inc'!$D$102 ->  | I136: ='e-service levels'!J142*'e-inc'!$D$102 ->  | J136: ='e-service levels'!K142*'e-inc'!$D$102 ->  | K136: ='e-service levels'!L142*'e-inc'!$D$102 ->  | L136: ='e-service levels'!M142*'e-inc'!$D$102 ->  | M136: ='e-service levels'!N142*'e-inc'!$D$102 -> 
